Workbook

Sheet MATRIZ FLEX e MATRIZ K e M
A1: Nº DE NÓS | B1: ='CALCULO DAS FREQ'!AW2 -> 12
A2: E | B2: ='CALCULO DAS FREQ'!AW3 -> 2.128736715e+10 | D2: N/m²
A3: L/n | B3: =B4/B1 -> 3.333333333 | C3: m | D3: I | E3: ='CALCULO DAS FREQ'!AZ4 -> 0.7363107782 | F3: m4
A4: L | B4: ='CALCULO DAS FREQ'!AW5 -> 40 | C4: m | D4: A | E4: ='CALCULO DAS FREQ'!AZ5 -> 2.35619449 | F4: m²
A5: r | B5: ='CALCULO DAS FREQ'!AW6 -> 2500 | C5: kg/m³ | D5: m | E5: =E4*B5 -> 5890.486225 | F5: kg/m
A6: fck | B6: ='CALCULO DAS FREQ'!AW7 -> 20 | C6: Mpa
A7: F | B7: ='CALCULO DAS FREQ'!AW8 -> 2 | C7: ='CALCULO DAS FREQ'!AX8 -> m | D7: ='CALCULO DAS FREQ'!AY8 -> Fint | E7: ='CALCULO DAS FREQ'!AZ8 -> 1 | F7: ='CALCULO DAS FREQ'!BA8 -> m
A9: MATRIZ DE FLEXIBILIDADE | R9: [K] | S9: MATRIZ DE RIGIDEZ | AH9: [M] | AI9: MATRIZ DE MASSA | AX9: MATRIZ DE MASSA AUX
C10: I | O10: Y | T10: I | AH10: Dmassa (Kg) nó 12 | AI10: ='CALCULO DAS FREQ'!AW11 -> 30000 | AJ10: I
C11: 1 | D11: 2 | E11: 3 | F11: 4 | G11: 5 | H11: 6 | I11: 7 | J11: 8 | K11: 9 | L11: 10 | M11: 11 | N11: 12 | T11: 1 | U11: 2 | V11: 3 | W11: 4 | X11: 5 | Y11: 6 | Z11: 7 | AA11: 8 | AB11: 9 | AC11: 10 | AD11: 11 | AE11: 12 | AJ11: 1 | AK11: 2 | AL11: 3 | AM11: 4 | AN11: 5 | AO11: 6 | AP11: 7 | AQ11: 8 | AR11: 9 | AS11: 10 | AT11: 11 | AU11: 12
A12: K | B12: 1 | C12: =(1/($B$2*$E$3))*(C28+C43+C58+C73) -> 7.876474527e-10 | D12: =(1/($B$2*$E$3))*(D28+D43+D58+D73) -> 1.969118632e-09 | E12: 3.150589811e-09 | F12: 4.33206099e-09 | G12: 5.513532169e-09 | H12: 6.695003348e-09 | I12: 7.876474527e-09 | J12: 9.057945706e-09 | K12: 1.023941688e-08 | L12: 1.142088806e-08 | M12: 1.260235924e-08 | N12: 1.378383042e-08 | O12: =B12*$B$3 -> 3.333333333 | R12: K | S12: 1 | T12: =MINVERSE(C12:N23) -> 7969145974 | U12: -5039147057 | V12: 2030613875 | W12: -544101347.5 | X12: 145791515.3 | Y12: -39064713.83 | Z12: 10467339.99 | AA12: -2804646.121 | AB12: 751244.4958 | AC12: -200331.8654 | AD12: 50082.9669 | AE12: -8347.161284 | AH12: K | AI12: 1 | AJ12: =($E$5*$B$3/420)*AZ12 -> 14585.96589 | AK12: =($E$5*$B$3/420)*BA12 -> 2524.494097 | AL12: 0 | AM12: 0 | AN12: 0 | AO12: 0 | AP12: 0 | AQ12: 0 | AR12: 0 | AS12: 0 | AT12: 0 | AU12: 0 | AV12: =SUM(AJ12:AU12) -> 17110.45999 | AZ12: 312 | BA12: 54 | BB12: 0 | BC12: 0 | BD12: 0 | BE12: 0 | BF12: 0 | BG12: 0 | BH12: 0 | BI12: 0 | BJ12: 0 | BK12: 0
B13: 2 | C13: =(1/($B$2*$E$3))*(C29+C44+C59+C74) -> 1.969118632e-09 | D13: 6.301179621e-09 | E13: 1.102706434e-08 | F13: 1.575294905e-08 | G13: 2.047883377e-08 | H13: 2.520471849e-08 | I13: 2.99306032e-08 | J13: 3.465648792e-08 | K13: 3.938237263e-08 | L13: 4.410825735e-08 | M13: 4.883414207e-08 | N13: 5.356002678e-08 | O13: 6.666666667 | S13: 2 | T13: -5039147057 | U13: 6210582773 | V13: -4567941467 | W13: 1904354716 | X13: -510270303.7 | Y13: 136726498.4 | Z13: -36635689.96 | AA13: 9816261.423 | AB13: -2629355.737 | AC13: 701161.53 | AD13: -175290.3831 | AE13: 29215.06406 | AI13: 2 | AJ13: =($E$5*$B$3/420)*AZ13 -> 2524.494097 | AK13: =($E$5*$B$3/420)*BA13 -> 14585.96589 | AL13: =($E$5*$B$3/420)*BB13 -> 2524.494097 | AM13: =($E$5*$B$3/420)*BC13 -> 0 | AN13: =($E$5*$B$3/420)*BD13 -> 0 | AO13: =($E$5*$B$3/420)*BE13 -> 0 | AP13: =($E$5*$B$3/420)*BF13 -> 0 | AQ13: =($E$5*$B$3/420)*BG13 -> 0 | AR13: =($E$5*$B$3/420)*BH13 -> 0 | AS13: =($E$5*$B$3/420)*BI13 -> 0 | AT13: =($E$5*$B$3/420)*BJ13 -> 0 | AU13: =($E$5*$B$3/420)*BK13 -> 0 | AV13: =SUM(AJ13:AU13) -> 19634.95408 | AZ13: 54 | BA13: 312 | BB13: 54 | BC13: 0 | BD13: 0 | BE13: 0 | BF13: 0 | BG13: 0 | BH13: 0 | BI13: 0 | BJ13: 0 | BK13: 0
B14: 3 | C14: =(1/($B$2*$E$3))*(C30+C45+C60+C75) -> 3.150589811e-09 | D14: 1.102706434e-08 | E14: 2.126648122e-08 | F14: 3.189972183e-08 | G14: 4.253296245e-08 | H14: 5.316620306e-08 | I14: 6.379944367e-08 | J14: 7.443268428e-08 | K14: 8.506592489e-08 | L14: 9.56991655e-08 | M14: 1.063324061e-07 | N14: 1.169656467e-07 | O14: 10 | S14: 3 | T14: 2030613875 | U14: -4567941467 | V14: 6084323615 | W14: -4534110423 | X14: 1895289699 | Y14: -507841279.8 | Z14: 136075419.8 | AA14: -36460399.58 | AB14: 9766178.457 | AC14: -2604314.255 | AD14: 651078.5645 | AE14: -108513.0944 | AI14: 3 | AJ14: 0 | AK14: 2524.494097 | AL14: 14585.96589 | AM14: 2524.494097 | AN14: 0 | AO14: 0 | AP14: 0 | AQ14: 0 | AR14: 0 | AS14: 0 | AT14: 0 | AU14: 0 | AV14: 19634.95408 | AZ14: 0 | BA14: 54 | BB14: 312 | BC14: 54 | BD14: 0 | BE14: 0 | BF14: 0 | BG14: 0 | BH14: 0 | BI14: 0 | BJ14: 0 | BK14: 0
B15: 4 | C15: =(1/($B$2*$E$3))*(C31+C46+C61+C76) -> 4.33206099e-09 | D15: 1.575294905e-08 | E15: 3.189972183e-08 | F15: 5.040943697e-08 | G15: 6.931297584e-08 | H15: 8.82165147e-08 | I15: 1.071200536e-07 | J15: 1.260235924e-07 | K15: 1.449271313e-07 | L15: 1.638306702e-07 | M15: 1.82734209e-07 | N15: 2.016377479e-07 | O15: 13.33333333 | S15: 4 | T15: -544101347.5 | U15: 1904354716 | V15: -4534110423 | W15: 6075258598 | X15: -4531681399 | Y15: 1894638621 | Z15: -507665989.4 | AA15: 136025336.9 | AB15: -36435358.09 | AC15: 9716095.49 | AD15: -2429023.872 | AE15: 404837.3122 | AI15: 4 | AJ15: 0 | AK15: 0 | AL15: 2524.494097 | AM15: 14585.96589 | AN15: 2524.494097 | AO15: 0 | AP15: 0 | AQ15: 0 | AR15: 0 | AS15: 0 | AT15: 0 | AU15: 0 | AV15: 19634.95408 | AZ15: 0 | BA15: 0 | BB15: 54 | BC15: 312 | BD15: 54 | BE15: 0 | BF15: 0 | BG15: 0 | BH15: 0 | BI15: 0 | BJ15: 0 | BK15: 0
B16: 5 | C16: =(1/($B$2*$E$3))*(C32+C47+C62+C77) -> 5.513532169e-09 | D16: 2.047883377e-08 | E16: 4.253296245e-08 | F16: 6.931297584e-08 | G16: 9.845593159e-08 | H16: 1.279927111e-07 | I16: 1.575294905e-07 | J16: 1.8706627e-07 | K16: 2.166030495e-07 | L16: 2.46139829e-07 | M16: 2.756766084e-07 | N16: 3.052133879e-07 | O16: 16.66666667 | S16: 5 | T16: 145791515.3 | U16: -510270303.7 | V16: 1895289699 | W16: -4531681399 | X16: 6074607519 | Y16: -4531506109 | Z16: 1894588538 | AA16: -507640948 | AB16: 135975253.9 | AC16: -36260067.71 | AD16: 9065016.924 | AE16: -1510836.154 | AI16: 5 | AJ16: 0 | AK16: 0 | AL16: 0 | AM16: 2524.494097 | AN16: 14585.96589 | AO16: 2524.494097 | AP16: 0 | AQ16: 0 | AR16: 0 | AS16: 0 | AT16: 0 | AU16: 0 | AV16: 19634.95408 | AZ16: 0 | BA16: 0 | BB16: 0 | BC16: 54 | BD16: 312 | BE16: 54 | BF16: 0 | BG16: 0 | BH16: 0 | BI16: 0 | BJ16: 0 | BK16: 0
B17: 6 | C17: =(1/($B$2*$E$3))*(C33+C48+C63+C78) -> 6.695003348e-09 | D17: 2.520471849e-08 | E17: 5.316620306e-08 | F17: 8.82165147e-08 | G17: 1.279927111e-07 | H17: 1.701318498e-07 | I17: 2.126648122e-07 | J17: 2.551977747e-07 | K17: 2.977307371e-07 | L17: 3.402636996e-07 | M17: 3.82796662e-07 | N17: 4.253296245e-07 | O17: 20 | S17: 6 | T17: -39064713.83 | U17: 136726498.4 | V17: -507841279.8 | W17: 1894638621 | X17: -4531506109 | Y17: 6074557436 | Z17: -4531481068 | AA17: 1894538455 | AB17: -507465657.6 | AC17: 135324175.3 | AD17: -33831043.83 | AE17: 5638507.305 | AI17: 6 | AJ17: 0 | AK17: 0 | AL17: 0 | AM17: 0 | AN17: 2524.494097 | AO17: 14585.96589 | AP17: 2524.494097 | AQ17: 0 | AR17: 0 | AS17: 0 | AT17: 0 | AU17: 0 | AV17: 19634.95408 | AZ17: 0 | BA17: 0 | BB17: 0 | BC17: 0 | BD17: 54 | BE17: 312 | BF17: 54 | BG17: 0 | BH17: 0 | BI17: 0 | BJ17: 0 | BK17: 0
B18: 7 | C18: =(1/($B$2*$E$3))*(C34+C49+C64+C79) -> 7.876474527e-09 | D18: 2.99306032e-08 | E18: 6.379944367e-08 | F18: 1.071200536e-07 | G18: 1.575294905e-07 | H18: 2.126648122e-07 | I18: 2.701630763e-07 | J18: 3.28055164e-07 | K18: 3.859472518e-07 | L18: 4.438393396e-07 | M18: 5.017314274e-07 | N18: 5.596235151e-07 | O18: 23.33333333 | S18: 7 | T18: 10467339.99 | U18: -36635689.96 | V18: 136075419.8 | W18: -507665989.4 | X18: 1894588538 | Y18: -4531481068 | Z18: 6074507353 | AA18: -4531305777 | AB18: 1893887376 | AC18: -505036633.7 | AD18: 126259158.4 | AE18: -21043193.07 | AI18: 7 | AJ18: 0 | AK18: 0 | AL18: 0 | AM18: 0 | AN18: 0 | AO18: 2524.494097 | AP18: 14585.96589 | AQ18: 2524.494097 | AR18: 0 | AS18: 0 | AT18: 0 | AU18: 0 | AV18: 19634.95408 | AZ18: 0 | BA18: 0 | BB18: 0 | BC18: 0 | BD18: 0 | BE18: 54 | BF18: 312 | BG18: 54 | BH18: 0 | BI18: 0 | BJ18: 0 | BK18: 0
B19: 8 | C19: =(1/($B$2*$E$3))*(C35+C50+C65+C80) -> 9.057945706e-09 | D19: 3.465648792e-08 | E19: 7.443268428e-08 | F19: 1.260235924e-07 | G19: 1.8706627e-07 | H19: 2.551977747e-07 | I19: 3.28055164e-07 | J19: 4.032754958e-07 | K19: 4.788896512e-07 | L19: 5.545038067e-07 | M19: 6.301179621e-07 | N19: 7.057321176e-07 | O19: 26.66666667 | S19: 8 | T19: -2804646.121 | U19: 9816261.424 | V19: -36460399.58 | W19: 136025336.9 | X19: -507640948 | Y19: 1894538455 | Z19: -4531305777 | AA19: 6073856275 | AB19: -4528876753 | AC19: 1884822359 | AD19: -471205589.9 | AE19: 78534264.98 | AI19: 8 | AJ19: 0 | AK19: 0 | AL19: 0 | AM19: 0 | AN19: 0 | AO19: 0 | AP19: 2524.494097 | AQ19: 14585.96589 | AR19: 2524.494097 | AS19: 0 | AT19: 0 | AU19: 0 | AV19: 19634.95408 | AZ19: 0 | BA19: 0 | BB19: 0 | BC19: 0 | BD19: 0 | BE19: 0 | BF19: 54 | BG19: 312 | BH19: 54 | BI19: 0 | BJ19: 0 | BK19: 0
B20: 9 | C20: =(1/($B$2*$E$3))*(C36+C51+C66+C81) -> 1.023941688e-08 | D20: 3.938237263e-08 | E20: 8.506592489e-08 | F20: 1.449271313e-07 | G20: 2.166030495e-07 | H20: 2.977307371e-07 | I20: 3.859472518e-07 | J20: 4.788896512e-07 | K20: 5.74194993e-07 | L20: 6.698941585e-07 | M20: 7.65593324e-07 | N20: 8.612924895e-07 | O20: 30 | S20: 9 | T20: 751244.4965 | U20: -2629355.738 | V20: 9766178.457 | W20: -36435358.09 | X20: 135975253.9 | Y20: -507465657.6 | Z20: 1893887376 | AA20: -4528876753 | AB20: 6064791258 | AC20: -4495045709 | AD20: 1758563201 | AE20: -293093866.8 | AI20: 9 | AJ20: 0 | AK20: 0 | AL20: 0 | AM20: 0 | AN20: 0 | AO20: 0 | AP20: 0 | AQ20: 2524.494097 | AR20: 14585.96589 | AS20: 2524.494097 | AT20: 0 | AU20: 0 | AV20: 19634.95408 | AZ20: 0 | BA20: 0 | BB20: 0 | BC20: 0 | BD20: 0 | BE20: 0 | BF20: 0 | BG20: 54 | BH20: 312 | BI20: 54 | BJ20: 0 | BK20: 0
B21: 10 | C21: =(1/($B$2*$E$3))*(C37+C52+C67+C82) -> 1.142088806e-08 | D21: 4.410825735e-08 | E21: 9.56991655e-08 | F21: 1.638306702e-07 | G21: 2.46139829e-07 | H21: 3.402636996e-07 | I21: 4.438393396e-07 | J21: 5.545038067e-07 | K21: 6.698941585e-07 | L21: 7.876474527e-07 | M21: 9.057945706e-07 | N21: 1.023941688e-06 | O21: 33.33333333 | S21: 10 | T21: -200331.8658 | U21: 701161.5302 | V21: -2604314.255 | W21: 9716095.489 | X21: -36260067.71 | Y21: 135324175.3 | Z21: -505036633.7 | AA21: 1884822359 | AB21: -4495045709 | AC21: 5938532099 | AD21: -4023840120 | AE21: 1093841202 | AI21: 10 | AJ21: 0 | AK21: 0 | AL21: 0 | AM21: 0 | AN21: 0 | AO21: 0 | AP21: 0 | AQ21: 0 | AR21: 2524.494097 | AS21: 14585.96589 | AT21: 2524.494097 | AU21: 0 | AV21: 19634.95408 | AZ21: 0 | BA21: 0 | BB21: 0 | BC21: 0 | BD21: 0 | BE21: 0 | BF21: 0 | BG21: 0 | BH21: 54 | BI21: 312 | BJ21: 54 | BK21: 0
B22: 11 | C22: =(1/($B$2*$E$3))*(C38+C53+C68+C83) -> 1.260235924e-08 | D22: 4.883414207e-08 | E22: 1.063324061e-07 | F22: 1.82734209e-07 | G22: 2.756766084e-07 | H22: 3.82796662e-07 | I22: 5.017314274e-07 | J22: 6.301179621e-07 | K22: 7.65593324e-07 | L22: 9.057945706e-07 | M22: 1.04835876e-06 | N22: 1.191316772e-06 | O22: 36.66666667 | S22: 11 | T22: 50082.96657 | U22: -175290.3828 | V22: 651078.5639 | W22: -2429023.872 | X22: 9065016.924 | Y22: -33831043.83 | Z22: 126259158.4 | AA22: -471205589.9 | AB22: 1758563201 | AC22: -4023840120 | AD22: 4179968898 | AE22: -1543063848 | AI22: 11 | AJ22: 0 | AK22: 0 | AL22: 0 | AM22: 0 | AN22: 0 | AO22: 0 | AP22: 0 | AQ22: 0 | AR22: 0 | AS22: 2524.494097 | AT22: 14585.96589 | AU22: 2524.494097 | AV22: 19634.95408 | AZ22: 0 | BA22: 0 | BB22: 0 | BC22: 0 | BD22: 0 | BE22: 0 | BF22: 0 | BG22: 0 | BH22: 0 | BI22: 54 | BJ22: 312 | BK22: 54
B23: 12 | C23: =(1/($B$2*$E$3))*(C39+C54+C69+C84) -> 1.378383042e-08 | D23: 5.356002678e-08 | E23: 1.169656467e-07 | F23: 2.016377479e-07 | G23: 3.052133879e-07 | H23: 4.253296245e-07 | I23: 5.596235151e-07 | J23: 7.057321176e-07 | K23: 8.612924895e-07 | L23: 1.023941688e-06 | M23: 1.191316772e-06 | N23: 1.361054798e-06 | O23: 40 | S23: 12 | T23: -8347.161137 | U23: 29215.06389 | V23: -108513.0941 | W23: 404837.3118 | X23: -1510836.154 | Y23: 5638507.305 | Z23: -21043193.07 | AA23: 78534264.98 | AB23: -293093866.8 | AC23: 1093841202 | AD23: -1543063848 | AE23: 680378490.4 | AI23: 12 | AJ23: 0 | AK23: 0 | AL23: 0 | AM23: 0 | AN23: 0 | AO23: 0 | AP23: 0 | AQ23: 0 | AR23: 0 | AS23: 0 | AT23: 2524.494097 | AU23: =(($E$5*$B$3/420)*BK23)+AI10 -> 37292.98295 | AV23: 39817.47704 | AZ23: 0 | BA23: 0 | BB23: 0 | BC23: 0 | BD23: 0 | BE23: 0 | BF23: 0 | BG23: 0 | BH23: 0 | BI23: 0 | BJ23: 54 | BK23: 156
AU24: m total kg | AV24: =SUM(AV12:AV23) -> 253277.4779
R25: [M]-1 x[K] | T25: MATRIZ A | AH25: [M]-1 | AI25: MATRIZ DE MASSA -1
C26: I | T26: I | AJ26: I
C27: 1 | D27: 2 | E27: 3 | F27: 4 | G27: 5 | H27: 6 | I27: 7 | J27: 8 | K27: 9 | L27: 10 | M27: 11 | N27: 12 | T27: 1 | U27: 2 | V27: 3 | W27: 4 | X27: 5 | Y27: 6 | Z27: 7 | AA27: 8 | AB27: 9 | AC27: 10 | AD27: 11 | AE27: 12 | AJ27: 1 | AK27: 2 | AL27: 3 | AM27: 4 | AN27: 5 | AO27: 6 | AP27: 7 | AQ27: 8 | AR27: 9 | AS27: 10 | AT27: 11 | AU27: 12
A28: K | B28: 1 | C28: =IF(C$27>=$B28,C$27*$B28*($B$3^2)*($B$3*$B28),C$27*$B28*($B$3^2)*($B$3*C$27)) -> 37.03703704 | D28: 74.07407407 | E28: 111.1111111 | F28: 148.1481481 | G28: 185.1851852 | H28: 222.2222222 | I28: 259.2592593 | J28: 296.2962963 | K28: 333.3333333 | L28: 370.3703704 | M28: 407.4074074 | N28: 444.4444444 | R28: K | S28: 1 | T28: =MMULT(AJ28:AU39,T12:AE23) -> 632266.7083 | U28: -446083.9454 | V28: 217074.1518 | W28: -75586.37951 | X28: 23364.75312 | Y28: -6816.262085 | Z28: 1925.654198 | AA28: -533.6886202 | AB28: 146.1150146 | AC28: -39.52264459 | AD28: 9.967800407 | AE28: -1.668834734 | AH28: K | AI28: 1 | AJ28: =MINVERSE(AJ12:AU23) -> 7.074588691e-05 | AK28: -1.263504376e-05 | AL28: 2.256588161e-06 | AM28: -4.030211708e-07 | AN28: 7.197860332e-08 | AO28: -1.285520391e-08 | AP28: 2.295908184e-09 | AQ28: -4.100433732e-10 | AR28: 7.323130541e-11 | AS28: -1.307083582e-11 | AT28: 2.289079334e-12 | AU28: -1.549558874e-13
B29: 2 | C29: 74.07407407 | D29: 296.2962963 | E29: 444.4444444 | F29: 592.5925926 | G29: 740.7407407 | H29: 888.8888889 | I29: 1037.037037 | J29: 1185.185185 | K29: 1333.333333 | L29: 1481.481481 | M29: 1629.62963 | N29: 1777.777778 | S29: 2 | T29: -496366.646 | U29: 581272.1673 | V29: -449841.5351 | W29: 221192.4388 | X29: -77245.56657 | Y29: 23908.57342 | Z29: -6979.690105 | AA29: 1972.560719 | AB29: -546.6378889 | AC29: 148.9978056 | AD29: -37.75292245 | AE29: 6.335687313 | AI29: 2 | AJ29: -1.263504376e-05 | AK29: 7.300247507e-05 | AL29: -1.303806493e-05 | AM29: 2.328566765e-06 | AN29: -4.158763747e-07 | AO29: 7.42745115e-08 | AP29: -1.326524729e-08 | AQ29: 2.36913949e-09 | AR29: -4.23114209e-10 | AS29: 7.552038475e-11 | AT29: -1.322579171e-11 | AU29: 8.953006827e-13
B30: 3 | C30: 111.1111111 | D30: 444.4444444 | E30: 1000 | F30: 1333.333333 | G30: 1666.666667 | H30: 2000 | I30: 2333.333333 | J30: 2666.666667 | K30: 3000 | L30: 3333.333333 | M30: 3666.666667 | N30: 4000 | S30: 3 | T30: 239527.7292 | U30: -452247.8175 | V30: 572562.0066 | W30: -448063.35 | X30: 220815.218 | Y30: -77162.20244 | Z30: 23889.35243 | AA30: -6974.921507 | AB30: 1970.699547 | AC30: -543.6101827 | AD30: 138.7243501 | AE30: -23.36471756 | AI30: 3 | AJ30: 2.256588161e-06 | AK30: -1.303806493e-05 | AL30: 7.307445367e-05 | AM30: -1.305092014e-05 | AN30: 2.330862673e-06 | AO30: -4.162864181e-07 | AP30: 7.434774281e-08 | AQ30: -1.327831812e-08 | AR30: 2.371428569e-09 | AS30: -4.232691649e-10 | AT30: 7.412660609e-11 | AU30: -5.017892502e-12
B31: 4 | C31: 148.1481481 | D31: 592.5925926 | E31: 1333.333333 | F31: 2370.37037 | G31: 2962.962963 | H31: 3555.555556 | I31: 4148.148148 | J31: 4740.740741 | K31: 5333.333333 | L31: 5925.925926 | M31: 6518.518519 | N31: 7111.111111 | S31: 4 | T31: -83206.66942 | U31: 222266.9564 | V31: -448178.5028 | W31: 571570.8795 | X31: -447815.4902 | Y31: 220751.9207 | Z31: -77145.62443 | AA31: 23884.32986 | AB31: -6971.057615 | AC31: 1960.242749 | AD31: -505.8609747 | AE31: 85.67636349 | AI31: 4 | AJ31: -4.030211708e-07 | AK31: 2.328566765e-06 | AL31: -1.305092014e-05 | AM31: 7.307674958e-05 | AN31: -1.305133018e-05 | AO31: 2.330935904e-06 | AP31: -4.162994889e-07 | AQ31: 7.435003189e-08 | AR31: -1.327847308e-08 | AS31: 2.37003479e-09 | AT31: -4.150612657e-10 | AU31: 2.80969671e-11
B32: 5 | C32: 185.1851852 | D32: 740.7407407 | E32: 1666.666667 | F32: 2962.962963 | G32: 4629.62963 | H32: 5555.555556 | I32: 6481.481481 | J32: 7407.407407 | K32: 8333.333333 | L32: 9259.259259 | M32: 10185.18519 | N32: 11111.11111 | S32: 5 | T32: 25693.05128 | U32: -77610.23613 | V32: 220866.6391 | W32: -447821.001 | X32: 571478.204 | Y32: -447791.0415 | Z32: 220744.7935 | AA32: -77141.21253 | AB32: 23873.78573 | AC32: -6933.507077 | AD32: 1821.845515 | AE32: -311.2905326 | AI32: 5 | AJ32: 7.197860332e-08 | AK32: -4.158763747e-07 | AL32: 2.330862673e-06 | AM32: -1.305133018e-05 | AN32: 7.307682281e-05 | AO32: -1.305134325e-05 | AP32: 2.330938193e-06 | AQ32: -4.162996439e-07 | AR32: 7.434863811e-08 | AS32: -1.327026518e-08 | AT32: 2.324005151e-09 | AU32: -1.573201397e-10
B33: 6 | C33: 222.2222222 | D33: 888.8888889 | E33: 2000 | F33: 3555.555556 | G33: 5555.555556 | H33: 8000 | I33: 9333.333333 | J33: 10666.66667 | K33: 12000 | L33: 13333.33333 | M33: 14666.66667 | N33: 16000 | S33: 6 | T33: -7491.286478 | U33: 24019.99437 | V33: -77179.65402 | W33: 220754.3824 | X33: -447791.3071 | Y33: 571469.6778 | Z33: -447786.2786 | AA33: 220734.2445 | AB33: -77103.99359 | AC33: 23736.71971 | AD33: -6429.532395 | AE33: 1114.420298 | AI33: 6 | AJ33: -1.285520391e-08 | AK33: 7.42745115e-08 | AL33: -4.162864181e-07 | AM33: 2.330935904e-06 | AN33: -1.305134325e-05 | AO33: 7.30768251e-05 | AP33: -1.305134341e-05 | AQ33: 2.3309368e-06 | AR33: -4.16291436e-07 | AS33: 7.430260847e-08 | AT33: -1.301252405e-08 | AU33: 8.808638398e-10
B34: 7 | C34: 259.2592593 | D34: 1037.037037 | E34: 2333.333333 | F34: 4148.148148 | G34: 6481.481481 | H34: 9333.333333 | I34: 12703.7037 | J34: 14518.51852 | K34: 16333.33333 | L34: 18148.14815 | M34: 19962.96296 | N34: 21777.77778 | S34: 7 | T34: 2115.663076 | U34: -7011.993929 | V34: 23894.68636 | W34: -77146.46571 | X34: 220744.9293 | Y34: -447786.3318 | Z34: 571459.2057 | AA34: -447749.5797 | AB34: 220599.1817 | AC34: -76607.5117 | AD34: 21925.44566 | AE34: -3894.062597 | AI34: 7 | AJ34: 2.295908184e-09 | AK34: -1.326524729e-08 | AL34: 7.434774281e-08 | AM34: -4.162994889e-07 | AN34: 2.330938193e-06 | AO34: -1.305134341e-05 | AP34: 7.307682371e-05 | AQ34: -1.30513352e-05 | AR34: 2.33089077e-06 | AS34: -4.160336949e-07 | AT34: 7.285946716e-08 | AU34: -4.932115379e-09
B35: 8 | C35: 296.2962963 | D35: 1185.185185 | E35: 2666.666667 | F35: 4740.740741 | G35: 7407.407407 | H35: 10666.66667 | I35: 14518.51852 | J35: 18962.96296 | K35: 21333.33333 | L35: 23703.7037 | M35: 26074.07407 | N35: 28444.44444 | S35: 8 | T35: -586.2327009 | U35: 1981.656577 | V35: -6976.478726 | W35: 23884.62428 | X35: -77141.38098 | Y35: 220734.6287 | Z35: -447750.4281 | AA35: 571327.1523 | AB35: -447264.3403 | AC35: 218829.8681 | AD35: -70237.17256 | AE35: 13049.00008 | AI35: 8 | AJ35: -4.100433732e-10 | AK35: 2.36913949e-09 | AL35: -1.327831812e-08 | AM35: 7.435003189e-08 | AN35: -4.162996439e-07 | AO35: 2.3309368e-06 | AP35: -1.30513352e-05 | AQ35: 7.307677768e-05 | AR35: -1.305107746e-05 | AS35: 2.329447629e-06 | AT35: -4.079532862e-07 | AU35: 2.76158028e-08
B36: 9 | C36: 333.3333333 | D36: 1333.333333 | E36: 3000 | F36: 5333.333333 | G36: 8333.333333 | H36: 12000 | I36: 16333.33333 | J36: 21333.33333 | K36: 27000 | L36: 30000 | M36: 33000 | N36: 36000 | S36: 9 | T36: 160.4856641 | U36: -549.1700455 | V36: 1971.201486 | W36: -6971.369401 | X36: 23874.61827 | Y36: -77106.68036 | Z36: 220607.093 | AA36: -447282.0565 | AB36: 569620.7921 | AC36: -441128.9468 | AD36: 197235.8565 | AE36: -40391.248 | AI36: 9 | AJ36: 7.323130541e-11 | AK36: -4.23114209e-10 | AL36: 2.371428569e-09 | AM36: -1.327847308e-08 | AN36: 7.434863811e-08 | AO36: -4.16291436e-07 | AP36: 2.33089077e-06 | AQ36: -1.305107746e-05 | AR36: 7.307533453e-05 | AS36: -1.304299705e-05 | AT36: 2.284203964e-06 | AU36: -1.546258563e-07
B37: 10 | C37: 370.3703704 | D37: 1481.481481 | E37: 3333.333333 | F37: 5925.925926 | G37: 9259.259259 | H37: 13333.33333 | I37: 18148.14815 | J37: 23703.7037 | K37: 30000 | L37: 37037.03704 | M37: 40740.74074 | N37: 44444.44444 | S37: 10 | T37: -43.43560718 | U37: 149.7882225 | V37: -544.1168717 | W37: 1961.662431 | X37: -6938.480446 | Y37: 23753.86229 | Z37: -76663.61585 | AA37: 218995.1816 | AB37: -441499.151 | AC37: 549342.2837 | AD37: -372747.5331 | AE37: 104222.6146 | AI37: 10 | AJ37: -1.307083582e-11 | AK37: 7.552038475e-11 | AL37: -4.232691649e-10 | AM37: 2.37003479e-09 | AN37: -1.327026518e-08 | AO37: 7.430260847e-08 | AP37: -4.160336949e-07 | AQ37: 2.329447629e-06 | AR37: -1.304299705e-05 | AS37: 7.303009087e-05 | AT37: -1.278966962e-05 | AU37: 8.657780338e-07
B38: 11 | C38: 407.4074074 | D38: 1629.62963 | E38: 3666.666667 | F38: 6518.518519 | G38: 10185.18519 | H38: 14666.66667 | I38: 19962.96296 | J38: 26074.07407 | K38: 33000 | L38: 40740.74074 | M38: 49296.2963 | N38: 53777.77778 | S38: 11 | T38: 11.12036955 | U38: -38.52963498 | V38: 140.9666047 | W38: -513.9504658 | X38: 1851.079211 | Y38: -6533.384417 | Z38: 22283.65207 | AA38: -71409.54667 | AB38: 200690.3173 | AC38: -380483.4771 | AD38: 362497.1555 | AE38: -128492.6085 | AI38: 11 | AJ38: 2.289079334e-12 | AK38: -1.322579171e-11 | AL38: 7.412660609e-11 | AM38: -4.150612657e-10 | AN38: 2.324005151e-09 | AO38: -1.301252405e-08 | AP38: 7.285946716e-08 | AQ38: -4.079532862e-07 | AR38: 2.284203964e-06 | AS38: -1.278966962e-05 | AT38: 7.161166494e-05 | AU38: -4.847647228e-06
B39: 12 | C39: 444.4444444 | D39: 1777.777778 | E39: 4000 | F39: 7111.111111 | G39: 11111.11111 | H39: 16000 | I39: 21777.77778 | J39: 28444.44444 | K39: 36000 | L39: 44444.44444 | M39: 53777.77778 | N39: 64000 | S39: 12 | T39: -0.9766037883 | U39: 3.391600509 | V39: -12.45227436 | W39: 45.64671674 | X39: -165.8187199 | Y39: 593.4627897 | Z39: -2072.726155 | AA39: 6939.837566 | AB39: -21444.6613 | AC39: 55087.29342 | AD39: -65915.50429 | AE39: 26942.26213 | AI39: 12 | AJ39: -1.549558874e-13 | AK39: 8.953006827e-13 | AL39: -5.017892502e-12 | AM39: 2.80969671e-11 | AN39: -1.573201397e-10 | AO39: 8.808638398e-10 | AP39: -4.932115379e-09 | AQ39: 2.76158028e-08 | AR39: -1.546258563e-07 | AS39: 8.657780338e-07 | AT39: -4.847647228e-06 | AU39: 2.714285039e-05
C41: I
C42: 1 | D42: 2 | E42: 3 | F42: 4 | G42: 5 | H42: 6 | I42: 7 | J42: 8 | K42: 9 | L42: 10 | M42: 11 | N42: 12
A43: K | B43: 1 | C43: =IF(C$42>=$B43,-C$42*($B$3)*(($B$3*$B43)^2)/2,-C$42*($B$3)*(($B$3*C$42)^2)/2) -> -18.51851852 | D43: -37.03703704 | E43: -55.55555556 | F43: -74.07407407 | G43: -92.59259259 | H43: -111.1111111 | I43: -129.6296296 | J43: -148.1481481 | K43: -166.6666667 | L43: -185.1851852 | M43: -203.7037037 | N43: -222.2222222
B44: 2 | C44: -18.51851852 | D44: -148.1481481 | E44: -222.2222222 | F44: -296.2962963 | G44: -370.3703704 | H44: -444.4444444 | I44: -518.5185185 | J44: -592.5925926 | K44: -666.6666667 | L44: -740.7407407 | M44: -814.8148148 | N44: -888.8888889
B45: 3 | C45: -18.51851852 | D45: -148.1481481 | E45: -500 | F45: -666.6666667 | G45: -833.3333333 | H45: -1000 | I45: -1166.666667 | J45: -1333.333333 | K45: -1500 | L45: -1666.666667 | M45: -1833.333333 | N45: -2000
B46: 4 | C46: -18.51851852 | D46: -148.1481481 | E46: -500 | F46: -1185.185185 | G46: -1481.481481 | H46: -1777.777778 | I46: -2074.074074 | J46: -2370.37037 | K46: -2666.666667 | L46: -2962.962963 | M46: -3259.259259 | N46: -3555.555556
B47: 5 | C47: -18.51851852 | D47: -148.1481481 | E47: -500 | F47: -1185.185185 | G47: -2314.814815 | H47: -2777.777778 | I47: -3240.740741 | J47: -3703.703704 | K47: -4166.666667 | L47: -4629.62963 | M47: -5092.592593 | N47: -5555.555556
B48: 6 | C48: -18.51851852 | D48: -148.1481481 | E48: -500 | F48: -1185.185185 | G48: -2314.814815 | H48: -4000 | I48: -4666.666667 | J48: -5333.333333 | K48: -6000 | L48: -6666.666667 | M48: -7333.333333 | N48: -8000
B49: 7 | C49: -18.51851852 | D49: -148.1481481 | E49: -500 | F49: -1185.185185 | G49: -2314.814815 | H49: -4000 | I49: -6351.851852 | J49: -7259.259259 | K49: -8166.666667 | L49: -9074.074074 | M49: -9981.481481 | N49: -10888.88889
B50: 8 | C50: -18.51851852 | D50: -148.1481481 | E50: -500 | F50: -1185.185185 | G50: -2314.814815 | H50: -4000 | I50: -6351.851852 | J50: -9481.481481 | K50: -10666.66667 | L50: -11851.85185 | M50: -13037.03704 | N50: -14222.22222
B51: 9 | C51: -18.51851852 | D51: -148.1481481 | E51: -500 | F51: -1185.185185 | G51: -2314.814815 | H51: -4000 | I51: -6351.851852 | J51: -9481.481481 | K51: -13500 | L51: -15000 | M51: -16500 | N51: -18000
B52: 10 | C52: -18.51851852 | D52: -148.1481481 | E52: -500 | F52: -1185.185185 | G52: -2314.814815 | H52: -4000 | I52: -6351.851852 | J52: -9481.481481 | K52: -13500 | L52: -18518.51852 | M52: -20370.37037 | N52: -22222.22222
B53: 11 | C53: -18.51851852 | D53: -148.1481481 | E53: -500 | F53: -1185.185185 | G53: -2314.814815 | H53: -4000 | I53: -6351.851852 | J53: -9481.481481 | K53: -13500 | L53: -18518.51852 | M53: -24648.14815 | N53: -26888.88889
B54: 12 | C54: -18.51851852 | D54: -148.1481481 | E54: -500 | F54: -1185.185185 | G54: -2314.814815 | H54: -4000 | I54: -6351.851852 | J54: -9481.481481 | K54: -13500 | L54: -18518.51852 | M54: -24648.14815 | N54: -32000
C56: I
C57: 1 | D57: 2 | E57: 3 | F57: 4 | G57: 5 | H57: 6 | I57: 7 | J57: 8 | K57: 9 | L57: 10 | M57: 11 | N57: 12
A58: K | B58: 1 | C58: =IF(C$57>=$B58,-$B58*($B$3)*(($B$3*$B58)^2)/2,-$B58*($B$3)*(($B$3*C$57)^2)/2) -> -18.51851852 | D58: -18.51851852 | E58: -18.51851852 | F58: -18.51851852 | G58: -18.51851852 | H58: -18.51851852 | I58: -18.51851852 | J58: -18.51851852 | K58: -18.51851852 | L58: -18.51851852 | M58: -18.51851852 | N58: -18.51851852
B59: 2 | C59: -37.03703704 | D59: -148.1481481 | E59: -148.1481481 | F59: -148.1481481 | G59: -148.1481481 | H59: -148.1481481 | I59: -148.1481481 | J59: -148.1481481 | K59: -148.1481481 | L59: -148.1481481 | M59: -148.1481481 | N59: -148.1481481
B60: 3 | C60: -55.55555556 | D60: -222.2222222 | E60: -500 | F60: -500 | G60: -500 | H60: -500 | I60: -500 | J60: -500 | K60: -500 | L60: -500 | M60: -500 | N60: -500
B61: 4 | C61: -74.07407407 | D61: -296.2962963 | E61: -666.6666667 | F61: -1185.185185 | G61: -1185.185185 | H61: -1185.185185 | I61: -1185.185185 | J61: -1185.185185 | K61: -1185.185185 | L61: -1185.185185 | M61: -1185.185185 | N61: -1185.185185
B62: 5 | C62: -92.59259259 | D62: -370.3703704 | E62: -833.3333333 | F62: -1481.481481 | G62: -2314.814815 | H62: -2314.814815 | I62: -2314.814815 | J62: -2314.814815 | K62: -2314.814815 | L62: -2314.814815 | M62: -2314.814815 | N62: -2314.814815
B63: 6 | C63: -111.1111111 | D63: -444.4444444 | E63: -1000 | F63: -1777.777778 | G63: -2777.777778 | H63: -4000 | I63: -4000 | J63: -4000 | K63: -4000 | L63: -4000 | M63: -4000 | N63: -4000
B64: 7 | C64: -129.6296296 | D64: -518.5185185 | E64: -1166.666667 | F64: -2074.074074 | G64: -3240.740741 | H64: -4666.666667 | I64: -6351.851852 | J64: -6351.851852 | K64: -6351.851852 | L64: -6351.851852 | M64: -6351.851852 | N64: -6351.851852
B65: 8 | C65: -148.1481481 | D65: -592.5925926 | E65: -1333.333333 | F65: -2370.37037 | G65: -3703.703704 | H65: -5333.333333 | I65: -7259.259259 | J65: -9481.481481 | K65: -9481.481481 | L65: -9481.481481 | M65: -9481.481481 | N65: -9481.481481
B66: 9 | C66: -166.6666667 | D66: -666.6666667 | E66: -1500 | F66: -2666.666667 | G66: -4166.666667 | H66: -6000 | I66: -8166.666667 | J66: -10666.66667 | K66: -13500 | L66: -13500 | M66: -13500 | N66: -13500
B67: 10 | C67: -185.1851852 | D67: -740.7407407 | E67: -1666.666667 | F67: -2962.962963 | G67: -4629.62963 | H67: -6666.666667 | I67: -9074.074074 | J67: -11851.85185 | K67: -15000 | L67: -18518.51852 | M67: -18518.51852 | N67: -18518.51852
B68: 11 | C68: -203.7037037 | D68: -814.8148148 | E68: -1833.333333 | F68: -3259.259259 | G68: -5092.592593 | H68: -7333.333333 | I68: -9981.481481 | J68: -13037.03704 | K68: -16500 | L68: -20370.37037 | M68: -24648.14815 | N68: -24648.14815
B69: 12 | C69: -222.2222222 | D69: -888.8888889 | E69: -2000 | F69: -3555.555556 | G69: -5555.555556 | H69: -8000 | I69: -10888.88889 | J69: -14222.22222 | K69: -18000 | L69: -22222.22222 | M69: -26888.88889 | N69: -32000
C71: I
C72: 1 | D72: 2 | E72: 3 | F72: 4 | G72: 5 | H72: 6 | I72: 7 | J72: 8 | K72: 9 | L72: 10 | M72: 11 | N72: 12
A73: K | B73: 1 | C73: =IF(C$72>=$B73,(($B$3*$B73)^3)/3,(($B$3*C$72)^3)/3) -> 12.34567901 | D73: 12.34567901 | E73: 12.34567901 | F73: 12.34567901 | G73: 12.34567901 | H73: 12.34567901 | I73: 12.34567901 | J73: 12.34567901 | K73: 12.34567901 | L73: 12.34567901 | M73: 12.34567901 | N73: 12.34567901
B74: 2 | C74: 12.34567901 | D74: 98.7654321 | E74: 98.7654321 | F74: 98.7654321 | G74: 98.7654321 | H74: 98.7654321 | I74: 98.7654321 | J74: 98.7654321 | K74: 98.7654321 | L74: 98.7654321 | M74: 98.7654321 | N74: 98.7654321
B75: 3 | C75: 12.34567901 | D75: 98.7654321 | E75: 333.3333333 | F75: 333.3333333 | G75: 333.3333333 | H75: 333.3333333 | I75: 333.3333333 | J75: 333.3333333 | K75: 333.3333333 | L75: 333.3333333 | M75: 333.3333333 | N75: 333.3333333
B76: 4 | C76: 12.34567901 | D76: 98.7654321 | E76: 333.3333333 | F76: 790.1234568 | G76: 790.1234568 | H76: 790.1234568 | I76: 790.1234568 | J76: 790.1234568 | K76: 790.1234568 | L76: 790.1234568 | M76: 790.1234568 | N76: 790.1234568
B77: 5 | C77: 12.34567901 | D77: 98.7654321 | E77: 333.3333333 | F77: 790.1234568 | G77: 1543.209877 | H77: 1543.209877 | I77: 1543.209877 | J77: 1543.209877 | K77: 1543.209877 | L77: 1543.209877 | M77: 1543.209877 | N77: 1543.209877
B78: 6 | C78: 12.34567901 | D78: 98.7654321 | E78: 333.3333333 | F78: 790.1234568 | G78: 1543.209877 | H78: 2666.666667 | I78: 2666.666667 | J78: 2666.666667 | K78: 2666.666667 | L78: 2666.666667 | M78: 2666.666667 | N78: 2666.666667
B79: 7 | C79: 12.34567901 | D79: 98.7654321 | E79: 333.3333333 | F79: 790.1234568 | G79: 1543.209877 | H79: 2666.666667 | I79: 4234.567901 | J79: 4234.567901 | K79: 4234.567901 | L79: 4234.567901 | M79: 4234.567901 | N79: 4234.567901
B80: 8 | C80: 12.34567901 | D80: 98.7654321 | E80: 333.3333333 | F80: 790.1234568 | G80: 1543.209877 | H80: 2666.666667 | I80: 4234.567901 | J80: 6320.987654 | K80: 6320.987654 | L80: 6320.987654 | M80: 6320.987654 | N80: 6320.987654
B81: 9 | C81: 12.34567901 | D81: 98.7654321 | E81: 333.3333333 | F81: 790.1234568 | G81: 1543.209877 | H81: 2666.666667 | I81: 4234.567901 | J81: 6320.987654 | K81: 9000 | L81: 9000 | M81: 9000 | N81: 9000
B82: 10 | C82: 12.34567901 | D82: 98.7654321 | E82: 333.3333333 | F82: 790.1234568 | G82: 1543.209877 | H82: 2666.666667 | I82: 4234.567901 | J82: 6320.987654 | K82: 9000 | L82: 12345.67901 | M82: 12345.67901 | N82: 12345.67901
B83: 11 | C83: 12.34567901 | D83: 98.7654321 | E83: 333.3333333 | F83: 790.1234568 | G83: 1543.209877 | H83: 2666.666667 | I83: 4234.567901 | J83: 6320.987654 | K83: 9000 | L83: 12345.67901 | M83: 16432.09877 | N83: 16432.09877
B84: 12 | C84: 12.34567901 | D84: 98.7654321 | E84: 333.3333333 | F84: 790.1234568 | G84: 1543.209877 | H84: 2666.666667 | I84: 4234.567901 | J84: 6320.987654 | K84: 9000 | L84: 12345.67901 | M84: 16432.09877 | N84: 21333.33333

Sheet Vento Sintético
A1: VENTO SINTÉTICO
A3: Exemplo 5.1 - Vento Sintético - Edifício 30 andares (h=90m ; a=24m ; b=18m)
A4: Dados:
A5: dh= | B5: =B6/12 -> 3.333333333 | C5: m | F5: Freqüência Natural 1º Modo
A6: h = | B6: ='CALCULO DAS FREQ'!AW5 -> 40 | C6: m | F6: fn = | G6: ='CALCULO DAS FREQ'!BE4 -> 0.4632016231 | H6: Hz | K6: Área da caixa (A)
A7: F = | B7: ='CALCULO DAS FREQ'!AW8 -> 2 | C7: m | K7: A = | L7: =Forças!C10 -> 12 | M7: m²
A8: h/a = | B8: =B6/B7 -> 20
A9: Re= | B9: =7000*B11*B7/100000 -> 5.6
A10: Ca = | B10: 1.2 | C10: NBR 6123 | F10: k | G10: Tk (s) | H10: fk (Hz) | I10: x | J10: f.S(f)/u*² | K10: Ck | L10: Ck (%) | M10: Ck* (%) | N10: Dz0k | O10: Dz0k/dh
A11: Vo = | B11: 40 | C11: m/s | F11: 1 | G11: =1/H11 -> 0.2698608852 | H11: =H12*2 -> 3.705612984 | I11: =1220*H11/$B$20 -> 163.7988348 | J11: =4*I11^2/(1+I11^2)^(4/3) -> 0.1336076126 | K11: =(2*J11)^0.5 -> 0.5169286462 | L11: =K11/$K$22*100 -> 4.160325097 | M11: =L11 -> 4.160325097 | N11: =N12/2 -> 1.064022919 | O11: =ROUND(N11/$B$5,0) -> 0
A12: S1 = | B12: 1 | F12: 2 | G12: 0.5397217703 | H12: =H13*2 -> 1.852806492 | I12: 81.89941741 | J12: =4*I12^2/(1+I12^2)^(4/3) -> 0.2120572505 | K12: 0.6512407397 | L12: 5.241290483 | M12: =L12 -> 5.241290483 | N12: =N13/2 -> 2.128045837 | O12: 1
A13: S3 = | B13: 1 | F13: 3 | G13: 1.079443541 | H13: =H14*2 -> 0.9264032461 | I13: 40.9497087 | J13: 0.3364192952 | K13: 0.8202673896 | L13: 6.601644216 | M13: =L13+L14/4 -> 8.67855694 | N13: =N14/2 -> 4.256091674 | O13: 1
A14: Categoria: | B14: IV | D14: pág. 31 | F14: 4 | G14: 2.158887081 | H14: =G6 -> 0.4632016231 | I14: 20.47485435 | J14: 0.5327618804 | K14: 1.032242104 | L14: 8.307650895 | M14: =L14/2 -> 4.153825448 | N14: =$B$20/7/H14 -> 8.512183349 | O14: 3
F15: 5 | G15: 4.317774162 | H15: =H14/2 -> 0.2316008115 | I15: 10.23742718 | J15: 0.8377231511 | K15: 1.294390321 | L15: 10.41746201 | M15: =L15+L14/4 -> 12.49437474 | N15: =N14*2 -> 17.0243667 | O15: 5
A16: Davenport : | F16: 6 | G16: 8.635548325 | H16: 0.1158004058 | I16: 5.118713588 | J16: 1.281141068 | K16: 1.600713008 | L16: 12.8827964 | M16: 12.8827964 | N16: =N15*2 -> 34.0487334 | O16: 10
A17: f.S(f)/(u*²) = 4x²/[(1+x²)^(4/3)] | F17: 7 | G17: 17.27109665 | H17: 0.05790020288 | I17: 2.559356794 | J17: 1.768895444 | K17: 1.880901616 | L17: 15.13779949 | M17: 15.13779949 | N17: 68.09746679 | O17: 20
A18: x = 1220.f / Uo | F18: 8 | G18: 34.5421933 | H18: 0.02895010144 | I18: 1.279678397 | J18: 1.797441851 | K18: 1.896017854 | L18: 15.25945741 | M18: 15.25945741 | N18: 136.1949336 | O18: 41
A19: Uo => velocidade média crítica = 0,69Vo | F19: 9 | G19: 69.0843866 | H19: 0.01447505072 | I19: 0.6398391985 | J19: 1.036314807 | K19: 1.439663021 | L19: 11.58664013 | M19: 11.58664013 | N19: 272.3898672 | O19: 82
A20: Uo = | B20: =0.69*B11 -> 27.6 | C20: m/s | F20: 10 | G20: 138.1687732 | H20: 0.00723752536 | I20: 0.3199195993 | J20: 0.3595145228 | K20: 0.847955804 | L20: 6.82448504 | M20: 6.82448504 | N20: 544.7797343 | O20: 163
A21: Ck = [2 f.S(f)/(u*²)] 1/2 | F21: 11 | G21: 276.3375464 | H21: 0.00361876268 | I21: 0.1599597996 | J21: 0.09895815895 | K21: 0.4448778685 | L21: 3.58044882 | M21: 3.58044882 | N21: 1089.559469 | O21: 327
J22: S | K22: =SUM(K11:K21) -> 12.42519837 | L22: =SUM(L11:L21) -> 100 | M22: =SUM(M11:M21) -> 100
A23: Correção de Ck para obtenção de Ck*:
A24: Divide-se por 2 o valor de C4 (4º harmônico - célula L14)
A25: e acrescenta-se a C3 (L13) e C5 (L15), 1/4 do valor C4.
A26: Assim temos: | C26: C4*=C4/2
C27: C3*=C3+C4/4 e C5*=C5+C4/4
A31: fk | B31: ln fk | C31: d ln | D31: na escala corresponde a
A32: =H11 -> 3.705612984 | B32: =LOG(H11,EXP(1)) -> 1.309848693
A33: 1.852806492 | B33: 0.6167015124 | C33: =B32-B33 -> 0.6931471806 | D33: =EXP(C33) -> 2
A34: 0.9264032461 | B34: -0.07644566817 | C34: =B33-B34 -> 0.6931471806 | D34: =EXP(C34) -> 2
A35: 0.4632016231 | B35: -0.7695928487 | C35: 0.6931471806 | D35: 2
A36: 0.2316008115 | B36: -1.462740029 | C36: 0.6931471806 | D36: 2
A37: 0.1158004058 | B37: -2.15588721 | C37: 0.6931471806 | D37: 2
A38: 0.05790020288 | B38: -2.84903439 | C38: 0.6931471806 | D38: 2
A39: 0.02895010144 | B39: -3.542181571 | C39: 0.6931471806 | D39: 2
A40: 0.01447505072 | B40: -4.235328752 | C40: 0.6931471806 | D40: 2
A41: 0.00723752536 | B41: -4.928475932 | C41: 0.6931471806 | D41: 2
A42: 0.00361876268 | B42: -5.621623113 | C42: 0.6931471806 | D42: 2

Sheet Forças
B1: VENTO SINTÉTICO - FORÇAS DINÂMICAS
B3: Exemplo 5.1 - Vento Sintético - Edifício 30 andares (h=90m ; a=24m ; b=18m)
B5: Dados: | F5: Fator S2 para o cálculo do Vento de Pico (3s): | L5: Fator S2 para o cálculo do Vento Estático (600s):
B6: Vo = | C6: ='Vento Sintético'!B11 -> 40 | D6: m/s | F6: S2 3 = | G6: b.Fr.(z/10) p | L6: S2 600 = | M6: b.Fr.(z/10) p
B7: S1 = | C7: ='Vento Sintético'!B12 -> 1 | F7: b = | G7: 0.86 | L7: b = | M7: 0.71
B8: S3 = | C8: ='Vento Sintético'!B13 -> 1 | F8: p = | G8: 0.12 | L8: p = | M8: 0.23
B9: Ca = | C9: ='Vento Sintético'!B10 -> 1.2 | F9: Fr = | G9: 1 | L9: Fr = | M9: 0.69
B10: A caixa = | C10: ='CALCULO DAS FREQ'!$AW$12 -> 12 | D10: m² | F10: V3 = | G10: Vo.S1.S23.S3 | L10: V600 = | M10: Vo.S1.S2600.S3
B11: Categoria: | C11: ='Vento Sintético'!B14 -> IV | F11: q j = | G11: V 32 / 16 (kgf/m²) | L11: q est = | M11: V 6002 / 16 (kgf/m²)
B13: Freqüências (Hz) | D13: =E13*2 -> 3.705612984 | E13: =F13*2 -> 1.852806492 | F13: =G13*2 -> 0.9264032461 | G13: ='Vento Sintético'!G6 -> 0.4632016231 | H13: =G13/2 -> 0.2316008115 | I13: =H13/2 -> 0.1158004058 | J13: 0.05790020288 | K13: 0.02895010144 | L13: 0.01447505072 | M13: 0.00723752536 | N13: 0.00361876268 | O13: Presão Flutuante (qf)
B14: Períodos (seg.) | D14: =1/D13 -> 0.2698608852 | E14: =1/E13 -> 0.5397217703 | F14: 1.079443541 | G14: 2.158887081 | H14: 4.317774162 | I14: 8.635548325 | J14: 17.27109665 | K14: 34.5421933 | L14: 69.0843866 | M14: 138.1687732 | N14: 276.3375464 | O14: q f = q j - q est
B15: Dz0k | D15: =E15/2 -> 1.064022919 | E15: =F15/2 -> 2.128045837 | F15: =G15/2 -> 4.256091674 | G15: ='Vento Sintético'!N14 -> 8.512183349 | H15: =G15*2 -> 17.0243667 | I15: 34.0487334 | J15: 68.09746679 | K15: 136.1949336 | L15: 272.3898672 | M15: 544.7797343 | N15: 1089.559469
B16: Correlações Ck* | D16: ='Vento Sintético'!M11 -> 4.160325097 | E16: ='Vento Sintético'!M12 -> 5.241290483 | F16: ='Vento Sintético'!M13 -> 8.67855694 | G16: ='Vento Sintético'!M14 -> 4.153825448 | H16: ='Vento Sintético'!M15 -> 12.49437474 | I16: ='Vento Sintético'!M16 -> 12.8827964 | J16: ='Vento Sintético'!M17 -> 15.13779949 | K16: ='Vento Sintético'!M18 -> 15.25945741 | L16: ='Vento Sintético'!M19 -> 11.58664013 | M16: ='Vento Sintético'!M20 -> 6.82448504 | N16: ='Vento Sintético'!M21 -> 3.58044882 | O16: q f | P16: Fest | Q16: Mest
A17: Ai (m²) | B17: i | C17: zi (m) | D17: Fd (H1) | E17: Fd (H2) | F17: Fd (H3) | G17: Fd (H4) | H17: Fd (H5) | I17: Fd (H6) | J17: Fd (H7) | K17: Fd (H8) | L17: Fd (H9) | M17: Fd (H10) | N17: Fd (H11) | O17: kgf/m² | P17: N | Q17: Nm
A18: =(('Vento Sintético'!B5/2)*'Vento Sintético'!B7)+C10 -> 15.33333333 | B18: 12 | C18: ='Vento Sintético'!B6 -> 40 | D18: =(Correlações!C5*D$16*$A18*$C$9*$O18/100000)*10000 -> 442.0309359 | E18: =(Correlações!D5*E$16*$A18*$C$9*$O18/100000)*10000 -> 556.8825714 | F18: =(Correlações!E5*F$16*$A18*$C$9*$O18/100000)*10000 -> 922.0891535 | G18: =(Correlações!F5*G$16*$A18*$C$9*$O18/100000)*10000 -> 441.3403538 | H18: =(Correlações!G5*H$16*$A18*$C$9*$O18/100000)*10000 -> 1327.516488 | I18: =(Correlações!H5*I$16*$A18*$C$9*$O18/100000)*10000 -> 1368.785952 | J18: =(Correlações!I5*J$16*$A18*$C$9*$O18/100000)*10000 -> 1608.378076 | K18: =(Correlações!J5*K$16*$A18*$C$9*$O18/100000)*10000 -> 1621.304125 | L18: =(Correlações!K5*L$16*$A18*$C$9*$O18/100000)*10000 -> 1231.070473 | M18: =(Correlações!L5*M$16*$A18*$C$9*$O18/100000)*10000 -> 725.0956209 | N18: =(Correlações!M5*N$16*$A18*$C$9*$O18/100000)*10000 -> 380.4195841 | O18: =($C$6*$C$7*$C$8)^2*(($G$7*(C18/10)^$G$8)^2-($M$7*0.69*(C18/10)^$M$8)^2)/16 -> 57.74409421 | P18: =($C$9*$A18*($C$6*$C$7*$C$8*($M$7*0.69*(C18/10)^$M$8))^2/16000)*10000 -> 8355.651114 | Q18: =P18*C18 -> 334226.0446
A19: ='Vento Sintético'!$B$5*'Vento Sintético'!$B$7 -> 6.666666667 | B19: 11 | C19: =C18-'Vento Sintético'!$B$5 -> 36.66666667 | D19: =(Correlações!C6*D$16*$A19*$C$9*$O19/100000)*10000 -> 0 | E19: =(Correlações!D6*E$16*$A19*$C$9*$O19/100000)*10000 -> 0 | F19: =(Correlações!E6*F$16*$A19*$C$9*$O19/100000)*10000 -> 86.39343467 | G19: =(Correlações!F6*G$16*$A19*$C$9*$O19/100000)*10000 -> 116.0370887 | H19: =(Correlações!G6*H$16*$A19*$C$9*$O19/100000)*10000 -> 461.355825 | I19: =(Correlações!H6*I$16*$A19*$C$9*$O19/100000)*10000 -> 533.607071 | J19: =(Correlações!I6*J$16*$A19*$C$9*$O19/100000)*10000 -> 661.0321285 | K19: =(Correlações!J6*K$16*$A19*$C$9*$O19/100000)*10000 -> 683.4926293 | L19: =(Correlações!K6*L$16*$A19*$C$9*$O19/100000)*10000 -> 525.4922689 | M19: =(Correlações!L6*M$16*$A19*$C$9*$O19/100000)*10000 -> 311.4301329 | N19: =(Correlações!M6*N$16*$A19*$C$9*$O19/100000)*10000 -> 163.8939779 | O19: 57.39396524 | P19: =($C$9*$A19*($C$6*$C$7*$C$8*($M$7*0.69*(C19/10)^$M$8))^2/16000)*10000 -> 3490.355989 | Q19: =P19*C19 -> 127979.7196
A20: ='Vento Sintético'!$B$5*'Vento Sintético'!$B$7 -> 6.666666667 | B20: 10 | C20: =C19-'Vento Sintético'!$B$5 -> 33.33333333 | D20: =(Correlações!C7*D$16*$A20*$C$9*$O20/100000)*10000 -> 0 | E20: =(Correlações!D7*E$16*$A20*$C$9*$O20/100000)*10000 -> 0 | F20: =(Correlações!E7*F$16*$A20*$C$9*$O20/100000)*10000 -> 0 | G20: =(Correlações!F7*G$16*$A20*$C$9*$O20/100000)*10000 -> 41.05292761 | H20: =(Correlações!G7*H$16*$A20*$C$9*$O20/100000)*10000 -> 346.517982 | I20: =(Correlações!H7*I$16*$A20*$C$9*$O20/100000)*10000 -> 472.2742771 | J20: =(Correlações!I7*J$16*$A20*$C$9*$O20/100000)*10000 -> 622.4964068 | K20: =(Correlações!J7*K$16*$A20*$C$9*$O20/100000)*10000 -> 661.5483324 | L20: =(Correlações!K7*L$16*$A20*$C$9*$O20/100000)*10000 -> 515.2463577 | M20: =(Correlações!L7*M$16*$A20*$C$9*$O20/100000)*10000 -> 307.2850039 | N20: =(Correlações!M7*N$16*$A20*$C$9*$O20/100000)*10000 -> 162.2149523 | O20: 56.98084668 | P20: =($C$9*$A20*($C$6*$C$7*$C$8*($M$7*0.69*(C20/10)^$M$8))^2/16000)*10000 -> 3340.635475 | Q20: 111354.5158
A21: ='Vento Sintético'!$B$5*'Vento Sintético'!$B$7 -> 6.666666667 | B21: 9 | C21: =C20-'Vento Sintético'!$B$5 -> 30 | D21: =(Correlações!C8*D$16*$A21*$C$9*$O21/100000)*10000 -> 0 | E21: =(Correlações!D8*E$16*$A21*$C$9*$O21/100000)*10000 -> 0 | F21: =(Correlações!E8*F$16*$A21*$C$9*$O21/100000)*10000 -> 0 | G21: =(Correlações!F8*G$16*$A21*$C$9*$O21/100000)*10000 -> 0 | H21: =(Correlações!G8*H$16*$A21*$C$9*$O21/100000)*10000 -> 232.9805646 | I21: =(Correlações!H8*I$16*$A21*$C$9*$O21/100000)*10000 -> 411.2163237 | J21: =(Correlações!I8*J$16*$A21*$C$9*$O21/100000)*10000 -> 583.6573302 | K21: =(Correlações!J8*K$16*$A21*$C$9*$O21/100000)*10000 -> 638.9825743 | L21: =(Correlações!K8*L$16*$A21*$C$9*$O21/100000)*10000 -> 504.4087206 | M21: =(Correlações!L8*M$16*$A21*$C$9*$O21/100000)*10000 -> 302.7560564 | N21: =(Correlações!M8*N$16*$A21*$C$9*$O21/100000)*10000 -> 160.3252988 | O21: 56.49096181 | P21: =($C$9*$A21*($C$6*$C$7*$C$8*($M$7*0.69*(C21/10)^$M$8))^2/16000)*10000 -> 3182.589628 | Q21: 95477.68884
A22: ='Vento Sintético'!$B$5*'Vento Sintético'!$B$7 -> 6.666666667 | B22: 8 | C22: =C21-'Vento Sintético'!$B$5 -> 26.66666667 | D22: =(Correlações!C9*D$16*$A22*$C$9*$O22/100000)*10000 -> 0 | E22: =(Correlações!D9*E$16*$A22*$C$9*$O22/100000)*10000 -> 0 | F22: =(Correlações!E9*F$16*$A22*$C$9*$O22/100000)*10000 -> 0 | G22: =(Correlações!F9*G$16*$A22*$C$9*$O22/100000)*10000 -> 0 | H22: =(Correlações!G9*H$16*$A22*$C$9*$O22/100000)*10000 -> 121.1539278 | I22: =(Correlações!H9*I$16*$A22*$C$9*$O22/100000)*10000 -> 350.5487902 | J22: =(Correlações!I9*J$16*$A22*$C$9*$O22/100000)*10000 -> 544.4700276 | K22: =(Correlações!J9*K$16*$A22*$C$9*$O22/100000)*10000 -> 615.6590562 | L22: =(Correlações!K9*L$16*$A22*$C$9*$O22/100000)*10000 -> 492.8412909 | M22: =(Correlações!L9*M$16*$A22*$C$9*$O22/100000)*10000 -> 297.7517881 | N22: =(Correlações!M9*N$16*$A22*$C$9*$O22/100000)*10000 -> 158.1743399 | O22: 55.90568568 | P22: 3014.7443 | Q22: 80393.18134
A23: ='Vento Sintético'!$B$5*'Vento Sintético'!$B$7 -> 6.666666667 | B23: 7 | C23: =C22-'Vento Sintético'!$B$5 -> 23.33333333 | D23: =(Correlações!C10*D$16*$A23*$C$9*$O23/100000)*10000 -> 0 | E23: =(Correlações!D10*E$16*$A23*$C$9*$O23/100000)*10000 -> 0 | F23: =(Correlações!E10*F$16*$A23*$C$9*$O23/100000)*10000 -> 0 | G23: =(Correlações!F10*G$16*$A23*$C$9*$O23/100000)*10000 -> 0 | H23: =(Correlações!G10*H$16*$A23*$C$9*$O23/100000)*10000 -> 11.59267463 | I23: =(Correlações!H10*I$16*$A23*$C$9*$O23/100000)*10000 -> 290.4234646 | J23: =(Correlações!I10*J$16*$A23*$C$9*$O23/100000)*10000 -> 504.8660643 | K23: =(Correlações!J10*K$16*$A23*$C$9*$O23/100000)*10000 -> 591.3844062 | L23: =(Correlações!K10*L$16*$A23*$C$9*$O23/100000)*10000 -> 480.3500152 | M23: =(Correlações!L10*M$16*$A23*$C$9*$O23/100000)*10000 -> 292.1439946 | N23: =(Correlações!M10*N$16*$A23*$C$9*$O23/100000)*10000 -> 155.6911654 | O23: 55.19898855 | P23: 2835.137897 | Q23: 66153.21759
A24: ='Vento Sintético'!$B$5*'Vento Sintético'!$B$7 -> 6.666666667 | B24: 6 | C24: =C23-'Vento Sintético'!$B$5 -> 20 | D24: =(Correlações!C11*D$16*$A24*$C$9*$O24/100000)*10000 -> 0 | E24: =(Correlações!D11*E$16*$A24*$C$9*$O24/100000)*10000 -> 0 | F24: =(Correlações!E11*F$16*$A24*$C$9*$O24/100000)*10000 -> 0 | G24: =(Correlações!F11*G$16*$A24*$C$9*$O24/100000)*10000 -> 0 | H24: =(Correlações!G11*H$16*$A24*$C$9*$O24/100000)*10000 -> 0 | I24: =(Correlações!H11*I$16*$A24*$C$9*$O24/100000)*10000 -> 231.0465686 | J24: =(Correlações!I11*J$16*$A24*$C$9*$O24/100000)*10000 -> 464.7369088 | K24: =(Correlações!J11*K$16*$A24*$C$9*$O24/100000)*10000 -> 565.8723855 | L24: =(Correlações!K11*L$16*$A24*$C$9*$O24/100000)*10000 -> 466.6504139 | M24: =(Correlações!L11*M$16*$A24*$C$9*$O24/100000)*10000 -> 285.7453472 | N24: =(Correlações!M11*N$16*$A24*$C$9*$O24/100000)*10000 -> 152.7723072 | O24: 54.33293712 | P24: 2641.06241 | Q24: 52821.24819
A25: ='Vento Sintético'!$B$5*'Vento Sintético'!$B$7 -> 6.666666667 | B25: 5 | C25: =C24-'Vento Sintético'!$B$5 -> 16.66666667 | D25: =(Correlações!C12*D$16*$A25*$C$9*$O25/100000)*10000 -> 0 | E25: =(Correlações!D12*E$16*$A25*$C$9*$O25/100000)*10000 -> 0 | F25: =(Correlações!E12*F$16*$A25*$C$9*$O25/100000)*10000 -> 0 | G25: =(Correlações!F12*G$16*$A25*$C$9*$O25/100000)*10000 -> 0 | H25: =(Correlações!G12*H$16*$A25*$C$9*$O25/100000)*10000 -> 0 | I25: =(Correlações!H12*I$16*$A25*$C$9*$O25/100000)*10000 -> 172.711117 | J25: =(Correlações!I12*J$16*$A25*$C$9*$O25/100000)*10000 -> 423.9012471 | K25: =(Correlações!J12*K$16*$A25*$C$9*$O25/100000)*10000 -> 538.6753017 | L25: =(Correlações!K12*L$16*$A25*$C$9*$O25/100000)*10000 -> 451.3019716 | M25: =(Correlações!L12*M$16*$A25*$C$9*$O25/100000)*10000 -> 278.2667639 | N25: =(Correlações!M12*N$16*$A25*$C$9*$O25/100000)*10000 -> 149.258329 | O25: 53.24915661 | P25: 2428.596086 | Q25: 40476.60143
A26: ='Vento Sintético'!$B$5*'Vento Sintético'!$B$7 -> 6.666666667 | B26: 4 | C26: =C25-'Vento Sintético'!$B$5 -> 13.33333333 | D26: =(Correlações!C13*D$16*$A26*$C$9*$O26/100000)*10000 -> 0 | E26: =(Correlações!D13*E$16*$A26*$C$9*$O26/100000)*10000 -> 0 | F26: =(Correlações!E13*F$16*$A26*$C$9*$O26/100000)*10000 -> 0 | G26: =(Correlações!F13*G$16*$A26*$C$9*$O26/100000)*10000 -> 0 | H26: =(Correlações!G13*H$16*$A26*$C$9*$O26/100000)*10000 -> 0 | I26: =(Correlações!H13*I$16*$A26*$C$9*$O26/100000)*10000 -> 115.8600071 | J26: =(Correlações!I13*J$16*$A26*$C$9*$O26/100000)*10000 -> 382.0335591 | K26: =(Correlações!J13*K$16*$A26*$C$9*$O26/100000)*10000 -> 509.0386483 | L26: =(Correlações!K13*L$16*$A26*$C$9*$O26/100000)*10000 -> 433.5699116 | M26: =(Correlações!L13*M$16*$A26*$C$9*$O26/100000)*10000 -> 269.2277926 | N26: =(Correlações!M13*N$16*$A26*$C$9*$O26/100000)*10000 -> 144.8846576 | O26: 51.85091384 | P26: 2191.67768 | Q26: 29222.36906
A27: ='Vento Sintético'!$B$5*'Vento Sintético'!$B$7 -> 6.666666667 | B27: 3 | C27: =C26-'Vento Sintético'!$B$5 -> 10 | D27: =(Correlações!C14*D$16*$A27*$C$9*$O27/100000)*10000 -> 0 | E27: =(Correlações!D14*E$16*$A27*$C$9*$O27/100000)*10000 -> 0 | F27: =(Correlações!E14*F$16*$A27*$C$9*$O27/100000)*10000 -> 0 | G27: =(Correlações!F14*G$16*$A27*$C$9*$O27/100000)*10000 -> 0 | H27: =(Correlações!G14*H$16*$A27*$C$9*$O27/100000)*10000 -> 0 | I27: =(Correlações!H14*I$16*$A27*$C$9*$O27/100000)*10000 -> 61.2264433 | J27: =(Correlações!I14*J$16*$A27*$C$9*$O27/100000)*10000 -> 338.4843241 | K27: =(Correlações!J14*K$16*$A27*$C$9*$O27/100000)*10000 -> 475.5460802 | L27: =(Correlações!K14*L$16*$A27*$C$9*$O27/100000)*10000 -> 412.0896441 | M27: =(Correlações!L14*M$16*$A27*$C$9*$O27/100000)*10000 -> 257.7395425 | N27: =(Correlações!M14*N$16*$A27*$C$9*$O27/100000)*10000 -> 139.162601 | O27: 49.959799 | P27: 1920.01608 | Q27: 19200.1608
A28: ='Vento Sintético'!$B$5*'Vento Sintético'!$B$7 -> 6.666666667 | B28: 2 | C28: =C27-'Vento Sintético'!$B$5 -> 6.666666667 | D28: =(Correlações!C15*D$16*$A28*$C$9*$O28/100000)*10000 -> 0 | E28: =(Correlações!D15*E$16*$A28*$C$9*$O28/100000)*10000 -> 0 | F28: =(Correlações!E15*F$16*$A28*$C$9*$O28/100000)*10000 -> 0 | G28: =(Correlações!F15*G$16*$A28*$C$9*$O28/100000)*10000 -> 0 | H28: =(Correlações!G15*H$16*$A28*$C$9*$O28/100000)*10000 -> 0 | I28: =(Correlações!H15*I$16*$A28*$C$9*$O28/100000)*10000 -> 10.21776934 | J28: =(Correlações!I15*J$16*$A28*$C$9*$O28/100000)*10000 -> 291.7165975 | K28: =(Correlações!J15*K$16*$A28*$C$9*$O28/100000)*10000 -> 435.0401648 | L28: =(Correlações!K15*L$16*$A28*$C$9*$O28/100000)*10000 -> 383.8531668 | M28: =(Correlações!L15*M$16*$A28*$C$9*$O28/100000)*10000 -> 241.8505105 | N28: =(Correlações!M15*N$16*$A28*$C$9*$O28/100000)*10000 -> 131.0211417 | O28: 47.1854338 | P28: 1593.319557 | Q28: 10622.13038
A29: ='Vento Sintético'!$B$5*'Vento Sintético'!$B$7 -> 6.666666667 | B29: 1 | C29: =C28-'Vento Sintético'!$B$5 -> 3.333333333 | D29: =(Correlações!C16*D$16*$A29*$C$9*$O29/100000)*10000 -> 0 | E29: =(Correlações!D16*E$16*$A29*$C$9*$O29/100000)*10000 -> 0 | F29: =(Correlações!E16*F$16*$A29*$C$9*$O29/100000)*10000 -> 0 | G29: =(Correlações!F16*G$16*$A29*$C$9*$O29/100000)*10000 -> 0 | H29: =(Correlações!G16*H$16*$A29*$C$9*$O29/100000)*10000 -> 0 | I29: =(Correlações!H16*I$16*$A29*$C$9*$O29/100000)*10000 -> 0 | J29: =(Correlações!I16*J$16*$A29*$C$9*$O29/100000)*10000 -> 236.6574192 | K29: =(Correlações!J16*K$16*$A29*$C$9*$O29/100000)*10000 -> 377.7091245 | L29: =(Correlações!K16*L$16*$A29*$C$9*$O29/100000)*10000 -> 339.6266764 | M29: =(Correlações!L16*M$16*$A29*$C$9*$O29/100000)*10000 -> 215.5967462 | N29: =(Correlações!M16*N$16*$A29*$C$9*$O29/100000)*10000 -> 117.1935157 | O29: 42.33922541 | P29: 1158.321423 | Q29: 3861.071411
A30: ='Vento Sintético'!$B$5*'Vento Sintético'!$B$7/2 -> 3.333333333 | B30: 0 | C30: =C29-'Vento Sintético'!$B$5 -> 0 | D30: =(Correlações!C17*D$16*$A30*$C$9*$O30/100000)*10000 -> 0 | E30: =(Correlações!D17*E$16*$A30*$C$9*$O30/100000)*10000 -> 0 | F30: =(Correlações!E17*F$16*$A30*$C$9*$O30/100000)*10000 -> 0 | G30: =(Correlações!F17*G$16*$A30*$C$9*$O30/100000)*10000 -> 0 | H30: =(Correlações!G17*H$16*$A30*$C$9*$O30/100000)*10000 -> 0 | I30: =(Correlações!H17*I$16*$A30*$C$9*$O30/100000)*10000 -> 0 | J30: =(Correlações!I17*J$16*$A30*$C$9*$O30/100000)*10000 -> 0 | K30: =(Correlações!J17*K$16*$A30*$C$9*$O30/100000)*10000 -> 0 | L30: =(Correlações!K17*L$16*$A30*$C$9*$O30/100000)*10000 -> 0 | M30: =(Correlações!L17*M$16*$A30*$C$9*$O30/100000)*10000 -> 0 | N30: =(Correlações!M17*N$16*$A30*$C$9*$O30/100000)*10000 -> 0 | O30: 0 | P30: 0 | Q30: 0
D31: (N) | P31: Mestático | Q31: =SUM(Q18:Q30) -> 971787.9491 | R31: N m
D32: =D19*$C19+$C18*D18+$C20*D20+$C21*D21+$C22*D22+$C23*D23+$C24*D24+$C25*D25+$C26*D26+$C27*D27+$C28*D28+$C29*D29+$C30*D30 -> 17681.23744 | E32: =E19*$C19+$C18*E18+$C20*E20+$C21*E21+$C22*E22+$C23*E23+$C24*E24+$C25*E25+$C26*E26+$C27*E27+$C28*E28+$C29*E29+$C30*E30 -> 22275.30286 | F32: =F19*$C19+$C18*F18+$C20*F20+$C21*F21+$C22*F22+$C23*F23+$C24*F24+$C25*F25+$C26*F26+$C27*F27+$C28*F28+$C29*F29+$C30*F30 -> 40051.32541 | G32: 23276.73833 | H32: 92058.32324 | I32: 128245.1445 | J32: 180703.9952 | K32: 197348.5044 | L32: 155616.2569 | M32: 93355.96398 | N32: 49424.55525 | P32: Mflut | Q32: =SUM(D32:N32) -> 1000037.347 | R32: N m
P33: Mtotal | Q33: =SUM(Q31:Q32) -> 1971825.297 | R33: N m
R35: R | AG35: R*
B36: FT | R36: Freqüências (Hz) | T36: =D13 -> 3.705612984 | U36: =E13 -> 1.852806492 | V36: 0.9264032461 | W36: 0.4632016231 | X36: 0.2316008115 | Y36: 0.1158004058 | Z36: 0.05790020288 | AA36: 0.02895010144 | AB36: 0.01447505072 | AC36: 0.00723752536 | AD36: 0.00361876268 | AG36: Freqüências (Hz) | AI36: =T36 -> 3.705612984 | AJ36: =U36 -> 1.852806492 | AK36: 0.9264032461 | AL36: 0.4632016231 | AM36: 0.2316008115 | AN36: 0.1158004058 | AO36: 0.05790020288 | AP36: 0.02895010144 | AQ36: 0.01447505072 | AR36: 0.00723752536 | AS36: 0.00361876268
D37: I | R37: HARMONICO | T37: R 1 | U37: R 2 | V37: R 3 | W37: R 4 | X37: R 5 | Y37: R 6 | Z37: R 7 | AA37: R 8 | AB37: R 9 | AC37: R 10 | AD37: R 11 | AG37: HARMONICO | AI37: R* 1 | AJ37: R* 2 | AK37: R* 3 | AL37: R* 4 | AM37: R* 5 | AN37: R* 6 | AO37: R* 7 | AP37: R* 8 | AQ37: R* 9 | AR37: R* 10 | AS37: R* 11
D38: 1 | E38: 2 | F38: 3 | G38: 4 | H38: 5 | I38: 6 | J38: 7 | K38: 8 | L38: 9 | M38: 10 | N38: 11 | O38: 12 | R38: i | S38: COLUNA | T38: 3 | U38: 4 | V38: 5 | W38: 6 | X38: 7 | Y38: 8 | Z38: 9 | AA38: 10 | AB38: 11 | AC38: 12 | AD38: 13 | AG38: i | AH38: COLUNA | AI38: 3 | AJ38: 4 | AK38: 5 | AL38: 6 | AM38: 7 | AN38: 8 | AO38: 9 | AP38: 10 | AQ38: 11 | AR38: 12 | AS38: 13
B39: K | C39: 1 | D39: ='CALCULO DAS FREQ'!R21 -> 0.006004976143 | E39: ='CALCULO DAS FREQ'!S21 -> 0.02315194103 | F39: ='CALCULO DAS FREQ'!T21 -> 0.05014225369 | G39: ='CALCULO DAS FREQ'!U21 -> 0.0856875138 | H39: ='CALCULO DAS FREQ'!V21 -> 0.1285200193 | I39: ='CALCULO DAS FREQ'!W21 -> 0.1774065884 | J39: ='CALCULO DAS FREQ'!X21 -> 0.2311652494 | K39: ='CALCULO DAS FREQ'!Y21 -> 0.2886843156 | L39: ='CALCULO DAS FREQ'!Z21 -> 0.3489433835 | M39: ='CALCULO DAS FREQ'!AA21 -> 0.4110358188 | N39: ='CALCULO DAS FREQ'!AB21 -> 0.4741923327 | O39: ='CALCULO DAS FREQ'!AC21 -> 0.5378052948 | R39: 1 | S39: =VLOOKUP($R39,$B$18:$N$29,2,FALSE) -> 3.333333333 | T39: =VLOOKUP($R39,$B$18:$N$29,T$38,FALSE) -> 0 | U39: 0 | V39: 0 | W39: 0 | X39: 0 | Y39: 0 | Z39: 236.6574192 | AA39: 377.7091245 | AB39: 339.6266764 | AC39: 215.5967462 | AD39: 117.1935157 | AG39: 1 | AH39: =VLOOKUP($R39,$B$18:$N$29,2,FALSE) -> 3.333333333 | AI39: =MMULT(D39:O50,T39:AD50) -> 237.7265778 | AJ39: 299.4943955 | AK39: 536.8715333 | AL39: 309.2533006 | AM39: 1194.100182 | AN39: 1571.539693 | AO39: 2106.67973 | AP39: 2254.803763 | AQ39: 1761.900422 | AR39: 1052.420743 | AS39: 555.9977481
C40: 2 | D40: ='CALCULO DAS FREQ'!R22 -> 0.03452476498 | E40: ='CALCULO DAS FREQ'!S22 -> 0.1188070386 | F40: ='CALCULO DAS FREQ'!T22 -> 0.2246800302 | G40: ='CALCULO DAS FREQ'!U22 -> 0.3261652588 | H40: ='CALCULO DAS FREQ'!V22 -> 0.4011892527 | I40: ='CALCULO DAS FREQ'!W22 -> 0.4332437003 | J40: ='CALCULO DAS FREQ'!X22 -> 0.4126117511 | K40: ='CALCULO DAS FREQ'!Y22 -> 0.3368782139 | L40: ='CALCULO DAS FREQ'!Z22 -> 0.2105564219 | M40: ='CALCULO DAS FREQ'!AA22 -> 0.04378762119 | N40: ='CALCULO DAS FREQ'!AB22 -> -0.1498149343 | O40: ='CALCULO DAS FREQ'!AC22 -> -0.3560110259 | R40: 2 | S40: 6.666666667 | T40: 0 | U40: 0 | V40: 0 | W40: 0 | X40: 0 | Y40: 10.21776934 | Z40: 291.7165975 | AA40: 435.0401648 | AB40: 383.8531668 | AC40: 241.8505105 | AD40: 131.0211417 | AG40: 2 | AH40: 6.666666667 | AI40: -157.367887 | AJ40: -198.2563356 | AK40: -341.2169323 | AL40: -172.7085109 | AM40: -431.9023545 | AN40: 0.09231556745 | AO40: 485.1456155 | AP40: 734.198213 | AQ40: 650.5568089 | AR40: 410.5853836 | AS40: 222.6028785
C41: 3 | D41: ='CALCULO DAS FREQ'!R23 -> 0.08909216125 | E41: ='CALCULO DAS FREQ'!S23 -> 0.2656956455 | F41: ='CALCULO DAS FREQ'!T23 -> 0.4091035974 | G41: ='CALCULO DAS FREQ'!U23 -> 0.437084118 | H41: ='CALCULO DAS FREQ'!V23 -> 0.3237919834 | I41: ='CALCULO DAS FREQ'!W23 -> 0.1028283607 | J41: ='CALCULO DAS FREQ'!X23 -> -0.1483015987 | K41: ='CALCULO DAS FREQ'!Y23 -> -0.3379711377 | L41: ='CALCULO DAS FREQ'!Z23 -> -0.3941230523 | M41: ='CALCULO DAS FREQ'!AA23 -> -0.2895887021 | N41: ='CALCULO DAS FREQ'!AB23 -> -0.04932467454 | O41: ='CALCULO DAS FREQ'!AC23 -> 0.2641965868 | R41: 3 | S41: 10 | T41: 0 | U41: 0 | V41: 0 | W41: 0 | X41: 0 | Y41: 61.2264433 | Z41: 338.4843241 | AA41: 475.5460802 | AB41: 412.0896441 | AC41: 257.7395425 | AD41: 139.162601 | AG41: 3 | AH41: 10 | AI41: 116.7830645 | AJ41: 147.1264746 | AK41: 239.351479 | AL41: 98.98865945 | AM41: 93.1326521 | AN41: 33.01177551 | AO41: 312.2265359 | AP41: 454.323029 | AQ41: 397.9663717 | AR41: 250.0075066 | AS41: 135.2598648
C42: 4 | D42: ='CALCULO DAS FREQ'!R24 -> 0.1586912234 | E42: ='CALCULO DAS FREQ'!S24 -> 0.3875033913 | F42: ='CALCULO DAS FREQ'!T24 -> 0.4147145446 | G42: ='CALCULO DAS FREQ'!U24 -> 0.1771469882 | H42: ='CALCULO DAS FREQ'!V24 -> -0.1743907638 | I42: ='CALCULO DAS FREQ'!W24 -> -0.3978482401 | J42: ='CALCULO DAS FREQ'!X24 -> -0.3380156163 | K42: ='CALCULO DAS FREQ'!Y24 -> -0.03947000436 | L42: ='CALCULO DAS FREQ'!Z24 -> 0.2831002483 | M42: ='CALCULO DAS FREQ'!AA24 -> 0.394420243 | N42: ='CALCULO DAS FREQ'!AB24 -> 0.1995644193 | O42: ='CALCULO DAS FREQ'!AC24 -> -0.2030816915 | R42: 4 | S42: 13.33333333 | T42: 0 | U42: 0 | V42: 0 | W42: 0 | X42: 0 | Y42: 115.8600071 | Z42: 382.0335591 | AA42: 509.0386483 | AB42: 433.5699116 | AC42: 269.2277926 | AD42: 144.8846576 | AG42: 4 | AH42: 13.33333333 | AI42: -89.76839017 | AJ42: -113.0926546 | AK42: -170.0183694 | AL42: -50.27916569 | AM42: 16.40602475 | AN42: -52.96575762 | AO42: 123.7300928 | AP42: 221.6084466 | AQ42: 205.0516672 | AR42: 131.6069694 | AS42: 71.88884659
C43: 5 | D43: ='CALCULO DAS FREQ'!R25 -> 0.2346466079 | E43: ='CALCULO DAS FREQ'!S25 -> 0.4332227795 | F43: ='CALCULO DAS FREQ'!T25 -> 0.2065289531 | G43: ='CALCULO DAS FREQ'!U25 -> -0.2353404417 | H43: ='CALCULO DAS FREQ'!V25 -> -0.4037442612 | I43: ='CALCULO DAS FREQ'!W25 -> -0.1111873355 | J43: ='CALCULO DAS FREQ'!X25 -> 0.3084769225 | K43: ='CALCULO DAS FREQ'!Y25 -> 0.377914459 | L43: ='CALCULO DAS FREQ'!Z25 -> 0.01925315612 | M43: ='CALCULO DAS FREQ'!AA25 -> -0.355445158 | N43: ='CALCULO DAS FREQ'!AB25 -> -0.3058387124 | O43: ='CALCULO DAS FREQ'!AC25 -> 0.1600655997 | R43: 5 | S43: 16.66666667 | T43: 0 | U43: 0 | V43: 0 | W43: 0 | X43: 0 | Y43: 172.711117 | Z43: 423.9012471 | AA43: 538.6753017 | AB43: 451.3019716 | AC43: 278.2667639 | AD43: 149.258329 | AG43: 5 | AH43: 16.66666667 | AI43: 70.75394685 | AJ43: 89.13774275 | AK43: 121.1722965 | AL43: 20.56271028 | AM43: 2.068617211 | AN43: 12.3983286 | AO43: 145.840772 | AP43: 217.8389154 | AQ43: 192.2964301 | AR43: 121.1807167 | AS43: 65.65446756
C44: 6 | D44: ='CALCULO DAS FREQ'!R26 -> 0.3074512136 | E44: ='CALCULO DAS FREQ'!S26 -> 0.3748678941 | F44: ='CALCULO DAS FREQ'!T26 -> -0.1133698109 | G44: ='CALCULO DAS FREQ'!U26 -> -0.4068918568 | H44: ='CALCULO DAS FREQ'!V26 -> -0.03789480407 | I44: ='CALCULO DAS FREQ'!W26 -> 0.3930410201 | J44: ='CALCULO DAS FREQ'!X26 -> 0.1861876761 | K44: ='CALCULO DAS FREQ'!Y26 -> -0.3229168768 | L44: ='CALCULO DAS FREQ'!Z26 -> -0.3085030524 | M44: ='CALCULO DAS FREQ'!AA26 -> 0.2039224053 | N44: ='CALCULO DAS FREQ'!AB26 -> 0.3723813408 | O44: ='CALCULO DAS FREQ'!AC26 -> -0.1274729486 | R44: 6 | S44: 20 | T44: 0 | U44: 0 | V44: 0 | W44: 0 | X44: 0 | Y44: 231.0465686 | Z44: 464.7369088 | AA44: 565.8723855 | AB44: 466.6504139 | AC44: 285.7453472 | AD44: 152.7723072 | AG44: 6 | AH44: 20 | AI44: -56.34698678 | AJ44: -70.98746341 | AK44: -85.37012024 | AL44: -4.677297834 | AM44: -35.59881008 | AN44: -31.44438482 | AO44: 61.08607282 | AP44: 117.0972593 | AQ44: 109.9914875 | AR44: 70.99212861 | AS44: 38.87423612
C45: 7 | D45: ='CALCULO DAS FREQ'!R27 -> 0.367540879 | E45: ='CALCULO DAS FREQ'!S27 -> 0.2170533134 | F45: ='CALCULO DAS FREQ'!T27 -> -0.3615143071 | G45: ='CALCULO DAS FREQ'!U27 -> -0.1644739104 | H45: ='CALCULO DAS FREQ'!V27 -> 0.383956094 | I45: ='CALCULO DAS FREQ'!W27 -> 0.1135617155 | J45: ='CALCULO DAS FREQ'!X27 -> -0.3990251269 | K45: ='CALCULO DAS FREQ'!Y27 -> -0.06055174578 | L45: ='CALCULO DAS FREQ'!Z27 -> 0.4071919357 | M45: ='CALCULO DAS FREQ'!AA27 -> 0.007429303022 | N45: ='CALCULO DAS FREQ'!AB27 -> -0.4008985331 | O45: ='CALCULO DAS FREQ'!AC27 -> 0.101346376 | R45: 7 | S45: 23.33333333 | T45: 0 | U45: 0 | V45: 0 | W45: 0 | X45: 11.59267463 | Y45: 290.4234646 | Z45: 504.8660643 | AA45: 591.3844062 | AB45: 480.3500152 | AC45: 292.1439946 | AD45: 155.6911654 | AG45: 7 | AH45: 23.33333333 | AI45: 44.79823343 | AJ45: 56.43803045 | AK45: 58.8153928 | AL45: -1.485858568 | AM45: 35.06245545 | AN45: 12.21838981 | AO45: 86.49253339 | AP45: 130.8482986 | AQ45: 115.9302212 | AR45: 73.16402678 | AS45: 39.66587772
C46: 8 | D46: ='CALCULO DAS FREQ'!R28 -> 0.4054407041 | E46: ='CALCULO DAS FREQ'!S28 -> -0.003114363765 | F46: ='CALCULO DAS FREQ'!T28 -> -0.3850356679 | G46: ='CALCULO DAS FREQ'!U28 -> 0.2481846143 | H46: ='CALCULO DAS FREQ'!V28 -> 0.2280306966 | I46: ='CALCULO DAS FREQ'!W28 -> -0.3925223969 | J46: ='CALCULO DAS FREQ'!X28 -> 0.02043886553 | K46: ='CALCULO DAS FREQ'!Y28 -> 0.3795832417 | L46: ='CALCULO DAS FREQ'!Z28 -> -0.2607347999 | M46: ='CALCULO DAS FREQ'!AA28 -> -0.2147753067 | N46: ='CALCULO DAS FREQ'!AB28 -> 0.3934041185 | O46: ='CALCULO DAS FREQ'!AC28 -> -0.07943037163 | R46: 8 | S46: 26.66666667 | T46: 0 | U46: 0 | V46: 0 | W46: 0 | X46: 121.1539278 | Y46: 350.5487902 | Z46: 544.4700276 | AA46: 615.6590562 | AB46: 492.8412909 | AC46: 297.7517881 | AD46: 158.1743399 | AG46: 8 | AH46: 26.66666667 | AI46: -35.11068151 | AJ46: -44.2333896 | AK46: -39.25435112 | AL46: 1.776485149 | AM46: -12.89055125 | AN46: -14.61187541 | AO46: 37.1838514 | AP46: 72.93393048 | AQ46: 68.83859493 | AR46: 44.50937284 | AS46: 24.3915061
C47: 9 | D47: ='CALCULO DAS FREQ'!R29 -> 0.4117826602 | E47: ='CALCULO DAS FREQ'!S29 -> -0.223791296 | F47: ='CALCULO DAS FREQ'!T29 -> -0.1617557655 | G47: ='CALCULO DAS FREQ'!U29 -> 0.400301423 | H47: ='CALCULO DAS FREQ'!V29 -> -0.2746523153 | I47: ='CALCULO DAS FREQ'!W29 -> -0.1008727219 | J47: ='CALCULO DAS FREQ'!X29 -> 0.3846247262 | K47: ='CALCULO DAS FREQ'!Y29 -> -0.3184488193 | L47: ='CALCULO DAS FREQ'!Z29 -> -0.0374481065 | M47: ='CALCULO DAS FREQ'!AA29 -> 0.3592999634 | N47: ='CALCULO DAS FREQ'!AB29 -> -0.3533386618 | O47: ='CALCULO DAS FREQ'!AC29 -> 0.06036782627 | R47: 9 | S47: 30 | T47: 0 | U47: 0 | V47: 0 | W47: 0 | X47: 232.9805646 | Y47: 411.2163237 | Z47: 583.6573302 | AA47: 638.9825743 | AB47: 504.4087206 | AC47: 302.7560564 | AD47: 160.3252988 | AG47: 9 | AH47: 30 | AI47: 26.68444675 | AJ47: 33.61779032 | AK47: 25.13837723 | AL47: 0.3926835583 | AM47: -1.21884385 | AN47: 11.89442238 | AO47: 53.17012583 | AP47: 81.53393882 | AQ47: 72.51565166 | AR47: 45.83494029 | AS47: 24.86655617
C48: 10 | D48: ='CALCULO DAS FREQ'!R30 -> 0.3774106041 | E48: ='CALCULO DAS FREQ'!S30 -> -0.3728697003 | F48: ='CALCULO DAS FREQ'!T30 -> 0.1710793727 | G48: ='CALCULO DAS FREQ'!U30 -> 0.120586006 | H48: ='CALCULO DAS FREQ'!V30 -> -0.348910058 | I48: ='CALCULO DAS FREQ'!W30 -> 0.393958668 | J48: ='CALCULO DAS FREQ'!X30 -> -0.2320687057 | K48: ='CALCULO DAS FREQ'!Y30 -> -0.05172228467 | L48: ='CALCULO DAS FREQ'!Z30 -> 0.3083446087 | M48: ='CALCULO DAS FREQ'!AA30 -> -0.4030010958 | N48: ='CALCULO DAS FREQ'!AB30 -> 0.2861531469 | O48: ='CALCULO DAS FREQ'!AC30 -> -0.04333176558 | R48: 10 | S48: 33.33333333 | T48: 0 | U48: 0 | V48: 0 | W48: 41.05292761 | X48: 346.517982 | Y48: 472.2742771 | Z48: 622.4964068 | AA48: 661.5483324 | AB48: 515.2463577 | AC48: 307.2850039 | AD48: 162.2149523 | AG48: 10 | AH48: 33.33333333 | AI48: -19.1539809 | AJ48: -24.13070504 | AK48: -15.23399784 | AL48: -2.464053487 | AM48: -2.270692445 | AN48: -4.280733097 | AO48: 22.94262214 | AP48: 44.72491475 | AQ48: 42.1597622 | AR48: 27.2467401 | AS48: 14.92839464
C49: 11 | D49: ='CALCULO DAS FREQ'!R31 -> 0.2948463193 | E49: ='CALCULO DAS FREQ'!S31 -> -0.3887286586 | F49: ='CALCULO DAS FREQ'!T31 -> 0.3864134163 | G49: ='CALCULO DAS FREQ'!U31 -> -0.2924346712 | H49: ='CALCULO DAS FREQ'!V31 -> 0.1291793705 | I49: ='CALCULO DAS FREQ'!W31 -> 0.06467632231 | J49: ='CALCULO DAS FREQ'!X31 -> -0.2432113644 | K49: ='CALCULO DAS FREQ'!Y31 -> 0.3641340322 | L49: ='CALCULO DAS FREQ'!Z31 -> -0.3988003825 | M49: ='CALCULO DAS FREQ'!AA31 -> 0.3390131606 | N49: ='CALCULO DAS FREQ'!AB31 -> -0.1993994575 | O49: ='CALCULO DAS FREQ'!AC31 -> 0.02783529049 | R49: 11 | S49: 36.66666667 | T49: 0 | U49: 0 | V49: 86.39343467 | W49: 116.0370887 | X49: 461.355825 | Y49: 533.607071 | Z49: 661.0321285 | AA49: 683.4926293 | AB49: 525.4922689 | AC49: 311.4301329 | AD49: 163.8939779 | AG49: 11 | AH49: 36.66666667 | AI49: 12.30405951 | AJ49: 15.50098814 | AK49: 8.439815441 | AL49: 3.064587167 | AM49: 10.8159219 | AN49: 7.885271697 | AO49: 26.97359677 | AP49: 41.97419651 | AQ49: 37.48411899 | AR49: 23.73093884 | AS49: 12.88398287
C50: 12 | D50: ='CALCULO DAS FREQ'!R32 -> 0.1637683709 | E50: ='CALCULO DAS FREQ'!S32 -> -0.2490066098 | F50: ='CALCULO DAS FREQ'!T32 -> 0.3162936101 | G50: ='CALCULO DAS FREQ'!U32 -> -0.3645946138 | H50: ='CALCULO DAS FREQ'!V32 -> 0.3911665613 | I50: ='CALCULO DAS FREQ'!W32 -> -0.3944323907 | J50: ='CALCULO DAS FREQ'!X32 -> 0.3741978006 | K50: ='CALCULO DAS FREQ'!Y32 -> -0.3316684163 | L50: ='CALCULO DAS FREQ'!Z32 -> 0.2693788006 | M50: ='CALCULO DAS FREQ'!AA32 -> -0.1910544941 | N50: ='CALCULO DAS FREQ'!AB32 -> 0.10167788 | O50: ='CALCULO DAS FREQ'!AC32 -> -0.01354539859 | R50: 12 | S50: 40 | T50: 442.0309359 | U50: 556.8825714 | V50: 922.0891535 | W50: 441.3403538 | X50: 1327.516488 | Y50: 1368.785952 | Z50: 1608.378076 | AA50: 1621.304125 | AB50: 1231.070473 | AC50: 725.0956209 | AD50: 380.4195841 | AG50: 12 | AH50: 40 | AI50: -5.987485215 | AJ50: -7.543196395 | AK50: -3.705763835 | AL50: -2.023072144 | AM50: -10.36082844 | AN50: -0.3261494873 | AO50: 8.456051042 | AP50: 16.2332645 | AQ50: 15.25291286 | AR50: 9.845857353 | AS50: 5.391714695

Sheet Correlações
A1: Coeficientes de Correlação Espacial
O2: AJUSTE | P2: 3 | Q2: SOBE
A3: Dz0k | C3: =D3/2 -> 1.064022919 | D3: =E3/2 -> 2.128045837 | E3: =F3/2 -> 4.256091674 | F3: ='Vento Sintético'!N14 -> 8.512183349 | G3: =F3*2 -> 17.0243667 | H3: =G3*2 -> 34.0487334 | I3: 68.09746679 | J3: 136.1949336 | K3: 272.3898672 | L3: 544.7797343 | M3: 1089.559469 | O3: id centro | P3: =12-'Vento Sintético'!O14+P2 -> 12
A4: i | B4: zi (m) | C4: K1 | D4: K2 | E4: K3 | F4: K4 | G4: K5 | H4: K6 | I4: K7 | J4: K8 | K4: K9 | L4: K10 | M4: K11 | O4: z centro r | P4: =P3*'Vento Sintético'!$B$5 -> 40 | Q4: m
A5: 12 | B5: =Forças!C18 -> 40 | C5: =IF($A5=$P$3,1,IF(C$3<($P$5*ABS(($A5-$P$3))),0,1-ABS($A5-$P$3)*$P$5/C$3)) -> 1 | D5: =IF($A5=$P$3,1,IF(D$3<($P$5*ABS(($A5-$P$3))),0,1-ABS($A5-$P$3)*$P$5/D$3)) -> 1 | E5: 1 | F5: 1 | G5: 1 | H5: 1 | I5: 1 | J5: 1 | K5: 1 | L5: 1 | M5: 1 | O5: dh | P5: ='Vento Sintético'!B5 -> 3.333333333 | Q5: m
A6: 11 | B6: =Forças!C19 -> 36.66666667 | C6: =IF($A6=$P$3,1,IF(C$3<($P$5*ABS(($A6-$P$3))),0,1-ABS($A6-$P$3)*$P$5/C$3)) -> 0 | D6: 0 | E6: 0.2168088499 | F6: 0.608404425 | G6: 0.8042022125 | H6: 0.9021011062 | I6: 0.9510505531 | J6: 0.9755252766 | K6: 0.9877626383 | L6: 0.9938813191 | M6: 0.9969406596
A7: 10 | B7: =Forças!C20 -> 33.33333333 | C7: 0 | D7: 0 | E7: 0 | F7: 0.2168088499 | G7: 0.608404425 | H7: 0.8042022125 | I7: 0.9021011062 | J7: 0.9510505531 | K7: 0.9755252766 | L7: 0.9877626383 | M7: 0.9938813191
A8: 9 | B8: =Forças!C21 -> 30 | C8: 0 | D8: 0 | E8: 0 | F8: 0 | G8: 0.4126066374 | H8: 0.7063033187 | I8: 0.8531516594 | J8: 0.9265758297 | K8: 0.9632879148 | L8: 0.9816439574 | M8: 0.9908219787
A9: 8 | B9: =Forças!C22 -> 26.66666667 | C9: 0 | D9: 0 | E9: 0 | F9: 0 | G9: 0.2168088499 | H9: 0.608404425 | I9: 0.8042022125 | J9: 0.9021011062 | K9: 0.9510505531 | L9: 0.9755252766 | M9: 0.9877626383
A10: 7 | B10: =Forças!C23 -> 23.33333333 | C10: 0 | D10: 0 | E10: 0 | F10: 0 | G10: 0.02101106239 | H10: 0.5105055312 | I10: 0.7552527656 | J10: 0.8776263828 | K10: 0.9388131914 | L10: 0.9694065957 | M10: 0.9847032978
A11: 6 | B11: =Forças!C24 -> 20 | C11: 0 | D11: 0 | E11: 0 | F11: 0 | G11: 0 | H11: 0.4126066374 | I11: 0.7063033187 | J11: 0.8531516594 | K11: 0.9265758297 | L11: 0.9632879148 | M11: 0.9816439574
A12: 5 | B12: =Forças!C25 -> 16.66666667 | C12: 0 | D12: 0 | E12: 0 | F12: 0 | G12: 0 | H12: 0.3147077437 | I12: 0.6573538718 | J12: 0.8286769359 | K12: 0.914338468 | L12: 0.957169234 | M12: 0.978584617
A13: 4 | B13: =Forças!C26 -> 13.33333333 | C13: 0 | D13: 0 | E13: 0 | F13: 0 | G13: 0 | H13: 0.2168088499 | I13: 0.608404425 | J13: 0.8042022125 | K13: 0.9021011062 | L13: 0.9510505531 | M13: 0.9755252766
A14: 3 | B14: =Forças!C27 -> 10 | C14: 0 | D14: 0 | E14: 0 | F14: 0 | G14: 0 | H14: 0.1189099562 | I14: 0.5594549781 | J14: 0.779727489 | K14: 0.8898637445 | L14: 0.9449318723 | M14: 0.9724659361
A15: 2 | B15: =Forças!C28 -> 6.666666667 | C15: 0 | D15: 0 | E15: 0 | F15: 0 | G15: 0 | H15: 0.02101106239 | I15: 0.5105055312 | J15: 0.7552527656 | K15: 0.8776263828 | L15: 0.9388131914 | M15: 0.9694065957
A16: 1 | B16: =Forças!C29 -> 3.333333333 | C16: 0 | D16: 0 | E16: 0 | F16: 0 | G16: 0 | H16: 0 | I16: 0.4615560843 | J16: 0.7307780422 | K16: 0.8653890211 | L16: 0.9326945105 | M16: 0.9663472553
A17: 0 | B17: =Forças!C30 -> 0 | C17: 0 | D17: 0 | E17: 0 | F17: 0 | G17: 0 | H17: 0 | I17: 0.4126066374 | J17: 0.7063033187 | K17: 0.8531516594 | L17: 0.9265758297 | M17: 0.9632879148

Sheet CALCULO DAS FREQ
A1: [M]-1 x[K] | C1: MATRIZ A | P1: [ I ] | R1: MATRIZ IDENTIDADE
C2: I | R2: I | AG2: nó | AH2: 1 | AI2: 2 | AJ2: 3 | AK2: 4 | AL2: 5 | AM2: 6 | AN2: 7 | AO2: 8 | AP2: 9 | AQ2: 10 | AR2: 11 | AS2: 12 | AV2: Nº DE NÓS | AW2: 12
C3: 1 | D3: 2 | E3: 3 | F3: 4 | G3: 5 | H3: 6 | I3: 7 | J3: 8 | K3: 9 | L3: 10 | M3: 11 | N3: 12 | R3: 1 | S3: 2 | T3: 3 | U3: 4 | V3: 5 | W3: 6 | X3: 7 | Y3: 8 | Z3: 9 | AA3: 10 | AB3: 11 | AC3: 12 | AF3: w² | AG3: 0 | AH3: 0 | AI3: 0 | AJ3: 0 | AK3: 0 | AL3: 0 | AM3: 0 | AN3: 0 | AO3: 0 | AP3: 0 | AQ3: 0 | AR3: 0 | AS3: 0 | AV3: E | AW3: =5600*SQRT(AW7)*1000*0.85*1000 -> 2.128736715e+10 | AY3: N/m² | BE3: f (hz)
A4: K | B4: 1 | C4: ='MATRIZ FLEX e MATRIZ K e M'!T28 -> 632266.7083 | D4: ='MATRIZ FLEX e MATRIZ K e M'!U28 -> -446083.9454 | E4: ='MATRIZ FLEX e MATRIZ K e M'!V28 -> 217074.1518 | F4: ='MATRIZ FLEX e MATRIZ K e M'!W28 -> -75586.37951 | G4: ='MATRIZ FLEX e MATRIZ K e M'!X28 -> 23364.75312 | H4: ='MATRIZ FLEX e MATRIZ K e M'!Y28 -> -6816.262085 | I4: ='MATRIZ FLEX e MATRIZ K e M'!Z28 -> 1925.654198 | J4: ='MATRIZ FLEX e MATRIZ K e M'!AA28 -> -533.6886202 | K4: ='MATRIZ FLEX e MATRIZ K e M'!AB28 -> 146.1150146 | L4: ='MATRIZ FLEX e MATRIZ K e M'!AC28 -> -39.52264459 | M4: ='MATRIZ FLEX e MATRIZ K e M'!AD28 -> 9.967800407 | N4: ='MATRIZ FLEX e MATRIZ K e M'!AE28 -> -1.668834734 | P4: K | Q4: 1 | R4: 1 | S4: 0 | T4: 0 | U4: 0 | V4: 0 | W4: 0 | X4: 0 | Y4: 0 | Z4: 0 | AA4: 0 | AB4: 0 | AC4: 0 | AF4: =MatEigenvalue_QR(C4:N15) -> 8.470321245 | AG4: 1 | AH4: =MatEigenvector(C4:N15,AF4:AF15,) -> 0.006004976143 | AI4: 0.03452476498 | AJ4: 0.08909216125 | AK4: 0.1586912234 | AL4: 0.2346466079 | AM4: 0.3074512136 | AN4: 0.367540879 | AO4: 0.4054407041 | AP4: 0.4117826602 | AQ4: 0.3774106041 | AR4: 0.2948463193 | AS4: 0.1637683709 | AV4: L/n | AW4: =AW5/AW2 -> 3.333333333 | AX4: m | AY4: I | AZ4: =PI()*((AW8^4)-(AZ8^4))/64 -> 0.7363107782 | BA4: m4 | BE4: =SQRT(AF4)/(2*PI()) -> 0.4632016231
B5: 2 | C5: ='MATRIZ FLEX e MATRIZ K e M'!T29 -> -496366.646 | D5: ='MATRIZ FLEX e MATRIZ K e M'!U29 -> 581272.1673 | E5: ='MATRIZ FLEX e MATRIZ K e M'!V29 -> -449841.5351 | F5: ='MATRIZ FLEX e MATRIZ K e M'!W29 -> 221192.4388 | G5: ='MATRIZ FLEX e MATRIZ K e M'!X29 -> -77245.56657 | H5: ='MATRIZ FLEX e MATRIZ K e M'!Y29 -> 23908.57342 | I5: ='MATRIZ FLEX e MATRIZ K e M'!Z29 -> -6979.690105 | J5: ='MATRIZ FLEX e MATRIZ K e M'!AA29 -> 1972.560719 | K5: ='MATRIZ FLEX e MATRIZ K e M'!AB29 -> -546.6378889 | L5: ='MATRIZ FLEX e MATRIZ K e M'!AC29 -> 148.9978056 | M5: ='MATRIZ FLEX e MATRIZ K e M'!AD29 -> -37.75292245 | N5: ='MATRIZ FLEX e MATRIZ K e M'!AE29 -> 6.335687313 | Q5: 2 | R5: 0 | S5: 1 | T5: 0 | U5: 0 | V5: 0 | W5: 0 | X5: 0 | Y5: 0 | Z5: 0 | AA5: 0 | AB5: 0 | AC5: 0 | AF5: 376.6371711 | AG5: 2 | AH5: 0.02315194103 | AI5: 0.1188070386 | AJ5: 0.2656956455 | AK5: 0.3875033913 | AL5: 0.4332227795 | AM5: 0.3748678941 | AN5: 0.2170533134 | AO5: -0.003114363765 | AP5: -0.223791296 | AQ5: -0.3728697003 | AR5: -0.3887286586 | AS5: -0.2490066098 | AV5: h | AW5: 40 | AX5: m | AY5: A | AZ5: =PI()*((AW8^2)-(AZ8^2))/4 -> 2.35619449 | BA5: m² | BE5: 3.088742624
B6: 3 | C6: ='MATRIZ FLEX e MATRIZ K e M'!T30 -> 239527.7292 | D6: ='MATRIZ FLEX e MATRIZ K e M'!U30 -> -452247.8175 | E6: ='MATRIZ FLEX e MATRIZ K e M'!V30 -> 572562.0066 | F6: ='MATRIZ FLEX e MATRIZ K e M'!W30 -> -448063.35 | G6: ='MATRIZ FLEX e MATRIZ K e M'!X30 -> 220815.218 | H6: ='MATRIZ FLEX e MATRIZ K e M'!Y30 -> -77162.20244 | I6: ='MATRIZ FLEX e MATRIZ K e M'!Z30 -> 23889.35243 | J6: ='MATRIZ FLEX e MATRIZ K e M'!AA30 -> -6974.921507 | K6: ='MATRIZ FLEX e MATRIZ K e M'!AB30 -> 1970.699547 | L6: ='MATRIZ FLEX e MATRIZ K e M'!AC30 -> -543.6101827 | M6: ='MATRIZ FLEX e MATRIZ K e M'!AD30 -> 138.7243501 | N6: ='MATRIZ FLEX e MATRIZ K e M'!AE30 -> -23.36471756 | Q6: 3 | R6: 0 | S6: ='MATRIZ FLEX e MATRIZ K e M'!AH30 -> 0 | T6: 1 | U6: 0 | V6: 0 | W6: 0 | X6: 0 | Y6: 0 | Z6: 0 | AA6: 0 | AB6: 0 | AC6: 0 | AF6: 3230.250662 | AG6: 3 | AH6: 0.05014225369 | AI6: 0.2246800302 | AJ6: 0.4091035974 | AK6: 0.4147145446 | AL6: 0.2065289531 | AM6: -0.1133698109 | AN6: -0.3615143071 | AO6: -0.3850356679 | AP6: -0.1617557655 | AQ6: 0.1710793727 | AR6: 0.3864134163 | AS6: 0.3162936101 | AV6: r | AW6: 2500 | AX6: kg/m³ | AY6: m | AZ6: =AZ5*AW6 -> 5890.486225 | BA6: kg/m | BE6: 9.045618008
B7: 4 | C7: ='MATRIZ FLEX e MATRIZ K e M'!T31 -> -83206.66942 | D7: ='MATRIZ FLEX e MATRIZ K e M'!U31 -> 222266.9564 | E7: ='MATRIZ FLEX e MATRIZ K e M'!V31 -> -448178.5028 | F7: ='MATRIZ FLEX e MATRIZ K e M'!W31 -> 571570.8795 | G7: ='MATRIZ FLEX e MATRIZ K e M'!X31 -> -447815.4902 | H7: ='MATRIZ FLEX e MATRIZ K e M'!Y31 -> 220751.9207 | I7: ='MATRIZ FLEX e MATRIZ K e M'!Z31 -> -77145.62443 | J7: ='MATRIZ FLEX e MATRIZ K e M'!AA31 -> 23884.32986 | K7: ='MATRIZ FLEX e MATRIZ K e M'!AB31 -> -6971.057615 | L7: ='MATRIZ FLEX e MATRIZ K e M'!AC31 -> 1960.242749 | M7: ='MATRIZ FLEX e MATRIZ K e M'!AD31 -> -505.8609747 | N7: ='MATRIZ FLEX e MATRIZ K e M'!AE31 -> 85.67636349 | Q7: 4 | R7: 0 | S7: 0 | T7: 0 | U7: 1 | V7: 0 | W7: 0 | X7: 0 | Y7: 0 | Z7: 0 | AA7: 0 | AB7: 0 | AC7: 0 | AF7: 13520.30273 | AG7: 4 | AH7: 0.0856875138 | AI7: 0.3261652588 | AJ7: 0.437084118 | AK7: 0.1771469882 | AL7: -0.2353404417 | AM7: -0.4068918568 | AN7: -0.1644739104 | AO7: 0.2481846143 | AP7: 0.400301423 | AQ7: 0.120586006 | AR7: -0.2924346712 | AS7: -0.3645946138 | AV7: fck | AW7: 20 | AX7: Mpa | BE7: 18.50603331
B8: 5 | C8: ='MATRIZ FLEX e MATRIZ K e M'!T32 -> 25693.05128 | D8: ='MATRIZ FLEX e MATRIZ K e M'!U32 -> -77610.23613 | E8: ='MATRIZ FLEX e MATRIZ K e M'!V32 -> 220866.6391 | F8: ='MATRIZ FLEX e MATRIZ K e M'!W32 -> -447821.001 | G8: ='MATRIZ FLEX e MATRIZ K e M'!X32 -> 571478.204 | H8: ='MATRIZ FLEX e MATRIZ K e M'!Y32 -> -447791.0415 | I8: ='MATRIZ FLEX e MATRIZ K e M'!Z32 -> 220744.7935 | J8: ='MATRIZ FLEX e MATRIZ K e M'!AA32 -> -77141.21253 | K8: ='MATRIZ FLEX e MATRIZ K e M'!AB32 -> 23873.78573 | L8: ='MATRIZ FLEX e MATRIZ K e M'!AC32 -> -6933.507077 | M8: ='MATRIZ FLEX e MATRIZ K e M'!AD32 -> 1821.845515 | N8: ='MATRIZ FLEX e MATRIZ K e M'!AE32 -> -311.2905326 | Q8: 5 | R8: 0 | S8: 0 | T8: 0 | U8: 0 | V8: 1 | W8: 0 | X8: 0 | Y8: 0 | Z8: 0 | AA8: 0 | AB8: 0 | AC8: 0 | AF8: 40301.0932 | AG8: 5 | AH8: 0.1285200193 | AI8: 0.4011892527 | AJ8: 0.3237919834 | AK8: -0.1743907638 | AL8: -0.4037442612 | AM8: -0.03789480407 | AN8: 0.383956094 | AO8: 0.2280306966 | AP8: -0.2746523153 | AQ8: -0.348910058 | AR8: 0.1291793705 | AS8: 0.3911665613 | AV8: Fext | AW8: 2 | AX8: m | AY8: Fint | AZ8: 1 | BA8: m | BE8: 31.95056519
B9: 6 | C9: ='MATRIZ FLEX e MATRIZ K e M'!T33 -> -7491.286478 | D9: ='MATRIZ FLEX e MATRIZ K e M'!U33 -> 24019.99437 | E9: ='MATRIZ FLEX e MATRIZ K e M'!V33 -> -77179.65402 | F9: ='MATRIZ FLEX e MATRIZ K e M'!W33 -> 220754.3824 | G9: ='MATRIZ FLEX e MATRIZ K e M'!X33 -> -447791.3071 | H9: ='MATRIZ FLEX e MATRIZ K e M'!Y33 -> 571469.6778 | I9: ='MATRIZ FLEX e MATRIZ K e M'!Z33 -> -447786.2786 | J9: ='MATRIZ FLEX e MATRIZ K e M'!AA33 -> 220734.2445 | K9: ='MATRIZ FLEX e MATRIZ K e M'!AB33 -> -77103.99359 | L9: ='MATRIZ FLEX e MATRIZ K e M'!AC33 -> 23736.71971 | M9: ='MATRIZ FLEX e MATRIZ K e M'!AD33 -> -6429.532395 | N9: ='MATRIZ FLEX e MATRIZ K e M'!AE33 -> 1114.420298 | Q9: 6 | R9: 0 | S9: 0 | T9: 0 | U9: 0 | V9: 0 | W9: 1 | X9: 0 | Y9: 0 | Z9: 0 | AA9: 0 | AB9: 0 | AC9: 0 | AF9: 98329.84195 | AG9: 6 | AH9: 0.1774065884 | AI9: 0.4332437003 | AJ9: 0.1028283607 | AK9: -0.3978482401 | AL9: -0.1111873355 | AM9: 0.3930410201 | AN9: 0.1135617155 | AO9: -0.3925223969 | AP9: -0.1008727219 | AQ9: 0.393958668 | AR9: 0.06467632231 | AS9: -0.3944323907 | AV9: x1 | AW9: 0.02 | AX9: =2*AW9 -> 0.04 | AY9: B | BE9: 49.90715373
B10: 7 | C10: ='MATRIZ FLEX e MATRIZ K e M'!T34 -> 2115.663076 | D10: ='MATRIZ FLEX e MATRIZ K e M'!U34 -> -7011.993929 | E10: ='MATRIZ FLEX e MATRIZ K e M'!V34 -> 23894.68636 | F10: ='MATRIZ FLEX e MATRIZ K e M'!W34 -> -77146.46571 | G10: ='MATRIZ FLEX e MATRIZ K e M'!X34 -> 220744.9293 | H10: ='MATRIZ FLEX e MATRIZ K e M'!Y34 -> -447786.3318 | I10: ='MATRIZ FLEX e MATRIZ K e M'!Z34 -> 571459.2057 | J10: ='MATRIZ FLEX e MATRIZ K e M'!AA34 -> -447749.5797 | K10: ='MATRIZ FLEX e MATRIZ K e M'!AB34 -> 220599.1817 | L10: ='MATRIZ FLEX e MATRIZ K e M'!AC34 -> -76607.5117 | M10: ='MATRIZ FLEX e MATRIZ K e M'!AD34 -> 21925.44566 | N10: ='MATRIZ FLEX e MATRIZ K e M'!AE34 -> -3894.062597 | Q10: 7 | R10: 0 | S10: 0 | T10: 0 | U10: 0 | V10: 0 | W10: 0 | X10: 1 | Y10: 0 | Z10: 0 | AA10: 0 | AB10: 0 | AC10: 0 | AF10: 209588.6087 | AG10: 7 | AH10: 0.2311652494 | AI10: 0.4126117511 | AJ10: -0.1483015987 | AK10: -0.3380156163 | AL10: 0.3084769225 | AM10: 0.1861876761 | AN10: -0.3990251269 | AO10: 0.02043886553 | AP10: 0.3846247262 | AQ10: -0.2320687057 | AR10: -0.2432113644 | AS10: 0.3741978006 | AV10: x2 | AW10: 0.02 | AX10: =2*AW10 -> 0.04 | AY10: 1/wi | AZ10: wi | BE10: 72.86248333
B11: 8 | C11: ='MATRIZ FLEX e MATRIZ K e M'!T35 -> -586.2327009 | D11: ='MATRIZ FLEX e MATRIZ K e M'!U35 -> 1981.656577 | E11: ='MATRIZ FLEX e MATRIZ K e M'!V35 -> -6976.478726 | F11: ='MATRIZ FLEX e MATRIZ K e M'!W35 -> 23884.62428 | G11: ='MATRIZ FLEX e MATRIZ K e M'!X35 -> -77141.38098 | H11: ='MATRIZ FLEX e MATRIZ K e M'!Y35 -> 220734.6287 | I11: ='MATRIZ FLEX e MATRIZ K e M'!Z35 -> -447750.4281 | J11: ='MATRIZ FLEX e MATRIZ K e M'!AA35 -> 571327.1523 | K11: ='MATRIZ FLEX e MATRIZ K e M'!AB35 -> -447264.3403 | L11: ='MATRIZ FLEX e MATRIZ K e M'!AC35 -> 218829.8681 | M11: ='MATRIZ FLEX e MATRIZ K e M'!AD35 -> -70237.17256 | N11: ='MATRIZ FLEX e MATRIZ K e M'!AE35 -> 13049.00008 | Q11: 8 | R11: 0 | S11: 0 | T11: 0 | U11: 0 | V11: 0 | W11: 0 | X11: 0 | Y11: 1 | Z11: 0 | AA11: 0 | AB11: 0 | AC11: 0 | AF11: 402549.3703 | AG11: 8 | AH11: 0.2886843156 | AI11: 0.3368782139 | AJ11: -0.3379711377 | AK11: -0.03947000436 | AL11: 0.377914459 | AM11: -0.3229168768 | AN11: -0.06055174578 | AO11: 0.3795832417 | AP11: -0.3184488193 | AQ11: -0.05172228467 | AR11: 0.3641340322 | AS11: -0.3316684163 | AV11: Massa caixa d'agua | AW11: 30000 | AX11: kg | AY11: =1/SQRT(AF4) -> 0.3435975506 | AZ11: =SQRT(AF4) -> 2.910381632 | BA11: a0 | BE11: 100.9786842
B12: 9 | C12: ='MATRIZ FLEX e MATRIZ K e M'!T36 -> 160.4856641 | D12: ='MATRIZ FLEX e MATRIZ K e M'!U36 -> -549.1700455 | E12: ='MATRIZ FLEX e MATRIZ K e M'!V36 -> 1971.201486 | F12: ='MATRIZ FLEX e MATRIZ K e M'!W36 -> -6971.369401 | G12: ='MATRIZ FLEX e MATRIZ K e M'!X36 -> 23874.61827 | H12: ='MATRIZ FLEX e MATRIZ K e M'!Y36 -> -77106.68036 | I12: ='MATRIZ FLEX e MATRIZ K e M'!Z36 -> 220607.093 | J12: ='MATRIZ FLEX e MATRIZ K e M'!AA36 -> -447282.0565 | K12: ='MATRIZ FLEX e MATRIZ K e M'!AB36 -> 569620.7921 | L12: ='MATRIZ FLEX e MATRIZ K e M'!AC36 -> -441128.9468 | M12: ='MATRIZ FLEX e MATRIZ K e M'!AD36 -> 197235.8565 | N12: ='MATRIZ FLEX e MATRIZ K e M'!AE36 -> -40391.248 | Q12: 9 | R12: 0 | S12: 0 | T12: 0 | U12: 0 | V12: 0 | W12: 0 | X12: 0 | Y12: 0 | Z12: 1 | AA12: 0 | AB12: 0 | AC12: 0 | AF12: 704190.758 | AG12: 9 | AH12: 0.3489433835 | AI12: 0.2105564219 | AJ12: -0.3941230523 | AK12: 0.2831002483 | AL12: 0.01925315612 | AM12: -0.3085030524 | AN12: 0.4071919357 | AO12: -0.2607347999 | AP12: -0.0374481065 | AQ12: 0.3083446087 | AR12: -0.3988003825 | AS12: 0.2693788006 | AV12: A exp vento caixa d'agua | AW12: 12 | AX12: m² | AY12: =1/SQRT(AF5) -> 0.05152742151 | AZ12: =SQRT(AF5) -> 19.40714227 | BA12: a1 | BE12: 133.5565808
B13: 10 | C13: ='MATRIZ FLEX e MATRIZ K e M'!T37 -> -43.43560718 | D13: ='MATRIZ FLEX e MATRIZ K e M'!U37 -> 149.7882225 | E13: ='MATRIZ FLEX e MATRIZ K e M'!V37 -> -544.1168717 | F13: ='MATRIZ FLEX e MATRIZ K e M'!W37 -> 1961.662431 | G13: ='MATRIZ FLEX e MATRIZ K e M'!X37 -> -6938.480446 | H13: ='MATRIZ FLEX e MATRIZ K e M'!Y37 -> 23753.86229 | I13: ='MATRIZ FLEX e MATRIZ K e M'!Z37 -> -76663.61585 | J13: ='MATRIZ FLEX e MATRIZ K e M'!AA37 -> 218995.1816 | K13: ='MATRIZ FLEX e MATRIZ K e M'!AB37 -> -441499.151 | L13: ='MATRIZ FLEX e MATRIZ K e M'!AC37 -> 549342.2837 | M13: ='MATRIZ FLEX e MATRIZ K e M'!AD37 -> -372747.5331 | N13: ='MATRIZ FLEX e MATRIZ K e M'!AE37 -> 104222.6146 | Q13: 10 | R13: 0 | S13: 0 | T13: 0 | U13: 0 | V13: 0 | W13: 0 | X13: 0 | Y13: 0 | Z13: 0 | AA13: 1 | AB13: 0 | AC13: 0 | AF13: 1117575.117 | AG13: 10 | AH13: 0.4110358188 | AI13: 0.04378762119 | AJ13: -0.2895887021 | AK13: 0.394420243 | AL13: -0.355445158 | AM13: 0.2039224053 | AN13: 0.007429303022 | AO13: -0.2147753067 | AP13: 0.3592999634 | AQ13: -0.4030010958 | AR13: 0.3390131606 | AS13: -0.1910544941 | AY13: B-1 | BE13: 168.2513252
B14: 11 | C14: ='MATRIZ FLEX e MATRIZ K e M'!T38 -> 11.12036955 | D14: ='MATRIZ FLEX e MATRIZ K e M'!U38 -> -38.52963498 | E14: ='MATRIZ FLEX e MATRIZ K e M'!V38 -> 140.9666047 | F14: ='MATRIZ FLEX e MATRIZ K e M'!W38 -> -513.9504658 | G14: ='MATRIZ FLEX e MATRIZ K e M'!X38 -> 1851.079211 | H14: ='MATRIZ FLEX e MATRIZ K e M'!Y38 -> -6533.384417 | I14: ='MATRIZ FLEX e MATRIZ K e M'!Z38 -> 22283.65207 | J14: ='MATRIZ FLEX e MATRIZ K e M'!AA38 -> -71409.54667 | K14: ='MATRIZ FLEX e MATRIZ K e M'!AB38 -> 200690.3173 | L14: ='MATRIZ FLEX e MATRIZ K e M'!AC38 -> -380483.4771 | M14: ='MATRIZ FLEX e MATRIZ K e M'!AD38 -> 362497.1555 | N14: ='MATRIZ FLEX e MATRIZ K e M'!AE38 -> -128492.6085 | Q14: 11 | R14: 0 | S14: 0 | T14: 0 | U14: 0 | V14: 0 | W14: 0 | X14: 0 | Y14: 0 | Z14: 0 | AA14: 0 | AB14: 1 | AC14: 0 | AF14: 1586089.268 | AG14: 11 | AH14: 0.4741923327 | AI14: -0.1498149343 | AJ14: -0.04932467454 | AK14: 0.1995644193 | AL14: -0.3058387124 | AM14: 0.3723813408 | AN14: -0.4008985331 | AO14: 0.3934041185 | AP14: -0.3533386618 | AQ14: 0.2861531469 | AR14: -0.1993994575 | AS14: 0.10167788 | AY14: =MINVERSE(AY11:AZ12) -> 2.977340044 | AZ14: -0.4464951952 | BA14: 2*x1 | BB14: a0= | BC14: =MMULT(AY14:AZ15,AX9:AX10) -> 0.1012337939 | BE14: 200.4397927
B15: 12 | C15: ='MATRIZ FLEX e MATRIZ K e M'!T39 -> -0.9766037883 | D15: ='MATRIZ FLEX e MATRIZ K e M'!U39 -> 3.391600509 | E15: ='MATRIZ FLEX e MATRIZ K e M'!V39 -> -12.45227436 | F15: ='MATRIZ FLEX e MATRIZ K e M'!W39 -> 45.64671674 | G15: ='MATRIZ FLEX e MATRIZ K e M'!X39 -> -165.8187199 | H15: ='MATRIZ FLEX e MATRIZ K e M'!Y39 -> 593.4627897 | I15: ='MATRIZ FLEX e MATRIZ K e M'!Z39 -> -2072.726155 | J15: ='MATRIZ FLEX e MATRIZ K e M'!AA39 -> 6939.837566 | K15: ='MATRIZ FLEX e MATRIZ K e M'!AB39 -> -21444.6613 | L15: ='MATRIZ FLEX e MATRIZ K e M'!AC39 -> 55087.29342 | M15: ='MATRIZ FLEX e MATRIZ K e M'!AD39 -> -65915.50429 | N15: ='MATRIZ FLEX e MATRIZ K e M'!AE39 -> 26942.26213 | Q15: 12 | R15: 0 | S15: 0 | T15: 0 | U15: 0 | V15: 0 | W15: 0 | X15: 0 | Y15: 0 | Z15: 0 | AA15: 0 | AB15: 0 | AC15: 1 | AF15: 1976048.776 | AG15: 12 | AH15: 0.5378052948 | AI15: -0.3560110259 | AJ15: 0.2641965868 | AK15: -0.2030816915 | AL15: 0.1600655997 | AM15: -0.1274729486 | AN15: 0.101346376 | AO15: -0.07943037163 | AP15: 0.06036782627 | AQ15: -0.04333176558 | AR15: 0.02783529049 | AS15: -0.01354539859 | AY15: -0.007905061614 | AZ15: 0.05271289981 | BA15: 2*x2 | BB15: a1= | BC15: 0.001792313528 | BE15: 223.7272899
A18: F | P18: FT | AF18: 1 | AV18: K* N/m | BL18: C* Kg/s
C19: I | R19: I | AH19: I | AX19: I | BN19: I
C20: 1 | D20: 2 | E20: 3 | F20: 4 | G20: 5 | H20: 6 | I20: 7 | J20: 8 | K20: 9 | L20: 10 | M20: 11 | N20: 12 | R20: 1 | S20: 2 | T20: 3 | U20: 4 | V20: 5 | W20: 6 | X20: 7 | Y20: 8 | Z20: 9 | AA20: 10 | AB20: 11 | AC20: 12 | AH20: 1 | AI20: 2 | AJ20: 3 | AK20: 4 | AL20: 5 | AM20: 6 | AN20: 7 | AO20: 8 | AP20: 9 | AQ20: 10 | AR20: 11 | AS20: 12 | AX20: 1 | AY20: 2 | AZ20: 3 | BA20: 4 | BB20: 5 | BC20: 6 | BD20: 7 | BE20: 8 | BF20: 9 | BG20: 10 | BH20: 11 | BI20: 12 | BN20: 1 | BO20: 2 | BP20: 3 | BQ20: 4 | BR20: 5 | BS20: 6 | BT20: 7 | BU20: 8 | BV20: 9 | BW20: 10 | BX20: 11 | BY20: 12
A21: K | B21: 1 | C21: =AH4 -> 0.006004976143 | D21: =AI4 -> 0.03452476498 | E21: =AJ4 -> 0.08909216125 | F21: =AK4 -> 0.1586912234 | G21: =AL4 -> 0.2346466079 | H21: =AM4 -> 0.3074512136 | I21: =AN4 -> 0.367540879 | J21: =AO4 -> 0.4054407041 | K21: =AP4 -> 0.4117826602 | L21: =AQ4 -> 0.3774106041 | M21: =AR4 -> 0.2948463193 | N21: =AS4 -> 0.1637683709 | P21: K | Q21: 1 | R21: =TRANSPOSE(C21:N32) -> 0.006004976143 | S21: 0.02315194103 | T21: 0.05014225369 | U21: 0.0856875138 | V21: 0.1285200193 | W21: 0.1774065884 | X21: 0.2311652494 | Y21: 0.2886843156 | Z21: 0.3489433835 | AA21: 0.4110358188 | AB21: 0.4741923327 | AC21: 0.5378052948 | AF21: K | AG21: 1 | AH21: =MMULT(R21:AC32,'MATRIZ FLEX e MATRIZ K e M'!T12:AE23) -> 1236.965897 | AI21: 4060.983477 | AJ21: 8522.310125 | AK21: 14406.88992 | AL21: 21504.18159 | AM21: 29609.44606 | AN21: 38526.5123 | AO21: 48070.93992 | AP21: 58073.50195 | AQ21: 68383.91621 | AR21: 78874.75883 | AS21: 180023.629 | AV21: K | AW21: 1 | AX21: =MMULT(AH21:AS32,C21:N32) -> 215155.2818 | AY21: -3.383320291e-08 | AZ21: -1.933221938e-07 | BA21: -8.696959412e-06 | BB21: -1.933096428e-05 | BC21: -3.454376201e-05 | BD21: -6.3576088e-05 | BE21: -8.986542161e-05 | BF21: -8.068719217e-05 | BG21: -3.751105032e-05 | BH21: -9.530467651e-06 | BI21: -5.152420727e-06 | BL21: K | BM21: 1 | BN21: =$BC$14*AX38+$BC$15*AX21 -> 2957.073113 | BO21: =$BC$14*AY38+$BC$15*AY21 -> -2.248033687e-10 | BP21: -3.055221216e-10 | BQ21: -1.565258848e-08 | BR21: -3.469534827e-08 | BS21: -6.194851538e-08 | BT21: -1.139775153e-07 | BU21: -1.610897295e-07 | BV21: -1.446267358e-07 | BW21: -6.723552202e-08 | BX21: -1.708338149e-08 | BY21: -9.233619738e-09
B22: 2 | C22: 0.02315194103 | D22: 0.1188070386 | E22: 0.2656956455 | F22: 0.3875033913 | G22: 0.4332227795 | H22: 0.3748678941 | I22: 0.2170533134 | J22: -0.003114363765 | K22: -0.223791296 | L22: -0.3728697003 | M22: -0.3887286586 | N22: -0.2490066098 | Q22: 2 | R22: 0.03452476498 | S22: 0.1188070386 | T22: 0.2246800302 | U22: 0.3261652588 | V22: 0.4011892527 | W22: 0.4332437003 | X22: 0.4126117511 | Y22: 0.3368782139 | Z22: 0.2105564219 | AA22: 0.04378762119 | AB22: -0.1498149343 | AC22: -0.3560110259 | AG22: 2 | AH22: 302629.7416 | AI22: 899137.0256 | AJ22: 1657393.828 | AK22: 2386914.965 | AL22: 2926040.018 | AM22: 3153851.826 | AN22: 2998976.923 | AO22: 2443199.572 | AP22: 1518660.372 | AQ22: 298306.536 | AR22: -1119893.591 | AS22: -5142950.454 | AW22: 2 | AX22: -1.844018698e-07 | AY22: 8200489.812 | AZ22: -8.570495993e-07 | BA22: -4.300614819e-06 | BB22: -5.265697837e-06 | BC22: -1.293455716e-05 | BD22: -3.33263888e-05 | BE22: -4.142121179e-05 | BF22: -2.96033686e-05 | BG22: -2.3830391e-05 | BH22: -2.853147453e-05 | BI22: -1.152988989e-05 | BM22: 2 | BN22: =$BC$14*AX39+$BC$15*AX22 -> -4.948537704e-10 | BO22: =$BC$14*AY39+$BC$15*AY22 -> 16902.0038 | BP22: =$BC$14*AZ39+$BC$15*AZ22 -> -1.63102741e-09 | BQ22: =$BC$14*BA39+$BC$15*BA22 -> -7.745201009e-09 | BR22: =$BC$14*BB39+$BC$15*BB22 -> -9.450303204e-09 | BS22: =$BC$14*BC39+$BC$15*BC22 -> -2.319470505e-08 | BT22: =$BC$14*BD39+$BC$15*BD22 -> -5.974899222e-08 | BU22: =$BC$14*BE39+$BC$15*BE22 -> -7.425066268e-08 | BV22: =$BC$14*BF39+$BC$15*BF22 -> -5.306297198e-08 | BW22: =$BC$14*BG39+$BC$15*BG22 -> -4.271383396e-08 | BX22: =$BC$14*BH39+$BC$15*BH22 -> -5.113924674e-08 | BY22: =$BC$14*BI39+$BC$15*BI22 -> -2.066509706e-08
B23: 3 | C23: 0.05014225369 | D23: 0.2246800302 | E23: 0.4091035974 | F23: 0.4147145446 | G23: 0.2065289531 | H23: -0.1133698109 | I23: -0.3615143071 | J23: -0.3850356679 | K23: -0.1617557655 | L23: 0.1710793727 | M23: 0.3864134163 | N23: 0.3162936101 | Q23: 3 | R23: 0.08909216125 | S23: 0.2656956455 | T23: 0.4091035974 | U23: 0.437084118 | V23: 0.3237919834 | W23: 0.1028283607 | X23: -0.1483015987 | Y23: -0.3379711377 | Z23: -0.3941230523 | AA23: -0.2895887021 | AB23: -0.04932467454 | AC23: 0.2641965868 | AG23: 3 | AH23: 6364376.539 | AI23: 16581263.87 | AJ23: 25006450.84 | AK23: 26570377.09 | AL23: 19658739.24 | AM23: 6275974.554 | AN23: -8904956.73 | AO23: -20347295.03 | AP23: -23687223.02 | AQ23: -17260560.48 | AR23: -2531063.765 | AS23: 31424391.91 | AW23: 3 | AX23: 6.295740604e-07 | AY23: 1.862645149e-09 | AZ23: 64785617.54 | BA23: -5.517154932e-06 | BB23: 3.994442523e-06 | BC23: 3.999099135e-06 | BD23: 2.7094502e-05 | BE23: 2.906285226e-05 | BF23: 5.023553967e-06 | BG23: -3.461493179e-05 | BH23: -1.283327583e-05 | BI23: -1.611775951e-05 | BM23: 3 | BN23: 1.169365967e-09 | BO23: -9.15413389e-11 | BP23: 118146.4746 | BQ23: -9.929121031e-09 | BR23: 7.166267793e-09 | BS23: 7.172358149e-09 | BT23: 4.857492815e-08 | BU23: 5.209603867e-08 | BV23: 9.004451253e-09 | BW23: -6.204358418e-08 | BX23: -2.300128841e-08 | BY23: -2.889048667e-08
B24: 4 | C24: 0.0856875138 | D24: 0.3261652588 | E24: 0.437084118 | F24: 0.1771469882 | G24: -0.2353404417 | H24: -0.4068918568 | I24: -0.1644739104 | J24: 0.2481846143 | K24: 0.400301423 | L24: 0.120586006 | M24: -0.2924346712 | N24: -0.3645946138 | Q24: 4 | R24: 0.1586912234 | S24: 0.3875033913 | T24: 0.4147145446 | U24: 0.1771469882 | V24: -0.1743907638 | W24: -0.3978482401 | X24: -0.3380156163 | Y24: -0.03947000436 | Z24: 0.2831002483 | AA24: 0.394420243 | AB24: 0.1995644193 | AC24: -0.2030816915 | AG24: 4 | AH24: 44521204.9 | AI24: 95989697.49 | AJ24: 101057080.3 | AK24: 43137281.56 | AL24: -41923981.04 | AM24: -95947744.22 | AN24: -81585448.87 | AO24: -9658115.491 | AP24: 67944393.23 | AQ24: 94256578.42 | AR24: 45886188.45 | AS24: -95584793.28 | AW24: 4 | AX24: -1.050531864e-06 | AY24: -8.642673492e-07 | AZ24: -6.593763828e-07 | BA24: 252235645.4 | BB24: -2.671964467e-05 | BC24: 1.406483352e-05 | BD24: 1.225620508e-06 | BE24: -4.9803406e-05 | BF24: 9.362306446e-05 | BG24: -6.307661533e-05 | BH24: -8.409842849e-06 | BI24: 5.446071737e-05 | BM24: 4 | BN24: -1.947700878e-09 | BO24: -1.58609688e-09 | BP24: -1.22248184e-09 | BQ24: 453973.9838 | BR24: -4.796110591e-08 | BS24: 2.522295456e-08 | BT24: 2.198434068e-09 | BU24: -8.927700245e-08 | BV24: 1.678157647e-07 | BW24: -1.130593491e-07 | BX24: -1.507458566e-08 | BY24: 9.761437485e-08
B25: 5 | C25: 0.1285200193 | D25: 0.4011892527 | E25: 0.3237919834 | F25: -0.1743907638 | G25: -0.4037442612 | H25: -0.03789480407 | I25: 0.383956094 | J25: 0.2280306966 | K25: -0.2746523153 | L25: -0.348910058 | M25: 0.1291793705 | N25: 0.3911665613 | Q25: 5 | R25: 0.2346466079 | S25: 0.4332227795 | T25: 0.2065289531 | U25: -0.2353404417 | V25: -0.4037442612 | W25: -0.1111873355 | X25: 0.3084769225 | Y25: 0.377914459 | Z25: 0.01925315612 | AA25: -0.355445158 | AB25: -0.3058387124 | AC25: 0.1600655997 | AG25: 5 | AH25: 182008432.6 | AI25: 299546652.2 | AJ25: 141536514.7 | AK25: -158404919.3 | AL25: -272588830.4 | AM25: -75051779.48 | AN25: 208468887.1 | AO25: 255492812.8 | AP25: 13603613.71 | AQ25: -238098636.8 | AR25: -199659174.9 | AS25: 209454278.5 | AW25: 5 | AX25: 1.639127731e-07 | AY25: 5.36441803e-07 | AZ25: -1.721084118e-06 | BA25: -9.216368198e-06 | BB25: 697734668.4 | BC25: 0.0001735426486 | BD25: -8.933246136e-05 | BE25: 0.0003017187119 | BF25: -0.0004005692899 | BG25: 0.0002914834768 | BH25: 0.0003561628982 | BI25: -0.0001902617514 | BM25: 5 | BN25: 2.457677417e-10 | BO25: 9.489731808e-10 | BP25: -3.077863013e-09 | BQ25: -1.658967766e-08 | BR25: 1252311.95 | BS25: 3.112224453e-07 | BT25: -1.601555475e-07 | BU25: 5.408490839e-07 | BV25: -7.180041536e-07 | BW25: 5.224564649e-07 | BX25: 6.383792459e-07 | BY25: -3.41018295e-07
B26: 6 | C26: 0.1774065884 | D26: 0.4332437003 | E26: 0.1028283607 | F26: -0.3978482401 | G26: -0.1111873355 | H26: 0.3930410201 | I26: 0.1135617155 | J26: -0.3925223969 | K26: -0.1008727219 | L26: 0.393958668 | M26: 0.06467632231 | N26: -0.3944323907 | Q26: 6 | R26: 0.3074512136 | S26: 0.3748678941 | T26: -0.1133698109 | U26: -0.4068918568 | V26: -0.03789480407 | W26: 0.3930410201 | X26: 0.1861876761 | Y26: -0.3229168768 | Z26: -0.3085030524 | AA26: 0.2039224053 | AB26: 0.3723813408 | AC26: -0.1274729486 | AG26: 6 | AH26: 534012134.5 | AI26: 585826353.6 | AJ26: -170548440.1 | AK26: -621127720.7 | AL26: -57788317.84 | AM26: 600524671 | AN26: 284444149.7 | AO26: -493501645.3 | AP26: -472004465 | AQ26: 308329503.9 | AR26: 553059906.9 | AS26: -375007598.2 | AW26: 6 | AX26: 1.698732376e-06 | AY26: 1.445412636e-06 | AZ26: 8.344650269e-07 | BA26: 1.773238182e-06 | BB26: 7.215887308e-05 | BC26: 1568640364 | BD26: 0.0001155212522 | BE26: -0.0006579570472 | BF26: 0.0002020336688 | BG26: 0.0007955636829 | BH26: -0.001948405057 | BI26: 0.0006066607311 | BM26: 6 | BN26: 3.009305524e-09 | BO26: 2.57880142e-09 | BP26: 1.500364644e-09 | BQ26: 3.192538934e-09 | BR26: 1.295110366e-07 | BS26: 2813110.311 | BT26: 2.071073874e-07 | BU26: -1.179432703e-06 | BV26: 3.621377275e-07 | BW26: 1.425971381e-06 | BX26: -3.492277644e-06 | BY26: 1.087356372e-06
B27: 7 | C27: 0.2311652494 | D27: 0.4126117511 | E27: -0.1483015987 | F27: -0.3380156163 | G27: 0.3084769225 | H27: 0.1861876761 | I27: -0.3990251269 | J27: 0.02043886553 | K27: 0.3846247262 | L27: -0.2320687057 | M27: -0.2432113644 | N27: 0.3741978006 | Q27: 7 | R27: 0.367540879 | S27: 0.2170533134 | T27: -0.3615143071 | U27: -0.1644739104 | V27: 0.383956094 | W27: 0.1135617155 | X27: -0.3990251269 | Y27: -0.06055174578 | Z27: 0.4071919357 | AA27: 0.007429303022 | AB27: -0.4008985331 | AC27: 0.101346376 | AG27: 7 | AH27: 1238435726 | AI27: 666732021.1 | AJ27: -1077348107 | AK27: -490931279.4 | AL27: 1146835952 | AM27: 339190999.4 | AN27: -1191792830 | AO27: -180788752.5 | AP27: 1216699682 | AQ27: 26041639.96 | AR27: -1168014004 | AS27: 580024463.1 | AW27: 7 | AX27: 3.099441528e-06 | AY27: -4.768371582e-07 | AZ27: 8.344650269e-07 | BA27: -9.089708328e-07 | BB27: -1.738965511e-05 | BC27: 5.516409874e-05 | BD27: 3058132664 | BE27: 0.0008265078068 | BF27: -0.0001342222095 | BG27: -0.001175578684 | BH27: 0.003134930506 | BI27: -0.001345202327 | BM27: 7 | BN27: 5.525961265e-09 | BO27: -8.722964184e-10 | BP27: 1.508662596e-09 | BQ27: -1.627468905e-09 | BR27: -3.121143661e-08 | BS27: 9.892842755e-08 | BT27: 5482609.658 | BU27: 1.481566656e-06 | BV27: -2.405885059e-07 | BW27: -2.107112152e-06 | BX27: 5.618978516e-06 | BY27: -2.411092095e-06
B28: 8 | C28: 0.2886843156 | D28: 0.3368782139 | E28: -0.3379711377 | F28: -0.03947000436 | G28: 0.377914459 | H28: -0.3229168768 | I28: -0.06055174578 | J28: 0.3795832417 | K28: -0.3184488193 | L28: -0.05172228467 | M28: 0.3641340322 | N28: -0.3316684163 | Q28: 8 | R28: 0.4054407041 | S28: -0.003114363765 | T28: -0.3850356679 | U28: 0.2481846143 | V28: 0.2280306966 | W28: -0.3925223969 | X28: 0.02043886553 | Y28: 0.3795832417 | Z28: -0.2607347999 | AA28: -0.2147753067 | AB28: 0.3934041185 | AC28: -0.07943037163 | AG28: 8 | AH28: 2377409115 | AI28: 2450072.337 | AJ28: -2011715809 | AK28: 1297679966 | AL28: 1192217622 | AM28: -2052220178 | AN28: 106859055 | AO28: 1984553320 | AP28: -1363439644 | AQ28: -1126245538 | AR28: 2010918696 | AS28: -792639483.2 | AW28: 8 | AX28: 7.152557373e-06 | AY28: -2.861022949e-06 | AZ28: -9.834766388e-07 | BA28: -2.771615982e-06 | BB28: 2.972781658e-05 | BC28: -0.0001625567675 | BD28: 0.0004235804081 | BE28: 5344878435 | BF28: 0.0009983927011 | BG28: -0.0001223683357 | BH28: -0.003176406026 | BI28: 0.002875111997 | BM28: 8 | BN28: 1.279690667e-08 | BO28: -5.138864201e-09 | BP28: -1.756414597e-09 | BQ28: -4.981179625e-09 | BR28: 5.335605949e-08 | BS28: -2.915200882e-07 | BT28: 7.593945433e-07 | BU28: 9581042.063 | BV28: 1.789577088e-06 | BW28: -2.193333455e-07 | BX28: -5.693317865e-06 | BY28: 5.1532488e-06
B29: 9 | C29: 0.3489433835 | D29: 0.2105564219 | E29: -0.3941230523 | F29: 0.2831002483 | G29: 0.01925315612 | H29: -0.3085030524 | I29: 0.4071919357 | J29: -0.2607347999 | K29: -0.0374481065 | L29: 0.3083446087 | M29: -0.3988003825 | N29: 0.2693788006 | Q29: 9 | R29: 0.4117826602 | S29: -0.223791296 | T29: -0.1617557655 | U29: 0.400301423 | V29: -0.2746523153 | W29: -0.1008727219 | X29: 0.3846247262 | Y29: -0.3184488193 | Z29: -0.0374481065 | AA29: 0.3592999634 | AB29: -0.3533386618 | AC29: 0.06036782627 | AG29: 9 | AH29: 3831704743 | AI29: -1854148907 | AJ29: -1347655841 | AK29: 3335803223 | AL29: -2288734968 | AM29: -840593478.9 | AN29: 3205158305 | AO29: -2653699416 | AP29: -312018708.3 | AQ29: 2995767000 | AR29: -2883194143 | AS29: 957202941 | AW29: 9 | AX29: -2.443790436e-06 | AY29: -1.847743988e-06 | AZ29: -2.235174179e-06 | BA29: 6.556510925e-07 | BB29: -2.247095108e-05 | BC29: 2.981722355e-05 | BD29: -3.951787949e-05 | BE29: 0.0005808621645 | BF29: 8501931434 | BG29: 0.0004898533225 | BH29: 0.003344308585 | BI29: -0.002352833748 | BM29: 9 | BN29: -4.389924845e-09 | BO29: -3.316282581e-09 | BP29: -4.005551716e-09 | BQ29: 1.189040889e-09 | BR29: -4.033346946e-08 | BS29: 5.347183135e-08 | BT29: -7.084866273e-08 | BU29: 1.041231462e-06 | BV29: 15239348.95 | BW29: 8.780148569e-07 | BX29: 5.994262445e-06 | BY29: -4.217136432e-06
B30: 10 | C30: 0.4110358188 | D30: 0.04378762119 | E30: -0.2895887021 | F30: 0.394420243 | G30: -0.355445158 | H30: 0.2039224053 | I30: 0.007429303022 | J30: -0.2147753067 | K30: 0.3592999634 | L30: -0.4030010958 | M30: 0.3390131606 | N30: -0.1910544941 | Q30: 10 | R30: 0.3774106041 | S30: -0.3728697003 | T30: 0.1710793727 | U30: 0.120586006 | V30: -0.348910058 | W30: 0.393958668 | X30: -0.2320687057 | Y30: -0.05172228467 | Z30: 0.3083446087 | AA30: -0.4030010958 | AB30: 0.2861531469 | AC30: -0.04333176558 | AG30: 10 | AH30: 5100155570 | AI30: -4530655138 | AJ30: 2076978932 | AK30: 1463946129 | AL30: -4235861387 | AM30: 4782763559 | AN30: -2817376134 | AO30: -627922334.7 | AP30: 3743382067 | AQ30: -4892022092 | AR30: 3405313258 | AS30: -998641504.6 | AW30: 10 | AX30: -1.657009125e-05 | AY30: -1.37090683e-06 | AZ30: -1.400709152e-06 | BA30: 1.758337021e-06 | BB30: 1.010298729e-05 | BC30: 7.137656212e-05 | BD30: -0.0002232939005 | BE30: -3.696978092e-05 | BF30: 0.0003037750721 | BG30: 1.233796065e+10 | BH30: 0.005290433764 | BI30: -0.004426503554 | BM30: 10 | BN30: -2.970282108e-08 | BO30: -2.459385138e-09 | BP30: -2.513257724e-09 | BQ30: 3.14521022e-09 | BR30: 1.813448198e-08 | BS30: 1.28001021e-07 | BT30: -4.003192068e-07 | BU30: -6.627222955e-08 | BV30: 5.445042202e-07 | BW30: 22114611.39 | BX30: 9.482454289e-06 | BY30: -7.933908229e-06
B31: 11 | C31: 0.4741923327 | D31: -0.1498149343 | E31: -0.04932467454 | F31: 0.1995644193 | G31: -0.3058387124 | H31: 0.3723813408 | I31: -0.4008985331 | J31: 0.3934041185 | K31: -0.3533386618 | L31: 0.2861531469 | M31: -0.1993994575 | N31: 0.10167788 | Q31: 11 | R31: 0.2948463193 | S31: -0.3887286586 | T31: 0.3864134163 | U31: -0.2924346712 | V31: 0.1291793705 | W31: 0.06467632231 | X31: -0.2432113644 | Y31: 0.3641340322 | Z31: -0.3988003825 | AA31: 0.3390131606 | AB31: -0.1993994575 | AC31: 0.02783529049 | AG31: 11 | AH31: 5264666698 | AI31: -6265285407 | AJ31: 6212109116 | AK31: -4700900849 | AL31: 2076557690 | AM31: 1039671263 | AN31: -3909620363 | AO31: 5853449294 | AP31: -6410652177 | AQ31: 5447712947 | AR31: -3144147479 | AS31: 848047450.5 | AW31: 11 | AX31: -1.072883606e-05 | AY31: -1.788139343e-06 | AZ31: 1.966953278e-06 | BA31: 7.122755051e-06 | BB31: 1.004338264e-05 | BC31: -0.0001218318939 | BD31: 0.0004153549671 | BE31: -0.00080037117 | BF31: 0.00148165226 | BG31: 0.003735639155 | BH31: 1.623467089e+10 | BI31: 0.007038956508 | BM31: 11 | BN31: -1.923119312e-08 | BO31: -3.206834084e-09 | BP31: 3.525310651e-09 | BQ31: 1.276471407e-08 | BR31: 1.802456017e-08 | BS31: -2.184857734e-07 | BT31: 7.446464448e-07 | BU31: -1.434718314e-06 | BV31: 2.655798293e-06 | BW31: 6.695774883e-06 | BX31: 29098656.45 | BY31: 1.261637684e-05
B32: 12 | C32: 0.5378052948 | D32: -0.3560110259 | E32: 0.2641965868 | F32: -0.2030816915 | G32: 0.1600655997 | H32: -0.1274729486 | I32: 0.101346376 | J32: -0.07943037163 | K32: 0.06036782627 | L32: -0.04333176558 | M32: 0.02783529049 | N32: -0.01354539859 | Q32: 12 | R32: 0.1637683709 | S32: -0.2490066098 | T32: 0.3162936101 | U32: -0.3645946138 | V32: 0.3911665613 | W32: -0.3944323907 | X32: 0.3741978006 | Y32: -0.3316684163 | Z32: 0.2693788006 | AA32: -0.1910544941 | AB32: 0.10167788 | AC32: -0.01354539859 | AG32: 12 | AH32: 3478051664 | AI32: -4782212485 | AJ32: 6055433792 | AK32: -6979375773 | AL32: 7488005500 | AM32: -7550521073 | AN32: 7163175146 | AO32: -6349042499 | AP32: 5156576538 | AQ32: -3655658490 | AR32: 1909967469 | AS32: -490975226 | AW32: 12 | AX32: 7.838010788e-06 | AY32: 4.291534424e-06 | AZ32: -1.341104507e-07 | BA32: 5.260109901e-06 | BB32: -4.723668098e-06 | BC32: 2.965331078e-05 | BD32: -0.0001419335604 | BE32: 0.0005862936378 | BF32: -0.0008402355015 | BG32: -0.002497058362 | BH32: 0.005634322762 | BI32: 1.920213818e+10 | BM32: 12 | BN32: 1.404925173e-08 | BO32: 7.69189317e-09 | BP32: -2.426568175e-10 | BQ32: 9.431599334e-09 | BR32: -8.475940892e-09 | BS32: 5.317816839e-08 | BT32: -2.544571421e-07 | BU32: 1.05096861e-06 | BV32: -1.506086148e-06 | BW32: -4.475737499e-06 | BX32: 1.009883284e-05 | BY32: 34417235.76
AF35: 1 | AV35: M* (Kg)
AH36: I | AX36: I
AH37: 1 | AI37: 2 | AJ37: 3 | AK37: 4 | AL37: 5 | AM37: 6 | AN37: 7 | AO37: 8 | AP37: 9 | AQ37: 10 | AR37: 11 | AS37: 12 | AX37: 1 | AY37: 2 | AZ37: 3 | BA37: 4 | BB37: 5 | BC37: 6 | BD37: 7 | BE37: 8 | BF37: 9 | BG37: 10 | BH37: 11 | BI37: 12
AF38: K | AG38: 1 | AH38: =MMULT(R21:AC32,'MATRIZ FLEX e MATRIZ K e M'!AJ12:AU23) -> 146.0353157 | AI38: 479.4367725 | AJ38: 1006.137763 | AK38: 1700.867007 | AL38: 2538.768126 | AM38: 3495.669785 | AN38: 4548.412178 | AO38: 5675.2204 | AP38: 6856.115638 | AQ38: 8073.355689 | AR38: 9311.896981 | AS38: 21253.45943 | AV38: K | AW38: 1 | AX38: =MMULT(AH38:AS49,C21:N32) -> 25401.07696 | AY38: -1.621629053e-09 | AZ38: 4.047251423e-10 | BA38: -6.411937647e-10 | BB38: -4.761204764e-10 | BC38: -3.483364708e-10 | BD38: -2.887645678e-10 | BE38: -2.244178177e-10 | BF38: -9.868017514e-11 | BG38: -3.910827218e-11 | BH38: -1.773514668e-11 | BI38: 1.119815352e-11
AG39: 2 | AH39: 803.504712 | AI39: 2387.276388 | AJ39: 4400.505195 | AK39: 6337.43865 | AL39: 7768.85619 | AM39: 8373.713665 | AN39: 7962.509154 | AO39: 6486.878511 | AP39: 4032.157442 | AQ39: 792.0262761 | AR39: -2973.401664 | AS39: -13654.92004 | AW39: 2 | AX39: -1.623448043e-09 | AY39: 21772.91686 | AZ39: -9.376890375e-10 | BA39: -3.669811122e-10 | BB39: -1.236912794e-10 | BC39: -1.177795639e-10 | BD39: -1.743956091e-10 | BE39: -1.073203748e-10 | BF39: -4.39968062e-11 | BG39: -2.273736754e-11 | BH39: -1.875832822e-11 | BI39: 7.958078641e-13
AG40: 3 | AH40: 1970.242314 | AI40: 5133.119874 | AJ40: 7741.334481 | AK40: 8225.484605 | AL40: 6085.824692 | AM40: 1942.875402 | AN40: -2756.738613 | AO40: -6298.983317 | AP40: -7332.936509 | AQ40: -5343.412101 | AR40: -783.5502658 | AS40: 9728.158957 | AW40: 3 | AX40: 4.047251423e-10 | AY40: -9.372342902e-10 | AZ40: 20055.9103 | BA40: -4.015419108e-10 | BB40: 6.889422366e-11 | BC40: 4.661160347e-11 | BD40: 1.292619345e-10 | BE40: 6.218670023e-11 | BF40: 6.593836588e-12 | BG40: -2.739852789e-11 | BH40: -3.410605132e-13 | BI40: -2.378897079e-11
AG41: 4 | AH41: 3292.914796 | AI41: 7099.670725 | AJ41: 7474.468753 | AK41: 3190.555894 | AL41: -3100.81674 | AM41: -7096.567742 | AN41: -6034.291577 | AO41: -714.3416596 | AP41: 5025.360348 | AQ41: 6971.484315 | AR41: 3393.872857 | AS41: -7069.72286 | AW41: 4 | AX41: -6.4028427e-10 | AY41: -3.660716175e-10 | AZ41: -4.017692845e-10 | BA41: 18656.06492 | BB41: -7.025846571e-10 | BC41: 1.418811735e-10 | BD41: 1.71667125e-11 | BE41: -1.351736501e-10 | BF41: 1.371063263e-10 | BG41: -6.201616998e-11 | BH41: -1.492139745e-11 | BI41: 3.649347491e-11
AG42: 5 | AH42: 4516.215768 | AI42: 7432.717785 | AJ42: 3511.977059 | AK42: -3930.536537 | AL42: -6763.807351 | AM42: -1862.276517 | AN42: 5172.784919 | AO42: 6339.600058 | AP42: 337.5494963 | AQ42: -5907.994496 | AR42: -4954.187569 | AS42: 5197.235656 | AW42: 5 | AX42: -4.74301487e-10 | AY42: -1.234639058e-10 | AZ42: 6.775735528e-11 | BA42: -7.019025361e-10 | BB42: 17313.0457 | BC42: 1.774196789e-09 | BD42: -4.323510439e-10 | BE42: 7.364633348e-10 | BF42: -5.768470146e-10 | BG42: 2.63611355e-10 | BH42: 2.337685601e-10 | BI42: -9.467271411e-11
AG43: 6 | AH43: 5430.8247 | AI43: 5957.767672 | AJ43: -1734.452499 | AK43: -6316.777372 | AL43: -587.6986751 | AM43: 6107.247394 | AN43: 2892.755079 | AO43: -5018.838996 | AP43: -4800.215841 | AQ43: 3135.66561 | AR43: 5624.537738 | AS43: -3813.772002 | AW43: 6 | AX43: -3.492459655e-10 | AY43: -1.168700692e-10 | AZ43: 4.683897714e-11 | BA43: 1.416537998e-10 | BB43: 1.775219971e-09 | BC43: 15952.8413 | BD43: 5.638867151e-10 | BE43: -1.653461368e-09 | BF43: 2.968363333e-10 | BG43: 7.095479759e-10 | BH43: -1.233800617e-09 | BI43: 2.9769609e-10
AG44: 7 | AH44: 5908.888533 | AI44: 3181.146271 | AJ44: -5140.29896 | AK44: -2342.356689 | AL44: 5471.842955 | AM44: 1618.365624 | AN44: -5686.343535 | AO44: -862.588638 | AP44: 5805.180393 | AQ44: 124.2512182 | AR44: -5572.888771 | AS44: 2767.442691 | AW44: 7 | AX44: -2.885371941e-10 | AY44: -1.743956091e-10 | AZ44: 1.288071871e-10 | BA44: 1.671196515e-11 | BB44: -4.318962965e-10 | BC44: 5.637161848e-10 | BD44: 14591.12059 | BE44: 2.030276391e-09 | BF44: -1.997761956e-10 | BG44: -1.052754328e-09 | BH44: 1.97721306e-09 | BI44: -6.694094168e-10
AG45: 8 | AH45: 5905.882088 | AI45: 6.08638969 | AJ45: -4997.438718 | AK45: 3223.654195 | AL45: 2961.668083 | AM45: -5098.05835 | AN45: 265.4557748 | AO45: 4929.962549 | AP45: -3387.012238 | AQ45: -2797.782386 | AR45: 4995.458556 | AS45: -1969.04912 | AW45: 8 | AX45: -2.244178177e-10 | AY45: -1.087983037e-10 | AZ45: 6.20730134e-11 | BA45: -1.340936251e-10 | BB45: 7.358380572e-10 | BC45: -1.653546633e-09 | BD45: 2.03141326e-09 | BE45: 13277.57247 | BF45: 1.425846108e-09 | BG45: -1.07888809e-10 | BH45: -1.999083565e-09 | BI45: 1.448857034e-09
AG46: 9 | AH46: 5441.28803 | AI46: -2633.020791 | AJ46: -1913.765305 | AK46: 4737.073279 | AL46: -3250.163315 | AM46: -1193.701379 | AN46: 4551.548382 | AO46: -3768.43829 | AP46: -443.088332 | AQ46: 4254.198121 | AR46: -4094.336812 | AS46: 1359.29495 | AW46: 9 | AX46: -9.76569936e-11 | AY46: -4.49063009e-11 | AZ46: 5.741185305e-12 | BA46: 1.373905434e-10 | BB46: -5.776712442e-10 | BC46: 2.965236945e-10 | BD46: -1.998614607e-10 | BE46: 1.42587453e-09 | BF46: 12073.33572 | BG46: 4.358255978e-10 | BH46: 2.103313079e-09 | BI46: -1.192059784e-09
AG47: 10 | AH47: 4563.590842 | AI47: -4054.005022 | AJ47: 1858.469198 | AK47: 1309.930855 | AL47: -3790.225213 | AM47: 4279.590235 | AN47: -2520.972497 | AO47: -561.8614132 | AP47: 3349.557456 | AQ47: -4377.354163 | AR47: 3047.055366 | AS47: -893.5788648 | AW47: 10 | AX47: -3.973354978e-11 | AY47: -2.262368071e-11 | AZ47: -2.714273251e-11 | BA47: -6.204459169e-11 | BB47: 2.643503194e-10 | BC47: 7.096758736e-10 | BD47: -1.052299581e-09 | BE47: -1.065956212e-10 | BF47: 4.351221605e-10 | BG47: 11039.93858 | BH47: 3.341614985e-09 | BI47: -2.232729557e-09
AG48: 11 | AH48: 3319.275153 | AI48: -3950.146775 | AJ48: 3916.620105 | AK48: -2963.831194 | AL48: 1309.231284 | AM48: 655.4935358 | AN48: -2464.943457 | AO48: 3690.491709 | AP48: -4041.797839 | AQ48: 3434.682433 | AR48: -1982.326936 | AS48: 534.6782603 | AW48: 11 | AX48: -1.733724275e-11 | AY48: -1.904254532e-11 | AZ48: -8.526512829e-13 | BA48: -1.47792889e-11 | BB48: 2.338111926e-10 | BC48: -1.233004809e-09 | BD48: 1.97679384e-09 | BE48: -1.99774064e-09 | BF48: 2.103092811e-09 | BG48: 3.341675381e-09 | BH48: 10235.66026 | BI48: 3.554778694e-09
AG49: 12 | AH49: 1760.104156 | AI49: -2420.08828 | AJ49: 3064.415142 | AK49: -3531.985574 | AL49: 3789.382929 | AM49: -3821.019583 | AN49: 3624.999155 | AO49: -3212.998877 | AP49: 2609.539096 | AQ49: -1849.983934 | AR49: 966.558868 | AS49: -248.4631108 | AW49: 12 | AX49: 1.065814104e-11 | AY49: 1.165290087e-12 | AZ49: -2.260946985e-11 | BA49: 3.786482239e-11 | BB49: -9.529088629e-11 | BC49: 2.977103009e-10 | BD49: -6.687663756e-10 | BE49: 1.448050568e-09 | BF49: -1.192207222e-09 | BG49: -2.232622975e-09 | BH49: 3.555475026e-09 | BI49: 9717.441396

Sheet RESUMO
A1: F | C1: matriz de auto vetores
C2: I | P2: parametros da estrutura | W2: H1 | X2: H2 | Y2: H3 | Z2: H4 | AA2: H5 | AB2: H6 | AC2: H7 | AD2: H8 | AE2: H9 | AF2: H10 | AG2: H11 | AJ2: H1 | AK2: H2 | AL2: H3 | AM2: H4 | AN2: H5 | AO2: H6 | AP2: H7 | AQ2: H8 | AR2: H9 | AS2: H10 | AT2: H11
C3: 1 | D3: 2 | E3: 3 | F3: 4 | G3: 5 | H3: 6 | I3: 7 | J3: 8 | K3: 9 | L3: 10 | M3: 11 | N3: 12 | P3: MODO | Q3: f (hz) | R3: w | S3: T (s) | T3: x | V3: wbarr | W3: =AV20 -> 23.28305306 | X3: =AW20 -> 11.64152653 | Y3: 5.820763264 | Z3: 2.910381632 | AA3: 1.455190816 | AB3: 0.7275954081 | AC3: 0.363797704 | AD3: 0.181898852 | AE3: 0.09094942601 | AF3: 0.045474713 | AG3: 0.0227373565 | AI3: wbarr | AJ3: =W3 -> 23.28305306 | AK3: =X3 -> 11.64152653 | AL3: 5.820763264 | AM3: 2.910381632 | AN3: 1.455190816 | AO3: 0.7275954081 | AP3: 0.363797704 | AQ3: 0.181898852 | AR3: 0.09094942601 | AS3: 0.045474713 | AT3: 0.0227373565
A4: K | B4: 1 | C4: ='CALCULO DAS FREQ'!C21 -> 0.006004976143 | D4: ='CALCULO DAS FREQ'!D21 -> 0.03452476498 | E4: ='CALCULO DAS FREQ'!E21 -> 0.08909216125 | F4: ='CALCULO DAS FREQ'!F21 -> 0.1586912234 | G4: ='CALCULO DAS FREQ'!G21 -> 0.2346466079 | H4: ='CALCULO DAS FREQ'!H21 -> 0.3074512136 | I4: ='CALCULO DAS FREQ'!I21 -> 0.367540879 | J4: ='CALCULO DAS FREQ'!J21 -> 0.4054407041 | K4: ='CALCULO DAS FREQ'!K21 -> 0.4117826602 | L4: ='CALCULO DAS FREQ'!L21 -> 0.3774106041 | M4: ='CALCULO DAS FREQ'!M21 -> 0.2948463193 | N4: ='CALCULO DAS FREQ'!N21 -> 0.1637683709 | P4: 1 | Q4: ='CALCULO DAS FREQ'!BE4 -> 0.4632016231 | R4: =2*PI()*Q4 -> 2.910381632 | S4: =1/Q4 -> 2.158887081 | T4: =R21/(2*C21*$R4) -> 0.02 | V4: b1 | W4: =W$3/$R4 -> 8 | X4: =X$3/$R4 -> 4 | Y4: 2 | Z4: 1 | AA4: 0.5 | AB4: 0.25 | AC4: 0.125 | AD4: 0.0625 | AE4: 0.03125 | AF4: 0.015625 | AG4: 0.0078125 | AI4: q1 | AJ4: =IF(W4=1,PI()/2,ATAN(2*$T4*W4/(1-(W4)^2))) -> -0.005079321398 | AK4: =IF(X4=1,PI()/2,ATAN(2*$T4*X4/(1-(X4)^2))) -> -0.01066626215 | AL4: -0.02666034837 | AM4: 1.570796327 | AN4: 0.02666034837 | AO4: 0.01066626215 | AP4: 0.005079321398 | AQ4: 0.002509798652 | AR4: 0.001251221243 | AS4: 0.0006251525437 | AT4: 0.0003125190645
B5: 2 | C5: ='CALCULO DAS FREQ'!C22 -> 0.02315194103 | D5: ='CALCULO DAS FREQ'!D22 -> 0.1188070386 | E5: ='CALCULO DAS FREQ'!E22 -> 0.2656956455 | F5: ='CALCULO DAS FREQ'!F22 -> 0.3875033913 | G5: ='CALCULO DAS FREQ'!G22 -> 0.4332227795 | H5: ='CALCULO DAS FREQ'!H22 -> 0.3748678941 | I5: ='CALCULO DAS FREQ'!I22 -> 0.2170533134 | J5: ='CALCULO DAS FREQ'!J22 -> -0.003114363765 | K5: ='CALCULO DAS FREQ'!K22 -> -0.223791296 | L5: ='CALCULO DAS FREQ'!L22 -> -0.3728697003 | M5: ='CALCULO DAS FREQ'!M22 -> -0.3887286586 | N5: ='CALCULO DAS FREQ'!N22 -> -0.2490066098 | P5: 2 | Q5: ='CALCULO DAS FREQ'!BE5 -> 3.088742624 | R5: =2*PI()*Q5 -> 19.40714227 | S5: =1/Q5 -> 0.3237563377 | T5: =S22/(2*D22*$R5) -> 0.02 | V5: b2 | W5: =W$3/$R5 -> 1.199715689 | X5: 0.5998578444 | Y5: 0.2999289222 | Z5: 0.1499644611 | AA5: 0.07498223055 | AB5: 0.03749111528 | AC5: 0.01874555764 | AD5: 0.009372778819 | AE5: 0.00468638941 | AF5: 0.002343194705 | AG5: 0.001171597352 | AI5: q2 | AJ5: =IF(W5=1,PI()/2,ATAN(2*$T5*W5/(1-(W5)^2))) -> -0.1088030585 | AK5: =IF(X5=1,PI()/2,ATAN(2*$T5*X5/(1-(X5)^2))) -> 0.03746358936 | AL5: =IF(Y5=1,PI()/2,ATAN(2*$T5*Y5/(1-(Y5)^2))) -> 0.01318230751 | AM5: =IF(Z5=1,PI()/2,ATAN(2*$T5*Z5/(1-(Z5)^2))) -> 0.006136509188 | AN5: =IF(AA5=1,PI()/2,ATAN(2*$T5*AA5/(1-(AA5)^2))) -> 0.003016238429 | AO5: =IF(AB5=1,PI()/2,ATAN(2*$T5*AB5/(1-(AB5)^2))) -> 0.001501754325 | AP5: =IF(AC5=1,PI()/2,ATAN(2*$T5*AC5/(1-(AC5)^2))) -> 0.000750085742 | AQ5: =IF(AD5=1,PI()/2,ATAN(2*$T5*AD5/(1-(AD5)^2))) -> 0.0003749440737 | AR5: =IF(AE5=1,PI()/2,ATAN(2*$T5*AE5/(1-(AE5)^2))) -> 0.0001874596912 | AS5: =IF(AF5=1,PI()/2,ATAN(2*$T5*AF5/(1-(AF5)^2))) -> 9.372830254e-05 | AT5: =IF(AG5=1,PI()/2,ATAN(2*$T5*AG5/(1-(AG5)^2))) -> 4.686395839e-05
B6: 3 | C6: ='CALCULO DAS FREQ'!C23 -> 0.05014225369 | D6: ='CALCULO DAS FREQ'!D23 -> 0.2246800302 | E6: ='CALCULO DAS FREQ'!E23 -> 0.4091035974 | F6: ='CALCULO DAS FREQ'!F23 -> 0.4147145446 | G6: ='CALCULO DAS FREQ'!G23 -> 0.2065289531 | H6: ='CALCULO DAS FREQ'!H23 -> -0.1133698109 | I6: ='CALCULO DAS FREQ'!I23 -> -0.3615143071 | J6: ='CALCULO DAS FREQ'!J23 -> -0.3850356679 | K6: ='CALCULO DAS FREQ'!K23 -> -0.1617557655 | L6: ='CALCULO DAS FREQ'!L23 -> 0.1710793727 | M6: ='CALCULO DAS FREQ'!M23 -> 0.3864134163 | N6: ='CALCULO DAS FREQ'!N23 -> 0.3162936101 | P6: 3 | Q6: ='CALCULO DAS FREQ'!BE6 -> 9.045618008 | R6: 56.83529416 | S6: 0.110550766 | T6: =T23/(2*E23*$R6) -> 0.05182392246 | V6: b3 | W6: 0.409658354 | X6: 0.204829177 | Y6: 0.1024145885 | Z6: 0.05120729425 | AA6: 0.02560364713 | AB6: 0.01280182356 | AC6: 0.006400911782 | AD6: 0.003200455891 | AE6: 0.001600227945 | AF6: 0.0008001139727 | AG6: 0.0004000569864 | AI6: q3 | AJ6: 0.05097865282 | AK6: 0.02215619156 | AL6: 0.01072715868 | AM6: 0.005321429377 | AN6: 0.002655497412 | AO6: 0.001327098138 | AP6: 0.0006634677977 | AQ6: 0.0003317237415 | AR6: 0.0001658606011 | AS6: 8.293014186e-05 | AT6: 4.146505109e-05
B7: 4 | C7: ='CALCULO DAS FREQ'!C24 -> 0.0856875138 | D7: ='CALCULO DAS FREQ'!D24 -> 0.3261652588 | E7: ='CALCULO DAS FREQ'!E24 -> 0.437084118 | F7: ='CALCULO DAS FREQ'!F24 -> 0.1771469882 | G7: ='CALCULO DAS FREQ'!G24 -> -0.2353404417 | H7: ='CALCULO DAS FREQ'!H24 -> -0.4068918568 | I7: ='CALCULO DAS FREQ'!I24 -> -0.1644739104 | J7: ='CALCULO DAS FREQ'!J24 -> 0.2481846143 | K7: ='CALCULO DAS FREQ'!K24 -> 0.400301423 | L7: ='CALCULO DAS FREQ'!L24 -> 0.120586006 | M7: ='CALCULO DAS FREQ'!M24 -> -0.2924346712 | N7: ='CALCULO DAS FREQ'!N24 -> -0.3645946138 | P7: 4 | Q7: ='CALCULO DAS FREQ'!BE7 -> 18.50603331 | R7: 116.2768366 | S7: 0.05403643142 | T7: =U24/(2*F24*$R7) -> 0.1046375873 | V7: b4 | W7: 0.2002381019 | X7: 0.100119051 | Y7: 0.05005952548 | Z7: 0.02502976274 | AA7: 0.01251488137 | AB7: 0.006257440685 | AC7: 0.003128720342 | AD7: 0.001564360171 | AE7: 0.0007821800856 | AF7: 0.0003910900428 | AG7: 0.0001955450214 | AI7: q4 | AJ7: 0.04362753255 | AK7: 0.02116142262 | AL7: 0.0105021487 | AM7: 0.005241343644 | AN7: 0.002619458259 | AO7: 0.00130957752 | AP7: 0.0006547698117 | AQ7: 0.0003273825374 | AR7: 0.0001636909726 | AS7: 8.184544932e-05 | AT7: 4.092272003e-05
B8: 5 | C8: ='CALCULO DAS FREQ'!C25 -> 0.1285200193 | D8: ='CALCULO DAS FREQ'!D25 -> 0.4011892527 | E8: ='CALCULO DAS FREQ'!E25 -> 0.3237919834 | F8: ='CALCULO DAS FREQ'!F25 -> -0.1743907638 | G8: ='CALCULO DAS FREQ'!G25 -> -0.4037442612 | H8: ='CALCULO DAS FREQ'!H25 -> -0.03789480407 | I8: ='CALCULO DAS FREQ'!I25 -> 0.383956094 | J8: ='CALCULO DAS FREQ'!J25 -> 0.2280306966 | K8: ='CALCULO DAS FREQ'!K25 -> -0.2746523153 | L8: ='CALCULO DAS FREQ'!L25 -> -0.348910058 | M8: ='CALCULO DAS FREQ'!M25 -> 0.1291793705 | N8: ='CALCULO DAS FREQ'!N25 -> 0.3911665613 | P8: 5 | Q8: ='CALCULO DAS FREQ'!BE8 -> 31.95056519 | R8: 200.7513218 | S8: 0.03129835087 | T8: =V25/(2*G25*$R8) -> 0.1801567922 | AI8: 0 < qi < 3.141592653
B9: 6 | C9: ='CALCULO DAS FREQ'!C26 -> 0.1774065884 | D9: ='CALCULO DAS FREQ'!D26 -> 0.4332437003 | E9: ='CALCULO DAS FREQ'!E26 -> 0.1028283607 | F9: ='CALCULO DAS FREQ'!F26 -> -0.3978482401 | G9: ='CALCULO DAS FREQ'!G26 -> -0.1111873355 | H9: ='CALCULO DAS FREQ'!H26 -> 0.3930410201 | I9: ='CALCULO DAS FREQ'!I26 -> 0.1135617155 | J9: ='CALCULO DAS FREQ'!J26 -> -0.3925223969 | K9: ='CALCULO DAS FREQ'!K26 -> -0.1008727219 | L9: ='CALCULO DAS FREQ'!L26 -> 0.393958668 | M9: ='CALCULO DAS FREQ'!M26 -> 0.06467632231 | N9: ='CALCULO DAS FREQ'!N26 -> -0.3944323907 | P9: 6 | Q9: ='CALCULO DAS FREQ'!BE9 -> 49.90715373 | R9: 313.575895 | S9: 0.0200372076 | T9: =W26/(2*H26*$R9) -> 0.2811745777 | V9: D1 | W9: =1/(SQRT(((1-(W4^2))^2)+(2*$T4*W4)^2)) -> 0.01587281112 | X9: =1/(SQRT(((1-(X4^2))^2)+(2*$T4*X4)^2)) -> 0.0666628744 | Y9: 0.333214878 | Z9: 25 | AA9: 1.332859512 | AB9: 1.06660599 | AC9: 1.015859911 | AD9: 1.003918407 | AE9: 1.000976734 | AF9: 1.000244005 | AG9: 1.00006099 | AI9: q1 | AJ9: =IF(AJ4<0,(AJ4)+PI(),AJ4) -> 3.136513332 | AK9: 3.130926391 | AL9: 3.114932305 | AM9: 1.570796327 | AN9: 0.02666034837 | AO9: 0.01066626215 | AP9: 0.005079321398 | AQ9: 0.002509798652 | AR9: 0.001251221243 | AS9: 0.0006251525437 | AT9: 0.0003125190645
B10: 7 | C10: ='CALCULO DAS FREQ'!C27 -> 0.2311652494 | D10: ='CALCULO DAS FREQ'!D27 -> 0.4126117511 | E10: ='CALCULO DAS FREQ'!E27 -> -0.1483015987 | F10: ='CALCULO DAS FREQ'!F27 -> -0.3380156163 | G10: ='CALCULO DAS FREQ'!G27 -> 0.3084769225 | H10: ='CALCULO DAS FREQ'!H27 -> 0.1861876761 | I10: ='CALCULO DAS FREQ'!I27 -> -0.3990251269 | J10: ='CALCULO DAS FREQ'!J27 -> 0.02043886553 | K10: ='CALCULO DAS FREQ'!K27 -> 0.3846247262 | L10: ='CALCULO DAS FREQ'!L27 -> -0.2320687057 | M10: ='CALCULO DAS FREQ'!M27 -> -0.2432113644 | N10: ='CALCULO DAS FREQ'!N27 -> 0.3741978006 | P10: 7 | Q10: ='CALCULO DAS FREQ'!BE10 -> 72.86248333 | R10: 457.8084847 | S10: 0.01372448418 | T10: =X27/(2*I27*$R10) -> 0.4103787337 | V10: D2 | W10: =1/(SQRT(((1-(W5^2))^2)+(2*$T5*W5)^2)) -> 2.262796848 | X10: 1.560987609 | Y10: 1.098754134 | Z10: 1.022987485 | AA10: 1.00564955 | AB10: 1.001406433 | AC10: 1.000351238 | AD10: 1.000087786 | AE10: 1.000021945 | AF10: 1.000005486 | AG10: 1.000001372 | AI10: q2 | AJ10: =IF(AJ5<0,(AJ5)+PI(),AJ5) -> 3.032789595 | AK10: 0.03746358936 | AL10: 0.01318230751 | AM10: 0.006136509188 | AN10: 0.003016238429 | AO10: 0.001501754325 | AP10: 0.000750085742 | AQ10: 0.0003749440737 | AR10: 0.0001874596912 | AS10: 9.372830254e-05 | AT10: 4.686395839e-05
B11: 8 | C11: ='CALCULO DAS FREQ'!C28 -> 0.2886843156 | D11: ='CALCULO DAS FREQ'!D28 -> 0.3368782139 | E11: ='CALCULO DAS FREQ'!E28 -> -0.3379711377 | F11: ='CALCULO DAS FREQ'!F28 -> -0.03947000436 | G11: ='CALCULO DAS FREQ'!G28 -> 0.377914459 | H11: ='CALCULO DAS FREQ'!H28 -> -0.3229168768 | I11: ='CALCULO DAS FREQ'!I28 -> -0.06055174578 | J11: ='CALCULO DAS FREQ'!J28 -> 0.3795832417 | K11: ='CALCULO DAS FREQ'!K28 -> -0.3184488193 | L11: ='CALCULO DAS FREQ'!L28 -> -0.05172228467 | M11: ='CALCULO DAS FREQ'!M28 -> 0.3641340322 | N11: ='CALCULO DAS FREQ'!N28 -> -0.3316684163 | P11: 8 | Q11: ='CALCULO DAS FREQ'!BE11 -> 100.9786842 | R11: 634.4677851 | S11: 0.009903080117 | T11: =Y28/(2*J28*$R11) -> 0.5686623756 | V11: D3 | W11: =1/(SQRT(((1-(W6^2))^2)+(2*$T6*W6)^2)) -> 1.200101937 | X11: 1.043536111 | Y11: 1.010541783 | Z11: 1.002614885 | AA11: 1.000652449 | AB11: 1.000163033 | AC11: 1.000040753 | AD11: 1.000010188 | AE11: 1.000002547 | AF11: 1.000000637 | AG11: 1.000000159 | AI11: q3 | AJ11: =IF(AJ6<0,(AJ6)+PI(),AJ6) -> 0.05097865282 | AK11: 0.02215619156 | AL11: 0.01072715868 | AM11: 0.005321429377 | AN11: 0.002655497412 | AO11: 0.001327098138 | AP11: 0.0006634677977 | AQ11: 0.0003317237415 | AR11: 0.0001658606011 | AS11: 8.293014186e-05 | AT11: 4.146505109e-05
B12: 9 | C12: ='CALCULO DAS FREQ'!C29 -> 0.3489433835 | D12: ='CALCULO DAS FREQ'!D29 -> 0.2105564219 | E12: ='CALCULO DAS FREQ'!E29 -> -0.3941230523 | F12: ='CALCULO DAS FREQ'!F29 -> 0.2831002483 | G12: ='CALCULO DAS FREQ'!G29 -> 0.01925315612 | H12: ='CALCULO DAS FREQ'!H29 -> -0.3085030524 | I12: ='CALCULO DAS FREQ'!I29 -> 0.4071919357 | J12: ='CALCULO DAS FREQ'!J29 -> -0.2607347999 | K12: ='CALCULO DAS FREQ'!K29 -> -0.0374481065 | L12: ='CALCULO DAS FREQ'!L29 -> 0.3083446087 | M12: ='CALCULO DAS FREQ'!M29 -> -0.3988003825 | N12: ='CALCULO DAS FREQ'!N29 -> 0.2693788006 | P12: 9 | Q12: ='CALCULO DAS FREQ'!BE12 -> 133.5565808 | R12: 839.1607462 | S12: 0.00748746332 | T12: =Z29/(2*K29*$R12) -> 0.7520798972 | V12: D4 | W12: 1.040778806 | X12: 1.009899157 | Y12: 1.002456966 | Z12: 1.000613137 | AA12: 1.000153215 | AB12: 1.0000383 | AC12: 1.000009575 | AD12: 1.000002394 | AE12: 1.000000598 | AF12: 1.00000015 | AG12: 1.000000037 | AI12: q4 | AJ12: =IF(AJ7<0,(AJ7)+PI(),AJ7) -> 0.04362753255 | AK12: 0.02116142262 | AL12: 0.0105021487 | AM12: 0.005241343644 | AN12: 0.002619458259 | AO12: 0.00130957752 | AP12: 0.0006547698117 | AQ12: 0.0003273825374 | AR12: 0.0001636909726 | AS12: 8.184544932e-05 | AT12: 4.092272003e-05
B13: 10 | C13: ='CALCULO DAS FREQ'!C30 -> 0.4110358188 | D13: ='CALCULO DAS FREQ'!D30 -> 0.04378762119 | E13: ='CALCULO DAS FREQ'!E30 -> -0.2895887021 | F13: ='CALCULO DAS FREQ'!F30 -> 0.394420243 | G13: ='CALCULO DAS FREQ'!G30 -> -0.355445158 | H13: ='CALCULO DAS FREQ'!H30 -> 0.2039224053 | I13: ='CALCULO DAS FREQ'!I30 -> 0.007429303022 | J13: ='CALCULO DAS FREQ'!J30 -> -0.2147753067 | K13: ='CALCULO DAS FREQ'!K30 -> 0.3592999634 | L13: ='CALCULO DAS FREQ'!L30 -> -0.4030010958 | M13: ='CALCULO DAS FREQ'!M30 -> 0.3390131606 | N13: ='CALCULO DAS FREQ'!N30 -> -0.1910544941 | P13: 10 | Q13: ='CALCULO DAS FREQ'!BE13 -> 168.2513252 | R13: 1057.154254 | S13: 0.005943489592 | T13: =AA30/(2*L30*$R13) -> 0.9474238158
B14: 11 | C14: ='CALCULO DAS FREQ'!C31 -> 0.4741923327 | D14: ='CALCULO DAS FREQ'!D31 -> -0.1498149343 | E14: ='CALCULO DAS FREQ'!E31 -> -0.04932467454 | F14: ='CALCULO DAS FREQ'!F31 -> 0.1995644193 | G14: ='CALCULO DAS FREQ'!G31 -> -0.3058387124 | H14: ='CALCULO DAS FREQ'!H31 -> 0.3723813408 | I14: ='CALCULO DAS FREQ'!I31 -> -0.4008985331 | J14: ='CALCULO DAS FREQ'!J31 -> 0.3934041185 | K14: ='CALCULO DAS FREQ'!K31 -> -0.3533386618 | L14: ='CALCULO DAS FREQ'!L31 -> 0.2861531469 | M14: ='CALCULO DAS FREQ'!M31 -> -0.1993994575 | N14: ='CALCULO DAS FREQ'!N31 -> 0.10167788 | P14: 11 | Q14: ='CALCULO DAS FREQ'!BE14 -> 200.4397927 | R14: 1259.400361 | S14: 0.004989029306 | T14: =AB31/(2*M31*$R14) -> 1.128660343
B15: 12 | C15: ='CALCULO DAS FREQ'!C32 -> 0.5378052948 | D15: ='CALCULO DAS FREQ'!D32 -> -0.3560110259 | E15: ='CALCULO DAS FREQ'!E32 -> 0.2641965868 | F15: ='CALCULO DAS FREQ'!F32 -> -0.2030816915 | G15: ='CALCULO DAS FREQ'!G32 -> 0.1600655997 | H15: ='CALCULO DAS FREQ'!H32 -> -0.1274729486 | I15: ='CALCULO DAS FREQ'!I32 -> 0.101346376 | J15: ='CALCULO DAS FREQ'!J32 -> -0.07943037163 | K15: ='CALCULO DAS FREQ'!K32 -> 0.06036782627 | L15: ='CALCULO DAS FREQ'!L32 -> -0.04333176558 | M15: ='CALCULO DAS FREQ'!M32 -> 0.02783529049 | N15: ='CALCULO DAS FREQ'!N32 -> -0.01354539859 | P15: 12 | Q15: ='CALCULO DAS FREQ'!BE15 -> 223.7272899 | R15: 1405.720021 | S15: 0.00446972741 | T15: =AC32/(2*N32*$R15) -> 1.259781513
AT17: Newton
A18: M* (Kg) | P18: C* Kg/s | AE18: K* N/m | AT18: Freqüências (Hz) | AV18: =Forças!AI36 -> 3.705612984 | AW18: =Forças!AJ36 -> 1.852806492 | AX18: =Forças!AK36 -> 0.9264032461 | AY18: =Forças!AL36 -> 0.4632016231 | AZ18: =Forças!AM36 -> 0.2316008115 | BA18: =Forças!AN36 -> 0.1158004058 | BB18: =Forças!AO36 -> 0.05790020288 | BC18: =Forças!AP36 -> 0.02895010144 | BD18: =Forças!AQ36 -> 0.01447505072 | BE18: =Forças!AR36 -> 0.00723752536 | BF18: =Forças!AS36 -> 0.00361876268 | BH18: rij (m) | BJ18: deslocamento amplificado | BV18: qij (rad) | BX18: atraso da resposta
C19: I | R19: I | AG19: I | AT19: HARMONICO | AV19: R* 1 | AW19: R* 2 | AX19: R* 3 | AY19: R* 4 | AZ19: R* 5 | BA19: R* 6 | BB19: R* 7 | BC19: R* 8 | BD19: R* 9 | BE19: R* 10 | BF19: R* 11 | BJ19: wbarr | BX19: wbarr
C20: 1 | D20: 2 | E20: 3 | F20: 4 | G20: 5 | H20: 6 | I20: 7 | J20: 8 | K20: 9 | L20: 10 | M20: 11 | N20: 12 | R20: 1 | S20: 2 | T20: 3 | U20: 4 | V20: 5 | W20: 6 | X20: 7 | Y20: 8 | Z20: 9 | AA20: 10 | AB20: 11 | AC20: 12 | AG20: 1 | AH20: 2 | AI20: 3 | AJ20: 4 | AK20: 5 | AL20: 6 | AM20: 7 | AN20: 8 | AO20: 9 | AP20: 10 | AQ20: 11 | AR20: 12 | AU20: wbarr | AV20: =2*PI()*AV18 -> 23.28305306 | AW20: =2*PI()*AW18 -> 11.64152653 | AX20: 5.820763264 | AY20: 2.910381632 | AZ20: 1.455190816 | BA20: 0.7275954081 | BB20: 0.363797704 | BC20: 0.181898852 | BD20: 0.09094942601 | BE20: 0.045474713 | BF20: 0.0227373565 | BJ20: =AV20 -> 23.28305306 | BK20: =AW20 -> 11.64152653 | BL20: 5.820763264 | BM20: 2.910381632 | BN20: 1.455190816 | BO20: 0.7275954081 | BP20: 0.363797704 | BQ20: 0.181898852 | BR20: 0.09094942601 | BS20: 0.045474713 | BT20: 0.0227373565 | BX20: =BJ20 -> 23.28305306 | BY20: =BK20 -> 11.64152653 | BZ20: 5.820763264 | CA20: 2.910381632 | CB20: 1.455190816 | CC20: 0.7275954081 | CD20: 0.363797704 | CE20: 0.181898852 | CF20: 0.09094942601 | CG20: 0.045474713 | CH20: 0.0227373565
A21: modo | B21: 1 | C21: ='CALCULO DAS FREQ'!AX38 -> 25401.07696 | D21: ='CALCULO DAS FREQ'!AY38 -> -1.621629053e-09 | E21: ='CALCULO DAS FREQ'!AZ38 -> 4.047251423e-10 | F21: ='CALCULO DAS FREQ'!BA38 -> -6.411937647e-10 | G21: ='CALCULO DAS FREQ'!BB38 -> -4.761204764e-10 | H21: ='CALCULO DAS FREQ'!BC38 -> -3.483364708e-10 | I21: ='CALCULO DAS FREQ'!BD38 -> -2.887645678e-10 | J21: ='CALCULO DAS FREQ'!BE38 -> -2.244178177e-10 | K21: ='CALCULO DAS FREQ'!BF38 -> -9.868017514e-11 | L21: ='CALCULO DAS FREQ'!BG38 -> -3.910827218e-11 | M21: ='CALCULO DAS FREQ'!BH38 -> -1.773514668e-11 | N21: ='CALCULO DAS FREQ'!BI38 -> 1.119815352e-11 | P21: modo | Q21: 1 | R21: ='CALCULO DAS FREQ'!BN21 -> 2957.073113 | S21: ='CALCULO DAS FREQ'!BO21 -> -2.248033687e-10 | T21: ='CALCULO DAS FREQ'!BP21 -> -3.055221216e-10 | U21: ='CALCULO DAS FREQ'!BQ21 -> -1.565258848e-08 | V21: ='CALCULO DAS FREQ'!BR21 -> -3.469534827e-08 | W21: ='CALCULO DAS FREQ'!BS21 -> -6.194851538e-08 | X21: ='CALCULO DAS FREQ'!BT21 -> -1.139775153e-07 | Y21: ='CALCULO DAS FREQ'!BU21 -> -1.610897295e-07 | Z21: ='CALCULO DAS FREQ'!BV21 -> -1.446267358e-07 | AA21: ='CALCULO DAS FREQ'!BW21 -> -6.723552202e-08 | AB21: ='CALCULO DAS FREQ'!BX21 -> -1.708338149e-08 | AC21: ='CALCULO DAS FREQ'!BY21 -> -9.233619738e-09 | AE21: modo | AF21: 1 | AG21: ='CALCULO DAS FREQ'!AX21 -> 215155.2818 | AH21: ='CALCULO DAS FREQ'!AY21 -> -3.383320291e-08 | AI21: ='CALCULO DAS FREQ'!AZ21 -> -1.933221938e-07 | AJ21: ='CALCULO DAS FREQ'!BA21 -> -8.696959412e-06 | AK21: ='CALCULO DAS FREQ'!BB21 -> -1.933096428e-05 | AL21: ='CALCULO DAS FREQ'!BC21 -> -3.454376201e-05 | AM21: ='CALCULO DAS FREQ'!BD21 -> -6.3576088e-05 | AN21: ='CALCULO DAS FREQ'!BE21 -> -8.986542161e-05 | AO21: ='CALCULO DAS FREQ'!BF21 -> -8.068719217e-05 | AP21: ='CALCULO DAS FREQ'!BG21 -> -3.751105032e-05 | AQ21: ='CALCULO DAS FREQ'!BH21 -> -9.530467651e-06 | AR21: ='CALCULO DAS FREQ'!BI21 -> -5.152420727e-06 | AT21: modo | AU21: 1 | AV21: =Forças!AI39 -> 237.7265778 | AW21: =Forças!AJ39 -> 299.4943955 | AX21: =Forças!AK39 -> 536.8715333 | AY21: =Forças!AL39 -> 309.2533006 | AZ21: =Forças!AM39 -> 1194.100182 | BA21: =Forças!AN39 -> 1571.539693 | BB21: =Forças!AO39 -> 2106.67973 | BC21: =Forças!AP39 -> 2254.803763 | BD21: =Forças!AQ39 -> 1761.900422 | BE21: =Forças!AR39 -> 1052.420743 | BF21: =Forças!AS39 -> 555.9977481 | BH21: modo | BI21: 1 | BJ21: =(AV21/$AG$21)*W9 -> 1.753798017e-05 | BK21: =(AW21/$AG$21)*X9 -> 9.279417682e-05 | BL21: 0.0008314626577 | BM21: 0.03593373329 | BN21: =(AZ21/$AG$21)*AA9 -> 0.007397298231 | BO21: =(BA21/$AG$21)*AB9 -> 0.007790715784 | BP21: =(BB21/$AG$21)*AC9 -> 0.009946729939 | BQ21: =(BC21/$AG$21)*AD9 -> 0.01052095483 | BR21: =(BD21/$AG$21)*AE9 -> 0.008196969717 | BS21: =(BE21/$AG$21)*AF9 -> 0.00489264093 | BT21: =(BF21/$AG$21)*AG9 -> 0.002584327253 | BV21: modo | BW21: 1 | BX21: =AJ9 -> 3.136513332 | BY21: =AK9 -> 3.130926391 | BZ21: 3.114932305 | CA21: 1.570796327 | CB21: 0.02666034837 | CC21: 0.01066626215 | CD21: 0.005079321398 | CE21: 0.002509798652 | CF21: 0.001251221243 | CG21: 0.0006251525437 | CH21: 0.0003125190645
B22: 2 | C22: ='CALCULO DAS FREQ'!AX39 -> -1.623448043e-09 | D22: ='CALCULO DAS FREQ'!AY39 -> 21772.91686 | E22: ='CALCULO DAS FREQ'!AZ39 -> -9.376890375e-10 | F22: ='CALCULO DAS FREQ'!BA39 -> -3.669811122e-10 | G22: ='CALCULO DAS FREQ'!BB39 -> -1.236912794e-10 | H22: ='CALCULO DAS FREQ'!BC39 -> -1.177795639e-10 | I22: ='CALCULO DAS FREQ'!BD39 -> -1.743956091e-10 | J22: ='CALCULO DAS FREQ'!BE39 -> -1.073203748e-10 | K22: ='CALCULO DAS FREQ'!BF39 -> -4.39968062e-11 | L22: ='CALCULO DAS FREQ'!BG39 -> -2.273736754e-11 | M22: ='CALCULO DAS FREQ'!BH39 -> -1.875832822e-11 | N22: ='CALCULO DAS FREQ'!BI39 -> 7.958078641e-13 | Q22: 2 | R22: ='CALCULO DAS FREQ'!BN22 -> -4.948537704e-10 | S22: ='CALCULO DAS FREQ'!BO22 -> 16902.0038 | T22: ='CALCULO DAS FREQ'!BP22 -> -1.63102741e-09 | U22: ='CALCULO DAS FREQ'!BQ22 -> -7.745201009e-09 | V22: ='CALCULO DAS FREQ'!BR22 -> -9.450303204e-09 | W22: ='CALCULO DAS FREQ'!BS22 -> -2.319470505e-08 | X22: ='CALCULO DAS FREQ'!BT22 -> -5.974899222e-08 | Y22: ='CALCULO DAS FREQ'!BU22 -> -7.425066268e-08 | Z22: ='CALCULO DAS FREQ'!BV22 -> -5.306297198e-08 | AA22: ='CALCULO DAS FREQ'!BW22 -> -4.271383396e-08 | AB22: ='CALCULO DAS FREQ'!BX22 -> -5.113924674e-08 | AC22: ='CALCULO DAS FREQ'!BY22 -> -2.066509706e-08 | AF22: 2 | AG22: ='CALCULO DAS FREQ'!AX22 -> -1.844018698e-07 | AH22: ='CALCULO DAS FREQ'!AY22 -> 8200489.812 | AI22: ='CALCULO DAS FREQ'!AZ22 -> -8.570495993e-07 | AJ22: ='CALCULO DAS FREQ'!BA22 -> -4.300614819e-06 | AK22: ='CALCULO DAS FREQ'!BB22 -> -5.265697837e-06 | AL22: ='CALCULO DAS FREQ'!BC22 -> -1.293455716e-05 | AM22: ='CALCULO DAS FREQ'!BD22 -> -3.33263888e-05 | AN22: ='CALCULO DAS FREQ'!BE22 -> -4.142121179e-05 | AO22: ='CALCULO DAS FREQ'!BF22 -> -2.96033686e-05 | AP22: ='CALCULO DAS FREQ'!BG22 -> -2.3830391e-05 | AQ22: ='CALCULO DAS FREQ'!BH22 -> -2.853147453e-05 | AR22: ='CALCULO DAS FREQ'!BI22 -> -1.152988989e-05 | AU22: 2 | AV22: =Forças!AI40 -> -157.367887 | AW22: =Forças!AJ40 -> -198.2563356 | AX22: =Forças!AK40 -> -341.2169323 | AY22: =Forças!AL40 -> -172.7085109 | AZ22: =Forças!AM40 -> -431.9023545 | BA22: =Forças!AN40 -> 0.09231556745 | BB22: =Forças!AO40 -> 485.1456155 | BC22: =Forças!AP40 -> 734.198213 | BD22: =Forças!AQ40 -> 650.5568089 | BE22: =Forças!AR40 -> 410.5853836 | BF22: =Forças!AS40 -> 222.6028785 | BI22: 2 | BJ22: =(AV22/$AH$22)*W10 -> -4.342320604e-05 | BK22: =(AW22/$AH$22)*X10 -> -3.773868272e-05 | BL22: -4.571842945e-05 | BM22: -2.15448893e-05 | BN22: -5.296542259e-05 | BO22: 1.127315627e-08 | BP22: 5.918134504e-05 | BQ22: 8.953887908e-05 | BR22: 7.933319843e-05 | BS22: 5.006867219e-05 | BT22: 2.714510827e-05 | BW22: 2 | BX22: =AJ10 -> 3.032789595 | BY22: =AK10 -> 0.03746358936 | BZ22: =AL10 -> 0.01318230751 | CA22: =AM10 -> 0.006136509188 | CB22: =AN10 -> 0.003016238429 | CC22: =AO10 -> 0.001501754325 | CD22: =AP10 -> 0.000750085742 | CE22: =AQ10 -> 0.0003749440737 | CF22: =AR10 -> 0.0001874596912 | CG22: =AS10 -> 9.372830254e-05 | CH22: =AT10 -> 4.686395839e-05
B23: 3 | C23: ='CALCULO DAS FREQ'!AX40 -> 4.047251423e-10 | D23: ='CALCULO DAS FREQ'!AY40 -> -9.372342902e-10 | E23: ='CALCULO DAS FREQ'!AZ40 -> 20055.9103 | F23: ='CALCULO DAS FREQ'!BA40 -> -4.015419108e-10 | G23: ='CALCULO DAS FREQ'!BB40 -> 6.889422366e-11 | H23: ='CALCULO DAS FREQ'!BC40 -> 4.661160347e-11 | I23: ='CALCULO DAS FREQ'!BD40 -> 1.292619345e-10 | J23: ='CALCULO DAS FREQ'!BE40 -> 6.218670023e-11 | K23: ='CALCULO DAS FREQ'!BF40 -> 6.593836588e-12 | L23: ='CALCULO DAS FREQ'!BG40 -> -2.739852789e-11 | M23: ='CALCULO DAS FREQ'!BH40 -> -3.410605132e-13 | N23: ='CALCULO DAS FREQ'!BI40 -> -2.378897079e-11 | Q23: 3 | R23: ='CALCULO DAS FREQ'!BN23 -> 1.169365967e-09 | S23: ='CALCULO DAS FREQ'!BO23 -> -9.15413389e-11 | T23: ='CALCULO DAS FREQ'!BP23 -> 118146.4746 | U23: ='CALCULO DAS FREQ'!BQ23 -> -9.929121031e-09 | V23: ='CALCULO DAS FREQ'!BR23 -> 7.166267793e-09 | W23: ='CALCULO DAS FREQ'!BS23 -> 7.172358149e-09 | X23: ='CALCULO DAS FREQ'!BT23 -> 4.857492815e-08 | Y23: ='CALCULO DAS FREQ'!BU23 -> 5.209603867e-08 | Z23: ='CALCULO DAS FREQ'!BV23 -> 9.004451253e-09 | AA23: ='CALCULO DAS FREQ'!BW23 -> -6.204358418e-08 | AB23: ='CALCULO DAS FREQ'!BX23 -> -2.300128841e-08 | AC23: ='CALCULO DAS FREQ'!BY23 -> -2.889048667e-08 | AF23: 3 | AG23: ='CALCULO DAS FREQ'!AX23 -> 6.295740604e-07 | AH23: ='CALCULO DAS FREQ'!AY23 -> 1.862645149e-09 | AI23: ='CALCULO DAS FREQ'!AZ23 -> 64785617.54 | AJ23: ='CALCULO DAS FREQ'!BA23 -> -5.517154932e-06 | AK23: ='CALCULO DAS FREQ'!BB23 -> 3.994442523e-06 | AL23: ='CALCULO DAS FREQ'!BC23 -> 3.999099135e-06 | AM23: ='CALCULO DAS FREQ'!BD23 -> 2.7094502e-05 | AN23: ='CALCULO DAS FREQ'!BE23 -> 2.906285226e-05 | AO23: ='CALCULO DAS FREQ'!BF23 -> 5.023553967e-06 | AP23: ='CALCULO DAS FREQ'!BG23 -> -3.461493179e-05 | AQ23: ='CALCULO DAS FREQ'!BH23 -> -1.283327583e-05 | AR23: ='CALCULO DAS FREQ'!BI23 -> -1.611775951e-05 | AU23: 3 | AV23: =Forças!AI41 -> 116.7830645 | AW23: =Forças!AJ41 -> 147.1264746 | AX23: =Forças!AK41 -> 239.351479 | AY23: =Forças!AL41 -> 98.98865945 | AZ23: =Forças!AM41 -> 93.1326521 | BA23: =Forças!AN41 -> 33.01177551 | BB23: =Forças!AO41 -> 312.2265359 | BC23: =Forças!AP41 -> 454.323029 | BD23: =Forças!AQ41 -> 397.9663717 | BE23: =Forças!AR41 -> 250.0075066 | BF23: =Forças!AS41 -> 135.2598648 | BI23: 3 | BJ23: =(AV23/$AI$23)*W11 -> 2.163313206e-06 | BK23: =(AW23/$AI$23)*X11 -> 2.369843723e-06 | BL23: 3.733462448e-06 | BM23: 1.531937291e-06 | BN23: 1.438489281e-06 | BO23: 5.096371504e-07 | BP23: 4.819576813e-06 | BQ23: 7.012785782e-06 | BR23: 6.142835407e-06 | BS23: 3.858999501e-06 | BT23: 2.087807317e-06 | BW23: 3 | BX23: 0.05097865282 | BY23: 0.02215619156 | BZ23: 0.01072715868 | CA23: 0.005321429377 | CB23: 0.002655497412 | CC23: 0.001327098138 | CD23: 0.0006634677977 | CE23: 0.0003317237415 | CF23: 0.0001658606011 | CG23: 8.293014186e-05 | CH23: 4.146505109e-05
B24: 4 | C24: ='CALCULO DAS FREQ'!AX41 -> -6.4028427e-10 | D24: ='CALCULO DAS FREQ'!AY41 -> -3.660716175e-10 | E24: ='CALCULO DAS FREQ'!AZ41 -> -4.017692845e-10 | F24: ='CALCULO DAS FREQ'!BA41 -> 18656.06492 | G24: ='CALCULO DAS FREQ'!BB41 -> -7.025846571e-10 | H24: ='CALCULO DAS FREQ'!BC41 -> 1.418811735e-10 | I24: ='CALCULO DAS FREQ'!BD41 -> 1.71667125e-11 | J24: ='CALCULO DAS FREQ'!BE41 -> -1.351736501e-10 | K24: ='CALCULO DAS FREQ'!BF41 -> 1.371063263e-10 | L24: ='CALCULO DAS FREQ'!BG41 -> -6.201616998e-11 | M24: ='CALCULO DAS FREQ'!BH41 -> -1.492139745e-11 | N24: ='CALCULO DAS FREQ'!BI41 -> 3.649347491e-11 | Q24: 4 | R24: ='CALCULO DAS FREQ'!BN24 -> -1.947700878e-09 | S24: ='CALCULO DAS FREQ'!BO24 -> -1.58609688e-09 | T24: ='CALCULO DAS FREQ'!BP24 -> -1.22248184e-09 | U24: ='CALCULO DAS FREQ'!BQ24 -> 453973.9838 | V24: ='CALCULO DAS FREQ'!BR24 -> -4.796110591e-08 | W24: ='CALCULO DAS FREQ'!BS24 -> 2.522295456e-08 | X24: ='CALCULO DAS FREQ'!BT24 -> 2.198434068e-09 | Y24: ='CALCULO DAS FREQ'!BU24 -> -8.927700245e-08 | Z24: ='CALCULO DAS FREQ'!BV24 -> 1.678157647e-07 | AA24: ='CALCULO DAS FREQ'!BW24 -> -1.130593491e-07 | AB24: ='CALCULO DAS FREQ'!BX24 -> -1.507458566e-08 | AC24: ='CALCULO DAS FREQ'!BY24 -> 9.761437485e-08 | AF24: 4 | AG24: ='CALCULO DAS FREQ'!AX24 -> -1.050531864e-06 | AH24: ='CALCULO DAS FREQ'!AY24 -> -8.642673492e-07 | AI24: ='CALCULO DAS FREQ'!AZ24 -> -6.593763828e-07 | AJ24: ='CALCULO DAS FREQ'!BA24 -> 252235645.4 | AK24: ='CALCULO DAS FREQ'!BB24 -> -2.671964467e-05 | AL24: ='CALCULO DAS FREQ'!BC24 -> 1.406483352e-05 | AM24: ='CALCULO DAS FREQ'!BD24 -> 1.225620508e-06 | AN24: ='CALCULO DAS FREQ'!BE24 -> -4.9803406e-05 | AO24: ='CALCULO DAS FREQ'!BF24 -> 9.362306446e-05 | AP24: ='CALCULO DAS FREQ'!BG24 -> -6.307661533e-05 | AQ24: ='CALCULO DAS FREQ'!BH24 -> -8.409842849e-06 | AR24: ='CALCULO DAS FREQ'!BI24 -> 5.446071737e-05 | AU24: 4 | AV24: =Forças!AI42 -> -89.76839017 | AW24: =Forças!AJ42 -> -113.0926546 | AX24: =Forças!AK42 -> -170.0183694 | AY24: =Forças!AL42 -> -50.27916569 | AZ24: =Forças!AM42 -> 16.40602475 | BA24: =Forças!AN42 -> -52.96575762 | BB24: =Forças!AO42 -> 123.7300928 | BC24: =Forças!AP42 -> 221.6084466 | BD24: =Forças!AQ42 -> 205.0516672 | BE24: =Forças!AR42 -> 131.6069694 | BF24: =Forças!AS42 -> 71.88884659 | BI24: 4 | BJ24: =(AV24/$AJ$24)*W12 -> -3.704037856e-07 | BK24: =(AW24/$AJ$24)*X12 -> -4.527995095e-07 | BL24: -6.757018758e-07 | BM24: -1.994563204e-07 | BN24: 6.505241709e-08 | BO24: -2.099932628e-07 | BP24: 4.905384298e-07 | BQ24: 8.785791424e-07 | BR24: 8.129374006e-07 | BS24: 5.217620563e-07 | BT24: 2.850067014e-07 | BW24: 4 | BX24: 0.04362753255 | BY24: 0.02116142262 | BZ24: 0.0105021487 | CA24: 0.005241343644 | CB24: 0.002619458259 | CC24: 0.00130957752 | CD24: 0.0006547698117 | CE24: 0.0003273825374 | CF24: 0.0001636909726 | CG24: 8.184544932e-05 | CH24: 4.092272003e-05
B25: 5 | C25: ='CALCULO DAS FREQ'!AX42 -> -4.74301487e-10 | D25: ='CALCULO DAS FREQ'!AY42 -> -1.234639058e-10 | E25: ='CALCULO DAS FREQ'!AZ42 -> 6.775735528e-11 | F25: ='CALCULO DAS FREQ'!BA42 -> -7.019025361e-10 | G25: ='CALCULO DAS FREQ'!BB42 -> 17313.0457 | H25: ='CALCULO DAS FREQ'!BC42 -> 1.774196789e-09 | I25: ='CALCULO DAS FREQ'!BD42 -> -4.323510439e-10 | J25: ='CALCULO DAS FREQ'!BE42 -> 7.364633348e-10 | K25: ='CALCULO DAS FREQ'!BF42 -> -5.768470146e-10 | L25: ='CALCULO DAS FREQ'!BG42 -> 2.63611355e-10 | M25: ='CALCULO DAS FREQ'!BH42 -> 2.337685601e-10 | N25: ='CALCULO DAS FREQ'!BI42 -> -9.467271411e-11 | Q25: 5 | R25: ='CALCULO DAS FREQ'!BN25 -> 2.457677417e-10 | S25: ='CALCULO DAS FREQ'!BO25 -> 9.489731808e-10 | T25: ='CALCULO DAS FREQ'!BP25 -> -3.077863013e-09 | U25: ='CALCULO DAS FREQ'!BQ25 -> -1.658967766e-08 | V25: ='CALCULO DAS FREQ'!BR25 -> 1252311.95 | W25: ='CALCULO DAS FREQ'!BS25 -> 3.112224453e-07 | X25: ='CALCULO DAS FREQ'!BT25 -> -1.601555475e-07 | Y25: ='CALCULO DAS FREQ'!BU25 -> 5.408490839e-07 | Z25: ='CALCULO DAS FREQ'!BV25 -> -7.180041536e-07 | AA25: ='CALCULO DAS FREQ'!BW25 -> 5.224564649e-07 | AB25: ='CALCULO DAS FREQ'!BX25 -> 6.383792459e-07 | AC25: ='CALCULO DAS FREQ'!BY25 -> -3.41018295e-07 | AF25: 5 | AG25: ='CALCULO DAS FREQ'!AX25 -> 1.639127731e-07 | AH25: ='CALCULO DAS FREQ'!AY25 -> 5.36441803e-07 | AI25: ='CALCULO DAS FREQ'!AZ25 -> -1.721084118e-06 | AJ25: ='CALCULO DAS FREQ'!BA25 -> -9.216368198e-06 | AK25: ='CALCULO DAS FREQ'!BB25 -> 697734668.4 | AL25: ='CALCULO DAS FREQ'!BC25 -> 0.0001735426486 | AM25: ='CALCULO DAS FREQ'!BD25 -> -8.933246136e-05 | AN25: ='CALCULO DAS FREQ'!BE25 -> 0.0003017187119 | AO25: ='CALCULO DAS FREQ'!BF25 -> -0.0004005692899 | AP25: ='CALCULO DAS FREQ'!BG25 -> 0.0002914834768 | AQ25: ='CALCULO DAS FREQ'!BH25 -> 0.0003561628982 | AR25: ='CALCULO DAS FREQ'!BI25 -> -0.0001902617514 | AU25: 5 | AV25: =Forças!AI43 -> 70.75394685 | AW25: =Forças!AJ43 -> 89.13774275 | AX25: =Forças!AK43 -> 121.1722965 | AY25: =Forças!AL43 -> 20.56271028 | AZ25: =Forças!AM43 -> 2.068617211 | BA25: =Forças!AN43 -> 12.3983286 | BB25: =Forças!AO43 -> 145.840772 | BC25: =Forças!AP43 -> 217.8389154 | BD25: =Forças!AQ43 -> 192.2964301 | BE25: =Forças!AR43 -> 121.1807167 | BF25: =Forças!AS43 -> 65.65446756 | BH25: escala de tempo | BJ25: T harmonicos (s)
B26: 6 | C26: ='CALCULO DAS FREQ'!AX43 -> -3.492459655e-10 | D26: ='CALCULO DAS FREQ'!AY43 -> -1.168700692e-10 | E26: ='CALCULO DAS FREQ'!AZ43 -> 4.683897714e-11 | F26: ='CALCULO DAS FREQ'!BA43 -> 1.416537998e-10 | G26: ='CALCULO DAS FREQ'!BB43 -> 1.775219971e-09 | H26: ='CALCULO DAS FREQ'!BC43 -> 15952.8413 | I26: ='CALCULO DAS FREQ'!BD43 -> 5.638867151e-10 | J26: ='CALCULO DAS FREQ'!BE43 -> -1.653461368e-09 | K26: ='CALCULO DAS FREQ'!BF43 -> 2.968363333e-10 | L26: ='CALCULO DAS FREQ'!BG43 -> 7.095479759e-10 | M26: ='CALCULO DAS FREQ'!BH43 -> -1.233800617e-09 | N26: ='CALCULO DAS FREQ'!BI43 -> 2.9769609e-10 | Q26: 6 | R26: ='CALCULO DAS FREQ'!BN26 -> 3.009305524e-09 | S26: ='CALCULO DAS FREQ'!BO26 -> 2.57880142e-09 | T26: ='CALCULO DAS FREQ'!BP26 -> 1.500364644e-09 | U26: ='CALCULO DAS FREQ'!BQ26 -> 3.192538934e-09 | V26: ='CALCULO DAS FREQ'!BR26 -> 1.295110366e-07 | W26: ='CALCULO DAS FREQ'!BS26 -> 2813110.311 | X26: ='CALCULO DAS FREQ'!BT26 -> 2.071073874e-07 | Y26: ='CALCULO DAS FREQ'!BU26 -> -1.179432703e-06 | Z26: ='CALCULO DAS FREQ'!BV26 -> 3.621377275e-07 | AA26: ='CALCULO DAS FREQ'!BW26 -> 1.425971381e-06 | AB26: ='CALCULO DAS FREQ'!BX26 -> -3.492277644e-06 | AC26: ='CALCULO DAS FREQ'!BY26 -> 1.087356372e-06 | AF26: 6 | AG26: ='CALCULO DAS FREQ'!AX26 -> 1.698732376e-06 | AH26: ='CALCULO DAS FREQ'!AY26 -> 1.445412636e-06 | AI26: ='CALCULO DAS FREQ'!AZ26 -> 8.344650269e-07 | AJ26: ='CALCULO DAS FREQ'!BA26 -> 1.773238182e-06 | AK26: ='CALCULO DAS FREQ'!BB26 -> 7.215887308e-05 | AL26: ='CALCULO DAS FREQ'!BC26 -> 1568640364 | AM26: ='CALCULO DAS FREQ'!BD26 -> 0.0001155212522 | AN26: ='CALCULO DAS FREQ'!BE26 -> -0.0006579570472 | AO26: ='CALCULO DAS FREQ'!BF26 -> 0.0002020336688 | AP26: ='CALCULO DAS FREQ'!BG26 -> 0.0007955636829 | AQ26: ='CALCULO DAS FREQ'!BH26 -> -0.001948405057 | AR26: ='CALCULO DAS FREQ'!BI26 -> 0.0006066607311 | AU26: 6 | AV26: =Forças!AI44 -> -56.34698678 | AW26: =Forças!AJ44 -> -70.98746341 | AX26: =Forças!AK44 -> -85.37012024 | AY26: =Forças!AL44 -> -4.677297834 | AZ26: =Forças!AM44 -> -35.59881008 | BA26: =Forças!AN44 -> -31.44438482 | BB26: =Forças!AO44 -> 61.08607282 | BC26: =Forças!AP44 -> 117.0972593 | BD26: =Forças!AQ44 -> 109.9914875 | BE26: =Forças!AR44 -> 70.99212861 | BF26: =Forças!AS44 -> 38.87423612 | BH26: dt | BI26: =BJ26/10 -> 0.02698608852 | BJ26: =2*PI()/BJ20 -> 0.2698608852 | BK26: =2*PI()/BK20 -> 0.5397217703 | BL26: 1.079443541 | BM26: 2.158887081 | BN26: 4.317774162 | BO26: 8.635548325 | BP26: 17.27109665 | BQ26: 34.5421933 | BR26: 69.0843866 | BS26: 138.1687732 | BT26: 276.3375464
B27: 7 | C27: ='CALCULO DAS FREQ'!AX44 -> -2.885371941e-10 | D27: ='CALCULO DAS FREQ'!AY44 -> -1.743956091e-10 | E27: ='CALCULO DAS FREQ'!AZ44 -> 1.288071871e-10 | F27: ='CALCULO DAS FREQ'!BA44 -> 1.671196515e-11 | G27: ='CALCULO DAS FREQ'!BB44 -> -4.318962965e-10 | H27: ='CALCULO DAS FREQ'!BC44 -> 5.637161848e-10 | I27: ='CALCULO DAS FREQ'!BD44 -> 14591.12059 | J27: ='CALCULO DAS FREQ'!BE44 -> 2.030276391e-09 | K27: ='CALCULO DAS FREQ'!BF44 -> -1.997761956e-10 | L27: ='CALCULO DAS FREQ'!BG44 -> -1.052754328e-09 | M27: ='CALCULO DAS FREQ'!BH44 -> 1.97721306e-09 | N27: ='CALCULO DAS FREQ'!BI44 -> -6.694094168e-10 | Q27: 7 | R27: ='CALCULO DAS FREQ'!BN27 -> 5.525961265e-09 | S27: ='CALCULO DAS FREQ'!BO27 -> -8.722964184e-10 | T27: ='CALCULO DAS FREQ'!BP27 -> 1.508662596e-09 | U27: ='CALCULO DAS FREQ'!BQ27 -> -1.627468905e-09 | V27: ='CALCULO DAS FREQ'!BR27 -> -3.121143661e-08 | W27: ='CALCULO DAS FREQ'!BS27 -> 9.892842755e-08 | X27: ='CALCULO DAS FREQ'!BT27 -> 5482609.658 | Y27: ='CALCULO DAS FREQ'!BU27 -> 1.481566656e-06 | Z27: ='CALCULO DAS FREQ'!BV27 -> -2.405885059e-07 | AA27: ='CALCULO DAS FREQ'!BW27 -> -2.107112152e-06 | AB27: ='CALCULO DAS FREQ'!BX27 -> 5.618978516e-06 | AC27: ='CALCULO DAS FREQ'!BY27 -> -2.411092095e-06 | AF27: 7 | AG27: ='CALCULO DAS FREQ'!AX27 -> 3.099441528e-06 | AH27: ='CALCULO DAS FREQ'!AY27 -> -4.768371582e-07 | AI27: ='CALCULO DAS FREQ'!AZ27 -> 8.344650269e-07 | AJ27: ='CALCULO DAS FREQ'!BA27 -> -9.089708328e-07 | AK27: ='CALCULO DAS FREQ'!BB27 -> -1.738965511e-05 | AL27: ='CALCULO DAS FREQ'!BC27 -> 5.516409874e-05 | AM27: ='CALCULO DAS FREQ'!BD27 -> 3058132664 | AN27: ='CALCULO DAS FREQ'!BE27 -> 0.0008265078068 | AO27: ='CALCULO DAS FREQ'!BF27 -> -0.0001342222095 | AP27: ='CALCULO DAS FREQ'!BG27 -> -0.001175578684 | AQ27: ='CALCULO DAS FREQ'!BH27 -> 0.003134930506 | AR27: ='CALCULO DAS FREQ'!BI27 -> -0.001345202327 | AU27: 7 | AV27: =Forças!AI45 -> 44.79823343 | AW27: =Forças!AJ45 -> 56.43803045 | AX27: =Forças!AK45 -> 58.8153928 | AY27: =Forças!AL45 -> -1.485858568 | AZ27: =Forças!AM45 -> 35.06245545 | BA27: =Forças!AN45 -> 12.21838981 | BB27: =Forças!AO45 -> 86.49253339 | BC27: =Forças!AP45 -> 130.8482986 | BD27: =Forças!AQ45 -> 115.9302212 | BE27: =Forças!AR45 -> 73.16402678 | BF27: =Forças!AS45 -> 39.66587772
B28: 8 | C28: ='CALCULO DAS FREQ'!AX45 -> -2.244178177e-10 | D28: ='CALCULO DAS FREQ'!AY45 -> -1.087983037e-10 | E28: ='CALCULO DAS FREQ'!AZ45 -> 6.20730134e-11 | F28: ='CALCULO DAS FREQ'!BA45 -> -1.340936251e-10 | G28: ='CALCULO DAS FREQ'!BB45 -> 7.358380572e-10 | H28: ='CALCULO DAS FREQ'!BC45 -> -1.653546633e-09 | I28: ='CALCULO DAS FREQ'!BD45 -> 2.03141326e-09 | J28: ='CALCULO DAS FREQ'!BE45 -> 13277.57247 | K28: ='CALCULO DAS FREQ'!BF45 -> 1.425846108e-09 | L28: ='CALCULO DAS FREQ'!BG45 -> -1.07888809e-10 | M28: ='CALCULO DAS FREQ'!BH45 -> -1.999083565e-09 | N28: ='CALCULO DAS FREQ'!BI45 -> 1.448857034e-09 | Q28: 8 | R28: ='CALCULO DAS FREQ'!BN28 -> 1.279690667e-08 | S28: ='CALCULO DAS FREQ'!BO28 -> -5.138864201e-09 | T28: ='CALCULO DAS FREQ'!BP28 -> -1.756414597e-09 | U28: ='CALCULO DAS FREQ'!BQ28 -> -4.981179625e-09 | V28: ='CALCULO DAS FREQ'!BR28 -> 5.335605949e-08 | W28: ='CALCULO DAS FREQ'!BS28 -> -2.915200882e-07 | X28: ='CALCULO DAS FREQ'!BT28 -> 7.593945433e-07 | Y28: ='CALCULO DAS FREQ'!BU28 -> 9581042.063 | Z28: ='CALCULO DAS FREQ'!BV28 -> 1.789577088e-06 | AA28: ='CALCULO DAS FREQ'!BW28 -> -2.193333455e-07 | AB28: ='CALCULO DAS FREQ'!BX28 -> -5.693317865e-06 | AC28: ='CALCULO DAS FREQ'!BY28 -> 5.1532488e-06 | AF28: 8 | AG28: ='CALCULO DAS FREQ'!AX28 -> 7.152557373e-06 | AH28: ='CALCULO DAS FREQ'!AY28 -> -2.861022949e-06 | AI28: ='CALCULO DAS FREQ'!AZ28 -> -9.834766388e-07 | AJ28: ='CALCULO DAS FREQ'!BA28 -> -2.771615982e-06 | AK28: ='CALCULO DAS FREQ'!BB28 -> 2.972781658e-05 | AL28: ='CALCULO DAS FREQ'!BC28 -> -0.0001625567675 | AM28: ='CALCULO DAS FREQ'!BD28 -> 0.0004235804081 | AN28: ='CALCULO DAS FREQ'!BE28 -> 5344878435 | AO28: ='CALCULO DAS FREQ'!BF28 -> 0.0009983927011 | AP28: ='CALCULO DAS FREQ'!BG28 -> -0.0001223683357 | AQ28: ='CALCULO DAS FREQ'!BH28 -> -0.003176406026 | AR28: ='CALCULO DAS FREQ'!BI28 -> 0.002875111997 | AU28: 8 | AV28: =Forças!AI46 -> -35.11068151 | AW28: =Forças!AJ46 -> -44.2333896 | AX28: =Forças!AK46 -> -39.25435112 | AY28: =Forças!AL46 -> 1.776485149 | AZ28: =Forças!AM46 -> -12.89055125 | BA28: =Forças!AN46 -> -14.61187541 | BB28: =Forças!AO46 -> 37.1838514 | BC28: =Forças!AP46 -> 72.93393048 | BD28: =Forças!AQ46 -> 68.83859493 | BE28: =Forças!AR46 -> 44.50937284 | BF28: =Forças!AS46 -> 24.3915061
B29: 9 | C29: ='CALCULO DAS FREQ'!AX46 -> -9.76569936e-11 | D29: ='CALCULO DAS FREQ'!AY46 -> -4.49063009e-11 | E29: ='CALCULO DAS FREQ'!AZ46 -> 5.741185305e-12 | F29: ='CALCULO DAS FREQ'!BA46 -> 1.373905434e-10 | G29: ='CALCULO DAS FREQ'!BB46 -> -5.776712442e-10 | H29: ='CALCULO DAS FREQ'!BC46 -> 2.965236945e-10 | I29: ='CALCULO DAS FREQ'!BD46 -> -1.998614607e-10 | J29: ='CALCULO DAS FREQ'!BE46 -> 1.42587453e-09 | K29: ='CALCULO DAS FREQ'!BF46 -> 12073.33572 | L29: ='CALCULO DAS FREQ'!BG46 -> 4.358255978e-10 | M29: ='CALCULO DAS FREQ'!BH46 -> 2.103313079e-09 | N29: ='CALCULO DAS FREQ'!BI46 -> -1.192059784e-09 | Q29: 9 | R29: ='CALCULO DAS FREQ'!BN29 -> -4.389924845e-09 | S29: ='CALCULO DAS FREQ'!BO29 -> -3.316282581e-09 | T29: ='CALCULO DAS FREQ'!BP29 -> -4.005551716e-09 | U29: ='CALCULO DAS FREQ'!BQ29 -> 1.189040889e-09 | V29: ='CALCULO DAS FREQ'!BR29 -> -4.033346946e-08 | W29: ='CALCULO DAS FREQ'!BS29 -> 5.347183135e-08 | X29: ='CALCULO DAS FREQ'!BT29 -> -7.084866273e-08 | Y29: ='CALCULO DAS FREQ'!BU29 -> 1.041231462e-06 | Z29: ='CALCULO DAS FREQ'!BV29 -> 15239348.95 | AA29: ='CALCULO DAS FREQ'!BW29 -> 8.780148569e-07 | AB29: ='CALCULO DAS FREQ'!BX29 -> 5.994262445e-06 | AC29: ='CALCULO DAS FREQ'!BY29 -> -4.217136432e-06 | AF29: 9 | AG29: ='CALCULO DAS FREQ'!AX29 -> -2.443790436e-06 | AH29: ='CALCULO DAS FREQ'!AY29 -> -1.847743988e-06 | AI29: ='CALCULO DAS FREQ'!AZ29 -> -2.235174179e-06 | AJ29: ='CALCULO DAS FREQ'!BA29 -> 6.556510925e-07 | AK29: ='CALCULO DAS FREQ'!BB29 -> -2.247095108e-05 | AL29: ='CALCULO DAS FREQ'!BC29 -> 2.981722355e-05 | AM29: ='CALCULO DAS FREQ'!BD29 -> -3.951787949e-05 | AN29: ='CALCULO DAS FREQ'!BE29 -> 0.0005808621645 | AO29: ='CALCULO DAS FREQ'!BF29 -> 8501931434 | AP29: ='CALCULO DAS FREQ'!BG29 -> 0.0004898533225 | AQ29: ='CALCULO DAS FREQ'!BH29 -> 0.003344308585 | AR29: ='CALCULO DAS FREQ'!BI29 -> -0.002352833748 | AU29: 9 | AV29: =Forças!AI47 -> 26.68444675 | AW29: =Forças!AJ47 -> 33.61779032 | AX29: =Forças!AK47 -> 25.13837723 | AY29: =Forças!AL47 -> 0.3926835583 | AZ29: =Forças!AM47 -> -1.21884385 | BA29: =Forças!AN47 -> 11.89442238 | BB29: =Forças!AO47 -> 53.17012583 | BC29: =Forças!AP47 -> 81.53393882 | BD29: =Forças!AQ47 -> 72.51565166 | BE29: =Forças!AR47 -> 45.83494029 | BF29: =Forças!AS47 -> 24.86655617
B30: 10 | C30: ='CALCULO DAS FREQ'!AX47 -> -3.973354978e-11 | D30: ='CALCULO DAS FREQ'!AY47 -> -2.262368071e-11 | E30: ='CALCULO DAS FREQ'!AZ47 -> -2.714273251e-11 | F30: ='CALCULO DAS FREQ'!BA47 -> -6.204459169e-11 | G30: ='CALCULO DAS FREQ'!BB47 -> 2.643503194e-10 | H30: ='CALCULO DAS FREQ'!BC47 -> 7.096758736e-10 | I30: ='CALCULO DAS FREQ'!BD47 -> -1.052299581e-09 | J30: ='CALCULO DAS FREQ'!BE47 -> -1.065956212e-10 | K30: ='CALCULO DAS FREQ'!BF47 -> 4.351221605e-10 | L30: ='CALCULO DAS FREQ'!BG47 -> 11039.93858 | M30: ='CALCULO DAS FREQ'!BH47 -> 3.341614985e-09 | N30: ='CALCULO DAS FREQ'!BI47 -> -2.232729557e-09 | Q30: 10 | R30: ='CALCULO DAS FREQ'!BN30 -> -2.970282108e-08 | S30: ='CALCULO DAS FREQ'!BO30 -> -2.459385138e-09 | T30: ='CALCULO DAS FREQ'!BP30 -> -2.513257724e-09 | U30: ='CALCULO DAS FREQ'!BQ30 -> 3.14521022e-09 | V30: ='CALCULO DAS FREQ'!BR30 -> 1.813448198e-08 | W30: ='CALCULO DAS FREQ'!BS30 -> 1.28001021e-07 | X30: ='CALCULO DAS FREQ'!BT30 -> -4.003192068e-07 | Y30: ='CALCULO DAS FREQ'!BU30 -> -6.627222955e-08 | Z30: ='CALCULO DAS FREQ'!BV30 -> 5.445042202e-07 | AA30: ='CALCULO DAS FREQ'!BW30 -> 22114611.39 | AB30: ='CALCULO DAS FREQ'!BX30 -> 9.482454289e-06 | AC30: ='CALCULO DAS FREQ'!BY30 -> -7.933908229e-06 | AF30: 10 | AG30: ='CALCULO DAS FREQ'!AX30 -> -1.657009125e-05 | AH30: ='CALCULO DAS FREQ'!AY30 -> -1.37090683e-06 | AI30: ='CALCULO DAS FREQ'!AZ30 -> -1.400709152e-06 | AJ30: ='CALCULO DAS FREQ'!BA30 -> 1.758337021e-06 | AK30: ='CALCULO DAS FREQ'!BB30 -> 1.010298729e-05 | AL30: ='CALCULO DAS FREQ'!BC30 -> 7.137656212e-05 | AM30: ='CALCULO DAS FREQ'!BD30 -> -0.0002232939005 | AN30: ='CALCULO DAS FREQ'!BE30 -> -3.696978092e-05 | AO30: ='CALCULO DAS FREQ'!BF30 -> 0.0003037750721 | AP30: ='CALCULO DAS FREQ'!BG30 -> 1.233796065e+10 | AQ30: ='CALCULO DAS FREQ'!BH30 -> 0.005290433764 | AR30: ='CALCULO DAS FREQ'!BI30 -> -0.004426503554 | AU30: 10 | AV30: =Forças!AI48 -> -19.1539809 | AW30: =Forças!AJ48 -> -24.13070504 | AX30: =Forças!AK48 -> -15.23399784 | AY30: =Forças!AL48 -> -2.464053487 | AZ30: =Forças!AM48 -> -2.270692445 | BA30: =Forças!AN48 -> -4.280733097 | BB30: =Forças!AO48 -> 22.94262214 | BC30: =Forças!AP48 -> 44.72491475 | BD30: =Forças!AQ48 -> 42.1597622 | BE30: =Forças!AR48 -> 27.2467401 | BF30: =Forças!AS48 -> 14.92839464
B31: 11 | C31: ='CALCULO DAS FREQ'!AX48 -> -1.733724275e-11 | D31: ='CALCULO DAS FREQ'!AY48 -> -1.904254532e-11 | E31: ='CALCULO DAS FREQ'!AZ48 -> -8.526512829e-13 | F31: ='CALCULO DAS FREQ'!BA48 -> -1.47792889e-11 | G31: ='CALCULO DAS FREQ'!BB48 -> 2.338111926e-10 | H31: ='CALCULO DAS FREQ'!BC48 -> -1.233004809e-09 | I31: ='CALCULO DAS FREQ'!BD48 -> 1.97679384e-09 | J31: ='CALCULO DAS FREQ'!BE48 -> -1.99774064e-09 | K31: ='CALCULO DAS FREQ'!BF48 -> 2.103092811e-09 | L31: ='CALCULO DAS FREQ'!BG48 -> 3.341675381e-09 | M31: ='CALCULO DAS FREQ'!BH48 -> 10235.66026 | N31: ='CALCULO DAS FREQ'!BI48 -> 3.554778694e-09 | Q31: 11 | R31: ='CALCULO DAS FREQ'!BN31 -> -1.923119312e-08 | S31: ='CALCULO DAS FREQ'!BO31 -> -3.206834084e-09 | T31: ='CALCULO DAS FREQ'!BP31 -> 3.525310651e-09 | U31: ='CALCULO DAS FREQ'!BQ31 -> 1.276471407e-08 | V31: ='CALCULO DAS FREQ'!BR31 -> 1.802456017e-08 | W31: ='CALCULO DAS FREQ'!BS31 -> -2.184857734e-07 | X31: ='CALCULO DAS FREQ'!BT31 -> 7.446464448e-07 | Y31: ='CALCULO DAS FREQ'!BU31 -> -1.434718314e-06 | Z31: ='CALCULO DAS FREQ'!BV31 -> 2.655798293e-06 | AA31: ='CALCULO DAS FREQ'!BW31 -> 6.695774883e-06 | AB31: ='CALCULO DAS FREQ'!BX31 -> 29098656.45 | AC31: ='CALCULO DAS FREQ'!BY31 -> 1.261637684e-05 | AF31: 11 | AG31: ='CALCULO DAS FREQ'!AX31 -> -1.072883606e-05 | AH31: ='CALCULO DAS FREQ'!AY31 -> -1.788139343e-06 | AI31: ='CALCULO DAS FREQ'!AZ31 -> 1.966953278e-06 | AJ31: ='CALCULO DAS FREQ'!BA31 -> 7.122755051e-06 | AK31: ='CALCULO DAS FREQ'!BB31 -> 1.004338264e-05 | AL31: ='CALCULO DAS FREQ'!BC31 -> -0.0001218318939 | AM31: ='CALCULO DAS FREQ'!BD31 -> 0.0004153549671 | AN31: ='CALCULO DAS FREQ'!BE31 -> -0.00080037117 | AO31: ='CALCULO DAS FREQ'!BF31 -> 0.00148165226 | AP31: ='CALCULO DAS FREQ'!BG31 -> 0.003735639155 | AQ31: ='CALCULO DAS FREQ'!BH31 -> 1.623467089e+10 | AR31: ='CALCULO DAS FREQ'!BI31 -> 0.007038956508 | AU31: 11 | AV31: =Forças!AI49 -> 12.30405951 | AW31: =Forças!AJ49 -> 15.50098814 | AX31: =Forças!AK49 -> 8.439815441 | AY31: =Forças!AL49 -> 3.064587167 | AZ31: =Forças!AM49 -> 10.8159219 | BA31: =Forças!AN49 -> 7.885271697 | BB31: =Forças!AO49 -> 26.97359677 | BC31: =Forças!AP49 -> 41.97419651 | BD31: =Forças!AQ49 -> 37.48411899 | BE31: =Forças!AR49 -> 23.73093884 | BF31: =Forças!AS49 -> 12.88398287
B32: 12 | C32: ='CALCULO DAS FREQ'!AX49 -> 1.065814104e-11 | D32: ='CALCULO DAS FREQ'!AY49 -> 1.165290087e-12 | E32: ='CALCULO DAS FREQ'!AZ49 -> -2.260946985e-11 | F32: ='CALCULO DAS FREQ'!BA49 -> 3.786482239e-11 | G32: ='CALCULO DAS FREQ'!BB49 -> -9.529088629e-11 | H32: ='CALCULO DAS FREQ'!BC49 -> 2.977103009e-10 | I32: ='CALCULO DAS FREQ'!BD49 -> -6.687663756e-10 | J32: ='CALCULO DAS FREQ'!BE49 -> 1.448050568e-09 | K32: ='CALCULO DAS FREQ'!BF49 -> -1.192207222e-09 | L32: ='CALCULO DAS FREQ'!BG49 -> -2.232622975e-09 | M32: ='CALCULO DAS FREQ'!BH49 -> 3.555475026e-09 | N32: ='CALCULO DAS FREQ'!BI49 -> 9717.441396 | Q32: 12 | R32: ='CALCULO DAS FREQ'!BN32 -> 1.404925173e-08 | S32: ='CALCULO DAS FREQ'!BO32 -> 7.69189317e-09 | T32: ='CALCULO DAS FREQ'!BP32 -> -2.426568175e-10 | U32: ='CALCULO DAS FREQ'!BQ32 -> 9.431599334e-09 | V32: ='CALCULO DAS FREQ'!BR32 -> -8.475940892e-09 | W32: ='CALCULO DAS FREQ'!BS32 -> 5.317816839e-08 | X32: ='CALCULO DAS FREQ'!BT32 -> -2.544571421e-07 | Y32: ='CALCULO DAS FREQ'!BU32 -> 1.05096861e-06 | Z32: ='CALCULO DAS FREQ'!BV32 -> -1.506086148e-06 | AA32: ='CALCULO DAS FREQ'!BW32 -> -4.475737499e-06 | AB32: ='CALCULO DAS FREQ'!BX32 -> 1.009883284e-05 | AC32: ='CALCULO DAS FREQ'!BY32 -> 34417235.76 | AF32: 12 | AG32: ='CALCULO DAS FREQ'!AX32 -> 7.838010788e-06 | AH32: ='CALCULO DAS FREQ'!AY32 -> 4.291534424e-06 | AI32: ='CALCULO DAS FREQ'!AZ32 -> -1.341104507e-07 | AJ32: ='CALCULO DAS FREQ'!BA32 -> 5.260109901e-06 | AK32: ='CALCULO DAS FREQ'!BB32 -> -4.723668098e-06 | AL32: ='CALCULO DAS FREQ'!BC32 -> 2.965331078e-05 | AM32: ='CALCULO DAS FREQ'!BD32 -> -0.0001419335604 | AN32: ='CALCULO DAS FREQ'!BE32 -> 0.0005862936378 | AO32: ='CALCULO DAS FREQ'!BF32 -> -0.0008402355015 | AP32: ='CALCULO DAS FREQ'!BG32 -> -0.002497058362 | AQ32: ='CALCULO DAS FREQ'!BH32 -> 0.005634322762 | AR32: ='CALCULO DAS FREQ'!BI32 -> 1.920213818e+10 | AU32: 12 | AV32: =Forças!AI50 -> -5.987485215 | AW32: =Forças!AJ50 -> -7.543196395 | AX32: =Forças!AK50 -> -3.705763835 | AY32: =Forças!AL50 -> -2.023072144 | AZ32: =Forças!AM50 -> -10.36082844 | BA32: =Forças!AN50 -> -0.3261494873 | BB32: =Forças!AO50 -> 8.456051042 | BC32: =Forças!AP50 -> 16.2332645 | BD32: =Forças!AQ50 -> 15.25291286 | BE32: =Forças!AR50 -> 9.845857353 | BF32: =Forças!AS50 -> 5.391714695

Sheet momento harmonicos em fase
A1: rij (m) | C1: deslocamento amplificado | O1: qij (rad) | Q1: atraso da resposta | AW1: [K] N/m | AX1: MATRIZ DE RIGIDEZ
C2: wbarr | Q2: wbarr | AY2: I | BN2: F
C3: =RESUMO!BJ20 -> 23.28305306 | D3: =RESUMO!BK20 -> 11.64152653 | E3: =RESUMO!BL20 -> 5.820763264 | F3: =RESUMO!BM20 -> 2.910381632 | G3: =RESUMO!BN20 -> 1.455190816 | H3: =RESUMO!BO20 -> 0.7275954081 | I3: =RESUMO!BP20 -> 0.363797704 | J3: =RESUMO!BQ20 -> 0.181898852 | K3: =RESUMO!BR20 -> 0.09094942601 | L3: =RESUMO!BS20 -> 0.045474713 | M3: =RESUMO!BT20 -> 0.0227373565 | Q3: =RESUMO!BX20 -> 23.28305306 | R3: =RESUMO!BY20 -> 11.64152653 | S3: =RESUMO!BZ20 -> 5.820763264 | T3: =RESUMO!CA20 -> 2.910381632 | U3: =RESUMO!CB20 -> 1.455190816 | V3: =RESUMO!CC20 -> 0.7275954081 | W3: =RESUMO!CD20 -> 0.363797704 | X3: =RESUMO!CE20 -> 0.181898852 | Y3: =RESUMO!CF20 -> 0.09094942601 | Z3: =RESUMO!CG20 -> 0.045474713 | AA3: =RESUMO!CH20 -> 0.0227373565 | AY3: 1 | AZ3: 2 | BA3: 3 | BB3: 4 | BC3: 5 | BD3: 6 | BE3: 7 | BF3: 8 | BG3: 9 | BH3: 10 | BI3: 11 | BJ3: 12 | BN3: 1 | BO3: 2 | BP3: 3
A4: modo | B4: 1 | C4: =RESUMO!BJ21 -> 1.753798017e-05 | D4: =RESUMO!BK21 -> 9.279417682e-05 | E4: =RESUMO!BL21 -> 0.0008314626577 | F4: =RESUMO!BM21 -> 0.03593373329 | G4: =RESUMO!BN21 -> 0.007397298231 | H4: =RESUMO!BO21 -> 0.007790715784 | I4: =RESUMO!BP21 -> 0.009946729939 | J4: =RESUMO!BQ21 -> 0.01052095483 | K4: =RESUMO!BR21 -> 0.008196969717 | L4: =RESUMO!BS21 -> 0.00489264093 | M4: =RESUMO!BT21 -> 0.002584327253 | O4: modo | P4: 1 | Q4: =RESUMO!BX21 -> 3.136513332 | R4: =RESUMO!BY21 -> 3.130926391 | S4: =RESUMO!BZ21 -> 3.114932305 | T4: =RESUMO!CA21 -> 1.570796327 | U4: =RESUMO!CB21 -> 0.02666034837 | V4: =RESUMO!CC21 -> 0.01066626215 | W4: =RESUMO!CD21 -> 0.005079321398 | X4: =RESUMO!CE21 -> 0.002509798652 | Y4: =RESUMO!CF21 -> 0.001251221243 | Z4: =RESUMO!CG21 -> 0.0006251525437 | AA4: =RESUMO!CH21 -> 0.0003125190645 | AW4: K | AX4: 1 | AY4: ='MATRIZ FLEX e MATRIZ K e M'!T12 -> 7969145974 | AZ4: ='MATRIZ FLEX e MATRIZ K e M'!U12 -> -5039147057 | BA4: ='MATRIZ FLEX e MATRIZ K e M'!V12 -> 2030613875 | BB4: ='MATRIZ FLEX e MATRIZ K e M'!W12 -> -544101347.5 | BC4: ='MATRIZ FLEX e MATRIZ K e M'!X12 -> 145791515.3 | BD4: ='MATRIZ FLEX e MATRIZ K e M'!Y12 -> -39064713.83 | BE4: ='MATRIZ FLEX e MATRIZ K e M'!Z12 -> 10467339.99 | BF4: ='MATRIZ FLEX e MATRIZ K e M'!AA12 -> -2804646.121 | BG4: ='MATRIZ FLEX e MATRIZ K e M'!AB12 -> 751244.4958 | BH4: ='MATRIZ FLEX e MATRIZ K e M'!AC12 -> -200331.8654 | BI4: ='MATRIZ FLEX e MATRIZ K e M'!AD12 -> 50082.9669 | BJ4: ='MATRIZ FLEX e MATRIZ K e M'!AE12 -> -8347.161284 | BL4: ui | BM4: 1 | BN4: =RESUMO!C4 -> 0.006004976143 | BO4: =RESUMO!D4 -> 0.03452476498 | BP4: =RESUMO!E4 -> 0.08909216125
B5: 2 | C5: =RESUMO!BJ22 -> -4.342320604e-05 | D5: =RESUMO!BK22 -> -3.773868272e-05 | E5: =RESUMO!BL22 -> -4.571842945e-05 | F5: =RESUMO!BM22 -> -2.15448893e-05 | G5: =RESUMO!BN22 -> -5.296542259e-05 | H5: =RESUMO!BO22 -> 1.127315627e-08 | I5: =RESUMO!BP22 -> 5.918134504e-05 | J5: =RESUMO!BQ22 -> 8.953887908e-05 | K5: =RESUMO!BR22 -> 7.933319843e-05 | L5: =RESUMO!BS22 -> 5.006867219e-05 | M5: =RESUMO!BT22 -> 2.714510827e-05 | P5: 2 | Q5: =RESUMO!BX22 -> 3.032789595 | R5: =RESUMO!BY22 -> 0.03746358936 | S5: =RESUMO!BZ22 -> 0.01318230751 | T5: =RESUMO!CA22 -> 0.006136509188 | U5: =RESUMO!CB22 -> 0.003016238429 | V5: =RESUMO!CC22 -> 0.001501754325 | W5: =RESUMO!CD22 -> 0.000750085742 | X5: =RESUMO!CE22 -> 0.0003749440737 | Y5: =RESUMO!CF22 -> 0.0001874596912 | Z5: =RESUMO!CG22 -> 9.372830254e-05 | AA5: =RESUMO!CH22 -> 4.686395839e-05 | AX5: 2 | AY5: ='MATRIZ FLEX e MATRIZ K e M'!T13 -> -5039147057 | AZ5: ='MATRIZ FLEX e MATRIZ K e M'!U13 -> 6210582773 | BA5: ='MATRIZ FLEX e MATRIZ K e M'!V13 -> -4567941467 | BB5: ='MATRIZ FLEX e MATRIZ K e M'!W13 -> 1904354716 | BC5: ='MATRIZ FLEX e MATRIZ K e M'!X13 -> -510270303.7 | BD5: ='MATRIZ FLEX e MATRIZ K e M'!Y13 -> 136726498.4 | BE5: ='MATRIZ FLEX e MATRIZ K e M'!Z13 -> -36635689.96 | BF5: ='MATRIZ FLEX e MATRIZ K e M'!AA13 -> 9816261.423 | BG5: ='MATRIZ FLEX e MATRIZ K e M'!AB13 -> -2629355.737 | BH5: ='MATRIZ FLEX e MATRIZ K e M'!AC13 -> 701161.53 | BI5: ='MATRIZ FLEX e MATRIZ K e M'!AD13 -> -175290.3831 | BJ5: ='MATRIZ FLEX e MATRIZ K e M'!AE13 -> 29215.06406 | BM5: 2 | BN5: =RESUMO!C5 -> 0.02315194103 | BO5: =RESUMO!D5 -> 0.1188070386 | BP5: =RESUMO!E5 -> 0.2656956455
B6: 3 | C6: =RESUMO!BJ23 -> 2.163313206e-06 | D6: =RESUMO!BK23 -> 2.369843723e-06 | E6: =RESUMO!BL23 -> 3.733462448e-06 | F6: =RESUMO!BM23 -> 1.531937291e-06 | G6: =RESUMO!BN23 -> 1.438489281e-06 | H6: =RESUMO!BO23 -> 5.096371504e-07 | I6: =RESUMO!BP23 -> 4.819576813e-06 | J6: =RESUMO!BQ23 -> 7.012785782e-06 | K6: =RESUMO!BR23 -> 6.142835407e-06 | L6: =RESUMO!BS23 -> 3.858999501e-06 | M6: =RESUMO!BT23 -> 2.087807317e-06 | P6: 3 | Q6: =RESUMO!BX23 -> 0.05097865282 | R6: =RESUMO!BY23 -> 0.02215619156 | S6: =RESUMO!BZ23 -> 0.01072715868 | T6: =RESUMO!CA23 -> 0.005321429377 | U6: =RESUMO!CB23 -> 0.002655497412 | V6: =RESUMO!CC23 -> 0.001327098138 | W6: =RESUMO!CD23 -> 0.0006634677977 | X6: =RESUMO!CE23 -> 0.0003317237415 | Y6: =RESUMO!CF23 -> 0.0001658606011 | Z6: =RESUMO!CG23 -> 8.293014186e-05 | AA6: =RESUMO!CH23 -> 4.146505109e-05 | AX6: 3 | AY6: ='MATRIZ FLEX e MATRIZ K e M'!T14 -> 2030613875 | AZ6: ='MATRIZ FLEX e MATRIZ K e M'!U14 -> -4567941467 | BA6: ='MATRIZ FLEX e MATRIZ K e M'!V14 -> 6084323615 | BB6: ='MATRIZ FLEX e MATRIZ K e M'!W14 -> -4534110423 | BC6: ='MATRIZ FLEX e MATRIZ K e M'!X14 -> 1895289699 | BD6: ='MATRIZ FLEX e MATRIZ K e M'!Y14 -> -507841279.8 | BE6: ='MATRIZ FLEX e MATRIZ K e M'!Z14 -> 136075419.8 | BF6: ='MATRIZ FLEX e MATRIZ K e M'!AA14 -> -36460399.58 | BG6: ='MATRIZ FLEX e MATRIZ K e M'!AB14 -> 9766178.457 | BH6: ='MATRIZ FLEX e MATRIZ K e M'!AC14 -> -2604314.255 | BI6: ='MATRIZ FLEX e MATRIZ K e M'!AD14 -> 651078.5645 | BJ6: ='MATRIZ FLEX e MATRIZ K e M'!AE14 -> -108513.0944 | BM6: 3 | BN6: =RESUMO!C6 -> 0.05014225369 | BO6: =RESUMO!D6 -> 0.2246800302 | BP6: =RESUMO!E6 -> 0.4091035974
B7: 4 | C7: =RESUMO!BJ24 -> -3.704037856e-07 | D7: =RESUMO!BK24 -> -4.527995095e-07 | E7: =RESUMO!BL24 -> -6.757018758e-07 | F7: =RESUMO!BM24 -> -1.994563204e-07 | G7: =RESUMO!BN24 -> 6.505241709e-08 | H7: =RESUMO!BO24 -> -2.099932628e-07 | I7: =RESUMO!BP24 -> 4.905384298e-07 | J7: =RESUMO!BQ24 -> 8.785791424e-07 | K7: =RESUMO!BR24 -> 8.129374006e-07 | L7: =RESUMO!BS24 -> 5.217620563e-07 | M7: =RESUMO!BT24 -> 2.850067014e-07 | P7: 4 | Q7: =RESUMO!BX24 -> 0.04362753255 | R7: =RESUMO!BY24 -> 0.02116142262 | S7: =RESUMO!BZ24 -> 0.0105021487 | T7: =RESUMO!CA24 -> 0.005241343644 | U7: =RESUMO!CB24 -> 0.002619458259 | V7: =RESUMO!CC24 -> 0.00130957752 | W7: =RESUMO!CD24 -> 0.0006547698117 | X7: =RESUMO!CE24 -> 0.0003273825374 | Y7: =RESUMO!CF24 -> 0.0001636909726 | Z7: =RESUMO!CG24 -> 8.184544932e-05 | AA7: =RESUMO!CH24 -> 4.092272003e-05 | AX7: 4 | AY7: ='MATRIZ FLEX e MATRIZ K e M'!T15 -> -544101347.5 | AZ7: ='MATRIZ FLEX e MATRIZ K e M'!U15 -> 1904354716 | BA7: ='MATRIZ FLEX e MATRIZ K e M'!V15 -> -4534110423 | BB7: ='MATRIZ FLEX e MATRIZ K e M'!W15 -> 6075258598 | BC7: ='MATRIZ FLEX e MATRIZ K e M'!X15 -> -4531681399 | BD7: ='MATRIZ FLEX e MATRIZ K e M'!Y15 -> 1894638621 | BE7: ='MATRIZ FLEX e MATRIZ K e M'!Z15 -> -507665989.4 | BF7: ='MATRIZ FLEX e MATRIZ K e M'!AA15 -> 136025336.9 | BG7: ='MATRIZ FLEX e MATRIZ K e M'!AB15 -> -36435358.09 | BH7: ='MATRIZ FLEX e MATRIZ K e M'!AC15 -> 9716095.49 | BI7: ='MATRIZ FLEX e MATRIZ K e M'!AD15 -> -2429023.872 | BJ7: ='MATRIZ FLEX e MATRIZ K e M'!AE15 -> 404837.3122 | BM7: 4 | BN7: =RESUMO!C7 -> 0.0856875138 | BO7: =RESUMO!D7 -> 0.3261652588 | BP7: =RESUMO!E7 -> 0.437084118
A8: escala de tempo | C8: T harmonicos (s) | AX8: 5 | AY8: ='MATRIZ FLEX e MATRIZ K e M'!T16 -> 145791515.3 | AZ8: ='MATRIZ FLEX e MATRIZ K e M'!U16 -> -510270303.7 | BA8: ='MATRIZ FLEX e MATRIZ K e M'!V16 -> 1895289699 | BB8: ='MATRIZ FLEX e MATRIZ K e M'!W16 -> -4531681399 | BC8: ='MATRIZ FLEX e MATRIZ K e M'!X16 -> 6074607519 | BD8: ='MATRIZ FLEX e MATRIZ K e M'!Y16 -> -4531506109 | BE8: ='MATRIZ FLEX e MATRIZ K e M'!Z16 -> 1894588538 | BF8: ='MATRIZ FLEX e MATRIZ K e M'!AA16 -> -507640948 | BG8: ='MATRIZ FLEX e MATRIZ K e M'!AB16 -> 135975253.9 | BH8: ='MATRIZ FLEX e MATRIZ K e M'!AC16 -> -36260067.71 | BI8: ='MATRIZ FLEX e MATRIZ K e M'!AD16 -> 9065016.924 | BJ8: ='MATRIZ FLEX e MATRIZ K e M'!AE16 -> -1510836.154 | BM8: 5 | BN8: =RESUMO!C8 -> 0.1285200193 | BO8: =RESUMO!D8 -> 0.4011892527 | BP8: =RESUMO!E8 -> 0.3237919834
A9: dt | B9: =RESUMO!BI26 -> 0.02698608852 | C9: =RESUMO!BJ26 -> 0.2698608852 | D9: =RESUMO!BK26 -> 0.5397217703 | E9: =RESUMO!BL26 -> 1.079443541 | F9: =RESUMO!BM26 -> 2.158887081 | G9: =RESUMO!BN26 -> 4.317774162 | H9: =RESUMO!BO26 -> 8.635548325 | I9: =RESUMO!BP26 -> 17.27109665 | J9: =RESUMO!BQ26 -> 34.5421933 | K9: =RESUMO!BR26 -> 69.0843866 | L9: =RESUMO!BS26 -> 138.1687732 | M9: =RESUMO!BT26 -> 276.3375464 | AX9: 6 | AY9: ='MATRIZ FLEX e MATRIZ K e M'!T17 -> -39064713.83 | AZ9: ='MATRIZ FLEX e MATRIZ K e M'!U17 -> 136726498.4 | BA9: ='MATRIZ FLEX e MATRIZ K e M'!V17 -> -507841279.8 | BB9: ='MATRIZ FLEX e MATRIZ K e M'!W17 -> 1894638621 | BC9: ='MATRIZ FLEX e MATRIZ K e M'!X17 -> -4531506109 | BD9: ='MATRIZ FLEX e MATRIZ K e M'!Y17 -> 6074557436 | BE9: ='MATRIZ FLEX e MATRIZ K e M'!Z17 -> -4531481068 | BF9: ='MATRIZ FLEX e MATRIZ K e M'!AA17 -> 1894538455 | BG9: ='MATRIZ FLEX e MATRIZ K e M'!AB17 -> -507465657.6 | BH9: ='MATRIZ FLEX e MATRIZ K e M'!AC17 -> 135324175.3 | BI9: ='MATRIZ FLEX e MATRIZ K e M'!AD17 -> -33831043.83 | BJ9: ='MATRIZ FLEX e MATRIZ K e M'!AE17 -> 5638507.305 | BM9: 6 | BN9: =RESUMO!C9 -> 0.1774065884 | BO9: =RESUMO!D9 -> 0.4332437003 | BP9: =RESUMO!E9 -> 0.1028283607
AX10: 7 | AY10: ='MATRIZ FLEX e MATRIZ K e M'!T18 -> 10467339.99 | AZ10: ='MATRIZ FLEX e MATRIZ K e M'!U18 -> -36635689.96 | BA10: ='MATRIZ FLEX e MATRIZ K e M'!V18 -> 136075419.8 | BB10: ='MATRIZ FLEX e MATRIZ K e M'!W18 -> -507665989.4 | BC10: ='MATRIZ FLEX e MATRIZ K e M'!X18 -> 1894588538 | BD10: ='MATRIZ FLEX e MATRIZ K e M'!Y18 -> -4531481068 | BE10: ='MATRIZ FLEX e MATRIZ K e M'!Z18 -> 6074507353 | BF10: ='MATRIZ FLEX e MATRIZ K e M'!AA18 -> -4531305777 | BG10: ='MATRIZ FLEX e MATRIZ K e M'!AB18 -> 1893887376 | BH10: ='MATRIZ FLEX e MATRIZ K e M'!AC18 -> -505036633.7 | BI10: ='MATRIZ FLEX e MATRIZ K e M'!AD18 -> 126259158.4 | BJ10: ='MATRIZ FLEX e MATRIZ K e M'!AE18 -> -21043193.07 | BM10: 7 | BN10: =RESUMO!C10 -> 0.2311652494 | BO10: =RESUMO!D10 -> 0.4126117511 | BP10: =RESUMO!E10 -> -0.1483015987
AX11: 8 | AY11: ='MATRIZ FLEX e MATRIZ K e M'!T19 -> -2804646.121 | AZ11: ='MATRIZ FLEX e MATRIZ K e M'!U19 -> 9816261.424 | BA11: ='MATRIZ FLEX e MATRIZ K e M'!V19 -> -36460399.58 | BB11: ='MATRIZ FLEX e MATRIZ K e M'!W19 -> 136025336.9 | BC11: ='MATRIZ FLEX e MATRIZ K e M'!X19 -> -507640948 | BD11: ='MATRIZ FLEX e MATRIZ K e M'!Y19 -> 1894538455 | BE11: ='MATRIZ FLEX e MATRIZ K e M'!Z19 -> -4531305777 | BF11: ='MATRIZ FLEX e MATRIZ K e M'!AA19 -> 6073856275 | BG11: ='MATRIZ FLEX e MATRIZ K e M'!AB19 -> -4528876753 | BH11: ='MATRIZ FLEX e MATRIZ K e M'!AC19 -> 1884822359 | BI11: ='MATRIZ FLEX e MATRIZ K e M'!AD19 -> -471205589.9 | BJ11: ='MATRIZ FLEX e MATRIZ K e M'!AE19 -> 78534264.98 | BM11: 8 | BN11: =RESUMO!C11 -> 0.2886843156 | BO11: =RESUMO!D11 -> 0.3368782139 | BP11: =RESUMO!E11 -> -0.3379711377
AX12: 9 | AY12: ='MATRIZ FLEX e MATRIZ K e M'!T20 -> 751244.4965 | AZ12: ='MATRIZ FLEX e MATRIZ K e M'!U20 -> -2629355.738 | BA12: ='MATRIZ FLEX e MATRIZ K e M'!V20 -> 9766178.457 | BB12: ='MATRIZ FLEX e MATRIZ K e M'!W20 -> -36435358.09 | BC12: ='MATRIZ FLEX e MATRIZ K e M'!X20 -> 135975253.9 | BD12: ='MATRIZ FLEX e MATRIZ K e M'!Y20 -> -507465657.6 | BE12: ='MATRIZ FLEX e MATRIZ K e M'!Z20 -> 1893887376 | BF12: ='MATRIZ FLEX e MATRIZ K e M'!AA20 -> -4528876753 | BG12: ='MATRIZ FLEX e MATRIZ K e M'!AB20 -> 6064791258 | BH12: ='MATRIZ FLEX e MATRIZ K e M'!AC20 -> -4495045709 | BI12: ='MATRIZ FLEX e MATRIZ K e M'!AD20 -> 1758563201 | BJ12: ='MATRIZ FLEX e MATRIZ K e M'!AE20 -> -293093866.8 | BM12: 9 | BN12: =RESUMO!C12 -> 0.3489433835 | BO12: =RESUMO!D12 -> 0.2105564219 | BP12: =RESUMO!E12 -> -0.3941230523
AX13: 10 | AY13: ='MATRIZ FLEX e MATRIZ K e M'!T21 -> -200331.8658 | AZ13: ='MATRIZ FLEX e MATRIZ K e M'!U21 -> 701161.5302 | BA13: ='MATRIZ FLEX e MATRIZ K e M'!V21 -> -2604314.255 | BB13: ='MATRIZ FLEX e MATRIZ K e M'!W21 -> 9716095.489 | BC13: ='MATRIZ FLEX e MATRIZ K e M'!X21 -> -36260067.71 | BD13: ='MATRIZ FLEX e MATRIZ K e M'!Y21 -> 135324175.3 | BE13: ='MATRIZ FLEX e MATRIZ K e M'!Z21 -> -505036633.7 | BF13: ='MATRIZ FLEX e MATRIZ K e M'!AA21 -> 1884822359 | BG13: ='MATRIZ FLEX e MATRIZ K e M'!AB21 -> -4495045709 | BH13: ='MATRIZ FLEX e MATRIZ K e M'!AC21 -> 5938532099 | BI13: ='MATRIZ FLEX e MATRIZ K e M'!AD21 -> -4023840120 | BJ13: ='MATRIZ FLEX e MATRIZ K e M'!AE21 -> 1093841202 | BM13: 10 | BN13: =RESUMO!C13 -> 0.4110358188 | BO13: =RESUMO!D13 -> 0.04378762119 | BP13: =RESUMO!E13 -> -0.2895887021 | BS13: [Z]x[K]x[Fi]
AX14: 11 | AY14: ='MATRIZ FLEX e MATRIZ K e M'!T22 -> 50082.96657 | AZ14: ='MATRIZ FLEX e MATRIZ K e M'!U22 -> -175290.3828 | BA14: ='MATRIZ FLEX e MATRIZ K e M'!V22 -> 651078.5639 | BB14: ='MATRIZ FLEX e MATRIZ K e M'!W22 -> -2429023.872 | BC14: ='MATRIZ FLEX e MATRIZ K e M'!X22 -> 9065016.924 | BD14: ='MATRIZ FLEX e MATRIZ K e M'!Y22 -> -33831043.83 | BE14: ='MATRIZ FLEX e MATRIZ K e M'!Z22 -> 126259158.4 | BF14: ='MATRIZ FLEX e MATRIZ K e M'!AA22 -> -471205589.9 | BG14: ='MATRIZ FLEX e MATRIZ K e M'!AB22 -> 1758563201 | BH14: ='MATRIZ FLEX e MATRIZ K e M'!AC22 -> -4023840120 | BI14: ='MATRIZ FLEX e MATRIZ K e M'!AD22 -> 4179968898 | BJ14: ='MATRIZ FLEX e MATRIZ K e M'!AE22 -> -1543063848 | BM14: 11 | BN14: =RESUMO!C14 -> 0.4741923327 | BO14: =RESUMO!D14 -> -0.1498149343 | BP14: =RESUMO!E14 -> -0.04932467454 | BS14: i | BT14: 1 | BU14: 2 | BV14: 3
AX15: 12 | AY15: ='MATRIZ FLEX e MATRIZ K e M'!T23 -> -8347.161137 | AZ15: ='MATRIZ FLEX e MATRIZ K e M'!U23 -> 29215.06389 | BA15: ='MATRIZ FLEX e MATRIZ K e M'!V23 -> -108513.0941 | BB15: ='MATRIZ FLEX e MATRIZ K e M'!W23 -> 404837.3118 | BC15: ='MATRIZ FLEX e MATRIZ K e M'!X23 -> -1510836.154 | BD15: ='MATRIZ FLEX e MATRIZ K e M'!Y23 -> 5638507.305 | BE15: ='MATRIZ FLEX e MATRIZ K e M'!Z23 -> -21043193.07 | BF15: ='MATRIZ FLEX e MATRIZ K e M'!AA23 -> 78534264.98 | BG15: ='MATRIZ FLEX e MATRIZ K e M'!AB23 -> -293093866.8 | BH15: ='MATRIZ FLEX e MATRIZ K e M'!AC23 -> 1093841202 | BI15: ='MATRIZ FLEX e MATRIZ K e M'!AD23 -> -1543063848 | BJ15: ='MATRIZ FLEX e MATRIZ K e M'!AE23 -> 680378490.4 | BM15: 12 | BN15: =RESUMO!C15 -> 0.5378052948 | BO15: =RESUMO!D15 -> -0.3560110259 | BP15: =RESUMO!E15 -> 0.2641965868 | BS15: FATOR M | BT15: =MMULT($AY$17:$BJ$17,MMULT($AY$4:$BJ$15,BN4:BN15)) -> 17554635.62 | BU15: =MMULT($AY$17:$BJ$17,MMULT($AY$4:$BJ$15,BO4:BO15)) -> 111097549.9 | BV15: =MMULT($AY$17:$BJ$17,MMULT($AY$4:$BJ$15,BP4:BP15)) -> 317082136.6
BS16: Mmax (Nm) | BT16: =MAX(CA21:CA1455) -> 2116838.036
AX17: Zi (m) | AY17: =AY3*'Vento Sintético'!$B$5 -> 3.333333333 | AZ17: =AZ3*'Vento Sintético'!$B$5 -> 6.666666667 | BA17: =BA3*'Vento Sintético'!$B$5 -> 10 | BB17: =BB3*'Vento Sintético'!$B$5 -> 13.33333333 | BC17: =BC3*'Vento Sintético'!$B$5 -> 16.66666667 | BD17: =BD3*'Vento Sintético'!$B$5 -> 20 | BE17: =BE3*'Vento Sintético'!$B$5 -> 23.33333333 | BF17: =BF3*'Vento Sintético'!$B$5 -> 26.66666667 | BG17: =BG3*'Vento Sintético'!$B$5 -> 30 | BH17: =BH3*'Vento Sintético'!$B$5 -> 33.33333333 | BI17: =BI3*'Vento Sintético'!$B$5 -> 36.66666667 | BJ17: =BJ3*'Vento Sintético'!$B$5 -> 40
A20: t | B20: r1 1 | C20: sen(w1b t - q1 1) | D20: r1 2 | E20: sen(w2b t - q1 2) | F20: r1 3 | G20: sen(w3b t - q1 3) | H20: r1 4 | I20: sen(w4b t - q1 4) | J20: r1 5 | K20: sen(w5b t - q1 5) | L20: r1 6 | M20: sen(w6b t - q1 6) | N20: r1 7 | O20: sen(w7b t - q1 7) | P20: r1 8 | Q20: sen(w8b t - q1 8) | R20: r1 9 | S20: sen(w9b t - q1 9) | T20: r1 10 | U20: sen(w10b t - q1 10) | V20: r1 11 | W20: sen(w11b t - q1 11) | Y20: r2 1 | Z20: sen(w1b t - q2 1) | AA20: r2 2 | AB20: sen(w2b t - q2 2) | AC20: r2 3 | AD20: sen(w3b t - q2 3) | AE20: r2 4 | AF20: sen(w4b t - q2 4) | AG20: r2 5 | AH20: sen(w5b t - q2 5) | AI20: r2 6 | AJ20: sen(w6b t - q2 6) | AK20: r2 7 | AL20: sen(w7b t - q2 7) | AM20: r2 8 | AN20: sen(w8b t - q2 8) | AO20: r2 9 | AP20: sen(w9b t - q2 9) | AQ20: r2 10 | AR20: sen(w10b t - q2 10) | AS20: r2 11 | AT20: sen(w11b t - q2 11) | AV20: r3 1 | AW20: sen(w1b t - q3 1) | AX20: r3 2 | AY20: sen(w2b t - q3 2) | AZ20: r3 3 | BA20: sen(w3b t - q3 3) | BB20: r3 4 | BC20: sen(w4b t - q3 4) | BD20: r3 5 | BE20: sen(w5b t - q3 5) | BF20: r3 6 | BG20: sen(w6b t - q3 6) | BH20: r3 7 | BI20: sen(w7b t - q3 7) | BJ20: r3 8 | BK20: sen(w8b t - q3 8) | BL20: r3 9 | BM20: sen(w9b t - q3 9) | BN20: r3 10 | BO20: sen(w10b t - q3 10) | BP20: r3 11 | BQ20: sen(w11b t - q3 11) | BS20: Y1 (m) | BT20: Y2 (m) | BU20: Y3 (m) | BW20: t(s) | BX20: Mbase flut(Nm) | BY20: Mbase est (Nm) | BZ20: Mbase final (Nm) | CA20: |Mbase| | CD20: Y1 h4 | CE20: Mb H4 | CF20: KNm
A21: 0 | B21: =$C$4 -> 1.753798017e-05 | C21: =SIN($C$3*$A21-Q$4) -> -0.005079299557 | D21: =$D$4 -> 9.279417682e-05 | E21: =SIN($D$3*$A21-R$4) -> -0.0106660599 | F21: =$E$4 -> 0.0008314626577 | G21: =SIN($E$3*$A21-S$4) -> -0.02665719024 | H21: =$F$4 -> 0.03593373329 | I21: =SIN($F$3*$A21-T$4) -> -1 | J21: =$G$4 -> 0.007397298231 | K21: =SIN($G$3*$A21-U$4) -> -0.02665719024 | L21: =$H$4 -> 0.007790715784 | M21: =SIN($H$3*$A21-V$4) -> -0.0106660599 | N21: =$I$4 -> 0.009946729939 | O21: =SIN($I$3*$A21-W$4) -> -0.005079299557 | P21: =$J$4 -> 0.01052095483 | Q21: =SIN($J$3*$A21-X$4) -> -0.002509796017 | R21: =$K$4 -> 0.008196969717 | S21: =SIN($K$3*$A21-Y$4) -> -0.001251220917 | T21: =$L$4 -> 0.00489264093 | U21: =SIN($L$3*$A21-Z$4) -> -0.000625152503 | V21: =$M$4 -> 0.002584327253 | W21: =SIN($M$3*$A21-AA$4) -> -0.0003125190594 | Y21: =$C$5 -> -4.342320604e-05 | Z21: =SIN($C$3*$A21-Q$5) -> -0.1085885152 | AA21: =$D$5 -> -3.773868272e-05 | AB21: =SIN($D$3*$A21-R$5) -> -0.03745482649 | AC21: =$E$5 -> -4.571842945e-05 | AD21: =SIN($E$3*$A21-S$5) -> -0.01318192573 | AE21: =$F$5 -> -2.15448893e-05 | AF21: =SIN($F$3*$A21-T$5) -> -0.006136470674 | AG21: =$G$5 -> -5.296542259e-05 | AH21: =SIN($G$3*$A21-U$5) -> -0.003016233856 | AI21: =$H$5 -> 1.127315627e-08 | AJ21: =SIN($H$3*$A21-V$5) -> -0.001501753761 | AK21: =$I$5 -> 5.918134504e-05 | AL21: =SIN($I$3*$A21-W$5) -> -0.0007500856717 | AM21: =$J$5 -> 8.953887908e-05 | AN21: =SIN($J$3*$A21-X$5) -> -0.0003749440649 | AO21: =$K$5 -> 7.933319843e-05 | AP21: =SIN($K$3*$A21-Y$5) -> -0.0001874596901 | AQ21: =$L$5 -> 5.006867219e-05 | AR21: =SIN($L$3*$A21-Z$5) -> -9.37283024e-05 | AS21: =$M$5 -> 2.714510827e-05 | AT21: =SIN($M$3*$A21-AA$5) -> -4.686395837e-05 | AV21: =$C$6 -> 2.163313206e-06 | AW21: =SIN($C$3*$A21-Q$6) -> -0.05095657494 | AX21: =$D$6 -> 2.369843723e-06 | AY21: =SIN($D$3*$A21-R$6) -> -0.02215437887 | AZ21: =$E$6 -> 3.733462448e-06 | BA21: =SIN($E$3*$A21-S$6) -> -0.01072695295 | BB21: =$F$6 -> 1.531937291e-06 | BC21: =SIN($F$3*$A21-T$6) -> -0.005321404262 | BD21: =$G$6 -> 1.438489281e-06 | BE21: =SIN($G$3*$A21-U$6) -> -0.002655494291 | BF21: =$H$6 -> 5.096371504e-07 | BG21: =SIN($H$3*$A21-V$6) -> -0.001327097749 | BH21: =$I$6 -> 4.819576813e-06 | BI21: =SIN($I$3*$A21-W$6) -> -0.000663467749 | BJ21: =$J$6 -> 7.012785782e-06 | BK21: =SIN($J$3*$A21-X$6) -> -0.0003317237354 | BL21: =$K$6 -> 6.142835407e-06 | BM21: =SIN($K$3*$A21-Y$6) -> -0.0001658606004 | BN21: =$L$6 -> 3.858999501e-06 | BO21: =SIN($L$3*$A21-Z$6) -> -8.293014176e-05 | BP21: =$M$6 -> 2.087807317e-06 | BQ21: =SIN($M$3*$A21-AA$6) -> -4.146505108e-05 | BS21: =B21*C21+D21*E21+F21*G21+H21*I21+J21*K21+L21*M21+N21*O21+P21*Q21+R21*S21+T21*U21+V21*W21 -> -0.0363283144 | BT21: =Y21*Z21+AA21*AB21+AC21*AD21+AE21*AF21+AG21*AH21+AI21*AJ21+AK21*AL21+AM21*AN21+AO21*AP21+AQ21*AR21+AS21*AT21 -> 6.92456307e-06 | BU21: =AV21*AW21+AX21*AY21+AZ21*BA21+BB21*BC21+BD21*BE21+BF21*BG21+BH21*BI21+BJ21*BK21+BL21*BM21+BN21*BO21+BP21*BQ21 -> -2.223838133e-07 | BW21: =A21 -> 0 | BX21: =BS21*$BT$15+BT21*$BU$15+BU21*$BV$15 -> -637031.534 | BY21: =Forças!$Q$31 -> 971787.9491 | BZ21: =BX21+BY21 -> 334756.415 | CA21: =ABS(BZ21) -> 334756.415 | CD21: =H21*I21 -> -0.03593373329 | CE21: =CD21*$BT$15 -> -630803.5945 | CF21: =CE21/1000 -> -630.8035945
A22: =A21+$B$9 -> 0.02698608852 | B22: =$C$4 -> 1.753798017e-05 | C22: =SIN($C$3*$A22-Q$4) -> -0.5918869097 | D22: =$D$4 -> 9.279417682e-05 | E22: =SIN($D$3*$A22-R$4) -> -0.319143442 | F22: =$E$4 -> 0.0008314626577 | G22: =SIN($E$3*$A22-S$4) -> -0.1827078695 | H22: =$F$4 -> 0.03593373329 | I22: =SIN($F$3*$A22-T$4) -> -0.9969173337 | J22: =$G$4 -> 0.007397298231 | K22: =SIN($G$3*$A22-U$4) -> 0.01260922564 | L22: =$H$4 -> 0.007790715784 | M22: =SIN($H$3*$A22-V$4) -> 0.008968571698 | N22: =$I$4 -> 0.009946729939 | O22: =SIN($I$3*$A22-W$4) -> 0.004738137916 | P22: =$J$4 -> 0.01052095483 | Q22: =SIN($J$3*$A22-X$4) -> 0.002398937569 | R22: =$K$4 -> 0.008196969717 | S22: =SIN($K$3*$A22-Y$4) -> 0.001203147727 | T22: =$L$4 -> 0.00489264093 | U22: =SIN($L$3*$A22-Z$4) -> 0.0006020320502 | V22: =$M$4 -> 0.002584327253 | W22: =SIN($M$3*$A22-AA$4) -> 0.0003010732461 | Y22: =$C$5 -> -4.342320604e-05 | Z22: =SIN($C$3*$A22-Q$5) -> -0.6721595054 | AA22: =$D$5 -> -3.773868272e-05 | AB22: =SIN($D$3*$A22-R$5) -> 0.2731785071 | AC22: =$E$5 -> -4.571842945e-05 | AD22: =SIN($E$3*$A22-S$5) -> 0.1434012388 | AE22: =$F$5 -> -2.15448893e-05 | AF22: =SIN($F$3*$A22-T$5) -> 0.07234006449 | AG22: =$G$5 -> -5.296542259e-05 | AH22: =SIN($G$3*$A22-U$5) -> 0.03624572872 | AI22: =$H$5 -> 1.127315627e-08 | AJ22: =SIN($H$3*$A22-V$5) -> 0.01813220604 | AK22: =$I$5 -> 5.918134504e-05 | AL22: =SIN($I$3*$A22-W$5) -> 0.009067267051 | AM22: =$J$5 -> 8.953887908e-05 | AN22: =SIN($J$3*$A22-X$5) -> 0.004533778915 | AO22: =$K$5 -> 7.933319843e-05 | AP22: =SIN($K$3*$A22-Y$5) -> 0.002266907628 | AQ22: =$L$5 -> 5.006867219e-05 | AR22: =SIN($L$3*$A22-Z$5) -> 0.001133456085 | AS22: =$M$5 -> 2.714510827e-05 | AT22: =SIN($M$3*$A22-AA$5) -> 0.0005667283264 | AV22: =$C$6 -> 2.163313206e-06 | AW22: =SIN($C$3*$A22-Q$6) -> 0.5457969077 | AX22: =$D$6 -> 2.369843723e-06 | AY22: =SIN($D$3*$A22-R$6) -> 0.2878710834 | AZ22: =$E$6 -> 3.733462448e-06 | BA22: =SIN($E$3*$A22-S$6) -> 0.1458305782 | BB22: =$F$6 -> 1.531937291e-06 | BC22: =SIN($F$3*$A22-T$6) -> 0.07315298469 | BD22: =$G$6 -> 1.438489281e-06 | BE22: =SIN($G$3*$A22-U$6) -> 0.03660623033 | BF22: =$H$6 -> 5.096371504e-07 | BG22: =SIN($H$3*$A22-V$6) -> 0.01830683323 | BH22: =$I$6 -> 4.819576813e-06 | BI22: =SIN($I$3*$A22-W$6) -> 0.009153881401 | BJ22: =$J$6 -> 7.012785782e-06 | BK22: =SIN($J$3*$A22-X$6) -> 0.004576998799 | BL22: =$K$6 -> 6.142835407e-06 | BM22: =SIN($K$3*$A22-Y$6) -> 0.002288506662 | BN22: =$L$6 -> 3.858999501e-06 | BO22: =SIN($L$3*$A22-Z$6) -> 0.001144254239 | BP22: =$M$6 -> 2.087807317e-06 | BQ22: =SIN($M$3*$A22-AA$6) -> 0.0005721272329 | BS22: -0.03576577186 | BT22: 1.003825777e-05 | BU22: 2.677328857e-06 | BW22: =A22 -> 0.02698608852 | BX22: =BS22*$BT$15+BT22*$BU$15+BU22*$BV$15 -> -625890.9338 | BY22: =Forças!$Q$31 -> 971787.9491 | BZ22: =BX22+BY22 -> 345897.0153 | CA22: =ABS(BZ22) -> 345897.0153 | CD22: -0.03582296159 | CE22: =CD22*$BT$15 -> -628859.0376 | CF22: =CE22/1000 -> -628.8590376
A23: =A22+$B$9 -> 0.05397217703 | B23: 1.753798017e-05 | C23: -0.9526138378 | D23: 9.279417682e-05 | E23: -0.5963808404 | F23: 0.0008314626577 | G23: -0.3342596747 | H23: 0.03593373329 | I23: -0.9876883406 | J23: 0.007397298231 | K23: 0.05185619901 | L23: 0.007790715784 | M23: 0.02859974574 | N23: 0.009946729939 | O23: 0.01455511872 | P23: 0.01052095483 | Q23: 0.00730761335 | R23: 0.008196969717 | S23: 0.003657509123 | T23: 0.00489264093 | U23: 0.001829215697 | V23: 0.002584327253 | W23: 0.0009146654383 | Y23: -4.342320604e-05 | Z23: -0.9789884104 | AA23: -3.773868272e-05 | AB23: 0.557071225 | AC23: -4.571842945e-05 | AD23: 0.296453389 | AE23: -2.15448893e-05 | AF23: 0.1503705991 | AG23: -5.296542259e-05 | AH23: 0.07545180302 | AI23: 1.127315627e-08 | AJ23: 0.03775917553 | AK23: 5.918134504e-05 | AL23: 0.01888374585 | AM23: 8.953887908e-05 | AN23: 0.009442392651 | AO23: 7.933319843e-05 | AP23: 0.00472126129 | AQ23: 5.006867219e-05 | AR23: 0.002360638766 | AS23: 2.714510827e-05 | AT23: 0.001180320398 | AV23: 2.163313206e-06 | AW23: 0.9340745225 | AX23: 2.369843723e-06 | AY23: 0.5697177182 | AZ23: 3.733462448e-06 | BA23: 0.2987972765 | BB23: 1.531937291e-06 | BC23: 0.1511763612 | BD23: 1.438489281e-06 | BE23: 0.07581151081 | BF23: 5.096371504e-07 | BG23: 0.03793370658 | BH23: 4.819576813e-06 | BI23: 0.01897034828 | BJ23: 7.012785782e-06 | BK23: 0.009485611048 | BL23: 6.142835407e-06 | BM23: 0.004742860138 | BN23: 3.858999501e-06 | BO23: 0.002371436896 | BP23: 2.087807317e-06 | BQ23: 0.001185719301 | BS23: -0.03497194029 | BT23: 3.186482475e-06 | BU23: 5.045076442e-06 | BW23: 0.05397217703 | BX23: -611965.9548 | BY23: =Forças!$Q$31 -> 971787.9491 | BZ23: 359821.9942 | CA23: 359821.9942 | CD23: -0.03549132941 | CE23: -623037.3555 | CF23: -623.0373555
A24: 0.08095826555 | B24: 1.753798017e-05 | C24: -0.949474658 | D24: 9.279417682e-05 | E24: -0.8152403269 | F24: 0.0008314626577 | G24: -0.4775808974 | H24: 0.03593373329 | I24: -0.9723699204 | J24: 0.007397298231 | K24: 0.09102321388 | L24: 0.007790715784 | M24: 0.04821989404 | N24: 0.009946729939 | O24: 0.02437069667 | P24: 0.01052095483 | Q24: 0.01221611305 | R24: 0.008196969717 | S24: 0.006111848487 | T24: 0.00489264093 | U24: 0.003056396589 | V24: 0.002584327253 | W24: 0.001528257286 | Y24: -4.342320604e-05 | Z24: -0.9118770172 | AA24: -3.773868272e-05 | AB24: 0.7864339302 | AC24: -4.571842945e-05 | AD24: 0.4422058728 | AE24: -2.15448893e-05 | AF24: 0.227474049 | AG24: -5.296542259e-05 | AH24: 0.1145415361 | AI24: 1.127315627e-08 | AJ24: 0.05737158813 | AK24: 5.918134504e-05 | AL24: 0.0286984046 | AM24: 8.953887908e-05 | AN24: 0.01435077887 | AO24: 7.933319843e-05 | AP24: 0.007175586512 | AQ24: 5.006867219e-05 | AR24: 0.003587817891 | AS24: =$M$5 -> 2.714510827e-05 | AT24: 0.001793912025 | AV24: 2.163313206e-06 | AW24: 0.9655674177 | AX24: 2.369843723e-06 | AY24: 0.7957964134 | AZ24: 3.733462448e-06 | BA24: 0.4444065941 | BB24: 1.531937291e-06 | BC24: 0.2282676851 | BD24: 1.438489281e-06 | BE24: 0.1148998954 | BF24: 5.096371504e-07 | BG24: 0.05754595577 | BH24: 4.819576813e-06 | BI24: 0.02878498676 | BJ24: 7.012785782e-06 | BK24: 0.01439399473 | BL24: 6.142835407e-06 | BM24: 0.007197185044 | BN24: 3.858999501e-06 | BO24: 0.003598615982 | BP24: 2.087807317e-06 | BQ24: 0.001799310923 | BS24: -0.03394134422 | BT24: -1.7485354e-05 | BU24: 6.479743068e-06 | BW24: 0.08095826555 | BX24: -595715.8996 | BY24: =Forças!$Q$31 -> 971787.9491 | BZ24: 376072.0495 | CA24: 376072.0495 | CD24: -0.03494088138 | CE24: -613374.441 | CF24: -613.374441
A25: 0.1079443541 | B25: 1.753798017e-05 | C25: -0.5836684304 | D25: 9.279417682e-05 | E25: -0.9542984101 | F25: 0.0008314626577 | G25: -0.6091424933 | H25: 0.03593373329 | I25: -0.9510565163 | J25: 0.007397298231 | K25: 0.1300498776 | L25: 0.007790715784 | M25: 0.06782145266 | N25: 0.009946729939 | O25: 0.03418392572 | P25: 0.01052095483 | Q25: 0.01712431839 | R25: 0.008196969717 | S25: 0.008566151033 | T25: 0.00489264093 | U25: 0.004283572878 | V25: 0.002584327253 | W25: 0.002141848559 | Y25: -4.342320604e-05 | Z25: -0.496459597 | AA25: -3.773868272e-05 | AB25: 0.9388150028 | AC25: -4.571842945e-05 | AD25: 0.5770697804 | AE25: -2.15448893e-05 | AF25: 0.3031750457 | AG25: -5.296542259e-05 | AH25: 0.1534546544 | AI25: 1.127315627e-08 | AJ25: 0.0769618829 | AK25: 5.918134504e-05 | AL25: 0.03851029733 | AM25: 8.953887908e-05 | AN25: 0.01925881929 | AO25: 7.933319843e-05 | AP25: 0.009629868508 | AQ25: 5.006867219e-05 | AR25: 0.004814991613 | AS25: 2.714510827e-05 | AT25: 0.002407502977 | AV25: 2.163313206e-06 | AW25: 0.6282463779 | AX25: 2.369843723e-06 | AY25: 0.943977011 | AZ25: 3.733462448e-06 | BA25: 0.5790731466 | BB25: 1.531937291e-06 | BC25: 0.3039516629 | BD25: 1.438489281e-06 | BE25: 0.1538111127 | BF25: 5.096371504e-07 | BG25: 0.07713601989 | BH25: 4.819576813e-06 | BI25: 0.03859685088 | BJ25: 7.012785782e-06 | BK25: 0.01930203159 | BL25: 6.142835407e-06 | BM25: 0.009651466595 | BN25: 3.858999501e-06 | BO25: 0.004825789648 | BP25: 2.087807317e-06 | BQ25: 0.002412901868 | BS25: -0.03267299259 | BT25: -4.983938929e-05 | BU25: 6.888650698e-06 | BW25: 0.1079443541 | BX25: -576915.2456 | BY25: =Forças!$Q$31 -> 971787.9491 | BZ25: 394872.7035 | CA25: 394872.7035 | CD25: -0.0341750112 | CE25: -599929.8691 | CF25: -599.9298691
A26: 0.1349304426 | B26: 1.753798017e-05 | C26: 0.005079299557 | D26: 9.279417682e-05 | E26: -0.999943116 | F26: 0.0008314626577 | G26: -0.7257049794 | H26: 0.03593373329 | I26: -0.9238795325 | J26: 0.007397298231 | K26: 0.1688760137 | L26: 0.007790715784 | M26: 0.08739686481 | N26: 0.009946729939 | O26: 0.04399386005 | P26: 0.01052095483 | Q26: 0.02203211112 | R26: 0.008196969717 | S26: 0.01102040198 | T26: 0.00489264093 | U26: 0.005510742715 | V26: 0.002584327253 | W26: 0.002755439025 | Y26: -4.342320604e-05 | Z26: 0.1085885152 | AA26: -3.773868272e-05 | AB26: 0.9992983218 | AC26: -4.571842945e-05 | AD26: 0.6977243149 | AE26: -2.15448893e-05 | AF26: 0.3770068674 | AG26: -5.296542259e-05 | AH26: 0.1921311568 | AI26: 1.127315627e-08 | AJ26: 0.0965225074 | AK26: 5.918134504e-05 | AL26: 0.04831847836 | AM26: 8.953887908e-05 | AN26: 0.02416639566 | AO26: 7.933319843e-05 | AP26: 0.0120840925 | AQ26: 5.006867219e-05 | AR26: 0.006042158084 | AS26: 2.714510827e-05 | AT26: 0.003021093022 | AV26: 2.163313206e-06 | AW26: 0.05095657494 | AX26: 2.369843723e-06 | AY26: 0.9997545616 | AZ26: 3.733462448e-06 | BA26: 0.6994809963 | BB26: 1.531937291e-06 | BC26: 0.3777616776 | BD26: 1.438489281e-06 | BE26: 0.1924851644 | BF26: 5.096371504e-07 | BG26: 0.09669634661 | BH26: 4.819576813e-06 | BI26: 0.04840499495 | BJ26: 7.012785782e-06 | BK26: 0.02420960335 | BL26: 6.142835407e-06 | BM26: 0.01210569001 | BN26: 3.858999501e-06 | BO26: 0.006052956047 | BP26: 2.087807317e-06 | BQ26: 0.003026491904 | BS26: -0.03117061592 | BT26: -8.625752972e-05 | BU26: 6.502966935e-06 | BW26: 0.1349304426 | BX26: -554709.8302 | BY26: =Forças!$Q$31 -> 971787.9491 | BZ26: 417078.1189 | CA26: 417078.1189 | CD26: -0.03319844072 | CE26: -582786.53 | CF26: -582.78653
A27: 0.1619165311 | B27: 1.753798017e-05 | C27: 0.5918869097 | D27: 9.279417682e-05 | E27: -0.9477064226 | F27: 0.0008314626577 | G27: -0.8243982005 | H27: 0.03593373329 | I27: -0.8910065242 | J27: 0.007397298231 | K27: 0.2074417554 | L27: 0.007790715784 | M27: 0.1069385838 | N27: 0.009946729939 | O27: 0.05379955416 | P27: 0.01052095483 | Q27: 0.02693937296 | R27: 0.008196969717 | S27: 0.01347458654 | T27: 0.00489264093 | U27: 0.006737904254 | V27: 0.002584327253 | W27: 0.003369028453 | Y27: -4.342320604e-05 | Z27: 0.6721595054 | AA27: -3.773868272e-05 | AB27: 0.9619633586 | AC27: -4.571842945e-05 | AD27: 0.8011985611 | AE27: -2.15448893e-05 | AF27: 0.4485143165 | AG27: -5.296542259e-05 | AH27: 0.2305114069 | AI27: 1.127315627e-08 | AJ27: 0.1160459206 | AK27: 5.918134504e-05 | AL27: 0.05812200236 | AM27: 8.953887908e-05 | AN27: 0.02907338972 | AO27: 7.933319843e-05 | AP27: 0.01453824369 | AQ27: 5.006867219e-05 | AR27: 0.007269315456 | AS27: 2.714510827e-05 | AT27: 0.00363468193 | AV27: 2.163313206e-06 | AW27: -0.5457969077 | AX27: 2.369843723e-06 | AY27: 0.9576691701 | AZ27: 3.733462448e-06 | BA27: 0.8026653025 | BB27: 1.531937291e-06 | BC27: 0.4492426659 | BD27: 1.438489281e-06 | BE27: 0.230862418 | BF27: 5.096371504e-07 | BG27: 0.116219395 | BH27: 4.819576813e-06 | BI27: 0.05820847366 | BJ27: 7.012785782e-06 | BK27: 0.02911659176 | BL27: 6.142835407e-06 | BM27: 0.01455984049 | BN27: 3.858999501e-06 | BO27: 0.007280113331 | BP27: 2.087807317e-06 | BQ27: 0.003640080801 | BS27: -0.02944189046 | BT27: -0.0001163321766 | BU27: 5.774912881e-06 | BW27: 0.1619165311 | BX27: -527934.7571 | BY27: =Forças!$Q$31 -> 971787.9491 | BZ27: 443853.1919 | CA27: 443853.1919 | CD27: -0.0320171908 | CE27: -562050.1182 | CF27: -562.0501182
A28: 0.1889026196 | B28: 1.753798017e-05 | C28: 0.9526138378 | D28: 9.279417682e-05 | E28: -0.8027016215 | F28: 0.0008314626577 | G28: -0.9027920018 | H28: 0.03593373329 | I28: -0.8526401644 | J28: 0.007397298231 | K28: 0.2456876368 | L28: 0.007790715784 | M28: 0.1264390759 | N28: 0.009946729939 | O28: 0.06360006296 | P28: 0.01052095483 | Q28: 0.03184598568 | R28: 0.008196969717 | S28: 0.01592868992 | T28: 0.00489264093 | U28: 0.007965055646 | V28: 0.002584327253 | W28: 0.003982616613 | Y28: -4.342320604e-05 | Z28: 0.9789884104 | AA28: -3.773868272e-05 | AB28: 0.8304647194 | AC28: -4.571842945e-05 | AD28: 0.8849446397 | AE28: -2.15448893e-05 | AF28: 0.5172565256 | AG28: -5.296542259e-05 | AH28: 0.2685362251 | AI28: 1.127315627e-08 | AJ28: 0.135524596 | AK28: 5.918134504e-05 | AL28: 0.06791992444 | AM28: 8.953887908e-05 | AN28: 0.03397968324 | AO28: 7.933319843e-05 | AP28: 0.0169923073 | AQ28: 5.006867219e-05 | AR28: 0.00849646188 | AS28: 2.714510827e-05 | AT28: 0.004248269469 | AV28: 2.163313206e-06 | AW28: -0.9340745225 | AX28: 2.369843723e-06 | AY28: 0.8218404477 | AZ28: 3.733462448e-06 | BA28: 0.886085325 | BB28: 1.531937291e-06 | BC28: 0.5179539238 | BD28: 1.438489281e-06 | BE28: 0.2688836984 | BF28: 5.096371504e-07 | BG28: 0.1356976387 | BH28: 4.819576813e-06 | BI28: 0.0680063421 | BJ28: 7.012785782e-06 | BK28: 0.03402287859 | BL28: 6.142835407e-06 | BM28: 0.01701390327 | BN28: 3.858999501e-06 | BO28: 0.00850725965 | BP28: 2.087807317e-06 | BQ28: 0.004253668327 | BS28: -0.02749699323 | BT28: -0.0001307247049 | BU28: 5.197100676e-06 | BW28: 0.1889026196 | BX28: -495574.9835 | BY28: =Forças!$Q$31 -> 971787.9491 | BZ28: 476212.9656 | CA28: 476212.9656 | CD28: -0.03063854426 | CE28: -537848.4805 | CF28: -537.8484805
A29: 0.2158887081 | B29: 1.753798017e-05 | C29: 0.949474658 | D29: 9.279417682e-05 | E29: -0.579122793 | F29: 0.0008314626577 | G29: -0.9589560679 | H29: 0.03593373329 | I29: -0.8090169944 | J29: 0.007397298231 | K29: 0.2835546857 | L29: 0.007790715784 | M29: 0.1458908234 | N29: 0.009946729939 | O29: 0.07339444186 | P29: 0.01052095483 | Q29: 0.03675183105 | R29: 0.008196969717 | S29: 0.01838269736 | T29: 0.00489264093 | U29: 0.009192195043 | V29: 0.002584327253 | W29: 0.004596203274 | Y29: -4.342320604e-05 | Z29: 0.9118770172 | AA29: -3.773868272e-05 | AB29: 0.6176744074 | AC29: -4.571842945e-05 | AD29: 0.9469004443 | AE29: -2.15448893e-05 | AF29: 0.5828096762 | AG29: -5.296542259e-05 | AH29: 0.3061469798 | AI29: 1.127315627e-08 | AJ29: 0.154951024 | AK29: 5.918134504e-05 | AL29: 0.07771130025 | AM29: 8.953887908e-05 | AN29: 0.038885158 | AO29: 7.933319843e-05 | AP29: 0.01944626856 | AQ29: 5.006867219e-05 | AR29: 0.009723595508 | AS29: 2.714510827e-05 | AT29: 0.004861855409 | AV29: 2.163313206e-06 | AW29: -0.9655674177 | AX29: 2.369843723e-06 | AY29: 0.6055642562 | AZ29: 3.733462448e-06 | BA29: 0.9476869861 | BB29: 1.531937291e-06 | BC29: 0.5834718235 | BD29: 1.438489281e-06 | BE29: 0.3064903797 | BF29: 5.096371504e-07 | BG29: 0.1551235683 | BH29: 4.819576813e-06 | BI29: 0.07779765596 | BJ29: 7.012785782e-06 | BK29: 0.03892834561 | BL29: 6.142835407e-06 | BM29: 0.01946786356 | BN29: 3.858999501e-06 | BO29: 0.009734393158 | BP29: 2.087807317e-06 | BQ29: 0.004867254252 | BS29: -0.02534705824 | BT29: -0.0001247253201 | BU29: 5.1134665e-06 | BW29: 0.2158887081 | BX29: -457193.6602 | BY29: =Forças!$Q$31 -> 971787.9491 | BZ29: 514594.2889 | CA29: 514594.2889 | CD29: -0.02907100091 | CE29: -510330.8281 | CF29: -510.3308281
A30: 0.2428747966 | B30: 1.753798017e-05 | C30: 0.5836684304 | D30: 9.279417682e-05 | E30: -0.2988553905 | F30: 0.0008314626577 | G30: -0.991507453 | H30: 0.03593373329 | I30: -0.7604059656 | J30: 0.007397298231 | K30: 0.3209845139 | L30: 0.007790715784 | M30: 0.1652863272 | N30: 0.009946729939 | O30: 0.08318174684 | P30: 0.01052095483 | Q30: 0.04165679087 | R30: 0.008196969717 | S30: 0.02083659406 | T30: 0.00489264093 | U30: 0.0104193206 | V30: 0.002584327253 | W30: 0.005209788204 | Y30: -4.342320604e-05 | Z30: 0.496459597 | AA30: -3.773868272e-05 | AB30: 0.3444218207 | AC30: -4.571842945e-05 | AD30: 0.9855404174 | AE30: -2.15448893e-05 | AF30: 0.6447696114 | AG30: -5.296542259e-05 | AH30: 0.3432856782 | AI30: 1.127315627e-08 | AJ30: 0.1743177154 | AK30: 5.918134504e-05 | AL30: 0.08749518608 | AM30: 8.953887908e-05 | AN30: 0.0437896958 | AO30: 7.933319843e-05 | AP30: 0.02190011267 | AQ30: 5.006867219e-05 | AR30: 0.01095071449 | AS30: 2.714510827e-05 | AT30: 0.005475439518 | AV30: 2.163313206e-06 | AW30: -0.6282463779 | AX30: 2.369843723e-06 | AY30: 0.3300112161 | AZ30: 3.733462448e-06 | BA30: 0.9859534484 | BB30: 1.531937291e-06 | BC30: 0.6453924254 | BD30: 1.438489281e-06 | BE30: 0.343624475 | BF30: 5.096371504e-07 | BG30: 0.1744896948 | BH30: 4.819576813e-06 | BI30: 0.08758147152 | BJ30: 7.012785782e-06 | BK30: 0.04383287463 | BL30: 6.142835407e-06 | BM30: 0.02192170658 | BN30: 3.858999501e-06 | BO30: 0.01096151201 | BP30: 2.087807317e-06 | BQ30: 0.005480838345 | BS30: -0.02300311097 | BT30: -0.0001001517608 | BU30: 5.593829805e-06 | BW30: 0.2428747966 | BX30: -413164.1431 | BY30: =Forças!$Q$31 -> 971787.9491 | BZ30: 558623.8059 | CA30: 558623.8059 | CD30: -0.02732422516 | CE30: -479666.8164 | CF30: -479.6668164
A31: 0.2698608852 | B31: 1.753798017e-05 | C31: -0.005079299557 | D31: 9.279417682e-05 | E31: 0.0106660599 | F31: 0.0008314626577 | G31: -0.999644634 | H31: 0.03593373329 | I31: -0.7071067812 | J31: 0.007397298231 | K31: 0.3579194072 | L31: 0.007790715784 | M31: 0.1846181099 | N31: 0.009946729939 | O31: 0.09296103459 | P31: 0.01052095483 | Q31: 0.04656074693 | R31: 0.008196969717 | S31: 0.02329036524 | T31: 0.00489264093 | U31: 0.01164643046 | V31: 0.002584327253 | W31: 0.005823371173 | Y31: -4.342320604e-05 | Z31: -0.1085885152 | AA31: -3.773868272e-05 | AB31: 0.03745482649 | AC31: -4.571842945e-05 | AD31: 0.9999131146 | AE31: -2.15448893e-05 | AF31: 0.7027543275 | AG31: -5.296542259e-05 | AH31: 0.3798950549 | AI31: 1.127315627e-08 | AJ31: 0.193617204 | AK31: 5.918134504e-05 | AL31: 0.09727063895 | AM31: 8.953887908e-05 | AN31: 0.04869317845 | AO31: 7.933319843e-05 | AP31: 0.02435382486 | AQ31: 5.006867219e-05 | AR31: 0.01217781699 | AS31: 2.714510827e-05 | AT31: 0.006089021566 | AV31: 2.163313206e-06 | AW31: -0.05095657494 | AX31: 2.369843723e-06 | AY31: 0.02215437887 | AZ31: 3.733462448e-06 | BA31: 0.9999424646 | BB31: 1.531937291e-06 | BC31: 0.7033339684 | BD31: 1.438489281e-06 | BE31: 0.3802287263 | BF31: 5.096371504e-07 | BG31: 0.1937885523 | BH31: 4.819576813e-06 | BI31: 0.09735684579 | BJ31: 7.012785782e-06 | BK31: 0.04873634747 | BL31: 6.142835407e-06 | BM31: 0.02437541754 | BN31: 3.858999501e-06 | BO31: 0.01218861435 | BP31: 2.087807317e-06 | BQ31: 0.006094420373 | BS31: -0.02047584564 | BT31: -6.484895421e-05 | BU31: 6.419185724e-06 | BW31: 0.2698608852 | BX31: -364615.1601 | BY31: =Forças!$Q$31 -> 971787.9491 | BZ31: 607172.7889 | CA31: 607172.7889 | CD31: -0.02540898648 | CE31: -446045.4993 | CF31: -446.0454993
A32: 0.2968469737 | B32: 1.753798017e-05 | C32: -0.5918869097 | D32: 9.279417682e-05 | E32: 0.319143442 | F32: 0.0008314626577 | G32: -0.9831672464 | H32: 0.03593373329 | I32: -0.6494480483 | J32: 0.007397298231 | K32: 0.3943024147 | L32: 0.007790715784 | M32: 0.2038787189 | N32: 0.009946729939 | O32: 0.1027313626 | P32: 0.01052095483 | Q32: 0.05146358108 | R32: 0.008196969717 | S32: 0.02574399612 | T32: 0.00489264093 | U32: 0.01287352278 | V32: 0.002584327253 | W32: 0.00643695195 | Y32: -4.342320604e-05 | Z32: -0.6721595054 | AA32: -3.773868272e-05 | AB32: -0.2731785071 | AC32: -4.571842945e-05 | AD32: 0.9896646324 | AE32: -2.15448893e-05 | AF32: 0.7564063295 | AG32: -5.296542259e-05 | AH32: 0.4159186609 | AI32: 1.127315627e-08 | AJ32: 0.2128420496 | AK32: 5.918134504e-05 | AL32: 0.1070367167 | AM32: 8.953887908e-05 | AN32: 0.05359548781 | AO32: 7.933319843e-05 | AP32: 0.02680739034 | AQ32: 5.006867219e-05 | AR32: 0.01340490114 | AS32: 2.714510827e-05 | AT32: 0.006702601322 | AV32: 2.163313206e-06 | AW32: 0.5457969077 | AX32: 2.369843723e-06 | AY32: -0.2878710834 | AZ32: 3.733462448e-06 | BA32: 0.9893095787 | BB32: 1.531937291e-06 | BC32: 0.7569392236 | BD32: 1.438489281e-06 | BE32: 0.4162466924 | BF32: 5.096371504e-07 | BG32: 0.2130127005 | BH32: 4.819576813e-06 | BI32: 0.1071228366 | BJ32: 7.012785782e-06 | BK32: 0.05363864597 | BL32: 6.142835407e-06 | BM32: 0.02682898166 | BN32: 3.858999501e-06 | BO32: 0.01341569833 | BP32: 2.087807317e-06 | BQ32: 0.006708000108 | BS32: -0.01777626134 | BT32: -2.995951263e-05 | BU32: 7.182004631e-06 | BW32: 0.2968469737 | BX32: -313106.9337 | BY32: =Forças!$Q$31 -> 971787.9491 | BZ32: 658681.0153 | CA32: 658681.0153 | CD32: -0.02333709296 | CE32: -409674.1634 | CF32: -409.6741634
A33: 0.3238330622 | B33: 1.753798017e-05 | C33: -0.9526138378 | D33: 9.279417682e-05 | E33: 0.5963808404 | F33: 0.0008314626577 | G33: -0.9424810183 | H33: 0.03593373329 | I33: -0.5877852523 | J33: 0.007397298231 | K33: 0.4300774365 | L33: 0.007790715784 | M33: 0.2230607287 | N33: 0.009946729939 | O33: 0.1124917891 | P33: 0.01052095483 | Q33: 0.05636517518 | R33: 0.008196969717 | S33: 0.02819747192 | T33: 0.00489264093 | U33: 0.01410059572 | V33: 0.002584327253 | W33: 0.007050530302 | Y33: -4.342320604e-05 | Z33: -0.9789884104 | AA33: -3.773868272e-05 | AB33: -0.557071225 | AC33: -4.571842945e-05 | AD33: 0.9550473225 | AE33: -2.15448893e-05 | AF33: 0.805394835 | AG33: -5.296542259e-05 | AH33: 0.4513009506 | AI33: 1.127315627e-08 | AJ33: 0.2319848404 | AK33: 5.918134504e-05 | AL33: 0.116792478 | AM33: 8.953887908e-05 | AN33: 0.05849650575 | AO33: 7.933319843e-05 | AP33: 0.02926079434 | AQ33: 5.006867219e-05 | AR33: 0.01463196511 | AS33: 2.714510827e-05 | AT33: 0.007316178554 | AV33: 2.163313206e-06 | AW33: 0.9340745225 | AX33: 2.369843723e-06 | AY33: -0.5697177182 | AZ33: 3.733462448e-06 | BA33: 0.9543166076 | BB33: 1.531937291e-06 | BC33: 0.8058776967 | BD33: 1.438489281e-06 | BE33: 0.4516228363 | BF33: 5.096371504e-07 | BG33: 0.2321547284 | BH33: 4.819576813e-06 | BI33: 0.1168785027 | BJ33: 7.012785782e-06 | BK33: 0.05853965201 | BL33: 6.142835407e-06 | BM33: 0.02928238417 | BN33: 3.858999501e-06 | BO33: 0.01464276211 | BP33: 2.087807317e-06 | BQ33: 0.007321577316 | BS33: -0.01491682395 | BT33: -5.979985468e-06 | BU33: 7.46148267e-06 | BW33: 0.3238330622 | BX33: -260157.868 | BY33: =Forças!$Q$31 -> 971787.9491 | BZ33: 711630.081 | CA33: 711630.081 | CD33: -0.02112131849 | CE33: -370777.05 | CF33: -370.77705
A34: 0.3508191507 | B34: 1.753798017e-05 | C34: -0.949474658 | D34: 9.279417682e-05 | E34: 0.8152403269 | F34: 0.0008314626577 | G34: -0.8785877796 | H34: 0.03593373329 | I34: -0.5224985647 | J34: 0.007397298231 | K34: 0.4651893101 | L34: 0.007790715784 | M34: 0.2421567444 | N34: 0.009946729939 | O34: 0.1222413734 | P34: 0.01052095483 | Q34: 0.06126541113 | R34: 0.008196969717 | S34: 0.03065077787 | T34: 0.00489264093 | U34: 0.01532764742 | V34: 0.002584327253 | W34: 0.007664106001 | Y34: -4.342320604e-05 | Z34: -0.9118770172 | AA34: -3.773868272e-05 | AB34: -0.7864339302 | AC34: -4.571842945e-05 | AD34: 0.8969135778 | AE34: -2.15448893e-05 | AF34: 0.8494178135 | AG34: -5.296542259e-05 | AH34: 0.4859873668 | AI34: 1.127315627e-08 | AJ34: 0.2510381967 | AK34: 5.918134504e-05 | AL34: 0.1265369826 | AM34: 8.953887908e-05 | AN34: 0.06339611417 | AO34: 7.933319843e-05 | AP34: 0.03171402207 | AQ34: 5.006867219e-05 | AR34: 0.01585900704 | AS34: 2.714510827e-05 | AT34: 0.007929753031 | AV34: 2.163313206e-06 | AW34: 0.9655674177 | AX34: 2.369843723e-06 | AY34: -0.7957964134 | AZ34: 3.733462448e-06 | BA34: 0.8958251945 | BB34: 1.531937291e-06 | BC34: 0.8498476659 | BD34: 1.438489281e-06 | BE34: 0.4863026105 | BF34: 5.096371504e-07 | BG34: 0.2512072561 | BH34: 4.819576813e-06 | BI34: 0.1266229038 | BJ34: 7.012785782e-06 | BK34: 0.06343924751 | BL34: 6.142835407e-06 | BM34: 0.03173561029 | BN34: 3.858999501e-06 | BO34: 0.01586980384 | BP34: 2.087807317e-06 | BQ34: 0.007935151769 | BS34: -0.0119126056 | BT34: 9.221290807e-07 | BU34: 7.004830236e-06 | BW34: 0.3508191507 | BX34: -206797.8978 | BY34: =Forças!$Q$31 -> 971787.9491 | BZ34: 764990.0512 | CA34: 764990.0512 | CD34: -0.01877532407 | CE34: -329593.9728 | CF34: -329.5939728
A35: 0.3778052392 | B35: 1.753798017e-05 | C35: -0.5836684304 | D35: 9.279417682e-05 | E35: 0.9542984101 | F35: 0.0008314626577 | G35: -0.7930607939 | H35: 0.03593373329 | I35: -0.4539904997 | J35: 0.007397298231 | K35: 0.4995838954 | L35: 0.007790715784 | M35: 0.261159404 | N35: 0.009946729939 | O35: 0.1319791758 | P35: 0.01052095483 | Q35: 0.06616417084 | R35: 0.008196969717 | S35: 0.03310389917 | T35: 0.00489264093 | U35: 0.01655467603 | V35: 0.002584327253 | W35: 0.008277678814 | Y35: -4.342320604e-05 | Z35: -0.496459597 | AA35: -3.773868272e-05 | AB35: -0.9388150028 | AC35: -4.571842945e-05 | AD35: 0.8166948442 | AE35: -2.15448893e-05 | AF35: 0.8882038487 | AG35: -5.296542259e-05 | AH35: 0.5199244258 | AI35: 1.127315627e-08 | AJ35: 0.269994773 | AK35: 5.918134504e-05 | AL35: 0.1362692913 | AM35: 8.953887908e-05 | AN35: 0.06829419503 | AO35: 7.933319843e-05 | AP35: 0.03416705876 | AQ35: 5.006867219e-05 | AR35: 0.01708602509 | AS35: 2.714510827e-05 | AT35: 0.008543324523 | AV35: 2.163313206e-06 | AW35: 0.6282463779 | AX35: 2.369843723e-06 | AY35: -0.943977011 | AZ35: 3.733462448e-06 | BA35: 0.815275592 | BB35: 1.531937291e-06 | BC35: 0.8885780416 | BD35: 1.438489281e-06 | BE35: 0.5202325414 | BF35: 5.096371504e-07 | BG35: 0.2701629387 | BH35: 4.819576813e-06 | BI35: 0.1363551007 | BJ35: 7.012785782e-06 | BK35: 0.06833731439 | BL35: 6.142835407e-06 | BM35: 0.03418864523 | BN35: 3.858999501e-06 | BO35: 0.01709682167 | BP35: 2.087807317e-06 | BQ35: 0.008548723233 | BS35: -0.008781855796 | BT35: -9.044171822e-06 | BU35: 5.843345104e-06 | BW35: 0.3778052392 | BX35: -153314.2436 | BY35: =Forças!$Q$31 -> 971787.9491 | BZ35: 818473.7055 | CA35: 818473.7055 | CD35: -0.01631357354 | CE35: -286378.8391 | CF35: -286.3788391
A36: 0.4047913277 | B36: 1.753798017e-05 | C36: 0.005079299557 | D36: 9.279417682e-05 | E36: 0.999943116 | F36: 0.0008314626577 | G36: -0.6880060195 | H36: 0.03593373329 | I36: -0.3826834324 | J36: 0.007397298231 | K36: 0.5332081586 | L36: 0.007790715784 | M36: 0.2800613817 | N36: 0.009946729939 | O36: 0.1417042579 | P36: 0.01052095483 | Q36: 0.07106133629 | R36: 0.008196969717 | S36: 0.03555682106 | T36: 0.00489264093 | U36: 0.01778167972 | V36: 0.002584327253 | W36: 0.00889124851 | Y36: -4.342320604e-05 | Z36: 0.1085885152 | AA36: -3.773868272e-05 | AB36: -0.9992983218 | AC36: -4.571842945e-05 | AD36: 0.716366373 | AE36: -2.15448893e-05 | AF36: 0.9215138118 | AG36: -5.296542259e-05 | AH36: 0.553059799 | AI36: 1.127315627e-08 | AJ36: 0.2888472612 | AK36: 5.918134504e-05 | AL36: 0.1459884661 | AM36: 8.953887908e-05 | AN36: 0.07319063029 | AO36: 7.933319843e-05 | AP36: 0.03661988963 | AQ36: 5.006867219e-05 | AR36: 0.0183130174 | AS36: 2.714510827e-05 | AT36: 0.009156892799 | AV36: 2.163313206e-06 | AW36: 0.05095657494 | AX36: 2.369843723e-06 | AY36: -0.9997545616 | AZ36: 3.733462448e-06 | BA36: 0.7146511987 | BB36: 1.531937291e-06 | BC36: 0.9218300383 | BD36: 1.438489281e-06 | BE36: 0.5533603114 | BF36: 5.096371504e-07 | BG36: 0.2890144683 | BH36: 4.819576813e-06 | BI36: 0.1460741554 | BJ36: 7.012785782e-06 | BK36: 0.07323373464 | BL36: 6.142835407e-06 | BM36: 0.03664147422 | BN36: 3.858999501e-06 | BO36: 0.01832381375 | BP36: 2.087807317e-06 | BQ36: 0.009162291479 | BS36: -0.005545676785 | BT36: -2.96340604e-05 | BU36: 4.297088909e-06 | BW36: 0.4047913277 | BX36: -99282.07661 | BY36: =Forças!$Q$31 -> 971787.9491 | BZ36: 872505.8724 | CA36: 872505.8724 | CD36: -0.01375124439 | CE36: -241398.0847 | CF36: -241.3980847
A37: 0.4317774162 | B37: 1.753798017e-05 | C37: 0.5918869097 | D37: 9.279417682e-05 | E37: 0.9477064226 | F37: 0.0008314626577 | G37: -0.5660102535 | H37: 0.03593373329 | I37: -0.3090169944 | J37: 0.007397298231 | K37: 0.5660102535 | L37: 0.007790715784 | M37: 0.2988553905 | N37: 0.009946729939 | O37: 0.1514156821 | P37: 0.01052095483 | Q37: 0.07595678946 | R37: 0.008196969717 | S37: 0.03800952876 | T37: 0.00489264093 | U37: 0.01900865663 | V37: 0.002584327253 | W37: 0.009504814859 | Y37: -4.342320604e-05 | Z37: 0.6721595054 | AA37: -3.773868272e-05 | AB37: -0.9619633586 | AC37: -4.571842945e-05 | AD37: 0.5983985843 | AE37: -2.15448893e-05 | AF37: 0.9491423358 | AG37: -5.296542259e-05 | AH37: 0.5853423941 | AI37: 1.127315627e-08 | AJ37: 0.3075883932 | AK37: 5.918134504e-05 | AL37: 0.1556935702 | AM37: 8.953887908e-05 | AN37: 0.07808530198 | AO37: 7.933319843e-05 | AP37: 0.0390724999 | AQ37: 5.006867219e-05 | AR37: 0.01953998214 | AS37: 2.714510827e-05 | AT37: 0.009770457626 | AV37: 2.163313206e-06 | AW37: -0.5457969077 | AX37: 2.369843723e-06 | AY37: -0.9576691701 | AZ37: 3.733462448e-06 | BA37: 0.5964297211 | BB37: 1.531937291e-06 | BC37: 0.9493986462 | BD37: 1.438489281e-06 | BE37: 0.5856348399 | BF37: 5.096371504e-07 | BG37: 0.3077545773 | BH37: 4.819576813e-06 | BI37: 0.1557791312 | BJ37: 7.012785782e-06 | BK37: 0.07812839027 | BL37: 6.142835407e-06 | BM37: 0.03909408249 | BN37: 3.858999501e-06 | BO37: 0.01955077824 | BP37: 2.087807317e-06 | BQ37: 0.009775856276 | BS37: -0.002226826567 | BT37: -5.114140771e-05 | BU37: 2.864876047e-06 | BW37: 0.4317774162 | BX37: -43864.41306 | BY37: =Forças!$Q$31 -> 971787.9491 | BZ37: 927923.536 | CA37: 927923.536 | CD37: -0.01110413426 | CE37: -194929.0308 | CF37: -194.9290308
A38: 0.4587635048 | B38: 1.753798017e-05 | C38: 0.9526138378 | D38: 9.279417682e-05 | E38: 0.8027016215 | F38: 0.0008314626577 | G38: -0.4300774365 | H38: 0.03593373329 | I38: -0.2334453639 | J38: 0.007397298231 | K38: 0.5979396015 | L38: 0.007790715784 | M38: 0.3175341847 | N38: 0.009946729939 | O38: 0.1611125126 | P38: 0.01052095483 | Q38: 0.08085041241 | R38: 0.008196969717 | S38: 0.04046200749 | T38: 0.00489264093 | U38: 0.02023560491 | V38: 0.002584327253 | W38: 0.01011837763 | Y38: -4.342320604e-05 | Z38: 0.9789884104 | AA38: -3.773868272e-05 | AB38: -0.8304647194 | AC38: -4.571842945e-05 | AD38: 0.4656962364 | AE38: -2.15448893e-05 | AF38: 0.9709190817 | AG38: -5.296542259e-05 | AH38: 0.6167224336 | AI38: 1.127315627e-08 | AJ38: 0.3262109441 | AK38: 5.918134504e-05 | AL38: 0.1653836682 | AM38: 8.953887908e-05 | AN38: 0.08297809214 | AO38: 7.933319843e-05 | AP38: 0.04152487481 | AQ38: 5.006867219e-05 | AR38: 0.02076691745 | AS38: 2.714510827e-05 | AT38: 0.01038401878 | AV38: 2.163313206e-06 | AW38: -0.9340745225 | AX38: 2.369843723e-06 | AY38: -0.8218404477 | AZ38: 3.733462448e-06 | BA38: 0.4635221643 | BB38: 1.531937291e-06 | BC38: 0.9711138957 | BD38: 1.438489281e-06 | BE38: 0.6170063619 | BF38: 5.096371504e-07 | BG38: 0.3263760411 | BH38: 4.819576813e-06 | BI38: 0.1654690927 | BJ38: 7.012785782e-06 | BK38: 0.08302116335 | BL38: 6.142835407e-06 | BM38: 0.04154645526 | BN38: 3.858999501e-06 | BO38: 0.02077771328 | BP38: 2.087807317e-06 | BQ38: 0.01038941739 | BS38: 0.001151979116 | BT38: -6.420736073e-05 | BU38: 2.040575361e-06 | BW38: 0.4587635048 | BX38: 13736.32317 | BY38: =Forças!$Q$31 -> 971787.9491 | BZ38: 985524.2722 | CA38: 985524.2722 | CD38: -0.008388563443 | CE38: -147258.1747 | CF38: -147.2581747
A39: 0.4857495933 | B39: 1.753798017e-05 | C39: 0.949474658 | D39: 9.279417682e-05 | E39: 0.579122793 | F39: 0.0008314626577 | G39: -0.2835546857 | H39: 0.03593373329 | I39: -0.156434465 | J39: 0.007397298231 | K39: 0.6289469701 | L39: 0.007790715784 | M39: 0.3360905636 | N39: 0.009946729939 | O39: 0.1707938148 | P39: 0.01052095483 | Q39: 0.08574208721 | R39: 0.008196969717 | S39: 0.04291424248 | T39: 0.00489264093 | U39: 0.02146252271 | V39: 0.002584327253 | W39: 0.01073193659 | Y39: -4.342320604e-05 | Z39: 0.9118770172 | AA39: -3.773868272e-05 | AB39: -0.6176744074 | AC39: -4.571842945e-05 | AD39: 0.3215269017 | AE39: -2.15448893e-05 | AF39: 0.9867097886 | AG39: -5.296542259e-05 | AH39: 0.6471515319 | AI39: 1.127315627e-08 | AJ39: 0.3447077344 | AK39: 5.918134504e-05 | AL39: 0.1750578262 | AM39: 8.953887908e-05 | AN39: 0.0878688829 | AO39: 7.933319843e-05 | AP39: 0.04397699957 | AQ39: 5.006867219e-05 | AR39: 0.02199382149 | AS39: 2.714510827e-05 | AT39: 0.01099757602 | AV39: 2.163313206e-06 | AW39: -0.9655674177 | AX39: 2.369843723e-06 | AY39: -0.6055642562 | AZ39: 3.733462448e-06 | BA39: 0.3192011535 | BB39: 1.531937291e-06 | BC39: 0.9868419051 | BD39: 1.438489281e-06 | BE39: 0.6474265048 | BF39: 5.096371504e-07 | BG39: 0.3448716807 | BH39: 4.819576813e-06 | BI39: 0.175143106 | BJ39: 7.012785782e-06 | BK39: 0.08791193597 | BL39: 6.142835407e-06 | BM39: 0.04399857775 | BN39: 3.858999501e-06 | BO39: 0.02200461703 | BP39: 2.087807317e-06 | BQ39: 0.0110029746 | BS39: 0.004569684557 | BT39: -6.340102491e-05 | BU39: 2.125450689e-06 | BW39: 0.4857495933 | BX39: 73849.39123 | BY39: =Forças!$Q$31 -> 971787.9491 | BZ39: 1045637.34 | CA39: 1045637.34 | CD39: -0.005621274345 | CE39: -98679.42286 | CF39: -98.67942286
A40: 0.5127356818 | B40: 1.753798017e-05 | C40: 0.5836684304 | D40: 9.279417682e-05 | E40: 0.2988553905 | F40: 0.0008314626577 | G40: -0.1300498776 | H40: 0.03593373329 | I40: -0.07845909573 | J40: 0.007397298231 | K40: 0.658984548 | L40: 0.007790715784 | M40: 0.354517373 | N40: 0.009946729939 | O40: 0.1804586555 | P40: 0.01052095483 | Q40: 0.090631696 | R40: 0.008196969717 | S40: 0.04536621896 | T40: 0.00489264093 | U40: 0.02268940819 | V40: 0.002584327253 | W40: 0.01134549151 | Y40: -4.342320604e-05 | Z40: 0.496459597 | AA40: -3.773868272e-05 | AB40: -0.3444218207 | AC40: -4.571842945e-05 | AD40: 0.1694405075 | AE40: -2.15448893e-05 | AF40: 0.9964171015 | AG40: -5.296542259e-05 | AH40: 0.6765827694 | AI40: 1.127315627e-08 | AJ40: 0.3630716334 | AK40: 5.918134504e-05 | AL40: 0.1847151118 | AM40: 8.953887908e-05 | AN40: 0.09275755639 | AO40: 7.933319843e-05 | AP40: 0.04642885942 | AQ40: 5.006867219e-05 | AR40: 0.0232206924 | AS40: 2.714510827e-05 | AT40: 0.01161112911 | AV40: 2.163313206e-06 | AW40: -0.6282463779 | AX40: 2.369843723e-06 | AY40: -0.3300112161 | AZ40: 3.733462448e-06 | BA40: 0.1670203509 | BB40: 1.531937291e-06 | BC40: 0.996485706 | BD40: 1.438489281e-06 | BE40: 0.676848363 | BF40: 5.096371504e-07 | BG40: 0.3632343657 | BH40: 4.819576813e-06 | BI40: 0.1848002385 | BJ40: 7.012785782e-06 | BK40: 0.0928005903 | BL40: 6.142835407e-06 | BM40: 0.0464504352 | BN40: 3.858999501e-06 | BO40: 0.02323148765 | BP40: 2.087807317e-06 | BQ40: 0.01161652766 | BS40: 0.008007860497 | BT40: -4.920723003e-05 | BU40: 3.108396321e-06 | BW40: 0.5127356818 | BX40: 136093.8874 | BY40: =Forças!$Q$31 -> 971787.9491 | BZ40: 1107881.836 | CA40: 1107881.836 | CD40: -0.00281932822 | CE40: -49492.27961 | CF40: -49.49227961
A41: 0.5397217703 | B41: 1.753798017e-05 | C41: -0.005079299557 | D41: 9.279417682e-05 | E41: -0.0106660599 | F41: 0.0008314626577 | G41: 0.02665719024 | H41: 0.03593373329 | I41: 0 | J41: 0.007397298231 | K41: 0.6880060195 | L41: 0.007790715784 | M41: 0.3728075093 | N41: 0.009946729939 | O41: 0.1901061032 | P41: 0.01052095483 | Q41: 0.09551912096 | R41: 0.008196969717 | S41: 0.04781792215 | T41: 0.00489264093 | U41: 0.02391625951 | V41: 0.002584327253 | W41: 0.01195904216 | Y41: -4.342320604e-05 | Z41: -0.1085885152 | AA41: -3.773868272e-05 | AB41: -0.03745482649 | AC41: -4.571842945e-05 | AD41: 0.01318192573 | AE41: -2.15448893e-05 | AF41: 0.9999811717 | AG41: -5.296542259e-05 | AH41: 0.7049707653 | AI41: 1.127315627e-08 | AJ41: 0.3812955613 | AK41: 5.918134504e-05 | AL41: 0.1943545941 | AM41: 8.953887908e-05 | AN41: 0.09764399483 | AO41: 7.933319843e-05 | AP41: 0.04888043958 | AQ41: 5.006867219e-05 | AR41: 0.02444752834 | AS41: 2.714510827e-05 | AT41: 0.01222467784 | AV41: 2.163313206e-06 | AW41: -0.05095657494 | AX41: 2.369843723e-06 | AY41: -0.02215437887 | AZ41: 3.733462448e-06 | BA41: 0.01072695295 | BB41: 1.531937291e-06 | BC41: 0.9999858412 | BD41: 1.438489281e-06 | BE41: 0.70522657 | BF41: 5.096371504e-07 | BG41: 0.3814570169 | BH41: 4.819576813e-06 | BI41: 0.1944395597 | BJ41: 7.012785782e-06 | BK41: 0.09768700854 | BL41: 6.142835407e-06 | BM41: 0.04890201284 | BN41: 3.858999501e-06 | BO41: 0.02445832327 | BP41: 2.087807317e-06 | BQ41: 0.01223007635 | BS41: 0.01145067692 | BT41: -2.767432215e-05 | BU41: 4.660582531e-06 | BW41: 0.5397217703 | BX41: 199415.6991 | BY41: =Forças!$Q$31 -> 971787.9491 | BZ41: 1171203.648 | CA41: 1171203.648 | CD41: 0 | CE41: 0 | CF41: 0
A42: 0.5667078588 | B42: 1.753798017e-05 | C42: -0.5918869097 | D42: 9.279417682e-05 | E42: -0.319143442 | F42: 0.0008314626577 | G42: 0.1827078695 | H42: 0.03593373329 | I42: 0.07845909573 | J42: 0.007397298231 | K42: 0.7159666355 | L42: 0.007790715784 | M42: 0.3909539213 | N42: 0.009946729939 | O42: 0.199735228 | P42: 0.01052095483 | Q42: 0.1004042443 | R42: 0.008196969717 | S42: 0.0502693373 | T42: 0.00489264093 | U42: 0.0251430748 | V42: 0.002584327253 | W42: 0.01257258831 | Y42: -4.342320604e-05 | Z42: -0.6721595054 | AA42: -3.773868272e-05 | AB42: 0.2731785071 | AC42: -4.571842945e-05 | AD42: -0.1434012388 | AE42: -2.15448893e-05 | AF42: 0.9973800254 | AG42: -5.296542259e-05 | AH42: 0.7322717473 | AI42: 1.127315627e-08 | AJ42: 0.3993724925 | AK42: 5.918134504e-05 | AL42: 0.2039753442 | AM42: 8.953887908e-05 | AN42: 0.1025280805 | AO42: 7.933319843e-05 | AP42: 0.05133172529 | AQ42: 5.006867219e-05 | AR42: 0.02567432747 | AS42: 2.714510827e-05 | AT42: 0.01283822197 | AV42: 2.163313206e-06 | AW42: 0.5457969077 | AX42: 2.369843723e-06 | AY42: 0.2878710834 | AZ42: 3.733462448e-06 | BA42: -0.1458305782 | BB42: 1.531937291e-06 | BC42: 0.9973207312 | BD42: 1.438489281e-06 | BE42: 0.7325173688 | BF42: 5.096371504e-07 | BG42: 0.3995326092 | BH42: 4.819576813e-06 | BI42: 0.2040601403 | BJ42: 7.012785782e-06 | BK42: 0.1025710729 | BL42: 6.142835407e-06 | BM42: 0.05135329589 | BN42: 3.858999501e-06 | BO42: 0.02568512207 | BP42: 2.087807317e-06 | BQ42: 0.01284362043 | BS42: 0.0148839023 | BT42: -7.876950503e-06 | BU42: 6.247835218e-06 | BW42: 0.5667078588 | BX42: 262387.4485 | BY42: =Forças!$Q$31 -> 971787.9491 | BZ42: 1234175.398 | CA42: 1234175.398 | CD42: 0.00281932822 | CE42: 49492.27961 | CF42: 49.49227961
A43: 0.5936939473 | B43: 1.753798017e-05 | C43: -0.9526138378 | D43: 9.279417682e-05 | E43: -0.5963808404 | F43: 0.0008314626577 | G43: 0.3342596747 | H43: 0.03593373329 | I43: 0.156434465 | J43: 0.007397298231 | K43: 0.742823283 | L43: 0.007790715784 | M43: 0.408949613 | N43: 0.009946729939 | O43: 0.209345102 | P43: 0.01052095483 | Q43: 0.1052869484 | R43: 0.008196969717 | S43: 0.05272044962 | T43: 0.00489264093 | U43: 0.02636985224 | V43: 0.002584327253 | W43: 0.01318612972 | Y43: -4.342320604e-05 | Z43: -0.9789884104 | AA43: -3.773868272e-05 | AB43: 0.557071225 | AC43: -4.571842945e-05 | AD43: -0.296453389 | AE43: -2.15448893e-05 | AF43: 0.9886296996 | AG43: -5.296542259e-05 | AH43: 0.7584436194 | AI43: 1.127315627e-08 | AJ43: 0.417295458 | AK43: 5.918134504e-05 | AL43: 0.2135764347 | AM43: 8.953887908e-05 | AN43: 0.1074096956 | AO43: 7.933319843e-05 | AP43: 0.05378270178 | AQ43: 5.006867219e-05 | AR43: 0.02690108793 | AS43: 2.714510827e-05 | AT43: 0.01345176126 | AV43: 2.163313206e-06 | AW43: 0.9340745225 | AX43: 2.369843723e-06 | AY43: 0.5697177182 | AZ43: 3.733462448e-06 | BA43: -0.2987972765 | BB43: 1.531937291e-06 | BC43: 0.9885068072 | BD43: 1.438489281e-06 | BE43: 0.758678679 | BF43: 5.096371504e-07 | BG43: 0.4174541741 | BH43: 4.819576813e-06 | BI43: 0.2136610532 | BJ43: 7.012785782e-06 | BK43: 0.1074526658 | BL43: 6.142835407e-06 | BM43: 0.0538042696 | BN43: 3.858999501e-06 | BO43: 0.02691188218 | BP43: 2.087807317e-06 | BQ43: 0.01345715968 | BS43: 0.0182933086 | BT43: 1.810454019e-06 | BU43: 7.319479094e-06 | BW43: 0.5936939473 | BX43: 323654.3798 | BY43: =Forças!$Q$31 -> 971787.9491 | BZ43: 1295442.329 | CA43: 1295442.329 | CD43: 0.005621274345 | CE43: 98679.42286 | CF43: 98.67942286
A44: 0.6206800358 | B44: 1.753798017e-05 | C44: -0.949474658 | D44: 9.279417682e-05 | E44: -0.8152403269 | F44: 0.0008314626577 | G44: 0.4775808974 | H44: 0.03593373329 | I44: 0.2334453639 | J44: 0.007397298231 | K44: 0.7685345507 | L44: 0.007790715784 | M44: 0.4267876469 | N44: 0.009946729939 | O44: 0.2189347989 | P44: 0.01052095483 | Q44: 0.1101671155 | R44: 0.008196969717 | S44: 0.05517124436 | T44: 0.00489264093 | U44: 0.02759658996 | V44: 0.002584327253 | W44: 0.01379966617 | Y44: -4.342320604e-05 | Z44: -0.9118770172 | AA44: -3.773868272e-05 | AB44: 0.7864339302 | AC44: -4.571842945e-05 | AD44: -0.4422058728 | AE44: -2.15448893e-05 | AF44: 0.9737841429 | AG44: -5.296542259e-05 | AH44: 0.7834460265 | AI44: 1.127315627e-08 | AJ44: 0.4350575482 | AK44: 5.918134504e-05 | AL44: 0.2231569402 | AM44: 8.953887908e-05 | AN44: 0.1122887227 | AO44: 7.933319843e-05 | AP44: 0.05623335429 | AQ44: 5.006867219e-05 | AR44: 0.02812780788 | AS44: 2.714510827e-05 | AT44: 0.01406529549 | AV44: 2.163313206e-06 | AW44: 0.9655674177 | AX44: 2.369843723e-06 | AY44: 0.7957964134 | AZ44: 3.733462448e-06 | BA44: -0.4444065941 | BB44: 1.531937291e-06 | BC44: 0.97359841 | BD44: 1.438489281e-06 | BE44: 0.7836701615 | BF44: 5.096371504e-07 | BG44: 0.4352148025 | BH44: 4.819576813e-06 | BI44: 0.223241373 | BJ44: 7.012785782e-06 | BK44: 0.1123316696 | BL44: 6.142835407e-06 | BM44: 0.05625491919 | BN44: 3.858999501e-06 | BO44: 0.02813860176 | BP44: 2.087807317e-06 | BQ44: 0.01407069386 | BS44: 0.02166308187 | BT44: -2.823883875e-06 | BU44: 7.503372357e-06 | BW44: 0.6206800358 | BX44: 382352.9675 | BY44: =Forças!$Q$31 -> 971787.9491 | BZ44: 1354140.917 | CA44: 1354140.917 | CD44: 0.008388563443 | CE44: 147258.1747 | CF44: 147.2581747
A45: 0.6476661244 | B45: 1.753798017e-05 | C45: -0.5836684304 | D45: 9.279417682e-05 | E45: -0.9542984101 | F45: 0.0008314626577 | G45: 0.6091424933 | H45: 0.03593373329 | I45: 0.3090169944 | J45: 0.007397298231 | K45: 0.7930607939 | L45: 0.007790715784 | M45: 0.444461146 | N45: 0.009946729939 | O45: 0.2285033944 | P45: 0.01052095483 | Q45: 0.115044628 | R45: 0.008196969717 | S45: 0.05762170676 | T45: 0.00489264093 | U45: 0.02882328611 | V45: 0.002584327253 | W45: 0.01441319742 | Y45: -4.342320604e-05 | Z45: -0.496459597 | AA45: -3.773868272e-05 | AB45: 0.9388150028 | AC45: -4.571842945e-05 | AD45: -0.5770697804 | AE45: -2.15448893e-05 | AF45: 0.9529348832 | AG45: -5.296542259e-05 | AH45: 0.8072404165 | AI45: 1.127315627e-08 | AJ45: 0.4526519154 | AK45: 5.918134504e-05 | AL45: 0.2327159374 | AM45: 8.953887908e-05 | AN45: 0.1171650441 | AO45: 7.933319843e-05 | AP45: 0.05868366805 | AQ45: 5.006867219e-05 | AR45: 0.02935448547 | AS45: 2.714510827e-05 | AT45: 0.01467882442 | AV45: 2.163313206e-06 | AW45: 0.6282463779 | AX45: 2.369843723e-06 | AY45: 0.943977011 | AZ45: 3.733462448e-06 | BA45: -0.5790731466 | BB45: 1.531937291e-06 | BC45: 0.9526874549 | BD45: 1.438489281e-06 | BE45: 0.8074532815 | BF45: 5.096371504e-07 | BG45: 0.4528076472 | BH45: 4.819576813e-06 | BI45: 0.2328001764 | BJ45: 7.012785782e-06 | BK45: 0.1172079666 | BL45: 6.142835407e-06 | BM45: 0.05870522991 | BN45: 3.858999501e-06 | BO45: 0.02936527897 | BP45: 2.087807317e-06 | BQ45: 0.01468422274 | BS45: 0.02497483615 | BT45: -1.998362328e-05 | BU45: 6.734509443e-06 | BW45: 0.6476661244 | BX45: 438339.4094 | BY45: =Forças!$Q$31 -> 971787.9491 | BZ45: 1410127.358 | CA45: 1410127.358 | CD45: 0.01110413426 | CE45: 194929.0308 | CF45: 194.9290308
A46: 0.6746522129 | B46: 1.753798017e-05 | C46: 0.005079299557 | D46: 9.279417682e-05 | E46: -0.999943116 | F46: 0.0008314626577 | G46: 0.7257049794 | H46: 0.03593373329 | I46: 0.3826834324 | J46: 0.007397298231 | K46: 0.8163641948 | L46: 0.007790715784 | M46: 0.4619632968 | N46: 0.009946729939 | O46: 0.2380499662 | P46: 0.01052095483 | Q46: 0.1199193685 | R46: 0.008196969717 | S46: 0.06007182204 | T46: 0.00489264093 | U46: 0.03004993887 | V46: 0.002584327253 | W46: 0.01502672325 | Y46: -4.342320604e-05 | Z46: 0.1085885152 | AA46: -3.773868272e-05 | AB46: 0.9992983218 | AC46: -4.571842945e-05 | AD46: -0.6977243149 | AE46: -2.15448893e-05 | AF46: 0.9262104631 | AG46: -5.296542259e-05 | AH46: 0.8297901003 | AI46: 1.127315627e-08 | AJ46: 0.4700717767 | AK46: 5.918134504e-05 | AL46: 0.242252505 | AM46: 8.953887908e-05 | AN46: 0.1220385423 | AO46: 7.933319843e-05 | AP46: 0.06113362831 | AQ46: 5.006867219e-05 | AR46: 0.03058111885 | AS46: 2.714510827e-05 | AT46: 0.01529234782 | AV46: 2.163313206e-06 | AW46: 0.05095657494 | AX46: 2.369843723e-06 | AY46: 0.9997545616 | AZ46: 3.733462448e-06 | BA46: -0.6994809963 | BB46: 1.531937291e-06 | BC46: 0.9259028648 | BD46: 1.438489281e-06 | BE46: 0.8299913671 | BF46: 5.096371504e-07 | BG46: 0.470225926 | BH46: 4.819576813e-06 | BI46: 0.242336542 | BJ46: 7.012785782e-06 | BK46: 0.1220814394 | BL46: 6.142835407e-06 | BM46: 0.06115518699 | BN46: 3.858999501e-06 | BO46: 0.03059191195 | BP46: 2.087807317e-06 | BQ46: 0.0152977461 | BS46: 0.02820760475 | BT46: -4.236837186e-05 | BU46: 5.269764211e-06 | BW46: 0.6746522129 | BX46: 492138.149 | BY46: =Forças!$Q$31 -> 971787.9491 | BZ46: 1463926.098 | CA46: 1463926.098 | CD46: 0.01375124439 | CE46: 241398.0847 | CF46: 241.3980847
A47: 0.7016383014 | B47: 1.753798017e-05 | C47: 0.5918869097 | D47: 9.279417682e-05 | E47: -0.9477064226 | F47: 0.0008314626577 | G47: 0.8243982005 | H47: 0.03593373329 | I47: 0.4539904997 | J47: 0.007397298231 | K47: 0.8384088214 | L47: 0.007790715784 | M47: 0.4792873521 | N47: 0.009946729939 | O47: 0.2475735943 | P47: 0.01052095483 | Q47: 0.1247912194 | R47: 0.008196969717 | S47: 0.06252157546 | T47: 0.00489264093 | U47: 0.03127654636 | V47: 0.002584327253 | W47: 0.01564024341 | Y47: -4.342320604e-05 | Z47: 0.6721595054 | AA47: -3.773868272e-05 | AB47: 0.9619633586 | AC47: -4.571842945e-05 | AD47: -0.8011985611 | AE47: -2.15448893e-05 | AF47: 0.8937756474 | AG47: -5.296542259e-05 | AH47: 0.851060308 | AI47: 1.127315627e-08 | AJ47: 0.4873104164 | AK47: 5.918134504e-05 | AL47: 0.2517657238 | AM47: 8.953887908e-05 | AN47: 0.1269090999 | AO47: 7.933319843e-05 | AP47: 0.06358322031 | AQ47: 5.006867219e-05 | AR47: 0.03180770617 | AS47: 2.714510827e-05 | AT47: 0.01590586547 | AV47: 2.163313206e-06 | AW47: -0.5457969077 | AX47: 2.369843723e-06 | AY47: 0.9576691701 | AZ47: 3.733462448e-06 | BA47: -0.8026653025 | BB47: 1.531937291e-06 | BC47: 0.8934097756 | BD47: 1.438489281e-06 | BE47: 0.8512496661 | BF47: 5.096371504e-07 | BG47: 0.4874629237 | BH47: 4.819576813e-06 | BI47: 0.2518495507 | BJ47: 7.012785782e-06 | BK47: 0.1269519706 | BL47: 6.142835407e-06 | BM47: 0.06360477568 | BN47: 3.858999501e-06 | BO47: 0.03181849887 | BP47: 2.087807317e-06 | BQ47: 0.0159112637 | BS47: 0.03133882269 | BT47: -5.985685449e-05 | BU47: 3.584482455e-06 | BW47: 0.7016383014 | BX47: 544628.2387 | BY47: =Forças!$Q$31 -> 971787.9491 | BZ47: 1516416.188 | CA47: 1516416.188 | CD47: 0.01631357354 | CE47: 286378.8391 | CF47: 286.3788391
A48: 0.7286243899 | B48: 1.753798017e-05 | C48: 0.9526138378 | D48: 9.279417682e-05 | E48: -0.8027016215 | F48: 0.0008314626577 | G48: 0.9027920018 | H48: 0.03593373329 | I48: 0.5224985647 | J48: 0.007397298231 | K48: 0.8591606822 | L48: 0.007790715784 | M48: 0.4964266329 | N48: 0.009946729939 | O48: 0.2570733607 | P48: 0.01052095483 | Q48: 0.1296600634 | R48: 0.008196969717 | S48: 0.06497095225 | T48: 0.00489264093 | U48: 0.03250310676 | V48: 0.002584327253 | W48: 0.01625375769 | Y48: -4.342320604e-05 | Z48: 0.9789884104 | AA48: -3.773868272e-05 | AB48: 0.8304647194 | AC48: -4.571842945e-05 | AD48: -0.8849446397 | AE48: -2.15448893e-05 | AF48: 0.8558304077 | AG48: -5.296542259e-05 | AH48: 0.8710182423 | AI48: 1.127315627e-08 | AJ48: 0.5043611886 | AK48: 5.918134504e-05 | AL48: 0.2612546768 | AM48: 8.953887908e-05 | AN48: 0.1317765995 | AO48: 7.933319843e-05 | AP48: 0.06603242928 | AQ48: 5.006867219e-05 | AR48: 0.0330342456 | AS48: 2.714510827e-05 | AT48: 0.01651937713 | AV48: 2.163313206e-06 | AW48: -0.9340745225 | AX48: 2.369843723e-06 | AY48: 0.8218404477 | AZ48: 3.733462448e-06 | BA48: -0.886085325 | BB48: 1.531937291e-06 | BC48: 0.8554085181 | BD48: 1.438489281e-06 | BE48: 0.8711953999 | BF48: 5.096371504e-07 | BG48: 0.5045119952 | BH48: 4.819576813e-06 | BI48: 0.2613382855 | BJ48: 7.012785782e-06 | BK48: 0.1318194429 | BL48: 6.142835407e-06 | BM48: 0.06605398121 | BN48: 3.858999501e-06 | BO48: 0.03304503786 | BP48: 2.087807317e-06 | BQ48: 0.0165247753 | BS48: 0.03434595235 | BT48: -6.335861878e-05 | BU48: 2.191268418e-06 | BW48: 0.7286243899 | BX48: 596586.5033 | BY48: =Forças!$Q$31 -> 971787.9491 | BZ48: 1568374.452 | CA48: 1568374.452 | CD48: 0.01877532407 | CE48: 329593.9728 | CF48: 329.5939728
A49: 0.7556104784 | B49: 1.753798017e-05 | C49: 0.949474658 | D49: 9.279417682e-05 | E49: -0.579122793 | F49: 0.0008314626577 | G49: 0.9589560679 | H49: 0.03593373329 | I49: 0.5877852523 | J49: 0.007397298231 | K49: 0.8785877796 | L49: 0.007790715784 | M49: 0.5133745318 | N49: 0.009946729939 | O49: 0.2665483499 | P49: 0.01052095483 | Q49: 0.1345257832 | R49: 0.008196969717 | S49: 0.06741993766 | T49: 0.00489264093 | U49: 0.0337296182 | V49: 0.002584327253 | W49: 0.01686726585 | Y49: -4.342320604e-05 | Z49: 0.9118770172 | AA49: -3.773868272e-05 | AB49: 0.6176744074 | AC49: -4.571842945e-05 | AD49: -0.9469004443 | AE49: -2.15448893e-05 | AF49: 0.8126086889 | AG49: -5.296542259e-05 | AH49: 0.8896331296 | AI49: 1.127315627e-08 | AJ49: 0.52121752 | AK49: 5.918134504e-05 | AL49: 0.2707184496 | AM49: 8.953887908e-05 | AN49: 0.136640924 | AO49: 7.933319843e-05 | AP49: 0.06848124048 | AQ49: 5.006867219e-05 | AR49: 0.03426073527 | AS49: 2.714510827e-05 | AT49: 0.01713288257 | AV49: 2.163313206e-06 | AW49: -0.9655674177 | AX49: 2.369843723e-06 | AY49: 0.6055642562 | AZ49: 3.733462448e-06 | BA49: -0.9476869861 | BB49: 1.531937291e-06 | BC49: 0.8121333826 | BD49: 1.438489281e-06 | BE49: 0.8897978135 | BF49: 5.096371504e-07 | BG49: 0.5213665678 | BH49: 4.819576813e-06 | BI49: 0.2708018321 | BJ49: 7.012785782e-06 | BK49: 0.1366837388 | BL49: 6.142835407e-06 | BM49: 0.06850278885 | BN49: 3.858999501e-06 | BO49: 0.03427152709 | BP49: 2.087807317e-06 | BQ49: 0.01713828068 | BS49: 0.03720817896 | BT49: -4.836806761e-05 | BU49: 1.450444533e-06 | BW49: 0.7556104784 | BX49: 648262.3602 | BY49: =Forças!$Q$31 -> 971787.9491 | BZ49: 1620050.309 | CA49: 1620050.309 | CD49: 0.02112131849 | CE49: 370777.05 | CF49: 370.77705
A50: 0.7825965669 | B50: 1.753798017e-05 | C50: 0.5836684304 | D50: 9.279417682e-05 | E50: -0.2988553905 | F50: 0.0008314626577 | G50: 0.991507453 | H50: 0.03593373329 | I50: 0.6494480483 | J50: 0.007397298231 | K50: 0.8966601583 | L50: 0.007790715784 | M50: 0.5301245151 | N50: 0.009946729939 | O50: 0.2759976486 | P50: 0.01052095483 | Q50: 0.1393882614 | R50: 0.008196969717 | S50: 0.06986851694 | T50: 0.00489264093 | U50: 0.03495607885 | V50: 0.002584327253 | W50: 0.01748076767 | Y50: -4.342320604e-05 | Z50: 0.496459597 | AA50: -3.773868272e-05 | AB50: 0.3444218207 | AC50: -4.571842945e-05 | AD50: -0.9855404174 | AE50: -2.15448893e-05 | AF50: 0.7643769673 | AG50: -5.296542259e-05 | AH50: 0.9068762671 | AI50: 1.127315627e-08 | AJ50: 0.5378729121 | AK50: 5.918134504e-05 | AL50: 0.28015613 | AM50: 8.953887908e-05 | AN50: 0.1415019559 | AO50: 7.933319843e-05 | AP50: 0.07092963915 | AQ50: 5.006867219e-05 | AR50: 0.03548717335 | AS50: 2.714510827e-05 | AT50: 0.01774638156 | AV50: 2.163313206e-06 | AW50: -0.6282463779 | AX50: 2.369843723e-06 | AY50: 0.3300112161 | AZ50: 3.733462448e-06 | BA50: -0.9859534484 | BB50: 1.531937291e-06 | BC50: 0.7638511748 | BD50: 1.438489281e-06 | BE50: 0.9070282233 | BF50: 5.096371504e-07 | BG50: 0.5380201436 | BH50: 4.819576813e-06 | BI50: 0.2802392782 | BJ50: 7.012785782e-06 | BK50: 0.1415447412 | BL50: 6.142835407e-06 | BM50: 0.07095118382 | BN50: 3.858999501e-06 | BO50: 0.03549796471 | BP50: 2.087807317e-06 | BQ50: 0.01775177962 | BS50: 0.03990759609 | BT50: -1.685843013e-05 | BU50: 1.44422672e-06 | BW50: 0.7825965669 | BX50: 699148.3163 | BY50: =Forças!$Q$31 -> 971787.9491 | BZ50: 1670936.265 | CA50: 1670936.265 | CD50: 0.02333709296 | CE50: 409674.1634 | CF50: 409.6741634
A51: 0.8095826555 | B51: 1.753798017e-05 | C51: -0.005079299557 | D51: 9.279417682e-05 | E51: 0.0106660599 | F51: 0.0008314626577 | G51: 0.999644634 | H51: 0.03593373329 | I51: 0.7071067812 | J51: 0.007397298231 | K51: 0.913349952 | L51: 0.007790715784 | M51: 0.5466701253 | N51: 0.009946729939 | O51: 0.285420346 | P51: 0.01052095483 | Q51: 0.1442473811 | R51: 0.008196969717 | S51: 0.07231667534 | T51: 0.00489264093 | U51: 0.03618248686 | V51: 0.002584327253 | W51: 0.01809426289 | Y51: -4.342320604e-05 | Z51: -0.1085885152 | AA51: -3.773868272e-05 | AB51: 0.03745482649 | AC51: -4.571842945e-05 | AD51: -0.9999131146 | AE51: -2.15448893e-05 | AF51: 0.7114326076 | AG51: -5.296542259e-05 | AH51: 0.9227210672 | AI51: 1.127315627e-08 | AJ51: 0.5543209439 | AK51: 5.918134504e-05 | AL51: 0.2895668084 | AM51: 8.953887908e-05 | AN51: 0.1463595783 | AO51: 7.933319843e-05 | AP51: 0.07337761055 | AQ51: 5.006867219e-05 | AR51: 0.03671355799 | AS51: 2.714510827e-05 | AT51: 0.01835987387 | AV51: 2.163313206e-06 | AW51: -0.05095657494 | AX51: 2.369843723e-06 | AY51: 0.02215437887 | AZ51: 3.733462448e-06 | BA51: -0.9999424646 | BB51: 1.531937291e-06 | BC51: 0.7108595705 | BD51: 1.438489281e-06 | BE51: 0.9228600614 | BF51: 5.096371504e-07 | BG51: 0.5544663023 | BH51: 4.819576813e-06 | BI51: 0.2896497143 | BJ51: 7.012785782e-06 | BK51: 0.1464023331 | BL51: 6.142835407e-06 | BM51: 0.07339915139 | BN51: 3.858999501e-06 | BO51: 0.03672434887 | BP51: 2.087807317e-06 | BQ51: 0.01836527186 | BS51: 0.04242951419 | BT51: 2.322210994e-05 | BU51: 1.961731504e-06 | BW51: 0.8095826555 | BX51: 748036.6108 | BY51: =Forças!$Q$31 -> 971787.9491 | BZ51: 1719824.56 | CA51: 1719824.56 | CD51: 0.02540898648 | CE51: 446045.4993 | CF51: 446.0454993
A52: 0.836568744 | B52: 1.753798017e-05 | C52: -0.5918869097 | D52: 9.279417682e-05 | E52: 0.319143442 | F52: 0.0008314626577 | G52: 0.9831672464 | H52: 0.03593373329 | I52: 0.7604059656 | J52: 0.007397298231 | K52: 0.9286314263 | L52: 0.007790715784 | M52: 0.5630049837 | N52: 0.009946729939 | O52: 0.2948155341 | P52: 0.01052095483 | Q52: 0.1491030249 | R52: 0.008196969717 | S52: 0.0747643981 | T52: 0.00489264093 | U52: 0.03740884038 | V52: 0.002584327253 | W52: 0.01870775131 | Y52: -4.342320604e-05 | Z52: -0.6721595054 | AA52: -3.773868272e-05 | AB52: -0.2731785071 | AC52: -4.571842945e-05 | AD52: -0.9896646324 | AE52: -2.15448893e-05 | AF52: 0.6541020292 | AG52: -5.296542259e-05 | AH52: 0.9371430983 | AI52: 1.127315627e-08 | AJ52: 0.5705552745 | AK52: 5.918134504e-05 | AL52: 0.2989495777 | AM52: 8.953887908e-05 | AN52: 0.151213674 | AO52: 7.933319843e-05 | AP52: 0.07582513992 | AQ52: 5.006867219e-05 | AR52: 0.03793988734 | AS52: 2.714510827e-05 | AT52: 0.01897335926 | AV52: 2.163313206e-06 | AW52: 0.5457969077 | AX52: 2.369843723e-06 | AY52: -0.2878710834 | AZ52: 3.733462448e-06 | BA52: -0.9893095787 | BB52: 1.531937291e-06 | BC52: 0.6534852805 | BD52: 1.438489281e-06 | BE52: 0.9372689161 | BF52: 5.096371504e-07 | BG52: 0.5706987038 | BH52: 4.819576813e-06 | BI52: 0.2990322333 | BJ52: 7.012785782e-06 | BK52: 0.1512563972 | BL52: 6.142835407e-06 | BM52: 0.07584667681 | BN52: 3.858999501e-06 | BO52: 0.03795067772 | BP52: 2.087807317e-06 | BQ52: 0.0189787572 | BS52: 0.04476187476 | BT52: 6.068215183e-05 | BU52: 2.599095853e-06 | BW52: 0.836568744 | BX52: 793344.1665 | BY52: =Forças!$Q$31 -> 971787.9491 | BZ52: 1765132.116 | CA52: 1765132.116 | CD52: 0.02732422516 | CE52: 479666.8164 | CF52: 479.6668164
A53: 0.8635548325 | B53: 1.753798017e-05 | C53: -0.9526138378 | D53: 9.279417682e-05 | E53: 0.5963808404 | F53: 0.0008314626577 | G53: 0.9424810183 | H53: 0.03593373329 | I53: 0.8090169944 | J53: 0.007397298231 | K53: 0.9424810183 | L53: 0.007790715784 | M53: 0.579122793 | N53: 0.009946729939 | O53: 0.3041823072 | P53: 0.01052095483 | Q53: 0.1539550761 | R53: 0.008196969717 | S53: 0.07721167049 | T53: 0.00489264093 | U53: 0.03863513755 | V53: 0.002584327253 | W53: 0.01932123268 | Y53: -4.342320604e-05 | Z53: -0.9789884104 | AA53: -3.773868272e-05 | AB53: -0.557071225 | AC53: -4.571842945e-05 | AD53: -0.9550473225 | AE53: -2.15448893e-05 | AF53: 0.5927386943 | AG53: -5.296542259e-05 | AH53: 0.9501201226 | AI53: 1.127315627e-08 | AJ53: 0.5865696452 | AK53: 5.918134504e-05 | AL53: 0.3083035336 | AM53: 8.953887908e-05 | AN53: 0.1560641262 | AO53: 7.933319843e-05 | AP53: 0.07827221253 | AQ53: 5.006867219e-05 | AR53: 0.03916615955 | AS53: 2.714510827e-05 | AT53: 0.01958683751 | AV53: 2.163313206e-06 | AW53: 0.9340745225 | AX53: 2.369843723e-06 | AY53: -0.5697177182 | AZ53: 3.733462448e-06 | BA53: -0.9543166076 | BB53: 1.531937291e-06 | BC53: 0.5920820365 | BD53: 1.438489281e-06 | BE53: 0.9502325702 | BF53: 5.096371504e-07 | BG53: 0.5867110901 | BH53: 4.819576813e-06 | BI53: 0.308385931 | BJ53: 7.012785782e-06 | BK53: 0.1561068168 | BL53: 6.142835407e-06 | BM53: 0.07829374534 | BN53: 3.858999501e-06 | BO53: 0.03917694942 | BP53: 2.087807317e-06 | BQ53: 0.01959223539 | BS53: 0.04689410231 | BT53: 8.503171656e-05 | BU53: 2.934657838e-06 | BW53: 0.8635548325 | BX53: 833586.2219 | BY53: =Forças!$Q$31 -> 971787.9491 | BZ53: 1805374.171 | CA53: 1805374.171 | CD53: 0.02907100091 | CE53: 510330.8281 | CF53: 510.3308281
A54: 0.890540921 | B54: 1.753798017e-05 | C54: -0.949474658 | D54: 9.279417682e-05 | E54: 0.8152403269 | F54: 0.0008314626577 | G54: 0.8785877796 | H54: 0.03593373329 | I54: 0.8526401644 | J54: 0.007397298231 | K54: 0.9548773728 | L54: 0.007790715784 | M54: 0.5950173394 | N54: 0.009946729939 | O54: 0.3135197626 | P54: 0.01052095483 | Q54: 0.1588034176 | R54: 0.008196969717 | S54: 0.07965847776 | T54: 0.00489264093 | U54: 0.03986137655 | V54: 0.002584327253 | W54: 0.01993470678 | Y54: -4.342320604e-05 | Z54: -0.9118770172 | AA54: -3.773868272e-05 | AB54: -0.7864339302 | AC54: -4.571842945e-05 | AD54: -0.8969135778 | AE54: -2.15448893e-05 | AF54: 0.5277209283 | AG54: -5.296542259e-05 | AH54: 0.9616321305 | AI54: 1.127315627e-08 | AJ54: 0.6023578821 | AK54: 5.918134504e-05 | AL54: 0.3176277746 | AM54: 8.953887908e-05 | AN54: 0.1609108178 | AO54: 7.933319843e-05 | AP54: 0.08071881364 | AQ54: 5.006867219e-05 | AR54: 0.04039237277 | AS54: 2.714510827e-05 | AT54: 0.02020030839 | AV54: 2.163313206e-06 | AW54: 0.9655674177 | AX54: 2.369843723e-06 | AY54: -0.7957964134 | AZ54: 3.733462448e-06 | BA54: -0.8958251945 | BB54: 1.531937291e-06 | BC54: 0.5270284098 | BD54: 1.438489281e-06 | BE54: 0.9617310344 | BF54: 5.096371504e-07 | BG54: 0.602497288 | BH54: 4.819576813e-06 | BI54: 0.3177099058 | BJ54: 7.012785782e-06 | BK54: 0.1609534748 | BL54: 6.142835407e-06 | BM54: 0.08074034223 | BN54: 3.858999501e-06 | BO54: 0.04040316212 | BP54: 2.087807317e-06 | BQ54: 0.0202057062 | BS54: 0.04881594189 | BT54: 9.01647605e-05 | BU54: 2.710286718e-06 | BW54: 0.890540921 | BX54: 867822.5399 | BY54: =Forças!$Q$31 -> 971787.9491 | BZ54: 1839610.489 | CA54: 1839610.489 | CD54: 0.03063854426 | CE54: 537848.4805 | CF54: 537.8484805
A55: 0.9175270095 | B55: 1.753798017e-05 | C55: -0.5836684304 | D55: 9.279417682e-05 | E55: 0.9542984101 | F55: 0.0008314626577 | G55: 0.7930607939 | H55: 0.03593373329 | I55: 0.8910065242 | J55: 0.007397298231 | K55: 0.9658013757 | L55: 0.007790715784 | M55: 0.6106824953 | N55: 0.009946729939 | O55: 0.3228270003 | P55: 0.01052095483 | Q55: 0.1636479326 | R55: 0.008196969717 | S55: 0.08210480518 | T55: 0.00489264093 | U55: 0.04108755551 | V55: 0.002584327253 | W55: 0.02054817338 | Y55: -4.342320604e-05 | Z55: -0.496459597 | AA55: -3.773868272e-05 | AB55: -0.9388150028 | AC55: -4.571842945e-05 | AD55: -0.8166948442 | AE55: -2.15448893e-05 | AF55: 0.4594495873 | AG55: -5.296542259e-05 | AH55: 0.9716613714 | AI55: 1.127315627e-08 | AJ55: 0.6179138985 | AK55: 5.918134504e-05 | AL55: 0.3269214019 | AM55: 8.953887908e-05 | AN55: 0.1657536323 | AO55: 7.933319843e-05 | AP55: 0.0831649285 | AQ55: 5.006867219e-05 | AR55: 0.04161852517 | AS55: 2.714510827e-05 | AT55: 0.02081377166 | AV55: 2.163313206e-06 | AW55: 0.6282463779 | AX55: 2.369843723e-06 | AY55: -0.943977011 | AZ55: 3.733462448e-06 | BA55: -0.815275592 | BB55: 1.531937291e-06 | BC55: 0.4587254777 | BD55: 1.438489281e-06 | BE55: 0.9717465792 | BF55: 5.096371504e-07 | BG55: 0.6180512118 | BH55: 4.819576813e-06 | BI55: 0.3270032591 | BJ55: 7.012785782e-06 | BK55: 0.1657962546 | BL55: 6.142835407e-06 | BM55: 0.08318645275 | BN55: 3.858999501e-06 | BO55: 0.04162931397 | BP55: 2.087807317e-06 | BQ55: 0.0208191694 | BS55: 0.05051682873 | BT55: 7.640479359e-05 | BU55: 1.947607991e-06 | BW55: 0.9175270095 | BX55: 895910.4583 | BY55: =Forças!$Q$31 -> 971787.9491 | BZ55: 1867698.407 | CA55: 1867698.407 | CD55: 0.0320171908 | CE55: 562050.1182 | CF55: 562.0501182
A56: 0.944513098 | B56: 1.753798017e-05 | C56: 0.005079299557 | D56: 9.279417682e-05 | E56: 0.999943116 | F56: 0.0008314626577 | G56: 0.6880060195 | H56: 0.03593373329 | I56: 0.9238795325 | J56: 0.007397298231 | K56: 0.9752361828 | L56: 0.007790715784 | M56: 0.6261122215 | N56: 0.009946729939 | O56: 0.3321031233 | P56: 0.01052095483 | Q56: 0.1684885044 | R56: 0.008196969717 | S56: 0.084550638 | T56: 0.00489264093 | U56: 0.0423136726 | V56: 0.002584327253 | W56: 0.02116163223 | Y56: -4.342320604e-05 | Z56: 0.1085885152 | AA56: -3.773868272e-05 | AB56: -0.9992983218 | AC56: -4.571842945e-05 | AD56: -0.716366373 | AE56: -2.15448893e-05 | AF56: 0.3883455867 | AG56: -5.296542259e-05 | AH56: 0.9801923809 | AI56: 1.127315627e-08 | AJ56: 0.6332316974 | AK56: 5.918134504e-05 | AL56: 0.3361835199 | AM56: 8.953887908e-05 | AN56: 0.1705924527 | AO56: 7.933319843e-05 | AP56: 0.08561054238 | AQ56: 5.006867219e-05 | AR56: 0.04284461489 | AS56: 2.714510827e-05 | AT56: 0.0214272271 | AV56: 2.163313206e-06 | AW56: 0.05095657494 | AX56: 2.369843723e-06 | AY56: -0.9997545616 | AZ56: 3.733462448e-06 | BA56: -0.7146511987 | BB56: 1.531937291e-06 | BC56: 0.3875943505 | BD56: 1.438489281e-06 | BE56: 0.9802637611 | BF56: 5.096371504e-07 | BG56: 0.6333668651 | BH56: 4.819576813e-06 | BI56: 0.3362650951 | BJ56: 7.012785782e-06 | BK56: 0.1706350394 | BL56: 6.142835407e-06 | BM56: 0.08563206216 | BN56: 3.858999501e-06 | BO56: 0.04285540313 | BP56: 2.087807317e-06 | BQ56: 0.02143262477 | BS56: 0.0519861185 | BT56: 5.016108391e-05 | BU56: 9.52938248e-07 | BW56: 0.944513098 | BX56: 918472.3009 | BY56: =Forças!$Q$31 -> 971787.9491 | BZ56: 1890260.25 | CA56: 1890260.25 | CD56: 0.03319844072 | CE56: 582786.53 | CF56: 582.78653
A57: 0.9714991865 | B57: 1.753798017e-05 | C57: 0.5918869097 | D57: 9.279417682e-05 | E57: 0.9477064226 | F57: 0.0008314626577 | G57: 0.5660102535 | H57: 0.03593373329 | I57: 0.9510565163 | J57: 0.007397298231 | K57: 0.9831672464 | L57: 0.007790715784 | M57: 0.6413005695 | N57: 0.009946729939 | O57: 0.3413472374 | P57: 0.01052095483 | Q57: 0.1733250164 | R57: 0.008196969717 | S57: 0.0869959615 | T57: 0.00489264093 | U57: 0.04353972597 | V57: 0.002584327253 | W57: 0.02177508312 | Y57: -4.342320604e-05 | Z57: 0.6721595054 | AA57: -3.773868272e-05 | AB57: -0.9619633586 | AC57: -4.571842945e-05 | AD57: -0.5983985843 | AE57: -2.15448893e-05 | AF57: 0.3148473065 | AG57: -5.296542259e-05 | AH57: 0.9872120048 | AI57: 1.127315627e-08 | AJ57: 0.6483053735 | AK57: 5.918134504e-05 | AL57: 0.3454132358 | AM57: 8.953887908e-05 | AN57: 0.1754271627 | AO57: 7.933319843e-05 | AP57: 0.08805564055 | AQ57: 5.006867219e-05 | AR57: 0.04407064008 | AS57: 2.714510827e-05 | AT57: 0.02204067447 | AV57: 2.163313206e-06 | AW57: -0.5457969077 | AX57: 2.369843723e-06 | AY57: -0.9576691701 | AZ57: 3.733462448e-06 | BA57: -0.5964297211 | BB57: 1.531937291e-06 | BC57: 0.3140735753 | BD57: 1.438489281e-06 | BE57: 0.9872694473 | BF57: 5.096371504e-07 | BG57: 0.6484383434 | BH57: 4.819576813e-06 | BI57: 0.3454945212 | BJ57: 7.012785782e-06 | BK57: 0.1754697126 | BL57: 6.142835407e-06 | BM57: 0.08807715572 | BN57: 3.858999501e-06 | BO57: 0.04408142775 | BP57: 2.087807317e-06 | BQ57: 0.02204607206 | BS57: 0.05321415644 | BT57: 2.134977174e-05 | BU57: 2.0763243e-07 | BW57: 0.9714991865 | BX57: 936592.8701 | BY57: =Forças!$Q$31 -> 971787.9491 | BZ57: 1908380.819 | CA57: 1908380.819 | CD57: 0.0341750112 | CE57: 599929.8691 | CF57: 599.9298691
A58: 0.9984852751 | B58: 1.753798017e-05 | C58: 0.9526138378 | D58: 9.279417682e-05 | E58: 0.8027016215 | F58: 0.0008314626577 | G58: 0.4300774365 | H58: 0.03593373329 | I58: 0.9723699204 | J58: 0.007397298231 | K58: 0.9895823374 | L58: 0.007790715784 | M58: 0.656241684 | N58: 0.009946729939 | O58: 0.3505584518 | P58: 0.01052095483 | Q58: 0.178157352 | R58: 0.008196969717 | S58: 0.08944076094 | T58: 0.00489264093 | U58: 0.04476571376 | V58: 0.002584327253 | W58: 0.02238852581 | Y58: -4.342320604e-05 | Z58: 0.9789884104 | AA58: -3.773868272e-05 | AB58: -0.8304647194 | AC58: -4.571842945e-05 | AD58: -0.4656962364 | AE58: -2.15448893e-05 | AF58: 0.239407888 | AG58: -5.296542259e-05 | AH58: 0.9927094194 | AI58: 1.127315627e-08 | AJ58: 0.6631291154 | AK58: 5.918134504e-05 | AL58: 0.3546096601 | AM58: 8.953887908e-05 | AN58: 0.1802576456 | AO58: 7.933319843e-05 | AP58: 0.09050020828 | AQ58: 5.006867219e-05 | AR58: 0.04529659891 | AS58: 2.714510827e-05 | AT58: 0.02265411354 | AV58: 2.163313206e-06 | AW58: -0.9340745225 | AX58: 2.369843723e-06 | AY58: -0.8218404477 | AZ58: 3.733462448e-06 | BA58: -0.4635221643 | BB58: 1.531937291e-06 | BC58: 0.238616432 | BD58: 1.438489281e-06 | BE58: 0.9927528357 | BF58: 5.096371504e-07 | BG58: 0.6632598364 | BH58: 4.819576813e-06 | BI58: 0.3546906478 | BJ58: 7.012785782e-06 | BK58: 0.1803001578 | BL58: 6.142835407e-06 | BM58: 0.09052171872 | BN58: 3.858999501e-06 | BO58: 0.04530738598 | BP58: 2.087807317e-06 | BQ58: 0.02265951106 | BS58: 0.05419381654 | BT58: -4.201810658e-07 | BU58: 1.848349013e-07 | BW58: 0.9984852751 | BX58: 951364.6291 | BY58: =Forças!$Q$31 -> 971787.9491 | BZ58: 1923152.578 | CA58: 1923152.578 | CD58: 0.03494088138 | CE58: 613374.441 | CF58: 613.374441
A59: 1.025471364 | B59: 1.753798017e-05 | C59: 0.949474658 | D59: 9.279417682e-05 | E59: 0.579122793 | F59: 0.0008314626577 | G59: 0.2835546857 | H59: 0.03593373329 | I59: 0.9876883406 | J59: 0.007397298231 | K59: 0.9944715641 | L59: 0.007790715784 | M59: 0.6709298047 | N59: 0.009946729939 | O59: 0.3597358787 | P59: 0.01052095483 | Q59: 0.1829853947 | R59: 0.008196969717 | S59: 0.09188502159 | T59: 0.00489264093 | U59: 0.04599163414 | V59: 0.002584327253 | W59: 0.02300196008 | Y59: -4.342320604e-05 | Z59: 0.9118770172 | AA59: -3.773868272e-05 | AB59: -0.6176744074 | AC59: -4.571842945e-05 | AD59: -0.3215269017 | AE59: -2.15448893e-05 | AF59: 0.1624924402 | AG59: -5.296542259e-05 | AH59: 0.9966761479 | AI59: 1.127315627e-08 | AJ59: 0.6776972085 | AK59: 5.918134504e-05 | AL59: 0.3637719064 | AM59: 8.953887908e-05 | AN59: 0.1850837851 | AO59: 7.933319843e-05 | AP59: 0.09294423085 | AQ59: 5.006867219e-05 | AR59: 0.04652248952 | AS59: 2.714510827e-05 | AT59: 0.02326754408 | AV59: 2.163313206e-06 | AW59: -0.9655674177 | AX59: 2.369843723e-06 | AY59: -0.6055642562 | AZ59: 3.733462448e-06 | BA59: -0.3192011535 | BB59: 1.531937291e-06 | BC59: 0.1616881391 | BD59: 1.438489281e-06 | BE59: 0.9967054711 | BF59: 5.096371504e-07 | BG59: 0.67782563 | BH59: 4.819576813e-06 | BI59: 0.3638525886 | BJ59: 7.012785782e-06 | BK59: 0.1851262585 | BL59: 6.142835407e-06 | BM59: 0.09296573642 | BN59: 3.858999501e-06 | BO59: 0.04653327599 | BP59: 2.087807317e-06 | BQ59: 0.02327294153 | BS59: 0.05492193238 | BT59: -9.434127609e-06 | BU59: 1.162349247e-06 | BW59: 1.025471364 | BX59: 963454.9624 | BY59: =Forças!$Q$31 -> 971787.9491 | BZ59: 1935242.911 | CA59: 1935242.911 | CD59: 0.03549132941 | CE59: 623037.3555 | CF59: 623.0373555
A60: 1.052457452 | B60: 1.753798017e-05 | C60: 0.5836684304 | D60: 9.279417682e-05 | E60: 0.2988553905 | F60: 0.0008314626577 | G60: 0.1300498776 | H60: 0.03593373329 | I60: 0.9969173337 | J60: 0.007397298231 | K60: 0.9978273878 | L60: 0.007790715784 | M60: 0.6853592693 | N60: 0.009946729939 | O60: 0.3688786335 | P60: 0.01052095483 | Q60: 0.1878090283 | R60: 0.008196969717 | S60: 0.09432872874 | T60: 0.00489264093 | U60: 0.04721748525 | V60: 0.002584327253 | W60: 0.02361538568 | Y60: -4.342320604e-05 | Z60: 0.496459597 | AA60: -3.773868272e-05 | AB60: -0.3444218207 | AC60: -4.571842945e-05 | AD60: -0.1694405075 | AE60: -2.15448893e-05 | AF60: 0.08457517246 | AG60: -5.296542259e-05 | AH60: 0.9991060741 | AI60: 1.127315627e-08 | AJ60: 0.6920040364 | AK60: 5.918134504e-05 | AL60: 0.3728990915 | AM60: 8.953887908e-05 | AN60: 0.1899054648 | AO60: 7.933319843e-05 | AP60: 0.09538769352 | AQ60: 5.006867219e-05 | AR60: 0.04774831007 | AS60: 2.714510827e-05 | AT60: 0.02388096586 | AV60: 2.163313206e-06 | AW60: -0.6282463779 | AX60: 2.369843723e-06 | AY60: -0.3300112161 | AZ60: 3.733462448e-06 | BA60: -0.1670203509 | BB60: 1.531937291e-06 | BC60: 0.08376298499 | BD60: 1.438489281e-06 | BE60: 0.9991212589 | BF60: 5.096371504e-07 | BG60: 0.692130109 | BH60: 4.819576813e-06 | BI60: 0.3729794605 | BJ60: 7.012785782e-06 | BK60: 0.1899478985 | BL60: 6.142835407e-06 | BM60: 0.0954091941 | BN60: 3.858999501e-06 | BO60: 0.04775909591 | BP60: 2.087807317e-06 | BQ60: 0.02388636323 | BS60: 0.05540005193 | BT60: -5.866775797e-06 | BU60: 3.103469682e-06 | BW60: 1.052457452 | BX60: 972859.9954 | BY60: =Forças!$Q$31 -> 971787.9491 | BZ60: 1944647.944 | CA60: 1944647.944 | CD60: 0.03582296159 | CE60: 628859.0376 | CF60: 628.8590376
A61: 1.079443541 | B61: 1.753798017e-05 | C61: -0.005079299557 | D61: 9.279417682e-05 | E61: -0.0106660599 | F61: 0.0008314626577 | G61: -0.02665719024 | H61: 0.03593373329 | I61: 1 | J61: 0.007397298231 | K61: 0.999644634 | L61: 0.007790715784 | M61: 0.6995245148 | N61: 0.009946729939 | O61: 0.377985835 | P61: 0.01052095483 | Q61: 0.1926281366 | R61: 0.008196969717 | S61: 0.09677186766 | T61: 0.00489264093 | U61: 0.04844326526 | V61: 0.002584327253 | W61: 0.02422880239 | Y61: -4.342320604e-05 | Z61: -0.1085885152 | AA61: -3.773868272e-05 | AB61: -0.03745482649 | AC61: -4.571842945e-05 | AD61: -0.01318192573 | AE61: -2.15448893e-05 | AF61: 0.006136470674 | AG61: -5.296542259e-05 | AH61: 0.9999954512 | AI61: 1.127315627e-08 | AJ61: 0.7060440836 | AK61: 5.918134504e-05 | AL61: 0.3819903359 | AM61: 8.953887908e-05 | AN61: 0.1947225687 | AO61: 7.933319843e-05 | AP61: 0.09783058159 | AQ61: 5.006867219e-05 | AR61: 0.04897405871 | AS61: 2.714510827e-05 | AT61: 0.02449437865 | AV61: 2.163313206e-06 | AW61: -0.05095657494 | AX61: 2.369843723e-06 | AY61: -0.02215437887 | AZ61: 3.733462448e-06 | BA61: -0.01072695295 | BB61: 1.531937291e-06 | BC61: 0.005321404262 | BD61: 1.438489281e-06 | BE61: 0.9999964742 | BF61: 5.096371504e-07 | BG61: 0.7061677587 | BH61: 4.819576813e-06 | BI61: 0.3820703839 | BJ61: 7.012785782e-06 | BK61: 0.1947649615 | BL61: 6.142835407e-06 | BM61: 0.09785207705 | BN61: 3.858999501e-06 | BO61: 0.04898484391 | BP61: 2.087807317e-06 | BQ61: 0.02449977594 | BS61: 0.05563417784 | BT61: 4.562106323e-06 | BU61: 5.652274487e-06 | BW61: 1.079443541 | BX61: 978936.7942 | BY61: =Forças!$Q$31 -> 971787.9491 | BZ61: 1950724.743 | CA61: 1950724.743 | CD61: 0.03593373329 | CE61: 630803.5945 | CF61: 630.8035945
A62: 1.106429629 | B62: 1.753798017e-05 | C62: -0.5918869097 | D62: 9.279417682e-05 | E62: -0.319143442 | F62: 0.0008314626577 | G62: -0.1827078695 | H62: 0.03593373329 | I62: 0.9969173337 | J62: 0.007397298231 | K62: 0.9999205006 | L62: 0.007790715784 | M62: 0.7134200803 | N62: 0.009946729939 | O62: 0.3870566054 | P62: 0.01052095483 | Q62: 0.1974426033 | R62: 0.008196969717 | S62: 0.09921442363 | T62: 0.00489264093 | U62: 0.04966897231 | V62: 0.002584327253 | W62: 0.02484220998 | Y62: -4.342320604e-05 | Z62: -0.6721595054 | AA62: -3.773868272e-05 | AB62: 0.2731785071 | AC62: -4.571842945e-05 | AD62: 0.1434012388 | AE62: -2.15448893e-05 | AF62: -0.07234006449 | AG62: -5.296542259e-05 | AH62: 0.9993429077 | AI62: 1.127315627e-08 | AJ62: 0.7198119373 | AK62: 5.918134504e-05 | AL62: 0.3910447633 | AM62: 8.953887908e-05 | AN62: 0.1995349806 | AO62: 7.933319843e-05 | AP62: 0.1002728803 | AQ62: 5.006867219e-05 | AR62: 0.0501997336 | AS62: 2.714510827e-05 | AT62: 0.02510778222 | AV62: 2.163313206e-06 | AW62: 0.5457969077 | AX62: 2.369843723e-06 | AY62: 0.2878710834 | AZ62: 3.733462448e-06 | BA62: 0.1458305782 | BB62: 1.531937291e-06 | BC62: -0.07315298469 | BD62: 1.438489281e-06 | BE62: 0.9993297673 | BF62: 5.096371504e-07 | BG62: 0.7199331672 | BH62: 4.819576813e-06 | BI62: 0.3911244825 | BJ62: 7.012785782e-06 | BK62: 0.1995773316 | BL62: 6.142835407e-06 | BM62: 0.1002943705 | BN62: 3.858999501e-06 | BO62: 0.05021051814 | BP62: 2.087807317e-06 | BQ62: 0.02511317943 | BS62: 0.0556335176 | BT62: 1.311654742e-05 | BU62: 8.246689401e-06 | BW62: 1.106429629 | BX62: 980698.2241 | BY62: =Forças!$Q$31 -> 971787.9491 | BZ62: 1952486.173 | CA62: 1952486.173 | CD62: 0.03582296159 | CE62: 628859.0376 | CF62: 628.8590376
A63: 1.133415718 | B63: 1.753798017e-05 | C63: -0.9526138378 | D63: 9.279417682e-05 | E63: -0.5963808404 | F63: 0.0008314626577 | G63: -0.3342596747 | H63: 0.03593373329 | I63: 0.9876883406 | J63: 0.007397298231 | K63: 0.9986545622 | L63: 0.007790715784 | M63: 0.7270406088 | N63: 0.009946729939 | O63: 0.3960900705 | P63: 0.01052095483 | Q63: 0.2022523125 | R63: 0.008196969717 | S63: 0.1016563819 | T63: 0.00489264093 | U63: 0.05089460456 | V63: 0.002584327253 | W63: 0.02545560822 | Y63: -4.342320604e-05 | Z63: -0.9789884104 | AA63: -3.773868272e-05 | AB63: 0.557071225 | AC63: -4.571842945e-05 | AD63: 0.296453389 | AE63: -2.15448893e-05 | AF63: -0.1503705991 | AG63: -5.296542259e-05 | AH63: 0.9971494499 | AI63: 1.127315627e-08 | AJ63: 0.7333022898 | AK63: 5.918134504e-05 | AL63: 0.4000615009 | AM63: 8.953887908e-05 | AN63: 0.2043425845 | AO63: 7.933319843e-05 | AP63: 0.102714575 | AQ63: 5.006867219e-05 | AR63: 0.05142533288 | AS63: 2.714510827e-05 | AT63: 0.02572117634 | AV63: 2.163313206e-06 | AW63: 0.9340745225 | AX63: 2.369843723e-06 | AY63: 0.5697177182 | AZ63: 3.733462448e-06 | BA63: 0.2987972765 | BB63: 1.531937291e-06 | BC63: -0.1511763612 | BD63: 1.438489281e-06 | BE63: 0.9971221665 | BF63: 5.096371504e-07 | BG63: 0.7334210279 | BH63: 4.819576813e-06 | BI63: 0.4001408837 | BJ63: 7.012785782e-06 | BK63: 0.2043848927 | BL63: 6.142835407e-06 | BM63: 0.1027360599 | BN63: 3.858999501e-06 | BO63: 0.05143611675 | BP63: 2.087807317e-06 | BQ63: 0.02572657346 | BS63: 0.05540862709 | BT63: 1.176230213e-05 | BU63: 1.030803354e-05 | BW63: 1.133415718 | BX63: 977253.5152 | BY63: =Forças!$Q$31 -> 971787.9491 | BZ63: 1949041.464 | CA63: 1949041.464 | CD63: 0.03549132941 | CE63: 623037.3555 | CF63: 623.0373555
A64: 1.160401806 | B64: 1.753798017e-05 | C64: -0.949474658 | D64: 9.279417682e-05 | E64: -0.8152403269 | F64: 0.0008314626577 | G64: -0.4775808974 | H64: 0.03593373329 | I64: 0.9723699204 | J64: 0.007397298231 | K64: 0.9958487709 | L64: 0.007790715784 | M64: 0.7403808493 | N64: 0.009946729939 | O64: 0.4050853596 | P64: 0.01052095483 | Q64: 0.2070571483 | R64: 0.008196969717 | S64: 0.1040977279 | T64: 0.00489264093 | U64: 0.05212016017 | V64: 0.002584327253 | W64: 0.02606899687 | Y64: -4.342320604e-05 | Z64: -0.9118770172 | AA64: -3.773868272e-05 | AB64: 0.7864339302 | AC64: -4.571842945e-05 | AD64: 0.4422058728 | AE64: -2.15448893e-05 | AF64: -0.227474049 | AG64: -5.296542259e-05 | AH64: 0.9934184599 | AI64: 1.127315627e-08 | AJ64: 0.7465099404 | AK64: 5.918134504e-05 | AL64: 0.4090396798 | AM64: 8.953887908e-05 | AN64: 0.2091452647 | AO64: 7.933319843e-05 | AP64: 0.105155651 | AQ64: 5.006867219e-05 | AR64: 0.05265085472 | AS64: 2.714510827e-05 | AT64: 0.02633456077 | AV64: 2.163313206e-06 | AW64: 0.9655674177 | AX64: 2.369843723e-06 | AY64: 0.7957964134 | AZ64: 3.733462448e-06 | BA64: 0.4444065941 | BB64: 1.531937291e-06 | BC64: -0.2282676851 | BD64: 1.438489281e-06 | BE64: 0.9933770755 | BF64: 5.096371504e-07 | BG64: 0.7466261407 | BH64: 4.819576813e-06 | BI64: 0.4091187186 | BJ64: 7.012785782e-06 | BK64: 0.209187529 | BL64: 6.142835407e-06 | BM64: 0.1051771303 | BN64: 3.858999501e-06 | BO64: 0.0526616379 | BP64: 2.087807317e-06 | BQ64: 0.0263399578 | BS64: 0.05496955195 | BT64: -3.379326775e-06 | BU64: 1.143675834e-05 | BW64: 1.160401806 | BX64: 968221.4116 | BY64: =Forças!$Q$31 -> 971787.9491 | BZ64: 1940009.361 | CA64: 1940009.361 | CD64: 0.03494088138 | CE64: 613374.441 | CF64: 613.374441
A65: 1.187387895 | B65: 1.753798017e-05 | C65: -0.5836684304 | D65: 9.279417682e-05 | E65: -0.9542984101 | F65: 0.0008314626577 | G65: -0.6091424933 | H65: 0.03593373329 | I65: 0.9510565163 | J65: 0.007397298231 | K65: 0.991507453 | L65: 0.007790715784 | M65: 0.7534356589 | N65: 0.009946729939 | O65: 0.4140416057 | P65: 0.01052095483 | Q65: 0.211856995 | R65: 0.008196969717 | S65: 0.1065384467 | T65: 0.00489264093 | U65: 0.05334563728 | V65: 0.002584327253 | W65: 0.0266823757 | Y65: -4.342320604e-05 | Z65: -0.496459597 | AA65: -3.773868272e-05 | AB65: 0.9388150028 | AC65: -4.571842945e-05 | AD65: 0.5770697804 | AE65: -2.15448893e-05 | AF65: -0.3031750457 | AG65: -5.296542259e-05 | AH65: 0.9881556907 | AI65: 1.127315627e-08 | AJ65: 0.7594297971 | AK65: 5.918134504e-05 | AL65: 0.4179784346 | AM65: 8.953887908e-05 | AN65: 0.2139429054 | AO65: 7.933319843e-05 | AP65: 0.1075960935 | AQ65: 5.006867219e-05 | AR65: 0.05387629727 | AS65: 2.714510827e-05 | AT65: 0.02694793528 | AV65: 2.163313206e-06 | AW65: 0.6282463779 | AX65: 2.369843723e-06 | AY65: 0.943977011 | AZ65: 3.733462448e-06 | BA65: 0.5790731466 | BB65: 1.531937291e-06 | BC65: -0.3039516629 | BD65: 1.438489281e-06 | BE65: 0.988100269 | BF65: 5.096371504e-07 | BG65: 0.7595434149 | BH65: 4.819576813e-06 | BI65: 0.4180571217 | BJ65: 7.012785782e-06 | BK65: 0.2139851248 | BL65: 6.142835407e-06 | BM65: 0.1076175672 | BN65: 3.858999501e-06 | BO65: 0.05388707975 | BP65: 2.087807317e-06 | BQ65: 0.02695333223 | BS65: 0.05432456904 | BT65: -3.019445256e-05 | BU65: 1.154173866e-05 | BW65: 1.187387895 | BX65: 953953.1644 | BY65: =Forças!$Q$31 -> 971787.9491 | BZ65: 1925741.113 | CA65: 1925741.113 | CD65: 0.0341750112 | CE65: 599929.8691 | CF65: 599.9298691
A66: 1.214373983 | B66: 1.753798017e-05 | C66: 0.005079299557 | D66: 9.279417682e-05 | E66: -0.999943116 | F66: 0.0008314626577 | G66: -0.7257049794 | H66: 0.03593373329 | I66: 0.9238795325 | J66: 0.007397298231 | K66: 0.9856373025 | L66: 0.007790715784 | M66: 0.7662000046 | N66: 0.009946729939 | O66: 0.4229579457 | P66: 0.01052095483 | Q66: 0.2166517368 | R66: 0.008196969717 | S66: 0.1089785238 | T66: 0.00489264093 | U66: 0.05457103406 | V66: 0.002584327253 | W66: 0.0272957445 | Y66: -4.342320604e-05 | Z66: 0.1085885152 | AA66: -3.773868272e-05 | AB66: 0.9992983218 | AC66: -4.571842945e-05 | AD66: 0.6977243149 | AE66: -2.15448893e-05 | AF66: -0.3770068674 | AG66: -5.296542259e-05 | AH66: 0.981369257 | AI66: 1.127315627e-08 | AJ66: 0.7720568792 | AK66: 5.918134504e-05 | AL66: 0.4268769037 | AM66: 8.953887908e-05 | AN66: 0.218735391 | AO66: 7.933319843e-05 | AP66: 0.1100358879 | AQ66: 5.006867219e-05 | AR66: 0.05510165869 | AS66: 2.714510827e-05 | AT66: 0.02756129965 | AV66: 2.163313206e-06 | AW66: 0.05095657494 | AX66: 2.369843723e-06 | AY66: 0.9997545616 | AZ66: 3.733462448e-06 | BA66: 0.6994809963 | BB66: 1.531937291e-06 | BC66: -0.3777616776 | BD66: 1.438489281e-06 | BE66: 0.9812998836 | BF66: 5.096371504e-07 | BG66: 0.7721678708 | BH66: 4.819576813e-06 | BI66: 0.4269552316 | BJ66: 7.012785782e-06 | BK66: 0.2187775645 | BL66: 6.142835407e-06 | BM66: 0.1100573558 | BN66: 3.858999501e-06 | BO66: 0.05511244044 | BP66: 2.087807317e-06 | BQ66: 0.02756669651 | BS66: 0.05347990672 | BT66: -6.108869499e-05 | BU66: 1.085567151e-05 | BW66: 1.214373983 | BX66: 935475.6108 | BY66: =Forças!$Q$31 -> 971787.9491 | BZ66: 1907263.56 | CA66: 1907263.56 | CD66: 0.03319844072 | CE66: 582786.53 | CF66: 582.78653
A67: 1.241360072 | B67: 1.753798017e-05 | C67: 0.5918869097 | D67: 9.279417682e-05 | E67: -0.9477064226 | F67: 0.0008314626577 | G67: -0.8243982005 | H67: 0.03593373329 | I67: 0.8910065242 | J67: 0.007397298231 | K67: 0.9782473706 | L67: 0.007790715784 | M67: 0.7786689657 | N67: 0.009946729939 | O67: 0.4318335201 | P67: 0.01052095483 | Q67: 0.2214412582 | R67: 0.008196969717 | S67: 0.1114179444 | T67: 0.00489264093 | U67: 0.05579634865 | V67: 0.002584327253 | W67: 0.02790910301 | Y67: -4.342320604e-05 | Z67: 0.6721595054 | AA67: -3.773868272e-05 | AB67: 0.9619633586 | AC67: -4.571842945e-05 | AD67: 0.8011985611 | AE67: -2.15448893e-05 | AF67: -0.4485143165 | AG67: -5.296542259e-05 | AH67: 0.973069623 | AI67: 1.127315627e-08 | AJ67: 0.7843863187 | AK67: 5.918134504e-05 | AL67: 0.4357342296 | AM67: 8.953887908e-05 | AN67: 0.2235226061 | AO67: 7.933319843e-05 | AP67: 0.1124750194 | AQ67: 5.006867219e-05 | AR67: 0.05632693712 | AS67: 2.714510827e-05 | AT67: 0.02817465365 | AV67: 2.163313206e-06 | AW67: -0.5457969077 | AX67: 2.369843723e-06 | AY67: 0.9576691701 | AZ67: 3.733462448e-06 | BA67: 0.8026653025 | BB67: 1.531937291e-06 | BC67: -0.4492426659 | BD67: 1.438489281e-06 | BE67: 0.9729864048 | BF67: 5.096371504e-07 | BG67: 0.7844946411 | BH67: 4.819576813e-06 | BI67: 0.4358121907 | BJ67: 7.012785782e-06 | BK67: 0.2235647327 | BL67: 6.142835407e-06 | BM67: 0.1124964814 | BN67: 3.858999501e-06 | BO67: 0.05633771813 | BP67: 2.087807317e-06 | BQ67: 0.02818005041 | BS67: 0.05244046164 | BT67: -8.567777717e-05 | BU67: 9.832274931e-06 | BW67: 1.241360072 | BX67: 914172.2437 | BY67: =Forças!$Q$31 -> 971787.9491 | BZ67: 1885960.193 | CA67: 1885960.193 | CD67: 0.0320171908 | CE67: 562050.1182 | CF67: 562.0501182
A68: 1.26834616 | B68: 1.753798017e-05 | C68: 0.9526138378 | D68: 9.279417682e-05 | E68: -0.8027016215 | F68: 0.0008314626577 | G68: -0.9027920018 | H68: 0.03593373329 | I68: 0.8526401644 | J68: 0.007397298231 | K68: 0.9693490523 | L68: 0.007790715784 | M68: 0.7908377351 | N68: 0.009946729939 | O68: 0.4406674734 | P68: 0.01052095483 | Q68: 0.2262254439 | R68: 0.008196969717 | S68: 0.1138566939 | T68: 0.00489264093 | U68: 0.05702157921 | V68: 0.002584327253 | W68: 0.02852245102 | Y68: -4.342320604e-05 | Z68: 0.9789884104 | AA68: -3.773868272e-05 | AB68: 0.8304647194 | AC68: -4.571842945e-05 | AD68: 0.8849446397 | AE68: -2.15448893e-05 | AF68: -0.5172565256 | AG68: -5.296542259e-05 | AH68: 0.9632695863 | AI68: 1.127315627e-08 | AJ68: 0.7964133623 | AK68: 5.918134504e-05 | AL68: 0.4445495585 | AM68: 8.953887908e-05 | AN68: 0.2283044352 | AO68: 7.933319843e-05 | AP68: 0.1149134733 | AQ68: 5.006867219e-05 | AR68: 0.05755213072 | AS68: 2.714510827e-05 | AT68: 0.02878799703 | AV68: 2.163313206e-06 | AW68: -0.9340745225 | AX68: 2.369843723e-06 | AY68: 0.8218404477 | AZ68: 3.733462448e-06 | BA68: 0.886085325 | BB68: 1.531937291e-06 | BC68: -0.5179539238 | BD68: 1.438489281e-06 | BE68: 0.9631726516 | BF68: 5.096371504e-07 | BG68: 0.7965189739 | BH68: 4.819576813e-06 | BI68: 0.4446271452 | BJ68: 7.012785782e-06 | BK68: 0.2283465138 | BL68: 6.142835407e-06 | BM68: 0.1149349293 | BN68: 3.858999501e-06 | BO68: 0.05756291098 | BP68: 2.087807317e-06 | BQ68: 0.0287933937 | BS68: 0.05121116872 | BT68: -9.464587766e-05 | BU68: 8.965616749e-06 | BW68: 1.26834616 | BX68: 891321.3186 | BY68: =Forças!$Q$31 -> 971787.9491 | BZ68: 1863109.268 | CA68: 1863109.268 | CD68: 0.03063854426 | CE68: 537848.4805 | CF68: 537.8484805
A69: 1.295332249 | B69: 1.753798017e-05 | C69: 0.949474658 | D69: 9.279417682e-05 | E69: -0.579122793 | F69: 0.0008314626577 | G69: -0.9589560679 | H69: 0.03593373329 | I69: 0.8090169944 | J69: 0.007397298231 | K69: 0.9589560679 | L69: 0.007790715784 | M69: 0.8027016215 | N69: 0.009946729939 | O69: 0.4494589543 | P69: 0.01052095483 | Q69: 0.2310041785 | R69: 0.008196969717 | S69: 0.1162947574 | T69: 0.00489264093 | U69: 0.0582467239 | V69: 0.002584327253 | W69: 0.02913578829 | Y69: -4.342320604e-05 | Z69: 0.9118770172 | AA69: -3.773868272e-05 | AB69: 0.6176744074 | AC69: -4.571842945e-05 | AD69: 0.9469004443 | AE69: -2.15448893e-05 | AF69: -0.5828096762 | AG69: -5.296542259e-05 | AH69: 0.9519842576 | AI69: 1.127315627e-08 | AJ69: 0.8081333734 | AK69: 5.918134504e-05 | AL69: 0.4533220408 | AM69: 8.953887908e-05 | AN69: 0.2330807631 | AO69: 7.933319843e-05 | AP69: 0.1173512351 | AQ69: 5.006867219e-05 | AR69: 0.05877723765 | AS69: 2.714510827e-05 | AT69: 0.02940132958 | AV69: 2.163313206e-06 | AW69: -0.9655674177 | AX69: 2.369843723e-06 | AY69: 0.6055642562 | AZ69: 3.733462448e-06 | BA69: 0.9476869861 | BB69: 1.531937291e-06 | BC69: -0.5834718235 | BD69: 1.438489281e-06 | BE69: 0.9518737559 | BF69: 5.096371504e-07 | BG69: 0.8082362335 | BH69: 4.819576813e-06 | BI69: 0.4533992457 | BJ69: 7.012785782e-06 | BK69: 0.2331227928 | BL69: 6.142835407e-06 | BM69: 0.1173726849 | BN69: 3.858999501e-06 | BO69: 0.05878801714 | BP69: 2.087807317e-06 | BQ69: 0.02940672615 | BS69: 0.04979845429 | BT69: -8.330536387e-05 | BU69: 8.601039132e-06 | BW69: 1.295332249 | BX69: 867665.9338 | BY69: =Forças!$Q$31 -> 971787.9491 | BZ69: 1839453.883 | CA69: 1839453.883 | CD69: 0.02907100091 | CE69: 510330.8281 | CF69: 510.3308281
A70: 1.322318337 | B70: 1.753798017e-05 | C70: 0.5836684304 | D70: 9.279417682e-05 | E70: -0.2988553905 | F70: 0.0008314626577 | G70: -0.991507453 | H70: 0.03593373329 | I70: 0.7604059656 | J70: 0.007397298231 | K70: 0.9470844428 | L70: 0.007790715784 | M70: 0.8142560511 | N70: 0.009946729939 | O70: 0.4582071155 | P70: 0.01052095483 | Q70: 0.2357773469 | R70: 0.008196969717 | S70: 0.1187321204 | T70: 0.00489264093 | U70: 0.05947178087 | V70: 0.002584327253 | W70: 0.02974911459 | Y70: -4.342320604e-05 | Z70: 0.496459597 | AA70: -3.773868272e-05 | AB70: 0.3444218207 | AC70: -4.571842945e-05 | AD70: 0.9855404174 | AE70: -2.15448893e-05 | AF70: -0.6447696114 | AG70: -5.296542259e-05 | AH70: 0.9392310382 | AI70: 1.127315627e-08 | AJ70: 0.8195418337 | AK70: 5.918134504e-05 | AL70: 0.462050831 | AM70: 8.953887908e-05 | AN70: 0.2378514748 | AO70: 7.933319843e-05 | AP70: 0.1197882899 | AQ70: 5.006867219e-05 | AR70: 0.06000225607 | AS70: 2.714510827e-05 | AT70: 0.03001465106 | AV70: 2.163313206e-06 | AW70: -0.6282463779 | AX70: 2.369843723e-06 | AY70: 0.3300112161 | AZ70: 3.733462448e-06 | BA70: 0.9859534484 | BB70: 1.531937291e-06 | BC70: -0.6453924254 | BD70: 1.438489281e-06 | BE70: 0.9391071399 | BF70: 5.096371504e-07 | BG70: 0.8196419026 | BH70: 4.819576813e-06 | BI70: 0.4621276467 | BJ70: 7.012785782e-06 | BK70: 0.2378934546 | BL70: 6.142835407e-06 | BM70: 0.1198097334 | BN70: 3.858999501e-06 | BO70: 0.06001303477 | BP70: 2.087807317e-06 | BQ70: 0.03002004753 | BS70: 0.04821119597 | BT70: -5.349537685e-05 | BU70: 8.809709638e-06 | BW70: 1.322318337 | BX70: 843180.1745 | BY70: =Forças!$Q$31 -> 971787.9491 | BZ70: 1814968.124 | CA70: 1814968.124 | CD70: 0.02732422516 | CE70: 479666.8164 | CF70: 479.6668164
A71: 1.349304426 | B71: 1.753798017e-05 | C71: -0.005079299557 | D71: 9.279417682e-05 | E71: 0.0106660599 | F71: 0.0008314626577 | G71: -0.999644634 | H71: 0.03593373329 | I71: 0.7071067812 | J71: 0.007397298231 | K71: 0.9337524822 | L71: 0.007790715784 | M71: 0.8254965696 | N71: 0.009946729939 | O71: 0.4669111137 | P71: 0.01052095483 | Q71: 0.2405448341 | R71: 0.008196969717 | S71: 0.1211687682 | T71: 0.00489264093 | U71: 0.06069674828 | V71: 0.002584327253 | W71: 0.03036242969 | Y71: -4.342320604e-05 | Z71: -0.1085885152 | AA71: -3.773868272e-05 | AB71: 0.03745482649 | AC71: -4.571842945e-05 | AD71: 0.9999131146 | AE71: -2.15448893e-05 | AF71: -0.7027543275 | AG71: -5.296542259e-05 | AH71: 0.9250295927 | AI71: 1.127315627e-08 | AJ71: 0.830634345 | AK71: 5.918134504e-05 | AL71: 0.4707350877 | AM71: 8.953887908e-05 | AN71: 0.2426164554 | AO71: 7.933319843e-05 | AP71: 0.1222246231 | AQ71: 5.006867219e-05 | AR71: 0.06122718412 | AS71: 2.714510827e-05 | AT71: 0.03062796124 | AV71: 2.163313206e-06 | AW71: -0.05095657494 | AX71: 2.369843723e-06 | AY71: 0.02215437887 | AZ71: 3.733462448e-06 | BA71: 0.9999424646 | BB71: 1.531937291e-06 | BC71: -0.7033339684 | BD71: 1.438489281e-06 | BE71: 0.9248924887 | BF71: 5.096371504e-07 | BG71: 0.8307315841 | BH71: 4.819576813e-06 | BI71: 0.4708115068 | BJ71: 7.012785782e-06 | BK71: 0.2426583841 | BL71: 6.142835407e-06 | BM71: 0.1222460603 | BN71: 3.858999501e-06 | BO71: 0.06123796201 | BP71: 2.087807317e-06 | BQ71: 0.03063335761 | BS71: 0.04646082537 | BT71: -1.308137224e-05 | BU71: 9.373905828e-06 | BW71: 1.349304426 | BX71: 817121.8498 | BY71: =Forças!$Q$31 -> 971787.9491 | BZ71: 1788909.799 | CA71: 1788909.799 | CD71: 0.02540898648 | CE71: 446045.4993 | CF71: 446.0454993
A72: 1.376290514 | B72: 1.753798017e-05 | C72: -0.5918869097 | D72: 9.279417682e-05 | E72: 0.319143442 | F72: 0.0008314626577 | G72: -0.9831672464 | H72: 0.03593373329 | I72: 0.6494480483 | J72: 0.007397298231 | K72: 0.9189807429 | L72: 0.007790715784 | M72: 0.8364188434 | N72: 0.009946729939 | O72: 0.47557011 | P72: 0.01052095483 | Q72: 0.2453065252 | R72: 0.008196969717 | S72: 0.1236046861 | T72: 0.00489264093 | U72: 0.06192162428 | V72: 0.002584327253 | W72: 0.03097573335 | Y72: -4.342320604e-05 | Z72: -0.6721595054 | AA72: -3.773868272e-05 | AB72: -0.2731785071 | AC72: -4.571842945e-05 | AD72: 0.9896646324 | AE72: -2.15448893e-05 | AF72: -0.7564063295 | AG72: -5.296542259e-05 | AH72: 0.9094018185 | AI72: 1.127315627e-08 | AJ72: 0.841406631 | AK72: 5.918134504e-05 | AL72: 0.479373974 | AM72: 8.953887908e-05 | AN72: 0.2473755899 | AO72: 7.933319843e-05 | AP72: 0.1246602201 | AQ72: 5.006867219e-05 | AR72: 0.06245201996 | AS72: 2.714510827e-05 | AT72: 0.03124125988 | AV72: 2.163313206e-06 | AW72: 0.5457969077 | AX72: 2.369843723e-06 | AY72: -0.2878710834 | AZ72: 3.733462448e-06 | BA72: 0.9893095787 | BB72: 1.531937291e-06 | BC72: -0.7569392236 | BD72: 1.438489281e-06 | BE72: 0.9092517204 | BF72: 5.096371504e-07 | BG72: 0.8415010028 | BH72: 4.819576813e-06 | BI72: 0.4794499891 | BJ72: 7.012785782e-06 | BK72: 0.2474174667 | BL72: 6.142835407e-06 | BM72: 0.1246816507 | BN72: 3.858999501e-06 | BO72: 0.06246279704 | BP72: 2.087807317e-06 | BQ72: 0.03124665616 | BS72: 0.04456055826 | BT72: 2.677449001e-05 | BU72: 9.887307445e-06 | BW72: 1.376290514 | BX72: 788354.0322 | BY72: =Forças!$Q$31 -> 971787.9491 | BZ72: 1760141.981 | CA72: 1760141.981 | CD72: 0.02333709296 | CE72: 409674.1634 | CF72: 409.6741634
A73: 1.403276603 | B73: 1.753798017e-05 | C73: -0.9526138378 | D73: 9.279417682e-05 | E73: 0.5963808404 | F73: 0.0008314626577 | G73: -0.9424810183 | H73: 0.03593373329 | I73: 0.5877852523 | J73: 0.007397298231 | K73: 0.9027920018 | L73: 0.007790715784 | M73: 0.8470186618 | N73: 0.009946729939 | O73: 0.4841832698 | P73: 0.01052095483 | Q73: 0.2500623054 | R73: 0.008196969717 | S73: 0.1260398594 | T73: 0.00489264093 | U73: 0.06314640703 | V73: 0.002584327253 | W73: 0.03158902536 | Y73: -4.342320604e-05 | Z73: -0.9789884104 | AA73: -3.773868272e-05 | AB73: -0.557071225 | AC73: -4.571842945e-05 | AD73: 0.9550473225 | AE73: -2.15448893e-05 | AF73: -0.805394835 | AG73: -5.296542259e-05 | AH73: 0.8923718127 | AI73: 1.127315627e-08 | AJ73: 0.8518545387 | AK73: 5.918134504e-05 | AL73: 0.4879666573 | AM73: 8.953887908e-05 | AN73: 0.2521287637 | AO73: 7.933319843e-05 | AP73: 0.1270950661 | AQ73: 5.006867219e-05 | AR73: 0.06367676175 | AS73: 2.714510827e-05 | AT73: 0.03185454677 | AV73: 2.163313206e-06 | AW73: 0.9340745225 | AX73: 2.369843723e-06 | AY73: -0.5697177182 | AZ73: 3.733462448e-06 | BA73: 0.9543166076 | BB73: 1.531937291e-06 | BC73: -0.8058776967 | BD73: 1.438489281e-06 | BE73: 0.8922089518 | BF73: 5.096371504e-07 | BG73: 0.8519460069 | BH73: 4.819576813e-06 | BI73: 0.488042261 | BJ73: 7.012785782e-06 | BK73: 0.2521705875 | BL73: 6.142835407e-06 | BM73: 0.12711649 | BN73: 3.858999501e-06 | BO73: 0.063687538 | BP73: 2.087807317e-06 | BQ73: 0.03185994294 | BS73: 0.04252408623 | BT73: 5.555719565e-05 | BU73: 9.930240014e-06 | BW73: 1.403276603 | BX73: 755815.809 | BY73: =Forças!$Q$31 -> 971787.9491 | BZ73: 1727603.758 | CA73: 1727603.758 | CD73: 0.02112131849 | CE73: 370777.05 | CF73: 370.77705
A74: 1.430262691 | B74: 1.753798017e-05 | C74: -0.949474658 | D74: 9.279417682e-05 | E74: 0.8152403269 | F74: 0.0008314626577 | G74: -0.8785877796 | H74: 0.03593373329 | I74: 0.5224985647 | J74: 0.007397298231 | K74: 0.885211221 | L74: 0.007790715784 | M74: 0.8572919383 | N74: 0.009946729939 | O74: 0.4927497631 | P74: 0.01052095483 | Q74: 0.2548120603 | R74: 0.008196969717 | S74: 0.1284742734 | T74: 0.00489264093 | U74: 0.06437109468 | V74: 0.002584327253 | W74: 0.03220230547 | Y74: -4.342320604e-05 | Z74: -0.9118770172 | AA74: -3.773868272e-05 | AB74: -0.7864339302 | AC74: -4.571842945e-05 | AD74: 0.8969135778 | AE74: -2.15448893e-05 | AF74: -0.8494178135 | AG74: -5.296542259e-05 | AH74: 0.8739658342 | AI74: 1.127315627e-08 | AJ74: 0.8619740403 | AK74: 5.918134504e-05 | AL74: 0.4965123093 | AM74: 8.953887908e-05 | AN74: 0.2568758624 | AO74: 7.933319843e-05 | AP74: 0.1295291465 | AQ74: 5.006867219e-05 | AR74: 0.06490140765 | AS74: 2.714510827e-05 | AT74: 0.03246782166 | AV74: 2.163313206e-06 | AW74: 0.9655674177 | AX74: 2.369843723e-06 | AY74: -0.7957964134 | AZ74: 3.733462448e-06 | BA74: 0.8958251945 | BB74: 1.531937291e-06 | BC74: -0.8498476659 | BD74: 1.438489281e-06 | BE74: 0.8737904617 | BF74: 5.096371504e-07 | BG74: 0.8620625695 | BH74: 4.819576813e-06 | BI74: 0.4965874944 | BJ74: 7.012785782e-06 | BK74: 0.2569176322 | BL74: 6.142835407e-06 | BM74: 0.1295505636 | BN74: 3.858999501e-06 | BO74: 0.06491218304 | BP74: 2.087807317e-06 | BQ74: 0.03247321772 | BS74: 0.04036427874 | BT74: 6.708195863e-05 | BU74: 9.250956913e-06 | BW74: 1.430262691 | BX74: 718966.1598 | BY74: =Forças!$Q$31 -> 971787.9491 | BZ74: 1690754.109 | CA74: 1690754.109 | CD74: 0.01877532407 | CE74: 329593.9728 | CF74: 329.5939728
A75: 1.45724878 | B75: 1.753798017e-05 | C75: -0.5836684304 | D75: 9.279417682e-05 | E75: 0.9542984101 | F75: 0.0008314626577 | G75: -0.7930607939 | H75: 0.03593373329 | I75: 0.4539904997 | J75: 0.007397298231 | K75: 0.8662655086 | L75: 0.007790715784 | M75: 0.8672347125 | N75: 0.009946729939 | O75: 0.5012687642 | P75: 0.01052095483 | Q75: 0.2595556753 | R75: 0.008196969717 | S75: 0.1309079135 | T75: 0.00489264093 | U75: 0.06559568539 | V75: 0.002584327253 | W75: 0.03281557346 | Y75: -4.342320604e-05 | Z75: -0.496459597 | AA75: -3.773868272e-05 | AB75: -0.9388150028 | AC75: -4.571842945e-05 | AD75: 0.8166948442 | AE75: -2.15448893e-05 | AF75: -0.8882038487 | AG75: -5.296542259e-05 | AH75: 0.8542122637 | AI75: 1.127315627e-08 | AJ75: 0.8717612344 | AK75: 5.918134504e-05 | AL75: 0.5050101064 | AM75: 8.953887908e-05 | AN75: 0.2616167714 | AO75: 7.933319843e-05 | AP75: 0.1319624466 | AQ75: 5.006867219e-05 | AR75: 0.06612595581 | AS75: 2.714510827e-05 | AT75: 0.03308108433 | AV75: 2.163313206e-06 | AW75: 0.6282463779 | AX75: 2.369843723e-06 | AY75: -0.943977011 | AZ75: 3.733462448e-06 | BA75: 0.815275592 | BB75: 1.531937291e-06 | BC75: -0.8885780416 | BD75: 1.438489281e-06 | BE75: 0.85402465 | BF75: 5.096371504e-07 | BG75: 0.8718467906 | BH75: 4.819576813e-06 | BI75: 0.5050848656 | BJ75: 7.012785782e-06 | BK75: 0.2616584862 | BL75: 6.142835407e-06 | BM75: 0.1319838568 | BN75: 3.858999501e-06 | BO75: 0.06613673033 | BP75: 2.087807317e-06 | BQ75: 0.03308648028 | BS75: 0.03809244263 | BT75: 6.154175205e-05 | BU75: 7.881706613e-06 | BW75: 1.45724878 | BX75: 678035.2365 | BY75: =Forças!$Q$31 -> 971787.9491 | BZ75: 1649823.186 | CA75: 1649823.186 | CD75: 0.01631357354 | CE75: 286378.8391 | CF75: 286.3788391
A76: 1.484234868 | B76: 1.753798017e-05 | C76: 0.005079299557 | D76: 9.279417682e-05 | E76: 0.999943116 | F76: 0.0008314626577 | G76: -0.6880060195 | H76: 0.03593373329 | I76: 0.3826834324 | J76: 0.007397298231 | K76: 0.8459840776 | L76: 0.007790715784 | M76: 0.8768431513 | N76: 0.009946729939 | O76: 0.5097394519 | P76: 0.01052095483 | Q76: 0.2642930361 | R76: 0.008196969717 | S76: 0.1333407651 | T76: 0.00489264093 | U76: 0.06682017731 | V76: 0.002584327253 | W76: 0.03342882909 | Y76: -4.342320604e-05 | Z76: 0.1085885152 | AA76: -3.773868272e-05 | AB76: -0.9992983218 | AC76: -4.571842945e-05 | AD76: 0.716366373 | AE76: -2.15448893e-05 | AF76: -0.9215138118 | AG76: -5.296542259e-05 | AH76: 0.8331415598 | AI76: 1.127315627e-08 | AJ76: 0.881212348 | AK76: 5.918134504e-05 | AL76: 0.5134592296 | AM76: 8.953887908e-05 | AN76: 0.2663513766 | AO76: 7.933319843e-05 | AP76: 0.1343949518 | AQ76: 5.006867219e-05 | AR76: 0.06735040438 | AS76: 2.714510827e-05 | AT76: 0.03369433454 | AV76: 2.163313206e-06 | AW76: 0.05095657494 | AX76: 2.369843723e-06 | AY76: -0.9997545616 | AZ76: 3.733462448e-06 | BA76: 0.7146511987 | BB76: 1.531937291e-06 | BC76: -0.9218300383 | BD76: 1.438489281e-06 | BE76: 0.8329419943 | BF76: 5.096371504e-07 | BG76: 0.8812948982 | BH76: 4.819576813e-06 | BI76: 0.5135335558 | BJ76: 7.012785782e-06 | BK76: 0.2663930354 | BL76: 6.142835407e-06 | BM76: 0.1344163549 | BN76: 3.858999501e-06 | BO76: 0.06736117802 | BP76: 2.087807317e-06 | BQ76: 0.03369973038 | BS76: 0.0357184675 | BT76: 4.516672226e-05 | BU76: 6.143403862e-06 | BW76: 1.484234868 | BX76: 633990.5578 | BY76: =Forças!$Q$31 -> 971787.9491 | BZ76: 1605778.507 | CA76: 1605778.507 | CD76: 0.01375124439 | CE76: 241398.0847 | CF76: 241.3980847
A77: 1.511220957 | B77: 1.753798017e-05 | C77: 0.5918869097 | D77: 9.279417682e-05 | E77: 0.9477064226 | F77: 0.0008314626577 | G77: -0.5660102535 | H77: 0.03593373329 | I77: 0.3090169944 | J77: 0.007397298231 | K77: 0.8243982005 | L77: 0.007790715784 | M77: 0.8861135503 | N77: 0.009946729939 | O77: 0.5181610098 | P77: 0.01052095483 | Q77: 0.2690240286 | R77: 0.008196969717 | S77: 0.1357728134 | T77: 0.00489264093 | U77: 0.0680445686 | V77: 0.002584327253 | W77: 0.03404207214 | Y77: -4.342320604e-05 | Z77: 0.6721595054 | AA77: -3.773868272e-05 | AB77: -0.9619633586 | AC77: -4.571842945e-05 | AD77: 0.5983985843 | AE77: -2.15448893e-05 | AF77: -0.9491423358 | AG77: -5.296542259e-05 | AH77: 0.8107862121 | AI77: 1.127315627e-08 | AJ77: 0.8903237375 | AK77: 5.918134504e-05 | AL77: 0.5218588646 | AM77: 8.953887908e-05 | AN77: 0.2710795639 | AO77: 7.933319843e-05 | AP77: 0.1368266475 | AQ77: 5.006867219e-05 | AR77: 0.06857475152 | AS77: 2.714510827e-05 | AT77: 0.03430757207 | AV77: 2.163313206e-06 | AW77: -0.5457969077 | AX77: 2.369843723e-06 | AY77: -0.9576691701 | AZ77: 3.733462448e-06 | BA77: 0.5964297211 | BB77: 1.531937291e-06 | BC77: -0.9493986462 | BD77: 1.438489281e-06 | BE77: 0.8105750023 | BF77: 5.096371504e-07 | BG77: 0.8904032498 | BH77: 4.819576813e-06 | BI77: 0.5219327505 | BJ77: 7.012785782e-06 | BK77: 0.2711211657 | BL77: 6.142835407e-06 | BM77: 0.1368480434 | BN77: 3.858999501e-06 | BO77: 0.06858552426 | BP77: 2.087807317e-06 | BQ77: 0.0343129678 | BS77: 0.0332518346 | BT77: 2.764972969e-05 | BU77: 4.535613887e-06 | BW77: 1.511220957 | BX77: 588233.8195 | BY77: =Forças!$Q$31 -> 971787.9491 | BZ77: 1560021.769 | CA77: 1560021.769 | CD77: 0.01110413426 | CE77: 194929.0308 | CF77: 194.9290308
A78: 1.538207045 | B78: 1.753798017e-05 | C78: 0.9526138378 | D78: 9.279417682e-05 | E78: 0.8027016215 | F78: 0.0008314626577 | G78: -0.4300774365 | H78: 0.03593373329 | I78: 0.2334453639 | J78: 0.007397298231 | K78: 0.8015411611 | L78: 0.007790715784 | M78: 0.8950423356 | N78: 0.009946729939 | O78: 0.5265326263 | P78: 0.01052095483 | Q78: 0.2737485388 | R78: 0.008196969717 | S78: 0.1382040438 | T78: 0.00489264093 | U78: 0.06926885742 | V78: 0.002584327253 | W78: 0.03465530237 | Y78: -4.342320604e-05 | Z78: 0.9789884104 | AA78: -3.773868272e-05 | AB78: -0.8304647194 | AC78: -4.571842945e-05 | AD78: 0.4656962364 | AE78: -2.15448893e-05 | AF78: -0.9709190817 | AG78: -5.296542259e-05 | AH78: 0.7871806907 | AI78: 1.127315627e-08 | AJ78: 0.8990918902 | AK78: 5.918134504e-05 | AL78: 0.5302082016 | AM78: 8.953887908e-05 | AN78: 0.2758012194 | AO78: 7.933319843e-05 | AP78: 0.1392575188 | AQ78: 5.006867219e-05 | AR78: 0.06979899539 | AS78: 2.714510827e-05 | AT78: 0.03492079668 | AV78: 2.163313206e-06 | AW78: -0.9340745225 | AX78: 2.369843723e-06 | AY78: -0.8218404477 | AZ78: 3.733462448e-06 | BA78: 0.4635221643 | BB78: 1.531937291e-06 | BC78: -0.9711138957 | BD78: 1.438489281e-06 | BE78: 0.7869581624 | BF78: 5.096371504e-07 | BG78: 0.899168334 | BH78: 4.819576813e-06 | BI78: 0.5302816402 | BJ78: 7.012785782e-06 | BK78: 0.2758427631 | BL78: 6.142835407e-06 | BM78: 0.1392789074 | BN78: 3.858999501e-06 | BO78: 0.06980976721 | BP78: 2.087807317e-06 | BQ78: 0.03492619229 | BS78: 0.03070311904 | BT78: 1.833783312e-05 | BU78: 3.552850021e-06 | BW78: 1.538207045 | BX78: 542145.9008 | BY78: =Forças!$Q$31 -> 971787.9491 | BZ78: 1513933.85 | CA78: 1513933.85 | CD78: 0.008388563443 | CE78: 147258.1747 | CF78: 147.2581747
A79: 1.565193134 | B79: 1.753798017e-05 | C79: 0.949474658 | D79: 9.279417682e-05 | E79: 0.579122793 | F79: 0.0008314626577 | G79: -0.2835546857 | H79: 0.03593373329 | I79: 0.156434465 | J79: 0.007397298231 | K79: 0.7774482033 | L79: 0.007790715784 | M79: 0.9036260651 | N79: 0.009946729939 | O79: 0.5348534946 | P79: 0.01052095483 | Q79: 0.2784664529 | R79: 0.008196969717 | S79: 0.1406344416 | T79: 0.00489264093 | U79: 0.07049304192 | V79: 0.002584327253 | W79: 0.03526851955 | Y79: -4.342320604e-05 | Z79: 0.9118770172 | AA79: -3.773868272e-05 | AB79: -0.6176744074 | AC79: -4.571842945e-05 | AD79: 0.3215269017 | AE79: -2.15448893e-05 | AF79: -0.9867097886 | AG79: -5.296542259e-05 | AH79: 0.7623613938 | AI79: 1.127315627e-08 | AJ79: 0.9075134259 | AK79: 5.918134504e-05 | AL79: 0.5385064362 | AM79: 8.953887908e-05 | AN79: 0.2805162292 | AO79: 7.933319843e-05 | AP79: 0.1416875513 | AQ79: 5.006867219e-05 | AR79: 0.07102313415 | AS79: 2.714510827e-05 | AT79: 0.03553400814 | AV79: 2.163313206e-06 | AW79: -0.9655674177 | AX79: 2.369843723e-06 | AY79: -0.6055642562 | AZ79: 3.733462448e-06 | BA79: 0.3192011535 | BB79: 1.531937291e-06 | BC79: -0.9868419051 | BD79: 1.438489281e-06 | BE79: 0.7621278901 | BF79: 5.096371504e-07 | BG79: 0.9075867717 | BH79: 4.819576813e-06 | BI79: 0.5385794203 | BJ79: 7.012785782e-06 | BK79: 0.2805577139 | BL79: 6.142835407e-06 | BM79: 0.1417089325 | BN79: 3.858999501e-06 | BO79: 0.07103390503 | BP79: 2.087807317e-06 | BQ79: 0.03553940364 | BS79: 0.02808540541 | BT79: 2.26516593e-05 | BU79: 3.496910856e-06 | BW79: 1.565193134 | BX79: 496654.4101 | BY79: =Forças!$Q$31 -> 971787.9491 | BZ79: 1468442.359 | CA79: 1468442.359 | CD79: 0.005621274345 | CE79: 98679.42286 | CF79: 98.67942286
A80: 1.592179222 | B80: 1.753798017e-05 | C80: 0.5836684304 | D80: 9.279417682e-05 | E80: 0.2988553905 | F80: 0.0008314626577 | G80: -0.1300498776 | H80: 0.03593373329 | I80: 0.07845909573 | J80: 0.007397298231 | K80: 0.7521564768 | L80: 0.007790715784 | M80: 0.9118614296 | N80: 0.009946729939 | O80: 0.5431228125 | P80: 0.01052095483 | Q80: 0.2831776571 | R80: 0.008196969717 | S80: 0.1430639924 | T80: 0.00489264093 | U80: 0.07171712026 | V80: 0.002584327253 | W80: 0.03588172346 | Y80: -4.342320604e-05 | Z80: 0.496459597 | AA80: -3.773868272e-05 | AB80: -0.3444218207 | AC80: -4.571842945e-05 | AD80: 0.1694405075 | AE80: -2.15448893e-05 | AF80: -0.9964171015 | AG80: -5.296542259e-05 | AH80: 0.7363665909 | AI80: 1.127315627e-08 | AJ80: 0.9155850979 | AK80: 5.918134504e-05 | AL80: 0.5467527683 | AM80: 8.953887908e-05 | AN80: 0.2852244798 | AO80: 7.933319843e-05 | AP80: 0.1441167303 | AQ80: 5.006867219e-05 | AR80: 0.07224716594 | AS80: 2.714510827e-05 | AT80: 0.03614720622 | AV80: 2.163313206e-06 | AW80: -0.6282463779 | AX80: 2.369843723e-06 | AY80: -0.3300112161 | AZ80: 3.733462448e-06 | BA80: 0.1670203509 | BB80: 1.531937291e-06 | BC80: -0.996485706 | BD80: 1.438489281e-06 | BE80: 0.7361224718 | BF80: 5.096371504e-07 | BG80: 0.9156553175 | BH80: 4.819576813e-06 | BI80: 0.546825291 | BJ80: 7.012785782e-06 | BK80: 0.2852659045 | BL80: 6.142835407e-06 | BM80: 0.1441381039 | BN80: 3.858999501e-06 | BO80: 0.07225793588 | BP80: 2.087807317e-06 | BQ80: 0.0361526016 | BS80: 0.02541504674 | BT80: 4.009767966e-05 | BU80: 4.357112977e-06 | BW80: 1.592179222 | BX80: 451988.2015 | BY80: =Forças!$Q$31 -> 971787.9491 | BZ80: 1423776.151 | CA80: 1423776.151 | CD80: 0.00281932822 | CE80: 49492.27961 | CF80: 49.49227961
A81: 1.619165311 | B81: 1.753798017e-05 | C81: -0.005079299557 | D81: 9.279417682e-05 | E81: -0.0106660599 | F81: 0.0008314626577 | G81: 0.02665719024 | H81: 0.03593373329 | I81: -4.318377253e-15 | J81: 0.007397298231 | K81: 0.7257049794 | L81: 0.007790715784 | M81: 0.9197452541 | N81: 0.009946729939 | O81: 0.5513397831 | P81: 0.01052095483 | Q81: 0.2878820379 | R81: 0.008196969717 | S81: 0.1454926813 | T81: 0.00489264093 | U81: 0.0729410906 | V81: 0.002584327253 | W81: 0.03649491385 | Y81: -4.342320604e-05 | Z81: -0.1085885152 | AA81: -3.773868272e-05 | AB81: -0.03745482649 | AC81: -4.571842945e-05 | AD81: 0.01318192573 | AE81: -2.15448893e-05 | AF81: -0.9999811717 | AG81: -5.296542259e-05 | AH81: 0.7092363641 | AI81: 1.127315627e-08 | AJ81: 0.9233037944 | AK81: 5.918134504e-05 | AL81: 0.5549464033 | AM81: 8.953887908e-05 | AN81: 0.2899258578 | AO81: 7.933319843e-05 | AP81: 0.1465450412 | AQ81: 5.006867219e-05 | AR81: 0.07347108894 | AS81: 2.714510827e-05 | AT81: 0.0367603907 | AV81: 2.163313206e-06 | AW81: -0.05095657494 | AX81: 2.369843723e-06 | AY81: -0.02215437887 | AZ81: 3.733462448e-06 | BA81: 0.01072695295 | BB81: 1.531937291e-06 | BC81: -0.9999858412 | BD81: 1.438489281e-06 | BE81: 0.7089820061 | BF81: 5.096371504e-07 | BG81: 0.9233708606 | BH81: 4.819576813e-06 | BI81: 0.5550184575 | BJ81: 7.012785782e-06 | BK81: 0.2899672215 | BL81: 6.142835407e-06 | BM81: 0.146566407 | BN81: 3.858999501e-06 | BO81: 0.07348185791 | BP81: 2.087807317e-06 | BQ81: 0.03676578596 | BS81: 0.02271142597 | BT81: 6.462045116e-05 | BU81: 5.804934479e-06 | BW81: 1.619165311 | BX81: 407710.6222 | BY81: =Forças!$Q$31 -> 971787.9491 | BZ81: 1379498.571 | CA81: 1379498.571 | CD81: -1.551754165e-16 | CE81: -2.724047894e-09 | CF81: -2.724047894e-12
A82: 1.646151399 | B82: 1.753798017e-05 | C82: -0.5918869097 | D82: 9.279417682e-05 | E82: -0.319143442 | F82: 0.0008314626577 | G82: 0.1827078695 | H82: 0.03593373329 | I82: -0.07845909573 | J82: 0.007397298231 | K82: 0.6981344976 | L82: 0.007790715784 | M82: 0.9272744993 | N82: 0.009946729939 | O82: 0.5595036144 | P82: 0.01052095483 | Q82: 0.2925794821 | R82: 0.008196969717 | S82: 0.1479204937 | T82: 0.00489264093 | U82: 0.07416495109 | V82: 0.002584327253 | W82: 0.03710809051 | Y82: -4.342320604e-05 | Z82: -0.6721595054 | AA82: -3.773868272e-05 | AB82: 0.2731785071 | AC82: -4.571842945e-05 | AD82: -0.1434012388 | AE82: -2.15448893e-05 | AF82: -0.9973800254 | AG82: -5.296542259e-05 | AH82: 0.6810125462 | AI82: 1.127315627e-08 | AJ82: 0.9306665397 | AK82: 5.918134504e-05 | AL82: 0.5630865514 | AM82: 8.953887908e-05 | AN82: 0.2946202497 | AO82: 7.933319843e-05 | AP82: 0.1489724692 | AQ82: 5.006867219e-05 | AR82: 0.07469490128 | AS82: 2.714510827e-05 | AT82: 0.03737356133 | AV82: 2.163313206e-06 | AW82: 0.5457969077 | AX82: 2.369843723e-06 | AY82: 0.2878710834 | AZ82: 3.733462448e-06 | BA82: -0.1458305782 | BB82: 1.531937291e-06 | BC82: -0.9973207312 | BD82: 1.438489281e-06 | BE82: 0.6807483414 | BF82: 5.096371504e-07 | BG82: 0.9307304268 | BH82: 4.819576813e-06 | BI82: 0.5631581302 | BJ82: 7.012785782e-06 | BK82: 0.2946615514 | BL82: 6.142835407e-06 | BM82: 0.1489938273 | BN82: 3.858999501e-06 | BO82: 0.07470566927 | BP82: 2.087807317e-06 | BQ82: 0.03737895647 | BS82: 0.01999574116 | BT82: 8.713985235e-05 | BU82: 7.306393288e-06 | BW82: 1.646151399 | BX82: 363015.7009 | BY82: =Forças!$Q$31 -> 971787.9491 | BZ82: 1334803.65 | CA82: 1334803.65 | CD82: -0.00281932822 | CE82: -49492.27961 | CF82: -49.49227961
A83: 1.673137488 | B83: 1.753798017e-05 | C83: -0.9526138378 | D83: 9.279417682e-05 | E83: -0.5963808404 | F83: 0.0008314626577 | G83: 0.3342596747 | H83: 0.03593373329 | I83: -0.156434465 | J83: 0.007397298231 | K83: 0.669487543 | L83: 0.007790715784 | M83: 0.9344462625 | N83: 0.009946729939 | O83: 0.5676135196 | P83: 0.01052095483 | Q83: 0.2972698763 | R83: 0.008196969717 | S83: 0.1503474151 | T83: 0.00489264093 | U83: 0.07538869988 | V83: 0.002584327253 | W83: 0.03772125319 | Y83: -4.342320604e-05 | Z83: -0.9789884104 | AA83: -3.773868272e-05 | AB83: 0.557071225 | AC83: -4.571842945e-05 | AD83: -0.296453389 | AE83: -2.15448893e-05 | AF83: -0.9886296996 | AG83: -5.296542259e-05 | AH83: 0.6517386563 | AI83: 1.127315627e-08 | AJ83: 0.9376704954 | AK83: 5.918134504e-05 | AL83: 0.571172428 | AM83: 8.953887908e-05 | AN83: 0.2993075426 | AO83: 7.933319843e-05 | AP83: 0.1513989999 | AQ83: 5.006867219e-05 | AR83: 0.07591860114 | AS83: 2.714510827e-05 | AT83: 0.0379867179 | AV83: 2.163313206e-06 | AW83: 0.9340745225 | AX83: 2.369843723e-06 | AY83: 0.5697177182 | AZ83: 3.733462448e-06 | BA83: -0.2987972765 | BB83: 1.531937291e-06 | BC83: -0.9885068072 | BD83: 1.438489281e-06 | BE83: 0.6514650122 | BF83: 5.096371504e-07 | BG83: 0.9377311786 | BH83: 4.819576813e-06 | BI83: 0.5712435245 | BJ83: 7.012785782e-06 | BK83: 0.2993487813 | BL83: 6.142835407e-06 | BM83: 0.15142035 | BN83: 3.858999501e-06 | BO83: 0.07592936813 | BP83: 2.087807317e-06 | BQ83: 0.03799211291 | BS83: 0.01728919521 | BT83: 9.927761761e-05 | BU83: 8.310889755e-06 | BW83: 1.673137488 | BX83: 317170.2568 | BY83: =Forças!$Q$31 -> 971787.9491 | BZ83: 1288958.206 | CA83: 1288958.206 | CD83: -0.005621274345 | CE83: -98679.42286 | CF83: -98.67942286
A84: 1.700123576 | B84: 1.753798017e-05 | C84: -0.949474658 | D84: 9.279417682e-05 | E84: -0.8152403269 | F84: 0.0008314626577 | G84: 0.4775808974 | H84: 0.03593373329 | I84: -0.2334453639 | J84: 0.007397298231 | K84: 0.6398082872 | L84: 0.007790715784 | M84: 0.941257779 | N84: 0.009946729939 | O84: 0.5756687171 | P84: 0.01052095483 | Q84: 0.3019531077 | R84: 0.008196969717 | S84: 0.1527734308 | T84: 0.00489264093 | U84: 0.07661233514 | V84: 0.002584327253 | W84: 0.03833440167 | Y84: -4.342320604e-05 | Z84: -0.9118770172 | AA84: -3.773868272e-05 | AB84: 0.7864339302 | AC84: -4.571842945e-05 | AD84: -0.4422058728 | AE84: -2.15448893e-05 | AF84: -0.9737841429 | AG84: -5.296542259e-05 | AH84: 0.6214598327 | AI84: 1.127315627e-08 | AJ84: 0.9443129612 | AK84: 5.918134504e-05 | AL84: 0.5792032539 | AM84: 8.953887908e-05 | AN84: 0.3039876235 | AO84: 7.933319843e-05 | AP84: 0.1538246185 | AQ84: 5.006867219e-05 | AR84: 0.07714218666 | AS84: 2.714510827e-05 | AT84: 0.03859986016 | AV84: 2.163313206e-06 | AW84: 0.9655674177 | AX84: 2.369843723e-06 | AY84: 0.7957964134 | AZ84: 3.733462448e-06 | BA84: -0.4444065941 | BB84: 1.531937291e-06 | BC84: -0.97359841 | BD84: 1.438489281e-06 | BE84: 0.6211771711 | BF84: 5.096371504e-07 | BG84: 0.9443704172 | BH84: 4.819576813e-06 | BI84: 0.5792738612 | BJ84: 7.012785782e-06 | BK84: 0.3040287982 | BL84: 6.142835407e-06 | BM84: 0.1538459605 | BN84: 3.858999501e-06 | BO84: 0.07715295264 | BP84: 2.087807317e-06 | BQ84: 0.03860525504 | BS84: 0.0146111911 | BT84: 9.681977722e-05 | BU84: 8.446241447e-06 | BW84: 1.700123576 | BX84: 269928.7282 | BY84: =Forças!$Q$31 -> 971787.9491 | BZ84: 1241716.677 | CA84: 1241716.677 | CD84: -0.008388563443 | CE84: -147258.1747 | CF84: -147.2581747
A85: 1.727109665 | B85: 1.753798017e-05 | C85: -0.5836684304 | D85: 9.279417682e-05 | E85: -0.9542984101 | F85: 0.0008314626577 | G85: 0.6091424933 | H85: 0.03593373329 | I85: -0.3090169944 | J85: 0.007397298231 | K85: 0.6091424933 | L85: 0.007790715784 | M85: 0.9477064226 | N85: 0.009946729939 | O85: 0.5836684304 | P85: 0.01052095483 | Q85: 0.3066290633 | R85: 0.008196969717 | S85: 0.1551985263 | T85: 0.00489264093 | U85: 0.07783585503 | V85: 0.002584327253 | W85: 0.03894753572 | Y85: -4.342320604e-05 | Z85: -0.496459597 | AA85: -3.773868272e-05 | AB85: 0.9388150028 | AC85: -4.571842945e-05 | AD85: -0.5770697804 | AE85: -2.15448893e-05 | AF85: -0.9529348832 | AG85: -5.296542259e-05 | AH85: 0.590222763 | AI85: 1.127315627e-08 | AJ85: 0.9505913764 | AK85: 5.918134504e-05 | AL85: 0.5871782549 | AM85: 8.953887908e-05 | AN85: 0.3086603797 | AO85: 7.933319843e-05 | AP85: 0.1562493105 | AQ85: 5.006867219e-05 | AR85: 0.07836565601 | AS85: 2.714510827e-05 | AT85: 0.03921298789 | AV85: 2.163313206e-06 | AW85: 0.6282463779 | AX85: 2.369843723e-06 | AY85: 0.943977011 | AZ85: 3.733462448e-06 | BA85: -0.5790731466 | BB85: 1.531937291e-06 | BC85: -0.9526874549 | BD85: 1.438489281e-06 | BE85: 0.5899315199 | BF85: 5.096371504e-07 | BG85: 0.950645583 | BH85: 4.819576813e-06 | BI85: 0.5872483662 | BJ85: 7.012785782e-06 | BK85: 0.3087014894 | BL85: 6.142835407e-06 | BM85: 0.1562706443 | BN85: 3.858999501e-06 | BO85: 0.07837642096 | BP85: 2.087807317e-06 | BQ85: 0.03921838264 | BS85: =B85*C85+D85*E85+F85*G85+H85*I85+J85*K85+L85*M85+N85*O85+P85*Q85+R85*S85+T85*U85+V85*W85 -> 0.01197813181 | BT85: =Y85*Z85+AA85*AB85+AC85*AD85+AE85*AF85+AG85*AH85+AI85*AJ85+AK85*AL85+AM85*AN85+AO85*AP85+AQ85*AR85+AS85*AT85 -> 8.156211057e-05 | BU85: =AV85*AW85+AX85*AY85+AZ85*BA85+BB85*BC85+BD85*BE85+BF85*BG85+BH85*BI85+BJ85*BK85+BL85*BM85+BN85*BO85+BP85*BQ85 -> 7.647286735e-06 | BW85: 1.727109665 | BX85: 221757.9081 | BY85: =Forças!$Q$31 -> 971787.9491 | BZ85: 1193545.857 | CA85: 1193545.857 | CD85: =H85*I85 -> -0.01110413426 | CE85: -194929.0308 | CF85: -194.9290308
A86: 1.754095753 | B86: =$C$4 -> 1.753798017e-05 | C86: =SIN($C$3*$A86-Q$4) -> 0.005079299557 | D86: =$D$4 -> 9.279417682e-05 | E86: =SIN($D$3*$A86-R$4) -> -0.999943116 | F86: =$E$4 -> 0.0008314626577 | G86: =SIN($E$3*$A86-S$4) -> 0.7257049794 | H86: =$F$4 -> 0.03593373329 | I86: =SIN($F$3*$A86-T$4) -> -0.3826834324 | J86: =$G$4 -> 0.007397298231 | K86: =SIN($G$3*$A86-U$4) -> 0.5775374459 | L86: =$H$4 -> 0.007790715784 | M86: =SIN($H$3*$A86-V$4) -> 0.9537897073 | N86: =$I$4 -> 0.009946729939 | O86: =SIN($I$3*$A86-W$4) -> 0.5916118885 | P86: =$J$4 -> 0.01052095483 | Q86: =SIN($J$3*$A86-X$4) -> 0.3112976304 | R86: =$K$4 -> 0.008196969717 | S86: =SIN($K$3*$A86-Y$4) -> 0.1576226868 | T86: =$L$4 -> 0.00489264093 | U86: =SIN($L$3*$A86-Z$4) -> 0.0790592577 | V86: =$M$4 -> 0.002584327253 | W86: =SIN($M$3*$A86-AA$4) -> 0.03956065511 | Y86: =$C$5 -> -4.342320604e-05 | Z86: =SIN($C$3*$A86-Q$5) -> 0.1085885152 | AA86: =$D$5 -> -3.773868272e-05 | AB86: =SIN($D$3*$A86-R$5) -> 0.9992983218 | AC86: =$E$5 -> -4.571842945e-05 | AD86: =SIN($E$3*$A86-S$5) -> -0.6977243149 | AE86: =$F$5 -> -2.15448893e-05 | AF86: =SIN($F$3*$A86-T$5) -> -0.9262104631 | AG86: =$G$5 -> -5.296542259e-05 | AH86: =SIN($G$3*$A86-U$5) -> 0.5580756126 | AI86: =$H$5 -> 1.127315627e-08 | AJ86: =SIN($H$3*$A86-V$5) -> 0.9565033205 | AK86: =$I$5 -> 5.918134504e-05 | AL86: =SIN($I$3*$A86-W$5) -> 0.5950966625 | AM86: =$J$5 -> 8.953887908e-05 | AN86: =SIN($J$3*$A86-X$5) -> 0.3133256984 | AO86: =$K$5 -> 7.933319843e-05 | AP86: =SIN($K$3*$A86-Y$5) -> 0.1586730613 | AQ86: =$L$5 -> 5.006867219e-05 | AR86: =SIN($L$3*$A86-Z$5) -> 0.07958900735 | AS86: =$M$5 -> 2.714510827e-05 | AT86: =SIN($M$3*$A86-AA$5) -> 0.03982610085 | AV86: =$C$6 -> 2.163313206e-06 | AW86: =SIN($C$3*$A86-Q$6) -> 0.05095657494 | AX86: =$D$6 -> 2.369843723e-06 | AY86: =SIN($D$3*$A86-R$6) -> 0.9997545616 | AZ86: =$E$6 -> 3.733462448e-06 | BA86: =SIN($E$3*$A86-S$6) -> -0.6994809963 | BB86: =$F$6 -> 1.531937291e-06 | BC86: =SIN($F$3*$A86-T$6) -> -0.9259028648 | BD86: =$G$6 -> 1.438489281e-06 | BE86: =SIN($G$3*$A86-U$6) -> 0.557776237 | BF86: =$H$6 -> 5.096371504e-07 | BG86: =SIN($H$3*$A86-V$6) -> 0.9565542569 | BH86: =$I$6 -> 4.819576813e-06 | BI86: =SIN($I$3*$A86-W$6) -> 0.5951662711 | BJ86: =$J$6 -> 7.012785782e-06 | BK86: =SIN($J$3*$A86-X$6) -> 0.3133667421 | BL86: =$K$6 -> 6.142835407e-06 | BM86: =SIN($K$3*$A86-Y$6) -> 0.1586943867 | BN86: =$L$6 -> 3.858999501e-06 | BO86: =SIN($L$3*$A86-Z$6) -> 0.07959977125 | BP86: =$M$6 -> 2.087807317e-06 | BQ86: =SIN($M$3*$A86-AA$6) -> 0.03983149548 | BS86: 0.009403200253 | BT86: 6.080606406e-05 | BU86: 6.170629525e-06 | BW86: =A86 -> 1.754095753 | BX86: =BS86*$BT$15+BT86*$BU$15+BU86*$BV$15 -> 173781.7553 | BY86: =Forças!$Q$31 -> 971787.9491 | BZ86: =BX86+BY86 -> 1145569.704 | CA86: =ABS(BZ86) -> 1145569.704 | CD86: -0.01375124439 | CE86: =CD86*$BT$15 -> -241398.0847 | CF86: =CE86/1000 -> -241.3980847
A87: =A86+$B$9 -> 1.781081842 | B87: 1.753798017e-05 | C87: 0.5918869097 | D87: 9.279417682e-05 | E87: -0.9477064226 | F87: 0.0008314626577 | G87: 0.8243982005 | H87: 0.03593373329 | I87: -0.4539904997 | J87: 0.007397298231 | K87: 0.5450418775 | L87: 0.007790715784 | M87: 0.959505288 | N87: 0.009946729939 | O87: 0.5994983258 | P87: 0.01052095483 | Q87: 0.3159586966 | R87: 0.008196969717 | S87: 0.1600458978 | T87: 0.00489264093 | U87: 0.0802825413 | V87: 0.002584327253 | W87: 0.0401737596 | Y87: -4.342320604e-05 | Z87: 0.6721595054 | AA87: -3.773868272e-05 | AB87: 0.9619633586 | AC87: -4.571842945e-05 | AD87: -0.8011985611 | AE87: -2.15448893e-05 | AF87: -0.8937756474 | AG87: -5.296542259e-05 | AH87: 0.5250679501 | AI87: 1.127315627e-08 | AJ87: 0.9620465144 | AK87: 5.918134504e-05 | AL87: 0.6029577134 | AM87: 8.953887908e-05 | AN87: 0.3179834673 | AO87: 7.933319843e-05 | AP87: 0.1610958563 | AQ87: 5.006867219e-05 | AR87: 0.08081223882 | AS87: 2.714510827e-05 | AT87: 0.04043919883 | AV87: 2.163313206e-06 | AW87: -0.5457969077 | AX87: 2.369843723e-06 | AY87: 0.9576691701 | AZ87: 3.733462448e-06 | BA87: -0.8026653025 | BB87: 1.531937291e-06 | BC87: -0.8934097756 | BD87: 1.438489281e-06 | BE87: 0.5247609036 | BF87: 5.096371504e-07 | BG87: 0.9620941609 | BH87: 4.819576813e-06 | BI87: 0.6030268126 | BJ87: 7.012785782e-06 | BK87: 0.3180244441 | BL87: 6.142835407e-06 | BM87: 0.1611171732 | BN87: 3.858999501e-06 | BO87: 0.08082300166 | BP87: 2.087807317e-06 | BQ87: 0.04044459332 | BS87: 0.006897134243 | BT87: 4.46755552e-05 | BU87: 4.491234018e-06 | BW87: 1.781081842 | BX87: 127464.1133 | BY87: =Forças!$Q$31 -> 971787.9491 | BZ87: 1099252.062 | CA87: 1099252.062 | CD87: -0.01631357354 | CE87: -286378.8391 | CF87: -286.3788391
A88: 1.808067931 | B88: 1.753798017e-05 | C88: 0.9526138378 | D88: 9.279417682e-05 | E88: -0.8027016215 | F88: 0.0008314626577 | G88: 0.9027920018 | H88: 0.03593373329 | I88: -0.5224985647 | J88: 0.007397298231 | K88: 0.5117058941 | L88: 0.007790715784 | M88: 0.9648509611 | N88: 0.009946729939 | O88: 0.6073269822 | P88: 0.01052095483 | Q88: 0.3206121496 | R88: 0.008196969717 | S88: 0.1624681447 | T88: 0.00489264093 | U88: 0.081505704 | V88: 0.002584327253 | W88: 0.04078684897 | Y88: -4.342320604e-05 | Z88: 0.9789884104 | AA88: -3.773868272e-05 | AB88: 0.8304647194 | AC88: -4.571842945e-05 | AD88: -0.8849446397 | AE88: -2.15448893e-05 | AF88: -0.8558304077 | AG88: -5.296542259e-05 | AH88: 0.4912506708 | AI88: 1.127315627e-08 | AJ88: 0.9672188211 | AK88: 5.918134504e-05 | AL88: 0.61076065 | AM88: 8.953887908e-05 | AN88: 0.3226335743 | AO88: 7.933319843e-05 | AP88: 0.1635176808 | AQ88: 5.006867219e-05 | AR88: 0.08203534859 | AS88: 2.714510827e-05 | AT88: 0.04105228157 | AV88: 2.163313206e-06 | AW88: -0.9340745225 | AX88: 2.369843723e-06 | AY88: 0.8218404477 | AZ88: 3.733462448e-06 | BA88: -0.886085325 | BB88: 1.531937291e-06 | BC88: -0.8554085181 | BD88: 1.438489281e-06 | BE88: 0.4909364269 | BF88: 5.096371504e-07 | BG88: 0.9672631593 | BH88: 4.819576813e-06 | BI88: 0.6108292331 | BJ88: 7.012785782e-06 | BK88: 0.322674483 | BL88: 6.142835407e-06 | BM88: 0.1635389891 | BN88: 3.858999501e-06 | BO88: 0.08204611035 | BP88: 2.087807317e-06 | BQ88: 0.04105767593 | BS88: 0.004469649962 | BT88: 4.226523027e-05 | BU88: 3.121214153e-06 | BW88: 1.808067931 | BX88: 84148.32122 | BY88: =Forças!$Q$31 -> 971787.9491 | BZ88: 1055936.27 | CA88: 1055936.27 | CD88: -0.01877532407 | CE88: -329593.9728 | CF88: -329.5939728
A89: 1.835054019 | B89: 1.753798017e-05 | C89: 0.949474658 | D89: 9.279417682e-05 | E89: -0.579122793 | F89: 0.0008314626577 | G89: 0.9589560679 | H89: 0.03593373329 | I89: -0.5877852523 | J89: 0.007397298231 | K89: 0.4775808974 | L89: 0.007790715784 | M89: 0.9698246658 | N89: 0.009946729939 | O89: 0.6150971032 | P89: 0.01052095483 | Q89: 0.3252578772 | R89: 0.008196969717 | S89: 0.1648894129 | T89: 0.00489264093 | U89: 0.08272874395 | V89: 0.002584327253 | W89: 0.04139992298 | Y89: -4.342320604e-05 | Z89: 0.9118770172 | AA89: -3.773868272e-05 | AB89: 0.6176744074 | AC89: -4.571842945e-05 | AD89: -0.9469004443 | AE89: -2.15448893e-05 | AF89: -0.8126086889 | AG89: -5.296542259e-05 | AH89: 0.4566759187 | AI89: 1.127315627e-08 | AJ89: 0.9720182465 | AK89: 5.918134504e-05 | AL89: 0.6185047202 | AM89: 8.953887908e-05 | AN89: 0.3272759071 | AO89: 7.933319843e-05 | AP89: 0.1659385203 | AQ89: 5.006867219e-05 | AR89: 0.08325833482 | AS89: 2.714510827e-05 | AT89: 0.04166534886 | AV89: 2.163313206e-06 | AW89: -0.9655674177 | AX89: 2.369843723e-06 | AY89: 0.6055642562 | AZ89: 3.733462448e-06 | BA89: -0.9476869861 | BB89: 1.531937291e-06 | BC89: -0.8121333826 | BD89: 1.438489281e-06 | BE89: 0.4563549618 | BF89: 5.096371504e-07 | BG89: 0.9720592593 | BH89: 4.819576813e-06 | BI89: 0.6185727806 | BJ89: 7.012785782e-06 | BK89: 0.3273167469 | BL89: 6.142835407e-06 | BM89: 0.1659598199 | BN89: 3.858999501e-06 | BO89: 0.08326909548 | BP89: 2.087807317e-06 | BQ89: 0.04167074308 | BS89: 0.002130941693 | BT89: 5.808638538e-05 | BU89: 2.420296945e-06 | BW89: 1.835054019 | BX89: 44628.59298 | BY89: =Forças!$Q$31 -> 971787.9491 | BZ89: 1016416.542 | CA89: 1016416.542 | CD89: -0.02112131849 | CE89: -370777.05 | CF89: -370.77705
A90: 1.862040108 | B90: 1.753798017e-05 | C90: 0.5836684304 | D90: 9.279417682e-05 | E90: -0.2988553905 | F90: 0.0008314626577 | G90: 0.991507453 | H90: 0.03593373329 | I90: -0.6494480483 | J90: 0.007397298231 | K90: 0.4427195054 | L90: 0.007790715784 | M90: 0.9744244847 | N90: 0.009946729939 | O90: 0.6228079399 | P90: 0.01052095483 | Q90: 0.3298957675 | R90: 0.008196969717 | S90: 0.1673096879 | T90: 0.00489264093 | U90: 0.08395165932 | V90: 0.002584327253 | W90: 0.0420129814 | Y90: -4.342320604e-05 | Z90: 0.496459597 | AA90: -3.773868272e-05 | AB90: 0.3444218207 | AC90: -4.571842945e-05 | AD90: -0.9855404174 | AE90: -2.15448893e-05 | AF90: -0.7643769673 | AG90: -5.296542259e-05 | AH90: 0.4213970053 | AI90: 1.127315627e-08 | AJ90: 0.9764429403 | AK90: 5.918134504e-05 | AL90: 0.6261891776 | AM90: 8.953887908e-05 | AN90: 0.331910354 | AO90: 7.933319843e-05 | AP90: 0.1683583602 | AQ90: 5.006867219e-05 | AR90: 0.08448119566 | AS90: 2.714510827e-05 | AT90: 0.04227840046 | AV90: 2.163313206e-06 | AW90: -0.6282463779 | AX90: 2.369843723e-06 | AY90: 0.3300112161 | AZ90: 3.733462448e-06 | BA90: -0.9859534484 | BB90: 1.531937291e-06 | BC90: -0.7638511748 | BD90: 1.438489281e-06 | BE90: 0.4210698304 | BF90: 5.096371504e-07 | BG90: 0.976480612 | BH90: 4.819576813e-06 | BI90: 0.6262567088 | BJ90: 7.012785782e-06 | BK90: 0.3319511239 | BL90: 6.142835407e-06 | BM90: 0.1683796509 | BN90: 3.858999501e-06 | BO90: 0.08449195522 | BP90: 2.087807317e-06 | BQ90: 0.04228379454 | BS90: -0.0001073208697 | BT90: 9.017294022e-05 | BU90: 2.470002027e-06 | BW90: 1.862040108 | BX90: 8917.207486 | BY90: =Forças!$Q$31 -> 971787.9491 | BZ90: 980705.1565 | CA90: 980705.1565 | CD90: -0.02333709296 | CE90: -409674.1634 | CF90: -409.6741634
A91: 1.889026196 | B91: 1.753798017e-05 | C91: -0.005079299557 | D91: 9.279417682e-05 | E91: 0.0106660599 | F91: 0.0008314626577 | G91: 0.999644634 | H91: 0.03593373329 | I91: -0.7071067812 | J91: 0.007397298231 | K91: 0.4071754721 | L91: 0.007790715784 | M91: 0.9786486443 | N91: 0.009946729939 | O91: 0.630458749 | P91: 0.01052095483 | Q91: 0.3345257088 | R91: 0.008196969717 | S91: 0.1697289549 | T91: 0.00489264093 | U91: 0.08517444826 | V91: 0.002584327253 | W91: 0.04262602401 | Y91: -4.342320604e-05 | Z91: -0.1085885152 | AA91: -3.773868272e-05 | AB91: 0.03745482649 | AC91: -4.571842945e-05 | AD91: -0.9999131146 | AE91: -2.15448893e-05 | AF91: -0.7114326076 | AG91: -5.296542259e-05 | AH91: 0.3854683283 | AI91: 1.127315627e-08 | AJ91: 0.9804911968 | AK91: 5.918134504e-05 | AL91: 0.6338132816 | AM91: 8.953887908e-05 | AN91: 0.3365368034 | AO91: 7.933319843e-05 | AP91: 0.1707771859 | AQ91: 5.006867219e-05 | AR91: 0.08570392928 | AS91: 2.714510827e-05 | AT91: 0.04289143615 | AV91: 2.163313206e-06 | AW91: -0.05095657494 | AX91: 2.369843723e-06 | AY91: 0.02215437887 | AZ91: 3.733462448e-06 | BA91: -0.9999424646 | BB91: 1.531937291e-06 | BC91: -0.7108595705 | BD91: 1.438489281e-06 | BE91: 0.3851354399 | BF91: 5.096371504e-07 | BG91: 0.9805255128 | BH91: 4.819576813e-06 | BI91: 0.633880277 | BJ91: 7.012785782e-06 | BK91: 0.3365775023 | BL91: 6.142835407e-06 | BM91: 0.1707984677 | BN91: 3.858999501e-06 | BO91: 0.0857146877 | BP91: 2.087807317e-06 | BQ91: 0.04289683009 | BS91: -0.002231863317 | BT91: 0.0001305852456 | BU91: 3.058653624e-06 | BW91: 1.889026196 | BX91: -23702.00203 | BY91: =Forças!$Q$31 -> 971787.9491 | BZ91: 948085.947 | CA91: 948085.947 | CD91: -0.02540898648 | CE91: -446045.4993 | CF91: -446.0454993
